Workbook

Sheet Control Panel
A1: GO TO
A2: Utah | C2: FILING INFORMATION | J2: Model Checks
A3: 1.1 | J3: (Must Be 0)
A4: 1.2 | E4: UTAH | J4: ='Model Checks'!D7 -> 1.982083812
A5: 1.3 pg 1 | D5: Current Case No. | E5: 18-057-04 | J5: (If this is not 0, or very close, go to
A6: 1.3 pg 2 | D6: Filing Date | E6: 2018-05-01 | J6: the "Model Checks"
D7: Test Year Ending | E7: 2019-05-31 | J7: Tab and find the
A8: 1.4 pg 1 | D8: Proposed Effective Date | E8: 2018-06-01 | J8: problem.)
A9: 1.4 pg 2 | D9: Prior Case No. | E9: 17-057-20
A10: 1.4 pg 3 | J10: Go To
A11: 1.5 | C11: Total Increase (Decrease) | E11: ='Utah Summary-by class'!Q24 -> -82769631.32 | G11: =E11-F11 -> -82769631.32 | J11: Model Checks'
A12: 1.6 pg 1
A13: 1.6 pg 2
A14: 1.6 pg 3 | C14: Typical Customer's Bill | J14: Old Ut Data color
A15: 1.7 pg 1
A16: 1.7 pg 2 | D16: Previous | E16: ='Ut 1.7'!F30 -> 700.34 | J16: New Data color
A17: 1.8 | D17: Proposed | E17: ='Ut 1.7'!H30 -> 640.73
A18: 1.9 | D18: Difference | E18: ='Ut 1.7'!J30 -> -59.61 | G18: =E18-F18 -> -59.61
A19: Monthly Inputs | D19: % Difference | E19: ='Ut 1.7'!J32 -> -8.51 | G19: =E19-F19 -> -8.51
A20: Other Inputs
A21: Expenses
A22: Rate Base
C29: Exhibit Headings
C31: UTAH
E32: Dominion Energy Utah
E33: ="Docket No. "&E5 -> Docket No. 18-057-04
C35: Test Year (enter as text)
D36: from | E36: Jun-18
D37: to | E37: May-18

Sheet Monthly Inputs
A1: MONTHLY INPUTS
G2: TEST YEAR COLUMNS | S2: 12-Month
E3: Apr18 | F3: May18 | G3: Jun18 | H3: Jul18 | I3: Aug18 | J3: Sep18 | K3: Oct18 | L3: Nov18 | M3: Dec18 | N3: Jan19 | O3: Feb19 | P3: Mar19 | Q3: Apr19 | R3: May19 | S3: =R3 -> May19
E4: 4 | F4: 5 | G4: 6 | H4: 7 | I4: 8 | J4: 9 | K4: 10 | L4: 11 | M4: 12 | N4: 1 | O4: 2 | P4: 3 | Q4: 4 | R4: 5
A5: Company Produced Gas In MDth | I5: Updated: | J5: 2018-04-06
A6: WEXPRO I
B7: Company Production In Dth | E7: 4545112.581 | F7: 4604872.719 | G7: 4374893.773 | H7: 4443120.131 | I7: 4368341.956 | J7: 4162301.653 | K7: 4234535.633 | L7: 4040155.375 | M7: 4118196.761 | N7: 4063137.303 | O7: 3621884.329 | P7: 3960111.981 | Q7: 3785165.141 | R7: 3864376.126 | S7: =SUM(G7:R7) -> 49036220.16 | U7: ScottN
B8: Gathering | E8: 0 | F8: 0 | G8: 0 | H8: 0 | I8: 0 | J8: 0 | K8: 0 | L8: 0 | M8: 0 | N8: 0 | O8: 0 | P8: 0 | Q8: 0 | R8: =R7/$S$7*$S$8 -> 0 | S8: ='Other Inputs'!$D$190 -> 0
B9: Gathering | E9: 2893382.35 | F9: 2931425.176 | G9: =G7/$S$7*$S$9 -> 3059669.054 | H9: =H7/$S$7*$S$9 -> 3107384.516 | I9: 3055086.91 | J9: 2910988.523 | K9: 2961506.795 | L9: 2825563.092 | M9: 2880142.889 | N9: 2841635.961 | O9: 2533036.909 | P9: 2769583.151 | Q9: 2647230.595 | R9: =R7/$S$7*$S$9 -> 2702628.374 | S9: =+'Ex 1.1 Data'!E1 -> 34294456.77
A12: WEXPRO II
B13: Company Production In Dth | E13: 1168533.008 | F13: 1167472.417 | G13: 1374825.016 | H13: 1386301.412 | I13: 1547095.371 | J13: 1858998.443 | K13: 2040057.299 | L13: 1877754.021 | M13: 2076776.812 | N13: 2081913.478 | O13: 1780290.407 | P13: 1880035.325 | Q13: 1800882.008 | R13: 1955656.7 | S13: =SUM(G13:R13) -> 21660586.29 | U13: ScottN
B14: Gathering | E14: 1168533.008 | F14: 1167472.417 | G14: =G13/$S$13*$S$14 -> 1374825.016 | H14: =H13/$S$13*$S$14 -> 1386301.412 | I14: 1547095.371 | J14: 1858998.443 | K14: 2040057.299 | L14: 1877754.021 | M14: 2076776.812 | N14: 2081913.478 | O14: 1780290.407 | P14: 1880035.325 | Q14: 1800882.008 | R14: =R13/$S$13*$S$14 -> 1955656.7 | S14: =+'Ex 1.1 Data'!L1 -> 21660586.29
D21: 1000
B23: Injections in Dth
C24: Chalk Creek | E24: 0 | F24: 0 | G24: 0 | H24: 0 | I24: 0 | J24: 0 | K24: 0 | L24: 151896.1945 | M24: 53324.81766 | N24: 98697.3114 | O24: 0 | P24: 0 | Q24: 0 | R24: 0 | S24: =SUM(G24:R24) -> 303918.3235 | U24: ScottN
C25: Clay Basin | E25: 0 | F25: 222400.5585 | G25: 2402097.351 | H25: 2634037.964 | I25: 2754100.586 | J25: 2656265.625 | K25: 325101.7361 | L25: 0 | M25: 0 | N25: 0 | O25: 0 | P25: 17165.94696 | Q25: 0 | R25: 2754100.586 | S25: =SUM(G25:R25) -> 13542869.79 | U25: ScottN
C26: Coalville | E26: 0 | F26: 0 | G26: 0 | H26: 0 | I26: 0 | J26: 31957.92961 | K26: 111245.9564 | L26: 121359.2224 | M26: 0 | N26: 48948.2193 | O26: 0 | P26: 0 | Q26: 0 | R26: 0 | S26: =SUM(G26:R26) -> 313511.3277 | U26: ScottN
C27: Leroy | E27: 0 | F27: 0 | G27: 0 | H27: 0 | I27: 0 | J27: 9424.08371 | K27: 297382.2021 | L27: 17801.04637 | M27: 0 | N27: 0 | O27: 0 | P27: 0 | Q27: 0 | R27: 0 | S27: =SUM(G27:R27) -> 324607.3322 | U27: ScottN
C28: Ryckman | E28: 0 | F28: 0 | G28: 350489.9902 | H28: 362173.0042 | I28: 362173.0042 | J28: 350489.9902 | K28: 362173.0042 | L28: 0 | M28: 0 | N28: 0 | O28: 0 | P28: 0 | Q28: 350489.9902 | R28: 362173.0042 | S28: 2500161.987 | U28: ScottN
C29: Total Injections | E29: 0 | F29: 222400.5585 | G29: =SUM(G24:G28) -> 2752587.341 | H29: 2996210.968 | I29: 3116273.59 | J29: 3048137.629 | K29: 1095902.899 | L29: 291056.4632 | M29: 53324.81766 | N29: 147645.5307 | O29: 0 | P29: 17165.94696 | Q29: 350489.9902 | R29: 3116273.59 | S29: =SUM(G29:R29) -> 16985068.77
B31: Withdrawls In Dth
C32: Chalk Creek | E32: 44875.19836 | F32: 0 | G32: 0 | H32: 0 | I32: 0 | J32: 0 | K32: 0 | L32: 0 | M32: 0 | N32: 0 | O32: 0 | P32: 257250 | Q32: 44875.19836 | R32: 0 | S32: =SUM(G32:R32) -> 302125.1984 | U32: ScottN
C33: Clay Basin | E33: 543492.9504 | F33: 0 | G33: 0 | H33: 0 | I33: 0 | J33: 0 | K33: 0 | L33: 3712118.042 | M33: 3610000 | N33: 3536000 | O33: 2100375.671 | P33: 0 | Q33: 59110.69489 | R33: 0 | S33: =SUM(G33:R33) -> 13017604.41 | U33: ScottN
C34: Coalville | E34: 0 | F34: 0 | G34: 0 | H34: 0 | I34: 0 | J34: 0 | K34: 0 | L34: 0 | M34: 0 | N34: 0 | O34: 0 | P34: 310000 | Q34: 0 | R34: 0 | S34: 310000 | U34: ScottN
C35: Leroy | E35: 0 | F35: 0 | G35: 0 | H35: 0 | I35: 0 | J35: 0 | K35: 0 | L35: 0 | M35: 0 | N35: 0 | O35: 0 | P35: 310000 | Q35: 0 | R35: 0 | S35: =SUM(G35:R35) -> 310000 | U35: ScottN
C36: Ryckman | E36: 0 | F36: 0 | G36: 0 | H36: 0 | I36: 0 | J36: 0 | K36: 342368.988 | L36: 498000 | M36: 514599.9756 | N36: 514599.9756 | O36: 121924.8962 | P36: 0 | Q36: 42094.24973 | R36: 0 | S36: 2033588.085 | U36: ScottN
C37: Total Withdrawls | E37: 588368.1488 | F37: 0 | G37: =SUM(G32:G36) -> 0 | H37: 0 | I37: 0 | J37: 0 | K37: 342368.988 | L37: 4210118.042 | M37: 4124599.976 | N37: 4050599.976 | O37: 2222300.568 | P37: 877250 | Q37: 146080.143 | R37: 0 | S37: =SUM(G37:R37) -> 15973317.69
B39: Lost & Unaccounted for on QPC
A42: Injection and Withdrawl Used, Lost and Unaccounted For
D43: Gas Use
D44: %
B45: Injections in Dth
C46: Chalk Creek | D46: ='Other Inputs'!E165 -> 0.0059 | E46: 0 | F46: 0 | G46: -896.1875473 | H46: -563.8265823 | I46: -333.1040016 | J46: 0 | K46: 0 | L46: 0 | M46: 0 | N46: 0 | O46: 0 | P46: 0 | Q46: 0 | R46: =R24*-$D46 -> 0 | S46: =SUM(G46:R46) -> -1793.118131
C47: Clay Basin | D47: ='Other Inputs'!E174 -> 0.03198 | E47: 0 | F47: -7112.36986 | G47: 0 | H47: 0 | I47: 0 | J47: 0 | K47: 0 | L47: 0 | M47: -7112.36986 | N47: -76819.07329 | O47: -84236.53408 | P47: -88076.13674 | Q47: -84947.37469 | R47: =R25*-$D47 -> -88076.13674 | S47: =SUM(G47:R47) -> -429267.6254
C48: Coalville | D48: ='Other Inputs'!E177 -> 0.0112 | E48: 0 | F48: 0 | G48: -1359.223291 | H48: -549.9190857 | I48: 0 | J48: 0 | K48: 0 | L48: 0 | M48: 0 | N48: 0 | O48: 0 | P48: 0 | Q48: -357.9288116 | R48: =R26*-$D48 -> 0 | S48: =SUM(G48:R48) -> -2267.071188
C49: Leroy | D49: ='Other Inputs'!E171 -> 0.045 | E49: 0 | F49: 0 | G49: -10719.09393 | H49: 0 | I49: 0 | J49: 0 | K49: 0 | L49: 0 | M49: 0 | N49: 0 | O49: 0 | P49: 0 | Q49: -424.0837669 | R49: =R27*-$D49 -> 0 | S49: =SUM(G49:R49) -> -11143.1777
C50: Ryckman | D50: ='Other Inputs'!E168 -> 0.025 | E50: -7320.284271 | F50: -9054.325104 | G50: 0 | H50: 0 | I50: 0 | J50: 0 | K50: 0 | L50: -7320.284271 | M50: -9054.325104 | N50: -8762.249756 | O50: -9054.325104 | P50: -9054.325104 | Q50: -8762.249756 | R50: -9054.325104 | S50: =SUM(G50:R50) -> -61062.0842
C51: Total Injections | E51: -7320.284271 | F51: -16166.69496 | G51: =SUM(G46:G50) -> -12974.50477 | H51: -1113.745668 | I51: -333.1040016 | J51: 0 | K51: 0 | L51: -7320.284271 | M51: -16166.69496 | N51: -85581.32304 | O51: -93290.85919 | P51: -97130.46184 | Q51: -94491.63702 | R51: -97130.46184 | S51: =SUM(S46:S50) -> -505533.0766
B53: Withdrawls In Dth
C54: Chalk Creek | D54: ='Other Inputs'!E166 -> 0.0281 | E54: -1260.993074 | F54: 0 | G54: 0 | H54: 0 | I54: 0 | J54: 0 | K54: -7228.725 | L54: -1260.993074 | M54: 0 | N54: 0 | O54: 0 | P54: 0 | Q54: 0 | R54: =R32*-$D54 -> 0 | S54: =SUM(G54:R54) -> -8489.718074
C55: Clay Basin | D55: ='Other Inputs'!E175 -> 0.0238 | E55: -12935.13222 | F55: 0 | G55: -1037.91924 | H55: -90392.4 | I55: -72804.2 | J55: -53478.6 | K55: -29366.988 | L55: -12935.13222 | M55: 0 | N55: 0 | O55: 0 | P55: 0 | Q55: 0 | R55: =R33*-$D55 -> 0 | S55: =SUM(G55:R55) -> -260015.2395
C56: Coalville | D56: ='Other Inputs'!E178 -> 0.018 | E56: 0 | F56: 0 | G56: 0 | H56: 0 | I56: 0 | J56: 0 | K56: -5580 | L56: 0 | M56: 0 | N56: 0 | O56: 0 | P56: 0 | Q56: 0 | R56: =R34*-$D56 -> 0 | S56: =SUM(G56:R56) -> -5580
C57: Leroy | D57: ='Other Inputs'!E172 -> 0.0245 | E57: 0 | F57: 0 | G57: 0 | H57: 0 | I57: 0 | J57: 0 | K57: -7595 | L57: 0 | M57: 0 | N57: 0 | O57: 0 | P57: 0 | Q57: 0 | R57: =R35*-$D57 -> 0 | S57: =SUM(G57:R57) -> -7595
C58: Ryckman | D58: ='Other Inputs'!E169 -> 0 | E58: 0 | F58: 0 | G58: 0 | H58: 0 | I58: 0 | J58: 0 | K58: 0 | L58: 0 | M58: 0 | N58: 0 | O58: 0 | P58: 0 | Q58: 0 | R58: 0 | S58: =SUM(G58:R58) -> 0
C59: Total Withdrawls | E59: -14196.12529 | F59: 0 | G59: =SUM(G54:G58) -> -1037.91924 | H59: -90392.4 | I59: -72804.2 | J59: -53478.6 | K59: -49770.713 | L59: -14196.12529 | M59: 0 | N59: 0 | O59: 0 | P59: 0 | Q59: 0 | R59: 0 | S59: =SUM(S54:S58) -> -281679.9575
B61: QPC Transportation Loss
C62: Chalk Creek | D62: ='Other Inputs'!$E$316 -> 0.0156 | E62: -700.0530945 | F62: 0 | G62: 0 | H62: 0 | I62: 0 | J62: 0 | K62: -4013.1 | L62: -700.0530945 | M62: 0 | N62: 0 | O62: 0 | P62: 0 | Q62: 0 | R62: =R32*-$D62 -> 0 | S62: =SUM(G62:R62) -> -4713.153094
C63: Clay Basin | D63: ='Other Inputs'!$E$316 -> 0.0156 | E63: -8478.490027 | F63: 0 | G63: -680.3168129 | H63: -59248.8 | I63: -47720.4 | J63: -35053.2 | K63: -19248.95012 | L63: -8478.490027 | M63: 0 | N63: 0 | O63: 0 | P63: 0 | Q63: 0 | R63: =R33*-$D63 -> 0 | S63: =SUM(G63:R63) -> -170430.157
C64: Coalville | D64: ='Other Inputs'!$E$316 -> 0.0156 | E64: 0 | F64: 0 | G64: 0 | H64: 0 | I64: 0 | J64: 0 | K64: -4836 | L64: 0 | M64: 0 | N64: 0 | O64: 0 | P64: 0 | Q64: 0 | R64: =R34*-$D64 -> 0 | S64: =SUM(G64:R64) -> -4836
C65: Leroy | D65: ='Other Inputs'!$E$316 -> 0.0156 | E65: 0 | F65: 0 | G65: 0 | H65: 0 | I65: 0 | J65: 0 | K65: -4836 | L65: 0 | M65: 0 | N65: 0 | O65: 0 | P65: 0 | Q65: 0 | R65: =R35*-$D65 -> 0 | S65: =SUM(G65:R65) -> -4836
C66: Ryckman | D66: ='Other Inputs'!$E$316 -> 0.0156 | E66: -6082.867419 | F66: 0 | G66: -2678.048877 | H66: -8027.759619 | I66: -8027.759619 | J66: -7250.87981 | K66: 0 | L66: -6082.867419 | M66: 0 | N66: 0 | O66: 0 | P66: 0 | Q66: 0 | R66: 0 | S66: =SUM(G66:R66) -> -32067.31534
C67: Total Withdrawls | E67: -15261.41054 | F67: 0 | G67: =SUM(G62:G66) -> -3358.36569 | H67: -67276.55962 | I67: -55748.15962 | J67: -42304.07981 | K67: -32934.05012 | L67: -15261.41054 | M67: 0 | N67: 0 | O67: 0 | P67: 0 | Q67: 0 | R67: 0 | S67: -216882.6254
B70: Total Injections & Withdrawls | E70: 0 | F70: 0 | G70: =G53+G60 -> 0 | H70: 0 | I70: 0 | J70: 0 | K70: 0 | L70: 0 | M70: 0 | N70: 0 | O70: 0 | P70: 0 | Q70: 0 | R70: 0 | S70: =S51+S59 -> -787213.0341
R72: Fuel Factor | S72: =-S70/(S37+S29) -> 0.02388505988
S74: 12-Month
E75: Apr18 | F75: May18 | G75: =G3 -> Jun18 | H75: Jul18 | I75: Aug18 | J75: Sep18 | K75: Oct18 | L75: Nov18 | M75: Dec18 | N75: Jan19 | O75: Feb19 | P75: Mar19 | Q75: Apr19 | R75: May19 | S75: Total
I77: Updated: | J77: 2018-04-06 | K77: EXH 1.2
A78: Natural Gas Spot Price Forecast - Average of GI, Cera & Pira | G78: (Forecast --->)
B79: Kern River Opal, Wyoming | E79: 2.1369 | F79: 2.07232341 | G79: 2.16 | H79: 2.21 | I79: 2.23 | J79: 2.13 | K79: 2.16 | L79: 2.4 | M79: 2.63 | N79: 2.59 | O79: 2.42 | P79: 2.13 | Q79: 1.89 | R79: 1.84
B82: Spot Purchases from IRP | G82: 439.6500092 | H82: 0 | I82: 0 | J82: 104.8767567 | K82: 1355.773994 | L82: 1230.778897 | M82: 4743.490266 | N82: 5024.70239 | O82: 5651.265977 | P82: 6066.550726 | Q82: 2999.589136 | R82: 2926.807434 | S82: =SUM(G82:R82) -> 30543.48559
C83: In DTH | G83: =G82*1000 -> 439650.0092 | H83: =H82*1000 -> 0 | I83: 0 | J83: 104876.7567 | K83: 1355773.994 | L83: =L82*1000 -> 1230778.897 | M83: =M82*1000 -> 4743490.266 | N83: 5024702.39 | O83: =O82*1000 -> 5651265.977 | P83: 6066550.726 | Q83: 2999589.136 | R83: 2926807.434 | S83: =SUM(G83:R83) -> 30543485.59
C84: In $ | G84: =G83*G79 -> 949644.0198 | H84: 0 | I84: 0 | J84: 223387.4917 | K84: =K83*K79 -> 2928471.826 | L84: 2953869.353 | M84: 12475379.4 | N84: 13013979.19 | O84: 13676063.67 | P84: 12921753.05 | Q84: 5669223.467 | R84: 5385325.679 | S84: =SUM(G84:R84) -> 70197097.14
A87: CONTRACT PURCHASES | I87: Updated: | J87: 2018-04-19
B89: Peaking Purchases (DTH) | G89: 0 | H89: 0 | I89: 0 | J89: 0 | K89: 0 | L89: 1000000 | M89: 4000000 | N89: 5000000 | O89: 3000000 | P89: 0 | Q89: 0 | R89: 0 | S89: =SUM(G89:R89) -> 13000000
B90: Peaking Purchases ($) | G90: 0 | H90: 0 | I90: 0 | J90: 0 | K90: 0 | L90: 2465101.091 | M90: 10804314.33 | N90: 13300195.09 | O90: 7456862.618 | P90: 0 | Q90: 0 | R90: 0 | S90: =SUM(G90:R90) -> 34026473.13
B92: Term Purchases (DTH) | G92: 0 | H92: 0 | I92: 0 | J92: 0 | K92: 930000 | L92: 900000 | M92: 1085000 | N92: 1085000 | O92: 980000 | P92: 930000 | Q92: 900000 | R92: 0 | S92: =SUM(G92:R92) -> 6810000
B93: Term Purchases ($) | G93: 0 | H93: 0 | I93: 0 | J93: 0 | K93: 2241515.76 | L93: 2388492 | M93: 3101816.796 | N93: 3057680.526 | O93: 2592349.629 | P93: 2213191.68 | Q93: 1922515.2 | R93: 0 | S93: =SUM(G93:R93) -> 17517561.59
B94: Stabilization Costs (Winter Months - Oct to Mar) | G94: 0 | H94: 0 | I94: 0 | J94: 0 | K94: 0 | L94: 0 | M94: 0 | N94: 0 | O94: 0 | P94: 0 | Q94: 0 | R94: 0 | S94: =SUM(G94:R94) -> 0
B97: Total Purchases (DTH) | E97: 0 | F97: 0 | G97: =G89+G92 -> 0 | H97: =H89+H92 -> 0 | I97: 0 | J97: 0 | K97: 930000 | L97: =L89+L92 -> 1900000 | M97: 5085000 | N97: 6085000 | O97: 3980000 | P97: 930000 | Q97: 900000 | R97: 0 | S97: =SUM(G97:R97) -> 19810000
B98: Total Purchases ($) | E98: 0 | F98: 0 | G98: 0 | H98: 0 | I98: 0 | J98: 0 | K98: 2241515.76 | L98: =L90+L93 -> 4853593.091 | M98: 13906131.12 | N98: 16357875.62 | O98: 10049212.25 | P98: 2213191.68 | Q98: 1922515.2 | R98: 0 | S98: =SUM(G98:R98) -> 51544034.72
A101: Typical Customer Monthly Usage in Dth
B102: Utah | G102: =VLOOKUP(MONTH(G3),$F$116:$G$127,2,FALSE) -> 3.1 | H102: =VLOOKUP(MONTH(H3),$F$116:$G$127,2,FALSE) -> 2 | I102: =VLOOKUP(MONTH(I3),$F$116:$G$127,2,FALSE) -> 1.8 | J102: 2 | K102: 3.1 | L102: 6.3 | M102: 11.5 | N102: 14.9 | O102: 12.5 | P102: 10.1 | Q102: 8.3 | R102: 4.4 | S102: =SUM(G102:R102) -> 80
A105: INPUTS FROM WEXPRO | G105: =G3 -> Jun18 | H105: =H3 -> Jul18 | I105: Aug18 | J105: Sep18 | K105: Oct18 | L105: Nov18 | M105: Dec18 | N105: Jan19 | O105: Feb19 | P105: =P3 -> Mar19 | Q105: Apr19 | R105: May19 | S105: 12-Month
S106: Total
A107: Wexpro I Operator Fee (Wexpro forecast) | G107: 17510544.2 | H107: 17315617.59 | I107: 17145527.72 | J107: 17098389.5 | K107: 17211881.23 | L107: 16695639.31 | M107: 16749300.28 | N107: 16779174.3 | O107: 16623016.46 | P107: 16507516.61 | Q107: 17300371.57 | R107: 16278631.04 | S107: =SUM(G107:R107) -> 203215609.8
A109: Wexpro II Operator Fee (Wexpro forecast) | G109: 3495249.42 | H109: 3430840.942 | I109: 3686755.417 | J109: 3756553.573 | K109: 3750569.357 | L109: 3702847.421 | M109: 3634750.167 | N109: 3630561.692 | O109: 3540282.137 | P109: 3436180.982 | Q109: 3328564.975 | R109: 3271126.591 | S109: =SUM(G109:R109) -> 42664282.67
F115: Typical UPC | G115: UT
F116: 1 | G116: 14.9
F117: 2 | G117: 12.5
F118: 3 | G118: 10.1
F119: 4 | G119: 8.3
F120: 5 | G120: 4.4
F121: 6 | G121: 3.1
F122: 7 | G122: 2
F123: 8 | G123: 1.8
F124: 9 | G124: 2
F125: 10 | G125: 3.1
F126: 11 | G126: 6.3
F127: 12 | G127: 11.5
F128: Total | G128: =SUM(G116:G127) -> 80

Sheet Other Inputs
H1: Used In
A2: INPUT SECTION | H2: Ut | I2: Wy | J2: Source
A3: INPUTS FROM QUESTAR PIPELINE TARIFF AND CONTRACTS
B5: Storage Commodity Rates | E5: Rate | F5: Effective
B6: Peaking Injections | E6: 0.03872 | F6: 2018-01-01 | H6: 1.3.2 | I6: 1.3p2 | J6: QPC Tariff Statement of Rates
B7: Peaking Withdrawals | E7: 0.03872 | F7: =$F$6 -> 2018-01-01 | H7: 1.3.2 | I7: 1.3p2 | J7: =J6 -> QPC Tariff Statement of Rates
B8: Ryckman Injections | E8: 0.015 | F8: =$F$6 -> 2018-01-01
B9: Ryckman Withdrawals | E9: 0.01 | F9: 2018-01-01
B10: Clay Basin Injections | E10: 0.01049 | F10: =$F$6 -> 2018-01-01 | H10: 1.3.2 | I10: 1.3p2 | J10: QPC Tariff Statement of Rates
B11: Clay Basin Withdrawals | E11: 0.01781 | F11: =$F$6 -> 2018-01-01 | H11: 1.3.2 | I11: 1.3p2 | J11: =J10 -> QPC Tariff Statement of Rates
B13: Storage Field Reservation Charges
B14: Peaking Storage Fields Demand (Leroy, Chalk Creek, Coalville) | E14: 2.87375 | F14: =$F$6 -> 2018-01-01 | H14: 1.3.2 | I14: 1.3p2 | J14: =$J$6 -> QPC Tariff Statement of Rates
B15: Ryckman | E15: 0.09 | F15: =$F$6 -> 2018-01-01 | J15: Glen W
B16: Clay Basin Demand | E16: 2.85338 | F16: =$F$6 -> 2018-01-01 | H16: 1.3.2 | I16: 1.3p2 | J16: =$J$6 -> QPC Tariff Statement of Rates
B17: Clay Basin Capacity | E17: 0.02378 | F17: =$F$6 -> 2018-01-01 | H17: 1.3.2 | I17: 1.3p2 | J17: =$J$6 -> QPC Tariff Statement of Rates
B19: Peak Hour Service
B20: Kern River | D20: =100000/24*6 -> 25000 | E20: 3 | F20: =+F21*E21/E20 -> 11.65333333
B21: mid Nov - mid Feb | E21: 92 | F21: 0.38
B23: Dominion Energy Questar Pipeline | D23: =250000/24*8 -> 83333.33333 | E23: 3 | F23: =(1033649+127750+326416)/(D23*E23) -> 5.95126
B24: mid Nov - mid Feb | E24: =16+31+31+14 -> 92 | F24: =+F23/E24*E23 -> 0.1940628261
J26: used in Exhibit 1.3
B27: FIRM TRANSPORTATION | D27: Contract Dth | E27: Months | F27: Maximum Rate | G27: Effective
B28: T-1 Transportation - Yearly (MT241) | D28: =798902 -> 798902 | E28: 12 | F28: 5.28804 | G28: 2018-01-01 | H28: 1.3p1 | J28: =$J$6 -> QPC Tariff Statement of Rates
B29: T-1 Transportation - Yearly (Mainline 104) | D29: 30000 | E29: 12 | F29: 5.28804 | G29: =$G$28 -> 2018-01-01 | H29: Jan | J29: =$J$6 -> QPC Tariff Statement of Rates
B30: T-1 Transportation - Yearly (Tieline 112) | D30: 12000 | E30: 12 | F30: 5.28804 | G30: =$G$28 -> 2018-01-01 | H30: 1.3p1 | J30: =$J$6 -> QPC Tariff Statement of Rates
B31: T-1 Transportation - Nov-Mar | D31: 75000 | E31: 5 | F31: 6.80887 | G31: =$G$28 -> 2018-01-01 | J31: Rate from Glen
B32: Total Yearly T-1 Transportation | D32: =SUM(D28:D31) -> 915902 | E32: 12
B34: T-1 Transportation - Seasonal(BASE TARIFF RATE LOW LOAD) Mainline 104 | D34: 0 | E34: 0 | F34: 0
B36: No-Notice Transportation (BASE TARIFF RATE) | D36: 203542 | E36: 12 | F36: 0.86753 | G36: =$G$28 -> 2018-01-01 | H36: 1.3p1 | J36: =$J$6 -> QPC Tariff Statement of Rates
B37: GRI - Yearly (SURCHARGE LOW LOAD CUSTOMERS MAXIMUM) | D37: =D32 -> 915902 | E37: 12 | F37: 0 | G37: =$G$28 -> 2018-01-01 | H37: 1.3p1 | J37: =$J$6 -> QPC Tariff Statement of Rates
B38: GRI - Seasonal (No GRI currently) | D38: 30000 | E38: 3 | F38: =+F37 -> 0 | G38: =$G$28 -> 2018-01-01 | H38: 1.3p1 | J38: =$J$6 -> QPC Tariff Statement of Rates
B39: GRI | D39: 52000 | E39: 12 | F39: =+F37 -> 0 | G39: =$G$28 -> 2018-01-01 | H39: 1.3p1 | J39: =$J$6 -> QPC Tariff Statement of Rates
B41: TRANSPORTATION COMMODITY
B42: PIPELINE USAGE CHARGE TO VOLUMETRIC RELEASES
B43: QPC Commodity
B44: QPC Firm Transportation Usage Charge (Max & Min) (BASE TARIFF RATE) | F44: 0.00267 | G44: 2018-01-01 | H44: 1.3p1 | J44: =$J$6 -> QPC Tariff Statement of Rates
B45: QPC (ANNUAL CHARGE ADJUSTMENT) | F45: 0.0013 | G45: 2017-10-01 | H45: 1.3p1 | J45: FERC Website
B46: QPC GRI SURCHARGE (not used currently) | F46: 0 | G46: =G44 -> 2018-01-01 | H46: 1.3p1 | J46: =$J$6 -> QPC Tariff Statement of Rates
E47: Current | F47: Proposed
B48: INTER TRANS (T-2 PIPELINE BASE TARIFF) MAX | D48: Base Tariff | E48: 0.17652 | F48: 0.17652 | G48: 2018-01-01 | J48: =$J$6 -> QPC Tariff Statement of Rates
C49: (not used currently) | D49: GRI Surcharge | E49: 0 | F49: 0 | G49: =G48 -> 2018-01-01 | J49: =$J$6 -> QPC Tariff Statement of Rates
D50: Annual Charge | E50: 0.0013 | F50: 0.0013 | G50: =+G45 -> 2017-10-01 | J50: ferc.gov
D51: Total | E51: =SUM(E48:E50) -> 0.17782 | F51: =SUM(F48:F50) -> 0.17782
B54: Utah | E54: =ROUND((E51)/(1-$E313),5) -> 0.17864 | F54: =ROUND((F51)/(1-E313),5) -> 0.17864 | H54: 1.6.3 | J54: Before Adjustment for Bad Debt (Transport grossed up for QGC fuel)
B55: Wyoming | F55: =ROUND((F51)/(1-E314),5) -> 0.18053
A57: INPUTS FROM KERN RIVER PIPELINE TARIFF AND CONTRACTS
B58: Kern River 2003 Expansion | D58: Contract Dth | E58: Months | F58: Maximum Rate | G58: Effective
F59: 0.2018 | G59: 2018-04-01 | J59: KR Tariff 5-A
B60: Jan - Dec #1715 | D60: 3000 | E60: 12 | F60: =(F59*(E63-153))/E60 -> 3.565133333 | H60: 1.3.1
B61: November - March #1715 | D61: 50000 | E61: 5 | F61: =F60 -> 3.565133333 | H61: Jan
B62: Jan - Dec #1829 | D62: 1885 | E62: 12 | F62: =F63*E63/E62 -> 17.74204167
B63: Days in Tariff Rate | E63: 365 | F63: 0.5833 | G63: =G59 -> 2018-04-01
B66: Citadel Energy Marketing
B67: Dec - Feb #20017 | D67: 56925 | E67: 3 | F67: =+E68*F68/E67 -> 8.7 | H67: 1.3.1
B68: Days in Tariff Rate | E68: =31+31+28 -> 90 | F68: 0.29
B69: Nov & Mar #20017 | D69: 6000 | E69: 2 | F69: =+F70*E70/E69 -> 8.845 | H69: Jan
B70: Days in Tariff Rate | E70: =30+31 -> 61 | F70: 0.29
B71: Nov - Mar #20024 | D71: 27000 | E71: 5 | F71: =+F72*E72/E71 -> 8.758 | H71: Jan
B72: Days in Tariff Rate | E72: =30+31+31+28+31 -> 151 | F72: 0.29
B74: Sequent (Kern 1992) | D74: 30000 | E74: 8 | F74: =+F75*E75/E74 -> 6.129675
B75: Oct - May | E75: =31+30+31+31+28+31+30+31 -> 243 | F75: 0.2018 | G75: 2018-04-01
B79: Kern River 2003 Expansion | E79: Days in TEST PERIOD
B80: Jan - Dec | C80: 0.450125037 | D80: =D60+D62 -> 4885 | E80: 365 | F80: 0.0044 | G80: =G63 -> 2018-04-01 | H80: 1.3p1 | J80: KR Tariff 5-A
B81: November - March | C81: =C80 -> 0.450125037 | D81: =D61 -> 50000 | E81: 151 | F81: 0.0044 | G81: =G63 -> 2018-04-01 | H81: 1.3p1 | J81: KR Tariff 5-A
B83: Kern River Original System Period Two Rates #20017
B84: Dec - Feb #20017 | C84: =+C80 -> 0.450125037 | D84: 56925 | E84: 90 | F84: 0.0044 | G84: 2017-01-01 | H84: 1.3.1 | J84: KR Tariff 5.01
B85: Nov & Mar #20017 | C85: =+C80 -> 0.450125037 | D85: 6000 | E85: 61 | F85: 0.0044 | G85: 2017-01-01 | H85: 1.3.2 | J85: KR Tariff 5.01
B86: Kern River 2002 Expansion Period Two Rates #20024
B87: Nov - Mar #20024 | C87: =+C80 -> 0.450125037 | D87: 27000 | E87: 151 | F87: 0.0044 | G87: 2017-01-01
B89: Sequent
B90: Oct - April | C90: =+C80 -> 0.450125037 | D90: 30000 | E90: =+E75 -> 243 | F90: 0.0044 | G90: 2016-04-01
A93: INPUTS FROM QUESTAR GAS TARIFF
A101: Current SNG Rates
B102: UTAH | E102: Current SNG Base | F102: Current SNG Amort. | G102: Current SNG Total | J102: Effective
B103: GS | D103: Winter | E103: 1.23368 | F103: 0.0505 | G103: =E103+F103 -> 1.28418 | J103: 2018-03-01
D104: Summer | E104: 0.57923 | F104: 0.02371 | G104: =E104+F104 -> 0.60294 | J104: =J103 -> 2018-03-01
B106: FS | D106: Winter | E106: 1.20155 | F106: 0.04919 | G106: =E106+F106 -> 1.25074 | J106: 2018-03-01
D107: Summer | E107: 0.57923 | F107: 0.02371 | G107: =E107+F107 -> 0.60294 | J107: =J106 -> 2018-03-01
B109: NGV | E109: 0.89024 | F109: 0.03645 | G109: =E109+F109 -> 0.92669 | J109: 2018-03-01
B111: (This includes bad debt adjustment) IS | E111: 0.17909 | F111: 0 | G111: =E111+F111 -> 0.17909 | J111: 2018-03-01
A114: Current Rates
B115: Utah GS | J115: Effective
B116: Block 1 | D116: Summer | G116: =6.93533-0.1141 -> 6.82123 | J116: 2018-06-01
B117: Block 2 | D117: Summer | G117: =5.83884-0.1141 -> 5.72474 | J117: =J116 -> 2018-06-01
B118: Block 1 | D118: Winter | G118: =8.29946-0.14656 -> 8.1529 | J118: =J116 -> 2018-06-01
B119: Block 2 | D119: Winter | G119: =7.20296-0.14656 -> 7.0564 | J119: =J116 -> 2018-06-01
B120: #1 BSF | G120: 6.75 | J120: =J116 -> 2018-06-01
B122: Wyoming GS
B123: Block 1 | G123: =7.66229-0.12326 -> 7.53903 | J123: 2018-06-01
B124: Block 2 | G124: =7.40155-0.12326 -> 7.27829 | J124: =J123 -> 2018-06-01
B125: BSF | G125: 12 | J125: =J123 -> 2018-06-01
A127: INPUTS FROM PREVIOUS PASSTHROUGH CASE
B128: PRIOR PERIOD COMPANY PRODUCTION AVERAGE GAS COST
E129: PROPOSED | F129: PRIOR CASE | G129: Most Recent
B130: VOLUMES DTH | E130: =+'Monthly Inputs'!S7+'Monthly Inputs'!S13 -> 70696806.45 | F130: 73396231 | G130: EXH 1.1
B131: AMOUNT | E131: =+D214+D235 -> 271836779.8 | F131: 332610598 | G131: EXH 1.1
B132: AVG COST | E132: =+E131/E130 -> 3.845106921 | F132: =ROUND(+F131/F130,5) -> 4.53171
B134: Utah Cost of Gas by Component
B135: Unit Cost Of Gas (Line 7) | F135: 4.08676 | J135: Exhibit 1.6 pg 1 (Prior case)
B136: 191 Account Amortization (Line 8) | F136: 0.13552 | J136: Exhibit 1.6 pg 1 (Prior case )
B137: Total Unit Cost In Rates (Line 9) | F137: =SUM(F135:F136) -> 4.22228
B139: I-2 Commodity Cost (excluding bad debt) | E139: 0
B141: Wyoming Cost of Gas by Component
B142: Unit Cost Of Gas (Line 9) | F142: 4.87093 | J142: (WY) Exhibit 1.6 pg 1
B143: 191 Account Amortization (Line 10) | F143: 0.38899 | J143: (WY) Exhibit 1.6 pg 1
B144: Total Unit Cost In Rates (Line 11) | F144: =F142+F143 -> 5.25992 | J144: (WY) Exhibit 1.6 pg 1
A149: INPUTS FROM 191 ACCOUNT MONTH END BALANCE ACTUAL OR FORECAST | E149: Utah | F149: Wyoming
E150: 2018 | F150: 2018-03-31
H151: 1.6.2
D152: current yr /mo(text)
B153: March 2018 191 account (Actual/Forecast) | D153: 2018 | E153: -35670286 | F153: -1162253 | H153: 1.6.1 | J153: 191 Account Forecast/Actual
B154: Supplier Non-Gas Cost Under (Over) Collected through March 2018 (act/fcst) | D154: March | E154: -11920597 | H154: 1.6.2 | J154: 191 Account Year-End (sometimes through current period)
B155: Commodity Cost Under (Over) Collected during YEAR (Act/Fcst) | E155: =E153-E154 -> -23749689
A157: INPUTS FROM IRP
B158: #1 Peak Day Demand Forecast | E158: 2017 | F158: Source
B159: Utah | E159: =E161-E160 -> 1305877.549 | F159: 2017 IRP
B160: Wyoming | E160: 37241.45128
B161: System Total Peak Day Demand Forecast | E161: 1343119 | F161: 2018-2019 Heating Season | H161: 1.5 | I161: 1.5
A164: STORAGE FIELD INPUTS | E164: Storage
B165: Chalk Creek Injections Factor | E165: 0.0059
B166: Chalk Creek Withdrawls Factor | E166: 0.0281
B168: Ryckman Injections Factor | E168: 0.025
B169: Ryckman Withdrawls Factor | E169: 0
B171: Leroy Injections Factor | E171: 0.045
B172: Leroy Withdrawls Factor | E172: 0.0245
B174: Clay Basin Injections Factor | E174: 0.03198
B175: Clay Basin Withdrawls Factor | E175: 0.0238
B177: Coalville Injections Factor | E177: 0.0112
B178: Coalville Withdrawls Factor | E178: 0.018
B180: QPC Storage Field Reservation Charges | E180: Monthly Dth
B181: Peaking Storage Fields Maximum Daily Withdrawal Qty (Leroy, Chalk Creek, Coalville) | E181: 184625
B182: Ryckman Maximum Storage Qty | E182: =2500000 -> 2500000
B183: Clay Basin Minimum Required Deliverability | E183: 111827
B184: Clay Basin Capacity | E184: 13419000
A186: OTHER INPUTS | D186: Revenue
B187: OTHER GATHERING
B192: Total Forecasted Birch Creek | D192: 274148.7068
B194: Other gathering | D194: 1766827.14 | H194: JanB
B195: Total Gathering | D195: =SUM(D192:D194) -> 2040975.847 | H195: 1.3.1 | I195: 1.3P1
B197: Other Transportation | D197: 3842729.771 | H197: 1.3.1
B199: Forecast Future Contracts Premium over spot price | E199: 0.02
D201: Commodity | E201: Demand
D202: Charge | E202: Charge | F202: Effective
B203: Gathering Rates -System wide Gathering agreement #163 (SWGA) | D203: 6839686.458 | E203: 11774616 | F203: 2018-01-01 | I203: 1.3p1
B206: Gathering Rate Wexpro II | D206: 9247770.711 | I206: 1.3p1
A209: OTHER INPUTS | D209: Volume (Dth) | E209: Revenue
A210: WEXPRO I
B211: Questar Gas Production 1/ | D211: Current
B212: Test Year Royalties | D212: ='Ut 1.1'!I1438 -> 17777730.63 | H212: 1.4.1 | I212: 1.4P1 | J212: Exhibit 1.1
B213: Operator Service Fee | D213: ='Monthly Inputs'!S107 -> 203215609.8 | H213: 1.4.1 | I213: 1.4P1
B214: Total Questar Gas Production Costs | D214: =SUM(D212:D213) -> 220993340.5
B216: Total Questar Gas Production Dth | D216: ='Ut 1.1'!F1443 -> 49036220.16
F217: Hot | G217: Hot
B218: Other Revenue Credits | D218: 1 | E218: 2 | F218: 2 | G218: 2 | I218: 1
D219: Historical | E219: Forecast | F219: =HLOOKUP(F$218,$D$218:$E$226,$I219) -> Forecast | G219: =HLOOKUP(G$218,$D$218:$E$226,$I219) -> Forecast | I219: 2
D220: 12 Mo Ending | E220: 12 Mo Ending | F220: Utah | G220: Wyoming | I220: 3
B221: 483 Sales for Resale | E221: 2451393 | F221: =HLOOKUP(F$218,$D$218:$E$226,$I221) -> 2451393 | G221: =HLOOKUP(G$218,$D$218:$E$226,$I221) -> 2451393 | I221: 4
B222: 490 Incidental Plant Prod Sales | E222: 3053673 | F222: =HLOOKUP(F$218,$D$218:$E$226,$I222) -> 3053673 | G222: 3053673 | I222: 5
B223: 492 Incidental Gasoline_Oil Sales | E223: 557154.4443 | F223: 557154.4443 | G223: 557154.4443 | I223: 6
B224: 4951 Overriding Royalty Revenue from Celsius | E224: 8118610.917 | F224: 8118610.917 | G224: 8118610.917 | I224: 7
B225: 4952 Oil Revenue Received from Wexpro | E225: 0 | F225: 0 | G225: 0 | I225: 8
B226: 758001 Gas Well Royalities - Other | E226: -91874.76786 | F226: -91874.76786 | G226: -91874.76786 | I226: 9
B229: Total Other Revenue Credits | D229: =SUM(D221:D226) -> 0 | E229: =SUM(E221:E226) -> 14088956.59 | F229: =SUM(F221:F226) -> 14088956.59 | G229: =SUM(G221:G226) -> 14088956.59
A231: WEXPRO II
B232: Questar Gas Production 1/ | D232: Current
B233: Test Year Royalties | D233: ='Ut 1.1'!I1681 -> 8179156.633 | H233: 1.4.1 | I233: 1.4P1 | J233: Exhibit 1.1
B234: Operator Service Fee | D234: ='Monthly Inputs'!S109 -> 42664282.67 | H234: 1.4.1 | I234: 1.4P1
B235: Total Questar Gas Production Costs | D235: =SUM(D233:D234) -> 50843439.31
B237: Total Questar Gas Production Dth | D237: ='Ut 1.1'!F1686 -> 21660586.29
F238: Hot | G238: Hot
B239: Other Revenue Credits | D239: 1 | E239: 2 | F239: 2 | G239: 2 | I239: 1
D240: Historical | E240: Forecast | F240: =HLOOKUP(F$218,$D$218:$E$226,$I240) -> Forecast | G240: =HLOOKUP(G$218,$D$218:$E$226,$I240) -> Forecast | I240: 2
D241: 12 Mo Ending | E241: 12 Mo Ending | F241: Utah | G241: Wyoming | I241: 3
B242: 483 Sales for Resale | E242: 0 | F242: =HLOOKUP(F$239,$D$239:$E$247,$I242) -> 0 | G242: 0 | I242: 4
B243: 490 Incidental Plant Prod Sales | E243: 480000 | F243: 480000 | G243: 480000 | I243: 5
B244: 492 Incidental Gasoline_Oil Sales | E244: 1676934.199 | F244: 1676934.199 | G244: 1676934.199 | I244: 6
B245: 4951 Overriding Royalty Revenue from Celsius | E245: 0 | F245: 0 | G245: 0 | I245: 7
B246: 4952 Oil Revenue Received from Wexpro | E246: -435988.6389 | F246: -435988.6389 | G246: -435988.6389 | I246: 8
B247: 758001 Gas Well Royalities - Other | E247: -281844.0078 | F247: -281844.0078 | G247: -281844.0078 | I247: 9
B250: Total Other Revenue Credits | D250: =SUM(D242:D247) -> 0 | E250: =SUM(E242:E248) -> 1439101.552 | F250: =SUM(F242:F247) -> 1439101.552 | G250: =SUM(G242:G247) -> 1439101.552
E252: Proceeds | F252: Dths | G252: Price
B253: Sales of Wexpro Gas | E253: 0 | F253: 0 | G253: 0 | J253: Updated sales vs. shut ins from Wexpro
A255: SUMMARY INPUTS FROM REVRUN, RATE BASE, EXPENSES, ETC.
B257: Supplier Non-Gas Costs Recovered at Current Rates 3/ | E257: ='RevRun Fcst'!T$199 -> 120505281.7 | H257: 1.6.2
B258: MT Supplier Non-Gas | E258: ='RevRun Fcst'!T142 -> 0
B259: Net Supplier Non-Gas | E259: =E257-E258 -> 120505281.7
B260: UT Current Int Sales SNG Rate - not including Bad Debt adj. | E260: ='RevRun Fcst'!T102+'RevRun Fcst'!T93 -> 568105 | F260: 0.17864
E262: ='Rate Base'!$U$8 -> 2018-03-31 | F262: update to most current
B263: Account 164-1 - Gas Stored Underground | D263: Dth | E263: Ending Balance | F263: $ per Dth
D264: ='Rate Base'!T285 -> -2083235 | E264: ='Rate Base'!T206 -> 9114305 | F264: =+E264/D264 -> -4.375072903 | H264: 1.4.2
A267: UT CET and DSM AMORTIZATION FILING INPUTS
E268: Base DNG | F268: Current DNG
B269: GS Rates (Base rates are before CET, DSM, & EA Amortizations) | D269: Summer Blk 1 | E269: 1.7267 | F269: =2.11011-0.1141 -> 1.99601
D270: Summer Blk 2 | E270: 0.7267 | F270: =1.01362-0.1141 -> 0.89952
D271: Winter Blk 1 | E271: 2.34949 | F271: =2.793-0.14656 -> 2.64644
D272: Winter Blk 2 | E272: 1.34949 | F272: =1.6965-0.14656 -> 1.54994
D274: Energy Assistance | E274: 0.01419 | F274: Current Rate 7/1/2014 GS Rate
E275: 0.01174 | F275: Current Rate 7/1/2014 FS Rate
E276: 0.00657 | F276: Current Rate 7/1/2014 IS Rate
E277: 0.2679 | F277: Current Rate 7/1/2014 NGV Rate
... 44 more rows

Sheet CET & DSM WY (hidden)
A1: Rate Caclulation for the CET and DSM Amortizations WY
L3: Solver Cells
A4: CET Amortization % Calculation | L4: % Change | M4: Difference
B5: Balance | C5: Date | D5: GS Dth | F5: Amortization per Dth | L5: =J20/D20 -> 0.01140516088 | M5: =G20-B11 -> 0 | O5: -> Difference should be at 0 (Use Goal Seek to Get Difference to Equal 0.
A6: DSM Balance | B6: ='Other Inputs'!$E$297 -> 274858.68 | C6: ='Other Inputs'!$F$297 -> 2011-07-31 | D6: =B20 -> 3298812 | F6: =B6/D6 -> 0.08332050447
O8: Typical Bill Rates
A9: CET Amortization Calculation
B10: Balance | C10: Date | D10: DNG Rev | F10: New DNG | I10: % Change | O10: Current | P10: Proposed
A11: CET Balance | B11: ='Other Inputs'!$E$296 -> 57097.0875 | C11: ='Other Inputs'!$F$296 -> 2011-07-31 | D11: =D20 -> 5006250.073 | F11: =D11+B11 -> 5063347.161 | I11: =L5 -> 0.01140516088 | O11: Effective | R11: SNG & | S11: CET, DSM
O12: ='Other Inputs'!$J$123 -> 2018-06-01 | P12: CET Only | Q12: DSM Only | R12: Commodity | S12: Commodity
O13: BSF | P13: BSF | Q13: BSF | R13: BSF | S13: BSF
B14: Revenue Calculation | F14: CET Amortization | I14: Total DNG | L14: REVRUN Calculation | O14: ='Other Inputs'!$G$125 -> 12 | P14: ='Other Inputs'!$G$125 -> 12 | Q14: ='Other Inputs'!$G$125 -> 12 | R14: ='Other Inputs'!$G$125 -> 12 | S14: =#REF! -> 
A15: WY GS | B15: Dth | C15: Base DNG | D15: DNG Revenue | F15: CET Rate | G15: Revenue | I15: DNG Rate | J15: Revenue | L15: CET Rate | M15: CET Amort
A16: Block 1 | B16: ='Other Inputs'!E299 -> 2593433 | C16: ='Other Inputs'!E289 -> 1.73142 | D16: =B16*C16 -> 4490321.765 | F16: =ROUND((G16/B16),5) -> 0.01975 | G16: =D16*$L$5 -> 51212.84214 | I16: =C16+F16 -> 1.75117 | J16: =I16*B16 -> 4541542.067 | L16: =ROUND(F16,5) -> 0.01975 | M16: =B16*L16 -> 51220.30175 | O16: ='Other Inputs'!$G$116 -> 6.82123 | P16: =J24 -> 6.78793 | Q16: =J31 -> 6.82863 | R16: =J36 ->  | S16: =J41 -> 
A17: Block 2 | B17: ='Other Inputs'!E300 -> 705379 | C17: ='Other Inputs'!E290 -> 0.73142 | D17: =B17*C17 -> 515928.3082 | F17: =ROUND((G17/B17),5) -> 0.00834 | G17: =D17*$L$5 -> 5884.245359 | I17: =C17+F17 -> 0.73976 | J17: =I17*B17 -> 521811.169 | L17: =ROUND(F17,5) -> 0.00834 | M17: =B17*L17 -> 5882.86086
O18: ='Other Inputs'!$G$123 -> 7.53903 | P18: =J24 -> 6.78793 | Q18: =J31 -> 6.82863 | R18: =J36 ->  | S18: =J41 -> 
A20: GS-1 Block Rev | B20: =SUM(B16:B19) -> 3298812 | D20: =SUM(D16:D19) -> 5006250.073 | G20: =SUM(G16:G19) -> 57097.0875 | J20: =B11 -> 57097.0875 | M20: =SUM(M16:M19) -> 57103.16261
A22: Total Rate Calculation With CET Amortization Only | J22: ='Control Panel'!#REF! ->  | L22: ='Other Inputs'!$J$123 -> 2018-06-01
A23: WY GS | B23: Total DNG | C23: CET | D23: DSM | F23: Total DNG | G23: Core Commodity Cost | J23: Total Rate | L23: Total Rate
A24: Block 1 | B24: =$C$16 -> 1.73142 | C24: =$F$16 -> 0.01975 | D24: 0.06792 | F24: =SUM(B24:D24) -> 1.81909 | G24: 4.96884 | J24: =SUM(F24:G24) -> 6.78793 | L24: ='Other Inputs'!G123 -> 7.53903 | M24: =J24-L24 -> -0.7511
A25: Block 2 | B25: =$C$17 -> 0.73142 | C25: =$F$17 -> 0.00834 | D25: =$D$24 -> 0.06792 | F25: =SUM(B25:D25) -> 0.80768 | G25: =G24 -> 4.96884 | J25: =SUM(F25:G25) -> 5.77652 | L25: ='Other Inputs'!$G$124 -> 7.27829 | M25: =J25-L25 -> -1.50177
A29: Total Rate Calculation With DSM Amortization Only | J29: =J22 ->  | L29: ='Other Inputs'!$J$123 -> 2018-06-01
A30: WY GS | B30: Base DNG | C30: CET | D30: DSM | F30: Total DNG | G30: Core Commodity Cost | J30: Total Rate | L30: Total Rate
A31: Block 1 | B31: =$C$16 -> 1.73142 | C31: 0.04505 | D31: =$F$6 -> 0.08332050447 | F31: =ROUND(SUM(B31:D31),5) -> 1.85979 | G31: =G24 -> 4.96884 | J31: =SUM(F31:I31) -> 6.82863 | L31: ='Other Inputs'!$G$116 -> 6.82123 | M31: =J31-L31 -> 0.0074
A32: Block 2 | B32: =$C$17 -> 0.73142 | C32: 0.02848 | D32: =$F$6 -> 0.08332050447 | F32: =ROUND(SUM(B32:D32),5) -> 0.84322 | G32: =G25 -> 4.96884 | J32: =SUM(F32:I32) -> 5.81206 | L32: ='Other Inputs'!$G$124 -> 7.27829 | M32: =J32-L32 -> -1.46623
A34: Total Rate Calculation With Core Commodity Cost Changes Only | J34: =J22 ->  | L34: ='Other Inputs'!$J$123 -> 2018-06-01
A35: WY GS | B35: Base DNG | C35: CET | D35: DSM | F35: Total DNG | G35: Core Commodity Cost | J35: Total Rate | L35: Total Rate
A36: Block 1 | B36: =$C$16 -> 1.73142 | C36: =C31 -> 0.04505 | D36: =D24 -> 0.06792 | F36: =SUM(B36:D36) -> 1.84439 | G36: =#REF! ->  | J36: =SUM(F36:I36) ->  | L36: ='Other Inputs'!$G$116 -> 6.82123 | M36: =J36-L36 -> 
A37: Block 2 | B37: =$C$17 -> 0.73142 | C37: =C32 -> 0.02848 | D37: =D25 -> 0.06792 | F37: =SUM(B37:D37) -> 0.82782 | G37: =#REF! ->  | J37: =SUM(F37:I37) ->  | L37: ='Other Inputs'!$G$124 -> 7.27829 | M37: =J37-L37 -> 
A39: Total Rate Calculation | J39: =J29 ->  | L39: ='Other Inputs'!$J$123 -> 2018-06-01
A40: WY GS | B40: Base DNG | C40: CET | D40: DSM | F40: Total DNG | G40: Core Commodity Cost | J40: Total Rate | L40: Total Rate
A41: Block 1 | B41: =$C$16 -> 1.73142 | C41: =$F$16 -> 0.01975 | D41: =$F$6 -> 0.08332050447 | F41: =SUM(B41:D41) -> 1.834490504 | G41: =#REF! ->  | J41: =SUM(F41:I41) ->  | L41: ='Other Inputs'!$G$116 -> 6.82123 | M41: =J41-L41 -> 
A42: Block 2 | B42: =$C$17 -> 0.73142 | C42: =$F$17 -> 0.00834 | D42: =$F$6 -> 0.08332050447 | F42: =SUM(B42:D42) -> 0.8230805045 | G42: =#REF! ->  | J42: =SUM(F42:I42) ->  | L42: ='Other Inputs'!$G$124 -> 7.27829 | M42: =J42-L42 -> 
A44: Typical Customer Difference - CET Amortization Only
B45: Typical
A46: GS | B46: Dth | C46: =O12 -> 2018-06-01 | D46: =J39 ->  | F46: Change | G46: % Change
A47: January | B47: 14.7 | C47: =ROUND($O$14+(B47*$O$18),2) -> 122.82 | D47: =ROUND($P$14+(B47*$P$18),2) -> 111.78 | F47: =D47-C47 -> -11.04
A48: February | B48: 14.1 | C48: =ROUND($O$14+(B48*$O$18),2) -> 118.3 | D48: =ROUND($P$14+(B48*$P$18),2) -> 107.71 | F48: =D48-C48 -> -10.59
A49: March | B49: 11.8 | C49: =ROUND($O$14+(B49*$O$18),2) -> 100.96 | D49: =ROUND($P$14+(B49*$P$18),2) -> 92.1 | F49: -8.86
A50: April | B50: 9.4 | C50: =ROUND($O$14+(B50*$O$16),2) -> 76.12 | D50: =ROUND($P$14+(B50*$P$16),2) -> 75.81 | F50: -0.31
A51: May | B51: 5.8 | C51: 51.56 | D51: =ROUND($P$14+(B51*$P$16),2) -> 51.37 | F51: -0.19
A52: June | B52: 3.7 | C52: 37.24 | D52: 37.12 | F52: -0.12
A53: July | B53: 2.3 | C53: 27.69 | D53: 27.61 | F53: -0.08
A54: August | B54: 1.7 | C54: 23.6 | D54: 23.54 | F54: -0.06
A55: September | B55: 2.1 | C55: 26.32 | D55: 26.25 | F55: -0.07
A56: October | B56: 4.1 | C56: 39.97 | D56: 39.83 | F56: -0.14
A57: November | B57: 8 | C57: =ROUND($O$14+(B57*$O$18),2) -> 72.31 | D57: =ROUND($P$14+(B57*$P$18),2) -> 66.3 | F57: -6.01
A58: December | B58: 12.3 | C58: =ROUND($O$14+(B58*$O$18),2) -> 104.73 | D58: =ROUND($P$14+(B58*$P$18),2) -> 95.49 | F58: -9.24
B59: =SUM(B47:B58) -> 90 | C59: =SUM(C47:C58) -> 801.62 | D59: =SUM(D47:D58) -> 754.91 | F59: =SUM(F47:F58) -> -46.71 | G59: =F59/C59 -> -0.05826950425
A62: Typical Customer Difference - DSM Amortization Only
B63: Typical
A64: GS | B64: Dth | C64: =C46 -> 2018-06-01 | D64: =D46 ->  | F64: Change | G64: % Change
A65: January | B65: 14.7 | C65: =ROUND($O$14+(B65*$O$18),2) -> 122.82 | D65: =ROUND($Q$14+(B65*$Q$18),2) -> 112.38 | F65: =D65-C65 -> -10.44
A66: February | B66: 14.1 | C66: =ROUND($O$14+(B66*$O$18),2) -> 118.3 | D66: =ROUND($Q$14+(B66*$Q$18),2) -> 108.28 | F66: =D66-C66 -> -10.02
A67: March | B67: 11.8 | C67: =ROUND($O$14+(B67*$O$18),2) -> 100.96 | D67: =ROUND($Q$14+(B67*$Q$18),2) -> 92.58 | F67: -8.38
A68: April | B68: 9.4 | C68: =ROUND($O$14+(B68*$O$16),2) -> 76.12 | D68: =ROUND($Q$14+(B68*$Q$16),2) -> 76.19 | F68: 0.07
A69: May | B69: 5.8 | C69: 51.56 | D69: 51.61 | F69: 0.05
A70: June | B70: 3.7 | C70: 37.24 | D70: 37.27 | F70: 0.03
A71: July | B71: 2.3 | C71: 27.69 | D71: 27.71 | F71: 0.02
A72: August | B72: 1.7 | C72: 23.6 | D72: 23.61 | F72: 0.01
A73: September | B73: 2.1 | C73: 26.32 | D73: 26.34 | F73: 0.02
A74: October | B74: 4.1 | C74: 39.97 | D74: 40 | F74: 0.03
A75: November | B75: 8 | C75: =ROUND($O$14+(B75*$O$18),2) -> 72.31 | D75: =ROUND($Q$14+(B75*$Q$18),2) -> 66.63 | F75: -5.68
A76: December | B76: 12.3 | C76: =ROUND($O$14+(B76*$O$18),2) -> 104.73 | D76: =ROUND($Q$14+(B76*$Q$18),2) -> 95.99 | F76: -8.74
B77: =SUM(B65:B76) -> 90 | C77: =SUM(C65:C76) -> 801.62 | D77: =SUM(D65:D76) -> 758.59 | F77: =SUM(F65:F76) -> -43.03 | G77: =F77/C77 -> -0.05367880043
A80: Typical Customer Difference - SNG and Commodity Changes Only
B81: Typical
A82: GS | B82: Dth | C82: =C64 -> 2018-06-01 | D82: =D64 ->  | F82: Change | G82: % Change
A83: January | B83: 14.7 | C83: =ROUND($O$14+(B83*$O$18),2) -> 122.82 | D83: =ROUND($R$14+(B83*$R$18),2) ->  | F83: =D83-C83 -> 
A84: February | B84: 14.1 | C84: =ROUND($O$14+(B84*$O$18),2) -> 118.3 | D84: =ROUND($R$14+(B84*$R$18),2) ->  | F84: =D84-C84 -> 
A85: March | B85: 11.8 | C85: =ROUND($O$14+(B85*$O$18),2) -> 100.96 | D85: =ROUND($R$14+(B85*$R$18),2) -> 
A86: April | B86: 9.4 | C86: =ROUND($O$14+(B86*$O$16),2) -> 76.12 | D86: =ROUND($R$14+(B86*$R$16),2) -> 
A87: May | B87: 5.8 | C87: 51.56
A88: June | B88: 3.7 | C88: 37.24
A89: July | B89: 2.3 | C89: 27.69
A90: August | B90: 1.7 | C90: 23.6
A91: September | B91: 2.1 | C91: 26.32
A92: October | B92: 4.1 | C92: 39.97
A93: November | B93: 8 | C93: =ROUND($O$14+(B93*$O$18),2) -> 72.31 | D93: =ROUND($R$14+(B93*$R$18),2) -> 
A94: December | B94: 12.3 | C94: =ROUND($O$14+(B94*$O$18),2) -> 104.73 | D94: =ROUND($R$14+(B94*$R$18),2) -> 
B95: =SUM(B83:B94) -> 90 | C95: =SUM(C83:C94) -> 801.62 | D95: =SUM(D83:D94) ->  | F95: =SUM(F83:F94) ->  | G95: =F95/C95 -> 
A98: Typical Customer Difference - CET & DSM Amort, SNG and Commodity Changes
B99: Typical
A100: GS | B100: Dth | C100: =C46 -> 2018-06-01 | D100: =D46 ->  | F100: Change | G100: % Change
A101: January | B101: 14.7 | C101: =ROUND($O$14+(B101*$O$18),2) -> 122.82 | D101: =ROUND($S$14+(B101*$S$18),2) ->  | F101: =D101-C101 -> 
A102: February | B102: 14.1 | C102: =ROUND($O$14+(B102*$O$18),2) -> 118.3 | D102: =ROUND($S$14+(B102*$S$18),2) ->  | F102: =D102-C102 -> 
A103: March | B103: 11.8 | C103: =ROUND($O$14+(B103*$O$18),2) -> 100.96 | D103: =ROUND($S$14+(B103*$S$18),2) -> 
A104: April | B104: 9.4 | C104: =ROUND($O$14+(B104*$O$16),2) -> 76.12 | D104: =ROUND($S$14+(B104*$S$16),2) -> 
A105: May | B105: 5.8 | C105: 51.56
A106: June | B106: 3.7 | C106: 37.24
A107: July | B107: 2.3 | C107: 27.69
A108: August | B108: 1.7 | C108: 23.6
A109: September | B109: 2.1 | C109: 26.32
A110: October | B110: 4.1 | C110: 39.97
A111: November | B111: 8 | C111: =ROUND($O$14+(B111*$O$18),2) -> 72.31 | D111: =ROUND($S$14+(B111*$S$18),2) -> 
A112: December | B112: 12.3 | C112: =ROUND($O$14+(B112*$O$18),2) -> 104.73 | D112: =ROUND($S$14+(B112*$S$18),2) -> 
B113: =SUM(B101:B112) -> 90 | C113: =SUM(C101:C112) -> 801.62 | D113: =SUM(D101:D112) ->  | F113: =SUM(F101:F112) ->  | G113: =F113/C113 -> 

Sheet WY Tariff Sheets (hidden)
T2: Rates Per Dth Used Each Month
B3: 2.02 General Service Rate Schedule (GS) | K3: 2.02 General Service Rate Schedule (GS) | Q3: 2.03 Firm Sales Service Rate Schedule (FS) | T3: Dth = decatherm = 10 therms = 1,000,000 BTU | Z3: 4.02 INTERRUPTIBLE SALES RATE SERVICE SCHEDULE (IS) | BF3: 2.04 NATURAL GAS VEHICLE RATE (NGV)
L4: Rates Per Dth Used Each Month | R4: Summer Rates: Apr. 1 - Oct. 31
C5: Rates Per Dth Used Each Month | L5: Dth = decatherm = 10 therms = 1,000,000 BTU | R5: First | T5: Next | V5: All Over | Z5: IS VOLUMETRIC RATES | AA5: Rates Per Dth Used Each Month | BF5: NGV Volumetric Rate
C6: Dth = decatherm = 10 therms = 1,000,000 BTU | L6: First 45 Dth | M6: All Over 45 Dth | R6: 80 | T6: 730 | V6: 810 | AA6: Dth = decatherm = 10 therms = 1,000,000 BTU | BJ6: Rates Per Dth Used Each Month
C7: First 45 Dth | D7: All Over 45 Dth | K7: Non-Gas Cost | L7: ='CET & DSM WY'!B31 -> 1.73142 | M7: ='CET & DSM WY'!B32 -> 0.73142 | Q7: Non Gas Cost | R7: =#REF! ->  | T7: =#REF! ->  | V7: =#REF! ->  | AA7: First | AB7: Next | AC7: All Over | BJ7: Dth = decatherm = 10 therms = 1,000,000 BTU
B8: Non-Gas Cost | C8: ='CET & DSM WY'!B24 -> 1.73142 | D8: ='CET & DSM WY'!B25 -> 0.73142 | K8: Conservation Enabling Adjustment | L8: =ROUND('CET & DSM WY'!C31,5) -> 0.04505 | M8: ='CET & DSM WY'!C32 -> 0.02848 | Q8: Core Service Commodity Cost | R8: =#REF! ->  | T8: =#REF! ->  | V8: =#REF! ->  | AA8: 48600 | AB8: 72900 | AC8: 121500
B9: Conservation Enabling Adjustment | C9: ='CET & DSM WY'!C24 -> 0.01975 | D9: ='CET & DSM WY'!C25 -> 0.00834 | K9: Energy Efficiency Services | L9: ='CET & DSM WY'!D31 -> 0.08332050447 | M9: ='CET & DSM WY'!D32 -> 0.08332050447 | Z9: Distribution Non-Gas Rate | AA9: =#REF! ->  | AB9: =#REF! ->  | AC9: =#REF! ->  | BF9: Non-Gas Cost | BG9: =#REF! -> 
B10: Energy Efficiency Services | C10: ='CET & DSM WY'!D24 -> 0.06792 | D10: ='CET & DSM WY'!D25 -> 0.06792 | K10: Core Service Commodity Cost | L10: ='CET & DSM WY'!G31 -> 4.96884 | M10: =ROUND('CET & DSM WY'!G32,5) -> 4.96884 | Q10: Total Rate | R10: =SUM(R7:R8) ->  | T10: =SUM(T7:T8) ->  | V10: =SUM(V7:V8) ->  | Z10: Upstream Pipeline Cost | AA10: =#REF! ->  | AB10: =#REF! ->  | AC10: =#REF! ->  | BF10: Core Commodity Cost | BG10: =#REF! -> 
B11: Core Service Commodity Cost | C11: ='CET & DSM WY'!G24 -> 4.96884 | D11: ='CET & DSM WY'!G25 -> 4.96884 | Z11: Commodity Rate | BF11: Total Rate | BG11: =SUM(BG9:BJ10) -> 
K12: Total Rate | L12: =SUM(L7:L10) -> 6.828630504 | M12: =SUM(M7:M10) -> 5.812060504 | Q12: Minimum Monthly Distribution Non-Gas Charge | W12: =#REF! -> 
B13: Total Rate | C13: =SUM(C8:C11) -> 6.78793 | D13: =SUM(D8:D11) -> 5.77652
M15: BSF Category 1 | N15: =E16 -> 12
D16: BSF Category 1 | E16: ='CET & DSM WY'!O14 -> 12 | M16: BSF Category 2 | N16: =E17 -> 44 | U16: BSF Category 1 | W16: ='Other Inputs'!G125 -> 12
D17: BSF Category 2 | E17: 44 | M17: BSF Category 3 | N17: =E18 -> 86 | U17: BSF Category 2 | W17: =#REF! -> 
D18: BSF Category 3 | E18: 86 | M18: BSF Category 4 | N18: =E19 -> 555 | U18: BSF Category 3 | W18: =#REF! ->  | Z18: Total Rate | AA18: $ | AB18: $ | AC18: $
D19: BSF Category 4 | E19: 555 | U19: BSF Category 4 | W19: =#REF! -> 
Z20: Minimum Monthly Distribution Non-Gas Charge
BF23: =B38 -> Issued by R. W. Jibson, President | BI23: Advice No | BJ23: Section Revision No.
AB24: BSF Category 1 | AC24: ='Other Inputs'!G125 -> 12
AB25: BSF Category 2 | AC25: =#REF! -> 
AB26: BSF Category 3 | AC26: =#REF! -> 
AB27: BSF Category 4 | AC27: =#REF! -> 
K37: Issued by R. W. Jibson, President | M37: Section Revision No. | N37: Effective Date
B38: Issued by R. W. Jibson, President | D38: Section Revision No. | E38: Effective Date | Q38: =B38 -> Issued by R. W. Jibson, President | T38: Advice No | U38: Section Revision No. | W38: Effective Date
B42: New CET ONLY | K42: New DSM ONLY | Q42: New Pass Through Values
Z47: =B38 -> Issued by R. W. Jibson, President | AC47: Advice No
Z50: New Pass Through Values

Sheet Calculations
A1: GAS BALANCE FOR 12 MONTHS ENDING: _________________
D3: SALES VOLUMES IN dekathermS (12 Months of Forecast)
D4: Forecast | E4: Forecast | F4: Forecast | G4: Forecast | H4: Forecast | I4: Forecast | J4: Forecast | K4: Forecast | L4: Forecast | M4: Forecast | N4: Forecast | O4: Forecast | P4: 12-Month
A5: RATE CLASS | D5: ='Monthly Inputs'!G3 -> Jun18 | E5: ='Monthly Inputs'!H3 -> Jul18 | F5: ='Monthly Inputs'!I3 -> Aug18 | G5: ='Monthly Inputs'!J3 -> Sep18 | H5: ='Monthly Inputs'!K3 -> Oct18 | I5: ='Monthly Inputs'!L3 -> Nov18 | J5: ='Monthly Inputs'!M3 -> Dec18 | K5: ='Monthly Inputs'!N3 -> Jan19 | L5: ='Monthly Inputs'!O3 -> Feb19 | M5: ='Monthly Inputs'!P3 -> Mar19 | N5: ='Monthly Inputs'!Q3 -> Apr19 | O5: ='Monthly Inputs'!R3 -> May19 | P5: Total | Q5: 1
A6: UTAH | D6: =MONTH(D5) -> 6 | E6: =MONTH(E5) -> 7 | F6: 8 | G6: 9 | H6: 10 | I6: 11 | J6: 12 | K6: 1 | L6: 2 | M6: 3 | N6: 4 | O6: 5 | Q6: 2
B7: GSR | D7: ='RevRun Fcst'!H21 -> 2859281 | E7: ='RevRun Fcst'!I21 -> 2409399 | F7: ='RevRun Fcst'!J21 -> 2279222 | G7: ='RevRun Fcst'!K21 -> 2494890 | H7: ='RevRun Fcst'!L21 -> 6710736 | I7: ='RevRun Fcst'!M21 -> 11691211 | J7: ='RevRun Fcst'!N21 -> 18364323 | K7: ='RevRun Fcst'!O21 -> 19242638 | L7: ='RevRun Fcst'!P21 -> 15539287 | M7: ='RevRun Fcst'!Q21 -> 12127475 | N7: ='RevRun Fcst'!R21 -> 7959856 | O7: ='RevRun Fcst'!S21 -> 4850911 | P7: =SUM(D7:O7) -> 106529229 | Q7: 3
B8: GSC | D8: ='RevRun Fcst'!H30 -> 0 | E8: ='RevRun Fcst'!I30 -> 0 | F8: ='RevRun Fcst'!J30 -> 0 | G8: ='RevRun Fcst'!K30 -> 0 | H8: ='RevRun Fcst'!L30 -> 0 | I8: ='RevRun Fcst'!M30 -> 0 | J8: ='RevRun Fcst'!N30 -> 0 | K8: ='RevRun Fcst'!O30 -> 0 | L8: ='RevRun Fcst'!P30 -> 0 | M8: ='RevRun Fcst'!Q30 -> 0 | N8: ='RevRun Fcst'!R30 -> 0 | O8: ='RevRun Fcst'!S30 -> 0 | P8: 0 | Q8: 4
B9: GSS | D9: ='RevRun Fcst'!H39 -> 0 | E9: ='RevRun Fcst'!I39 -> 0 | F9: ='RevRun Fcst'!J39 -> 0 | G9: ='RevRun Fcst'!K39 -> 0 | H9: ='RevRun Fcst'!L39 -> 0 | I9: ='RevRun Fcst'!M39 -> 0 | J9: ='RevRun Fcst'!N39 -> 0 | K9: ='RevRun Fcst'!O39 -> 0 | L9: ='RevRun Fcst'!P39 -> 0 | M9: ='RevRun Fcst'!Q39 -> 0 | N9: ='RevRun Fcst'!R39 -> 0 | O9: ='RevRun Fcst'!S39 -> 0 | P9: 0 | Q9: 5
B10: F-1 | D10: ='RevRun Fcst'!H48 -> 290140 | E10: ='RevRun Fcst'!I48 -> 225747 | F10: ='RevRun Fcst'!J48 -> 210735 | G10: ='RevRun Fcst'!K48 -> 253386 | H10: ='RevRun Fcst'!L48 -> 257802 | I10: ='RevRun Fcst'!M48 -> 275763 | J10: ='RevRun Fcst'!N48 -> 380284 | K10: ='RevRun Fcst'!O48 -> 449449 | L10: ='RevRun Fcst'!P48 -> 392777 | M10: ='RevRun Fcst'!Q48 -> 377120 | N10: ='RevRun Fcst'!R48 -> 358865 | O10: ='RevRun Fcst'!S48 -> 285074 | P10: 3757142 | Q10: 6
B11: F-4 | D11: ='RevRun Fcst'!H75 -> 0 | E11: ='RevRun Fcst'!I75 -> 0 | F11: ='RevRun Fcst'!J75 -> 0 | G11: ='RevRun Fcst'!K75 -> 0 | H11: ='RevRun Fcst'!L75 -> 0 | I11: ='RevRun Fcst'!M75 -> 0 | J11: ='RevRun Fcst'!N75 -> 0 | K11: ='RevRun Fcst'!O75 -> 0 | L11: ='RevRun Fcst'!P75 -> 0 | M11: ='RevRun Fcst'!Q75 -> 0 | N11: ='RevRun Fcst'!R75 -> 0 | O11: ='RevRun Fcst'!S75 -> 0 | P11: 0 | Q11: 7
B12: NGV | D12: ='RevRun Fcst'!H66 -> 26194 | E12: ='RevRun Fcst'!I66 -> 21810 | F12: ='RevRun Fcst'!J66 -> 25818 | G12: ='RevRun Fcst'!K66 -> 25250 | H12: ='RevRun Fcst'!L66 -> 24213 | I12: ='RevRun Fcst'!M66 -> 22821 | J12: ='RevRun Fcst'!N66 -> 19463 | K12: ='RevRun Fcst'!O66 -> 23246 | L12: ='RevRun Fcst'!P66 -> 21146 | M12: ='RevRun Fcst'!Q66 -> 22656 | N12: ='RevRun Fcst'!R66 -> 24832 | O12: ='RevRun Fcst'!S66 -> 24203 | P12: 281652 | Q12: 8
A13: Total Firm Sales | D13: =SUM(D7:D12) -> 3175615 | E13: 2656956 | F13: =SUM(F7:F12) -> 2515775 | G13: 2773526 | H13: 6992751 | I13: 11989795 | J13: 18764070 | K13: 19715333 | L13: 15953210 | M13: 12527251 | N13: 8343553 | O13: 5160188 | P13: =SUM(P7:P12) -> 110568023 | Q13: 9
Q14: 10
B15: I-4 | D15: ='RevRun Fcst'!H102 -> 50834 | E15: ='RevRun Fcst'!I102 -> 40872 | F15: ='RevRun Fcst'!J102 -> 44094 | G15: ='RevRun Fcst'!K102 -> 47544 | H15: ='RevRun Fcst'!L102 -> 46989 | I15: ='RevRun Fcst'!M102 -> 45422 | J15: ='RevRun Fcst'!N102 -> 55404 | K15: ='RevRun Fcst'!O102 -> 49652 | L15: ='RevRun Fcst'!P102 -> 50013 | M15: ='RevRun Fcst'!Q102 -> 40430 | N15: ='RevRun Fcst'!R102 -> 45919 | O15: ='RevRun Fcst'!S102 -> 50932 | P15: =SUM(D15:O15) -> 568105 | Q15: 11
B16: IS-4 | D16: ='RevRun Fcst'!H93 -> 0 | E16: ='RevRun Fcst'!I93 -> 0 | F16: ='RevRun Fcst'!J93 -> 0 | G16: ='RevRun Fcst'!K93 -> 0 | H16: ='RevRun Fcst'!L93 -> 0 | I16: ='RevRun Fcst'!M93 -> 0 | J16: ='RevRun Fcst'!N93 -> 0 | K16: ='RevRun Fcst'!O93 -> 0 | L16: ='RevRun Fcst'!P93 -> 0 | M16: ='RevRun Fcst'!Q93 -> 0 | N16: ='RevRun Fcst'!R93 -> 0 | O16: ='RevRun Fcst'!S93 -> 0 | P16: =SUM(D16:O16) -> 0 | Q16: 12
A17: Total Interruptible Sales | D17: =SUM(D15:D16) -> 50834 | E17: 40872 | F17: 44094 | G17: 47544 | H17: 46989 | I17: 45422 | J17: 55404 | K17: 49652 | L17: 50013 | M17: 40430 | N17: 45919 | O17: 50932 | P17: 568105 | Q17: 13
Q18: 14
Q19: 15
A20: Total Utah Sales | D20: =+D13+D17 -> 3226449 | E20: =+E13+E17 -> 2697828 | F20: =+F13+F17 -> 2559869 | G20: =+G13+G17 -> 2821070 | H20: 7039740 | I20: 12035217 | J20: 18819474 | K20: 19764985 | L20: 16003223 | M20: 12567681 | N20: 8389472 | O20: 5211120 | P20: =+P13+P17 -> 111136128 | Q20: 16
Q21: 17
A22: Total Utah Transportation | D22: ='RevRun Fcst'!H204 -> 7655912 | E22: ='RevRun Fcst'!I204 -> 7994821 | F22: ='RevRun Fcst'!J204 -> 7703233 | G22: ='RevRun Fcst'!K204 -> 6775011 | H22: ='RevRun Fcst'!L204 -> 6625907 | I22: ='RevRun Fcst'!M204 -> 7145185 | J22: ='RevRun Fcst'!N204 -> 8527004 | K22: ='RevRun Fcst'!O204 -> 8554966 | L22: ='RevRun Fcst'!P204 -> 7825167 | M22: ='RevRun Fcst'!Q204 -> 7476505 | N22: ='RevRun Fcst'!R204 -> 7920362 | O22: ='RevRun Fcst'!S204 -> 8138711 | P22: =SUM(D22:O22) -> 92342784 | Q22: 18
Q23: 19
Q24: 20
A25: Total Utah Sales & Trans | D25: =+D20+D22 -> 10882361 | E25: 10692649 | F25: 10263102 | G25: 9596081 | H25: 13665647 | I25: 19180402 | J25: 27346478 | K25: 28319951 | L25: 23828390 | M25: 20044186 | N25: 16309834 | O25: 13349831 | P25: =+P20+P22 -> 203478912 | Q25: 21
Q26: 22
A27: WYOMING | Q27: 23
A28: GS-1 | D28: ='RevRun Fcst'!H244 -> 116144 | E28: ='RevRun Fcst'!I244 -> 67831 | F28: ='RevRun Fcst'!J244 -> 67819 | G28: ='RevRun Fcst'!K244 -> 103394 | H28: ='RevRun Fcst'!L244 -> 231559 | I28: ='RevRun Fcst'!M244 -> 410327 | J28: ='RevRun Fcst'!N244 -> 616890 | K28: ='RevRun Fcst'!O244 -> 637181 | L28: ='RevRun Fcst'!P244 -> 577431 | M28: ='RevRun Fcst'!Q244 -> 487342 | N28: ='RevRun Fcst'!R244 -> 337763 | O28: ='RevRun Fcst'!S244 -> 219181 | P28: =SUM(D28:O28) -> 3872862 | Q28: 24
A29: GS-W | D29: ='RevRun Fcst'!H271 -> 0 | E29: ='RevRun Fcst'!I271 -> 0 | F29: ='RevRun Fcst'!J271 -> 0 | G29: ='RevRun Fcst'!K271 -> 0 | H29: ='RevRun Fcst'!L271 -> 0 | I29: ='RevRun Fcst'!M271 -> 0 | J29: ='RevRun Fcst'!N271 -> 0 | K29: ='RevRun Fcst'!O271 -> 0 | L29: ='RevRun Fcst'!P271 -> 0 | M29: ='RevRun Fcst'!Q271 -> 0 | N29: ='RevRun Fcst'!R271 -> 0 | O29: ='RevRun Fcst'!S271 -> 0 | P29: =SUM(D29:O29) -> 0 | Q29: 25
A30: F-1 | D30: ='RevRun Fcst'!H253 -> 12637 | E30: ='RevRun Fcst'!I253 -> 12035 | F30: ='RevRun Fcst'!J253 -> 10027 | G30: ='RevRun Fcst'!K253 -> 11836 | H30: ='RevRun Fcst'!L253 -> 13011 | I30: ='RevRun Fcst'!M253 -> 16305 | J30: ='RevRun Fcst'!N253 -> 21267 | K30: ='RevRun Fcst'!O253 -> 24276 | L30: ='RevRun Fcst'!P253 -> 22064 | M30: ='RevRun Fcst'!Q253 -> 20768 | N30: ='RevRun Fcst'!R253 -> 20094 | O30: ='RevRun Fcst'!S253 -> 15572 | P30: =SUM(D30:O30) -> 199892 | Q30: 26
A31: NGV | D31: ='RevRun Fcst'!H262 -> 591 | E31: ='RevRun Fcst'!I262 -> 511 | F31: ='RevRun Fcst'!J262 -> 674 | G31: ='RevRun Fcst'!K262 -> 614 | H31: ='RevRun Fcst'!L262 -> 707 | I31: ='RevRun Fcst'!M262 -> 730 | J31: ='RevRun Fcst'!N262 -> 480 | K31: ='RevRun Fcst'!O262 -> 533 | L31: ='RevRun Fcst'!P262 -> 578 | M31: ='RevRun Fcst'!Q262 -> 555 | N31: ='RevRun Fcst'!R262 -> 546 | O31: ='RevRun Fcst'!S262 -> 642 | P31: =SUM(D31:O31) -> 7161 | Q31: 27
A32: Total Firm Sales | D32: =SUM(D28:D31) -> 129372 | E32: 80377 | F32: 78520 | G32: 115844 | H32: 245277 | I32: 427362 | J32: 638637 | K32: 661990 | L32: 600073 | M32: 508665 | N32: 358403 | O32: 235395 | P32: 4079915 | Q32: 28
Q33: 29
A34: I-2 | D34: ='RevRun Fcst'!H280 -> 6552 | E34: ='RevRun Fcst'!I280 -> 7096 | F34: ='RevRun Fcst'!J280 -> 7051 | G34: ='RevRun Fcst'!K280 -> 6810 | H34: ='RevRun Fcst'!L280 -> 5253 | I34: ='RevRun Fcst'!M280 -> 18088 | J34: ='RevRun Fcst'!N280 -> 17251 | K34: ='RevRun Fcst'!O280 -> 20364 | L34: ='RevRun Fcst'!P280 -> 18265 | M34: ='RevRun Fcst'!Q280 -> 14392 | N34: ='RevRun Fcst'!R280 -> 13030 | O34: ='RevRun Fcst'!S280 -> 10092 | P34: =SUM(D34:O34) -> 144244 | Q34: 30
A35: I-4 | D35: ='RevRun Fcst'!H289 -> 0 | E35: ='RevRun Fcst'!I289 -> 0 | F35: ='RevRun Fcst'!J289 -> 0 | G35: ='RevRun Fcst'!K289 -> 0 | H35: ='RevRun Fcst'!L289 -> 0 | I35: ='RevRun Fcst'!M289 -> 0 | J35: ='RevRun Fcst'!N289 -> 0 | K35: ='RevRun Fcst'!O289 -> 0 | L35: ='RevRun Fcst'!P289 -> 0 | M35: ='RevRun Fcst'!Q289 -> 0 | N35: ='RevRun Fcst'!R289 -> 0 | O35: ='RevRun Fcst'!S289 -> 0 | P35: =SUM(D35:O35) -> 0 | Q35: 31
A36: Total Interruptible Sales | D36: =SUM(D34:D35) -> 6552 | E36: 7096 | F36: 7051 | G36: 6810 | H36: 5253 | I36: 18088 | J36: 17251 | K36: 20364 | L36: 18265 | M36: 14392 | N36: 13030 | O36: 10092 | P36: 144244 | Q36: 32
Q37: 33
Q38: 34
A39: Total Wyoming Sales | D39: =+D32+D36 -> 135924 | E39: =+E32+E36 -> 87473 | F39: 85571 | G39: 122654 | H39: 250530 | I39: 445450 | J39: 655888 | K39: 682354 | L39: 618338 | M39: 523057 | N39: 371433 | O39: 245487 | P39: 4224159 | Q39: 35
Q40: 36
A41: Total Wyoming Transportation | D41: ='RevRun Fcst'!H328 -> 26238 | E41: ='RevRun Fcst'!I328 -> 14151 | F41: ='RevRun Fcst'!J328 -> 14784 | G41: ='RevRun Fcst'!K328 -> 104306 | H41: ='RevRun Fcst'!L328 -> 60090 | I41: ='RevRun Fcst'!M328 -> 60225 | J41: ='RevRun Fcst'!N328 -> 69922 | K41: ='RevRun Fcst'!O328 -> 58181 | L41: ='RevRun Fcst'!P328 -> 46194 | M41: ='RevRun Fcst'!Q328 -> 56419 | N41: ='RevRun Fcst'!R328 -> 35099 | O41: ='RevRun Fcst'!S328 -> 70607 | P41: =SUM(D41:O41) -> 616216 | Q41: 37
Q42: 38
Q43: 39
A44: Total Wyoming Sales & Trans | D44: =+D39+D41 -> 162162 | E44: 101624 | F44: 100355 | G44: 226960 | H44: 310620 | I44: 505675 | J44: 725810 | K44: 740535 | L44: 664532 | M44: 579476 | N44: 406532 | O44: 316094 | P44: 4840375 | Q44: 40
Q45: 41
Q46: 42
A47: Total System Sales and Trans | D47: =+D25+D44 -> 11044523 | E47: 10794273 | F47: 10363457 | G47: 9823041 | H47: 13976267 | I47: 19686077 | J47: 28072288 | K47: 29060486 | L47: 24492922 | M47: 20623662 | N47: 16716366 | O47: =+O25+O44 -> 13665925 | P47: 208319287 | Q47: 43
Q48: 44
A49: Usage by Season | Q49: 45
C50: Month | D50: =MONTH(D5) -> 6 | E50: 7 | F50: 8 | G50: 9 | H50: 10 | I50: 11 | J50: 12 | K50: 1 | L50: 2 | M50: 3 | N50: 4 | O50: 5 | Q50: 46
A51: GS | C51: Season (0=Winter, 1=Summer) | D51: =IF(D$50<4,0,IF(D$50>10,0,1)) -> 1 | E51: =IF(E$50<4,0,IF(E$50>10,0,1)) -> 1 | F51: 1 | G51: 1 | H51: 1 | I51: 0 | J51: 0 | K51: 0 | L51: 0 | M51: 0 | N51: 1 | O51: 1 | P51: Total | Q51: 47
B52: Winter | D52: =IF(D51=0,D7+D8,0) -> 0 | E52: =IF(E51=0,E7+E8,0) -> 0 | F52: 0 | G52: 0 | H52: 0 | I52: 11691211 | J52: 18364323 | K52: 19242638 | L52: 15539287 | M52: 12127475 | N52: 0 | O52: 0 | P52: =SUM(D52:O52) -> 76964934 | Q52: 48
B53: Summer | D53: =IF(D51=1,D7+D8,0) -> 2859281 | E53: 2409399 | F53: 2279222 | G53: 2494890 | H53: 6710736 | I53: 0 | J53: 0 | K53: 0 | L53: 0 | M53: 0 | N53: 7959856 | O53: 4850911 | P53: =SUM(D53:O53) -> 29564295 | Q53: 49
A54: GSS | Q54: 50
B55: Winter | D55: =IF(D51=0,D9,0) -> 0 | E55: 0 | F55: 0 | G55: 0 | H55: 0 | I55: 0 | J55: 0 | K55: 0 | L55: 0 | M55: 0 | N55: 0 | O55: 0 | P55: =SUM(D55:O55) -> 0 | Q55: 51
B56: Summer | D56: =IF(D51=1,D9,0) -> 0 | E56: 0 | F56: 0 | G56: 0 | H56: 0 | I56: 0 | J56: 0 | K56: 0 | L56: 0 | M56: 0 | N56: 0 | O56: 0 | P56: =SUM(D56:O56) -> 0 | Q56: 52
A57: F-S | Q57: 53
B58: Winter | D58: =IF(D51=0,D10,0) -> 0 | E58: 0 | F58: 0 | G58: 0 | H58: 0 | I58: 275763 | J58: 380284 | K58: 449449 | L58: 392777 | M58: 377120 | N58: 0 | O58: 0 | P58: =SUM(D58:O58) -> 1875393 | Q58: 54
B59: Summer | D59: =IF(D51=1,D10,0) -> 290140 | E59: 225747 | F59: 210735 | G59: 253386 | H59: 257802 | I59: 0 | J59: 0 | K59: 0 | L59: 0 | M59: 0 | N59: 358865 | O59: 285074 | P59: =SUM(D59:O59) -> 1881749 | Q59: 55
Q60: 56
Q61: 57
B62: Rates: R050201.R1 | C62: WYOMING NON-CORE DNG REVENUES FROM DEMAND FORECAST AND CURRENTLY EFFECTIVE I-SALES GAS COST RATES | Q62: 58
D63: Forecast | E63: Forecast | F63: Forecast | G63: Forecast | H63: Forecast | I63: Forecast | J63: Forecast | K63: Forecast | L63: Forecast | M63: Forecast | N63: Forecast | O63: Forecast | P63: 12-Month | Q63: 59
D64: =D5 -> Jun18 | E64: =E5 -> Jul18 | F64: =F5 -> Aug18 | G64: Sep18 | H64: Oct18 | I64: Nov18 | J64: Dec18 | K64: Jan19 | L64: Feb19 | M64: Mar19 | N64: Apr19 | O64: May19 | P64: Total | Q64: 60
A65: I-2 & 1-4 (Non-Gas Revenue) (Yearly) | D65: ='RevRun Fcst'!H273+'RevRun Fcst'!H282 -> 3308.26 | E65: ='RevRun Fcst'!I273+'RevRun Fcst'!I282 -> 3445.07 | F65: ='RevRun Fcst'!J273+'RevRun Fcst'!J282 -> 3433.76 | G65: ='RevRun Fcst'!K273+'RevRun Fcst'!K282 -> 3373.14 | H65: ='RevRun Fcst'!L273+'RevRun Fcst'!L282 -> 2981.58 | I65: ='RevRun Fcst'!M273+'RevRun Fcst'!M282 -> 6209.45 | J65: ='RevRun Fcst'!N273+'RevRun Fcst'!N282 -> 5998.96 | K65: ='RevRun Fcst'!O273+'RevRun Fcst'!O282 -> 6781.83 | L65: ='RevRun Fcst'!P273+'RevRun Fcst'!P282 -> 6253.96 | M65: ='RevRun Fcst'!Q273+'RevRun Fcst'!Q282 -> 5279.94 | N65: ='RevRun Fcst'!R273+'RevRun Fcst'!R282 -> 4937.42 | O65: ='RevRun Fcst'!S273+'RevRun Fcst'!S282 -> 4198.54 | P65: =SUM(D65:O65) -> 56201.91 | Q65: 61
A66: IC (Total Revenue) (Yearly) | D66: =ROUND(D41*$P66/$P41,0) -> 4853 | E66: =ROUND(E41*$P66/$P41,0) -> 2617 | F66: 2734 | G66: 19293 | H66: 11114 | I66: 11139 | J66: 12933 | K66: 10761 | L66: 8544 | M66: 10435 | N66: 6492 | O66: =P66-SUM(D66:N66) -> 13062.3 | P66: ='RevRun Fcst'!T300+'RevRun Fcst'!T314 -> 113977.3 | Q66: 62
Q67: 63
A68: ="I-2 Gas Cost (Rate Effective "&'Other Inputs'!E96&")" -> I-2 Gas Cost (Rate Effective ) | D68: ='Other Inputs'!E99 -> 0 | E68: =+D68 -> 0 | F68: 0 | G68: 0 | H68: 0 | I68: 0 | J68: 0 | K68: 0 | L68: 0 | M68: 0 | N68: 0 | O68: 0 | Q68: 64
A69: ="I-4 Gas Cost (Rate Effective "&'Other Inputs'!F96&")" -> I-4 Gas Cost (Rate Effective ) | D69: 0 | E69: 0 | F69: =+E69 -> 0 | G69: 0 | H69: 0 | I69: 0 | J69: 0 | K69: 0 | L69: 0 | M69: 0 | N69: 0 | O69: 0 | Q69: 65
Q70: 66
Q71: 67
D72: ALLOCATION BASES | Q72: 68
D73: DEMAND | G73: OTHER COST | Q73: 69
A74: Utah Peak Day Demand | D74: =+D76-D75 -> 1305877.549 | E74: =D74/D76 -> 0.9722724112 | G74: Utah Sales | H74: =+P20 -> 111136128 | I74: =H74/H76 -> 0.9633829014 | Q74: 70
A75: Wyoming Peak Day Demand | D75: ='Other Inputs'!E160 -> 37241.45128 | E75: =1-E74 -> 0.02772758875 | G75: Wyoming Sales | H75: =+P39 -> 4224159 | I75: =1-I74 -> 0.03661709857 | Q75: 71
A76: Peak Day Demand | D76: ='Other Inputs'!E161 -> 1343119 | E76: =ROUND(D76/D$76,4) -> 1 | G76: Total Sales | H76: =+H74+H75 -> 115360287 | I76: =ROUND(H76/H$76,4) -> 1 | Q76: 72
Q77: 73
Q78: 74
D79: Financial Report Information (Latest 12 Months of Actual Expenses and 13 Months of Rate Base) | Q79: 75
D80: Actual | E80: Actual | F80: Actual | G80: Actual | H80: Actual | I80: Actual | J80: Actual | K80: Actual | L80: Actual | M80: Actual | N80: Actual | O80: Actual | Q80: 76
A81: Accounts | D81: =Expenses!G9 -> 2017-04-01 | E81: =Expenses!H9 -> 2017-05-01 | F81: =Expenses!I9 -> 2017-06-01 | G81: =Expenses!J9 -> 2017-07-01 | H81: =Expenses!K9 -> 2017-08-01 | I81: =Expenses!L9 -> 2017-09-01 | J81: =Expenses!M9 -> 2017-10-01 | K81: =Expenses!N9 -> 2017-11-01 | L81: =Expenses!O9 -> 2017-12-01 | M81: =Expenses!P9 -> 2018-01-01 | N81: =Expenses!Q9 -> 2018-02-01 | O81: =Expenses!R9 -> 2018-03-01 | P81: =Expenses!S9 -> 2018-03-01 | Q81: 77
A82: EXPENSES | Q82: 78
B83: Gas Use In Dth (Acct 810 & 812) | D83: 0 | E83: 0 | F83: 0 | G83: 0 | H83: 0 | I83: 0 | J83: 0 | K83: 0 | L83: 0 | M83: 0 | N83: 0 | O83: 0 | Q83: 79
Q84: 80
B85: Other Revenue (Yearly) | Q85: 81
B86: Sales for Resale (account 483) | D86: =Expenses!G445 -> 143089.38 | E86: =Expenses!H445 -> 186990.68 | F86: =Expenses!I445 -> 121843.02 | G86: =Expenses!J445 -> 48049.88 | H86: =Expenses!K445 -> 102062.51 | I86: =Expenses!L445 -> 182396.79 | J86: =Expenses!M445 -> 168250.61 | K86: =Expenses!N445 -> 166949.17 | L86: =Expenses!O445 -> 161953.51 | M86: =Expenses!P445 -> 0 | N86: =Expenses!Q445 -> 0 | O86: =Expenses!R445 -> 0 | P86: =Expenses!S445 -> 1281585.55 | Q86: 82
B87: Incidental Plant Prod Sales (Acct 490) | D87: =Expenses!G446 -> 434.78 | E87: =Expenses!H446 -> 411.79 | F87: =Expenses!I446 -> 1844712.89 | G87: =Expenses!J446 -> 564.5 | H87: =Expenses!K446 -> 794828.26 | I87: =Expenses!L446 -> 1160.83 | J87: =Expenses!M446 -> 556347.62 | K87: =Expenses!N446 -> 1319175.82 | L87: =Expenses!O446 -> 138.58 | M87: =Expenses!P446 -> 398340.26 | N87: =Expenses!Q446 -> 518558.68 | O87: =Expenses!R446 -> 1088125.14 | P87: =Expenses!S446 -> 6522799.15 | Q87: 83
B88: Gas Processed by Others (account 491) | D88: =Expenses!G461 -> 0 | E88: =Expenses!H461 -> 0 | F88: =Expenses!I461 -> 0 | G88: =Expenses!J461 -> 0 | H88: =Expenses!K461 -> 0 | I88: =Expenses!L461 -> 0 | J88: =Expenses!M461 -> 0 | K88: =Expenses!N461 -> 0 | L88: =Expenses!O461 -> 0 | M88: =Expenses!P461 -> 0 | N88: =Expenses!Q461 -> 0 | O88: =Expenses!R461 -> 0 | P88: =Expenses!S461 -> 0 | Q88: 84
B89: Gasoline - Oil Sales (account 492) | D89: =Expenses!G447 -> 111488.19 | E89: =Expenses!H447 -> 175984.67 | F89: =Expenses!I447 -> 173107.59 | G89: =Expenses!J447 -> 199307.35 | H89: =Expenses!K447 -> 131012.4 | I89: =Expenses!L447 -> 99774.07 | J89: =Expenses!M447 -> 141169.2 | K89: =Expenses!N447 -> 115890.11 | L89: =Expenses!O447 -> 155802.75 | M89: =Expenses!P447 -> 84962.47 | N89: =Expenses!Q447 -> 71321.05 | O89: =Expenses!R447 -> 76173.93 | P89: =Expenses!S447 -> 1535993.78 | Q89: 85
B90: Gasoline - Oil Cost (account 758.001) | D90: =-Expenses!G450 -> -20721.22 | E90: =-Expenses!H450 -> -32355.49 | F90: =-Expenses!I450 -> -26778.16 | G90: =-Expenses!J450 -> -33343.26 | H90: =-Expenses!K450 -> -20897.51 | I90: =-Expenses!L450 -> -16225.85 | J90: =-Expenses!M450 -> -22368 | K90: =-Expenses!N450 -> -18400.87 | L90: =-Expenses!O450 -> -25753.29 | M90: =-Expenses!P450 -> 0 | N90: =-Expenses!Q450 -> 0 | O90: =-Expenses!R450 -> 0 | P90: =-Expenses!S450 -> -216843.65 | Q90: 86
Q91: 87
Q92: 88
B93: Overriding Royalty (account 495-1) | D93: =Expenses!G448 -> 967292.74 | E93: =Expenses!H448 -> 809200.96 | F93: =Expenses!I448 -> 843687.44 | G93: =Expenses!J448 -> 828855.09 | H93: =Expenses!K448 -> 905412.15 | I93: =Expenses!L448 -> 855912.03 | J93: =Expenses!M448 -> 749922.57 | K93: =Expenses!N448 -> 705097.4 | L93: =Expenses!O448 -> 781328.26 | M93: =Expenses!P448 -> 100336.29 | N93: =Expenses!Q448 -> 762854.72 | O93: =Expenses!R448 -> 1647764.36 | P93: =Expenses!S448 -> 9957664.01 | Q93: 89
B94: Wexpro Revenue Sharing (account 495-2) | D94: =Expenses!G449 -> 6289 | E94: =Expenses!H449 -> 5961 | F94: =Expenses!I449 -> 4108 | G94: =Expenses!J449 -> 5868 | H94: =Expenses!K449 -> 13631 | I94: =Expenses!L449 -> 11788 | J94: =Expenses!M449 -> 4888 | K94: =Expenses!N449 -> 23769 | L94: =Expenses!O449 -> 31018 | M94: =Expenses!P449 -> 0 | N94: =Expenses!Q449 -> 0 | O94: =Expenses!R449 -> 0 | P94: =Expenses!S449 -> 107320 | Q94: 90
P95: Page 2 of 6 | Q95: 91
C96: Actual | D96: Actual | E96: Actual | F96: Actual | G96: Actual | H96: Actual | I96: Actual | J96: Actual | K96: Actual | L96: Actual | M96: Actual | N96: Actual | O96: Actual | P96: 13-Month | Q96: 92
A97: Accounts | C97: ='Rate Base'!H8 -> 2017-03-19 | D97: ='Rate Base'!I8 -> 2017-04-18 | E97: ='Rate Base'!J8 -> 2017-05-18 | F97: ='Rate Base'!K8 -> 2017-06-17 | G97: ='Rate Base'!L8 -> 2017-07-17 | H97: ='Rate Base'!M8 -> 2017-08-16 | I97: ='Rate Base'!N8 -> 2017-09-17 | J97: ='Rate Base'!O8 -> 2017-10-19 | K97: ='Rate Base'!P8 -> 2017-11-18 | L97: ='Rate Base'!Q8 -> 2017-12-18 | M97: ='Rate Base'!R8 -> 2018-01-18 | N97: ='Rate Base'!S8 -> 2018-02-17 | O97: ='Rate Base'!T8 -> 2018-03-19 | P97: Average | Q97: 93
A98: RATE BASE - PRODUCTION | Q98: 94
B99: Acct 164 (Working Gas) - Production | C99: ='Rate Base'!H206 -> 8937825.64 | D99: ='Rate Base'!I206 -> 5265628.42 | E99: ='Rate Base'!J206 -> 9895288.84 | F99: ='Rate Base'!K206 -> 21769885.13 | G99: ='Rate Base'!L206 -> 34448175.63 | H99: ='Rate Base'!M206 -> 48018857.41 | I99: ='Rate Base'!N206 -> 58860691.74 | J99: ='Rate Base'!O206 -> 59031895.8 | K99: ='Rate Base'!P206 -> 59289969.15 | L99: ='Rate Base'!Q206 -> 52891066.75 | M99: ='Rate Base'!R206 -> 36606333 | N99: ='Rate Base'!S206 -> 23198516 | O99: ='Rate Base'!T206 -> 9114305 | P99: =(((+C99+O99)/2)+SUM(D99:N99))/12 -> 34858531.1 | Q99: 95
B100: Acct 101 - Production | C100: ='Rate Base'!H148 -> 79968136 | D100: ='Rate Base'!I148 -> 79968136 | E100: ='Rate Base'!J148 -> 79968136 | F100: ='Rate Base'!K148 -> 79968136 | G100: ='Rate Base'!L148 -> 79968136 | H100: ='Rate Base'!M148 -> 79968136 | I100: ='Rate Base'!N148 -> 79968136 | J100: ='Rate Base'!O148 -> 79968136 | K100: ='Rate Base'!P148 -> 79968136 | L100: ='Rate Base'!Q148 -> 79968136 | M100: ='Rate Base'!R148 -> 79968136 | N100: ='Rate Base'!S148 -> 79968136 | O100: ='Rate Base'!T148 -> 79968136 | P100: =(((+C100+O100)/2)+SUM(D100:N100))/12 -> 79968136 | Q100: 96
B101: Acct 108 - Production | C101: ='Rate Base'!H166 -> -69092261.78 | D101: ='Rate Base'!I166 -> -69148875.27 | E101: ='Rate Base'!J166 -> -69202397.18 | F101: ='Rate Base'!K166 -> -69256660.72 | G101: ='Rate Base'!L166 -> -69314119.85 | H101: ='Rate Base'!M166 -> -69367366.51 | I101: ='Rate Base'!N166 -> -69417627.43 | J101: ='Rate Base'!O166 -> -69469195 | K101: ='Rate Base'!P166 -> -69536528.44 | L101: ='Rate Base'!Q166 -> -69576718.01 | M101: ='Rate Base'!R166 -> -69536528 | N101: ='Rate Base'!S166 -> -69665875 | O101: ='Rate Base'!T166 -> -69665875 | P101: -69405913.32 | Q101: 97
B102: Acct 111 - Production | C102: ='Rate Base'!H173 -> -6137515.35 | D102: ='Rate Base'!I173 -> -6139006.63 | E102: ='Rate Base'!J173 -> -6140416.48 | F102: ='Rate Base'!K173 -> -6141845.87 | G102: ='Rate Base'!L173 -> -6143359.42 | H102: ='Rate Base'!M173 -> -6144762.02 | I102: ='Rate Base'!N173 -> -6146085.96 | J102: ='Rate Base'!O173 -> -6147444.33 | K102: ='Rate Base'!P173 -> -6149218 | L102: ='Rate Base'!Q173 -> -6150276.66 | M102: ='Rate Base'!R173 -> -6149218 | N102: ='Rate Base'!S173 -> -6150277 | O102: ='Rate Base'!T173 -> -6150277 | P102: -6145483.879 | Q102: 98
B103: Acct 2550 - Production | C103: ='Rate Base'!H241 -> -1171.29 | D103: ='Rate Base'!I241 -> -1186.79 | E103: ='Rate Base'!J241 -> -1202.29 | F103: ='Rate Base'!K241 -> -1217.79 | G103: ='Rate Base'!L241 -> -1233.29 | H103: ='Rate Base'!M241 -> -1248.79 | I103: ='Rate Base'!N241 -> -1264.29 | J103: ='Rate Base'!O241 -> -1279.79 | K103: ='Rate Base'!P241 -> -1295.29 | L103: ='Rate Base'!Q241 -> -1310.79 | M103: ='Rate Base'!R241 -> -1295 | N103: ='Rate Base'!S241 -> -1311 | O103: ='Rate Base'!T241 -> -1311 | P103: -1257.187917 | Q103: 99
B104: Acct 2820 - Production | C104: ='Rate Base'!H248 -> -310747.4 | D104: ='Rate Base'!I248 -> -247869.66 | E104: ='Rate Base'!J248 -> -184984.29 | F104: ='Rate Base'!K248 -> -121778.19 | G104: ='Rate Base'!L248 -> -58772.59 | H104: ='Rate Base'!M248 -> 3661.83 | I104: ='Rate Base'!N248 -> 50611.28 | J104: ='Rate Base'!O248 -> 110620.48 | K104: ='Rate Base'!P248 -> 169754.68 | L104: ='Rate Base'!Q248 -> 44147.49 | M104: ='Rate Base'!R248 -> 169755 | N104: ='Rate Base'!S248 -> 480158 | O104: ='Rate Base'!T248 -> 480158 | P104: 41667.44417 | Q104: 100
B105: Acct 2821 - Production | C105: ='Rate Base'!H255 -> -700755.31 | D105: ='Rate Base'!I255 -> -700755.31 | E105: ='Rate Base'!J255 -> -700755.31 | F105: ='Rate Base'!K255 -> -700755.31 | G105: ='Rate Base'!L255 -> -700755.31 | H105: ='Rate Base'!M255 -> -700755.31 | I105: ='Rate Base'!N255 -> -700755.31 | J105: ='Rate Base'!O255 -> -700755.31 | K105: ='Rate Base'!P255 -> -700755.31 | L105: ='Rate Base'!Q255 -> -700755.31 | M105: ='Rate Base'!R255 -> -700755.31 | N105: ='Rate Base'!S255 -> -700755.31 | O105: ='Rate Base'!T255 -> -700755.31 | P105: -700755.31 | Q105: 101
Q106: 102
D107: Production | H107: Acct 101 | I107: Acct 108 | J107: Acct 111 | K107: Acct 2550 | L107: Acct 2820 | M107: Acct 2821 | N107: Total | Q107: 103
B108: Depreciation - Acct 403 | D108: =Expenses!S385 -> 529608 | F108: Thirteen month average | H108: =P100 -> 79968136 | I108: =P101 -> -69405913.32 | J108: =P102 -> -6145483.879 | K108: =P103 -> -1257.187917 | L108: =P104 -> 41667.44417 | M108: =P105 -> -700755.31 | N108: =SUM(H108:M108) -> 3756393.751 | Q108: 104
B109: Amortization & Depletion - Acct 404 | D109: =Expenses!S392 -> 13951 | F109: =CONCATENATE("Wexpro Red. @ ",-'Other Inputs'!E308*100," %") -> Wexpro Red. @ 6.3 % | H109: =H108*'Other Inputs'!$E$308 -> -5037992.568 | I109: =I108*'Other Inputs'!$E$308 -> 4372572.539 | J109: =J108*'Other Inputs'!$E$308 -> 387165.4844 | N109: =SUM(H109:M109) -> -278254.5447 | Q109: 105
B110: Utah Pre-Tax Return on Production Assets | D110: =+N111 -> 324510.3879 | M110: =SUM(N108:N109) -> 3478139.206 | Q110: 106
B111: Utah Production Cost | D111: =SUM(D108:D110) -> 868069.3879 | M111: ="Utah Pre-Tax Rate of Return on Production Assets ("&'Other Inputs'!E311&")" -> Utah Pre-Tax Rate of Return on Production Assets (0.0933) | N111: =M110*'Other Inputs'!E311 -> 324510.3879 | Q111: 107
M112: ="Wyoming Pre-Tax Rate of Return on Production Assets ("&'Other Inputs'!E310&")" -> Wyoming Pre-Tax Rate of Return on Production Assets (0.1059) | N112: =M110*'Other Inputs'!E310 -> 368334.9419 | Q112: 108
Q113: 109
A114: TACTICAL PLAN INFORMATION (IRP) | P114: 12-Month | Q114: 110
D115: =D5 -> Jun18 | E115: =E5 -> Jul18 | F115: Aug18 | G115: Sep18 | H115: Oct18 | I115: Nov18 | J115: Dec18 | K115: Jan19 | L115: Feb19 | M115: Mar19 | N115: Apr19 | O115: May19 | P115: Total | Q115: 111
A116: COMPANY PRODUCTION | Q116: 112
B117: Prior Company | Q117: 113
B118: D24 Wells | Q118: 114
B119: Brady & Powel | Q119: 115
B120: Total Company Production Wexpro I & II | D120: ='Monthly Inputs'!G7+'Monthly Inputs'!G13 -> 5749718.789 | E120: ='Monthly Inputs'!H7+'Monthly Inputs'!H13 -> 5829421.543 | F120: ='Monthly Inputs'!I7+'Monthly Inputs'!I13 -> 5915437.327 | G120: ='Monthly Inputs'!J7+'Monthly Inputs'!J13 -> 6021300.096 | H120: ='Monthly Inputs'!K7+'Monthly Inputs'!K13 -> 6274592.932 | I120: ='Monthly Inputs'!L7+'Monthly Inputs'!L13 -> 5917909.396 | J120: ='Monthly Inputs'!M7+'Monthly Inputs'!M13 -> 6194973.573 | K120: ='Monthly Inputs'!N7+'Monthly Inputs'!N13 -> 6145050.781 | L120: ='Monthly Inputs'!O7+'Monthly Inputs'!O13 -> 5402174.736 | M120: ='Monthly Inputs'!P7+'Monthly Inputs'!P13 -> 5840147.306 | N120: ='Monthly Inputs'!Q7+'Monthly Inputs'!Q13 -> 5586047.149 | O120: ='Monthly Inputs'!R7+'Monthly Inputs'!R13 -> 5820032.826 | P120: =SUM(D120:O120) -> 70696806.45 | Q120: 116
Q121: 117
A122: STORAGE INJECTIONS | Q122: 118
B123: Chalk Creek | D123: ='Monthly Inputs'!G24 -> 0 | E123: ='Monthly Inputs'!H24 -> 0 | F123: ='Monthly Inputs'!I24 -> 0 | G123: ='Monthly Inputs'!J24 -> 0 | H123: ='Monthly Inputs'!K24 -> 0 | I123: ='Monthly Inputs'!L24 -> 151896.1945 | J123: ='Monthly Inputs'!M24 -> 53324.81766 | K123: ='Monthly Inputs'!N24 -> 98697.3114 | L123: ='Monthly Inputs'!O24 -> 0 | M123: ='Monthly Inputs'!P24 -> 0 | N123: ='Monthly Inputs'!Q24 -> 0 | O123: ='Monthly Inputs'!R24 -> 0 | P123: =SUM(D123:O123) -> 303918.3235 | Q123: 119
B124: Coalville | D124: ='Monthly Inputs'!G26 -> 0 | E124: ='Monthly Inputs'!H26 -> 0 | F124: ='Monthly Inputs'!I26 -> 0 | G124: ='Monthly Inputs'!J26 -> 31957.92961 | H124: ='Monthly Inputs'!K26 -> 111245.9564 | I124: ='Monthly Inputs'!L26 -> 121359.2224 | J124: ='Monthly Inputs'!M26 -> 0 | K124: ='Monthly Inputs'!N26 -> 48948.2193 | L124: ='Monthly Inputs'!O26 -> 0 | M124: ='Monthly Inputs'!P26 -> 0 | N124: ='Monthly Inputs'!Q26 -> 0 | O124: ='Monthly Inputs'!R26 -> 0 | P124: =SUM(D124:O124) -> 313511.3277 | Q124: 120
B125: Leroy | D125: ='Monthly Inputs'!G27 -> 0 | E125: ='Monthly Inputs'!H27 -> 0 | F125: ='Monthly Inputs'!I27 -> 0 | G125: ='Monthly Inputs'!J27 -> 9424.08371 | H125: ='Monthly Inputs'!K27 -> 297382.2021 | I125: ='Monthly Inputs'!L27 -> 17801.04637 | J125: ='Monthly Inputs'!M27 -> 0 | K125: ='Monthly Inputs'!N27 -> 0 | L125: ='Monthly Inputs'!O27 -> 0 | M125: ='Monthly Inputs'!P27 -> 0 | N125: ='Monthly Inputs'!Q27 -> 0 | O125: ='Monthly Inputs'!R27 -> 0 | P125: =SUM(D125:O125) -> 324607.3322 | Q125: 121
B126: Ryckman | D126: ='Monthly Inputs'!G28 -> 350489.9902 | E126: ='Monthly Inputs'!H28 -> 362173.0042 | F126: ='Monthly Inputs'!I28 -> 362173.0042 | G126: ='Monthly Inputs'!J28 -> 350489.9902 | H126: ='Monthly Inputs'!K28 -> 362173.0042 | I126: ='Monthly Inputs'!L28 -> 0 | J126: ='Monthly Inputs'!M28 -> 0 | K126: ='Monthly Inputs'!N28 -> 0 | L126: ='Monthly Inputs'!O28 -> 0 | M126: ='Monthly Inputs'!P28 -> 0 | N126: ='Monthly Inputs'!Q28 -> 350489.9902 | O126: ='Monthly Inputs'!R28 -> 362173.0042 | P126: =SUM(D126:O126) -> 2500161.987 | Q126: 122
B127: Total Peaking Storage | D127: =SUM(D123:D126) -> 350489.9902 | E127: =SUM(E123:E126) -> 362173.0042 | F127: 362173.0042 | G127: 391872.0036 | H127: 770801.1627 | I127: 291056.4632 | J127: 53324.81766 | K127: 147645.5307 | L127: 0 | M127: 0 | N127: 350489.9902 | O127: 362173.0042 | P127: 3442198.971 | Q127: 123
B128: Clay Basin | D128: ='Monthly Inputs'!G25 -> 2402097.351 | E128: ='Monthly Inputs'!H25 -> 2634037.964 | F128: ='Monthly Inputs'!I25 -> 2754100.586 | G128: ='Monthly Inputs'!J25 -> 2656265.625 | H128: ='Monthly Inputs'!K25 -> 325101.7361 | I128: ='Monthly Inputs'!L25 -> 0 | J128: ='Monthly Inputs'!M25 -> 0 | K128: ='Monthly Inputs'!N25 -> 0 | L128: ='Monthly Inputs'!O25 -> 0 | M128: ='Monthly Inputs'!P25 -> 17165.94696 | N128: ='Monthly Inputs'!Q25 -> 0 | O128: ='Monthly Inputs'!R25 -> 2754100.586 | P128: =SUM(D128:O128) -> 13542869.79 | Q128: 124
B129: Total Storage Injections | D129: =SUM(D127:D128) -> 2752587.341 | E129: =SUM(E127:E128) -> 2996210.968 | F129: 3116273.59 | G129: 3048137.629 | H129: 1095902.899 | I129: 291056.4632 | J129: 53324.81766 | K129: 147645.5307 | L129: 0 | M129: 17165.94696 | N129: 350489.9902 | O129: 3116273.59 | P129: 16985068.77 | Q129: 125
A130: STORAGE WITHDRAWLS | Q130: 126
B131: Chalk Creek | D131: ='Monthly Inputs'!G32 -> 0 | E131: ='Monthly Inputs'!H32 -> 0 | F131: ='Monthly Inputs'!I32 -> 0 | G131: ='Monthly Inputs'!J32 -> 0 | H131: ='Monthly Inputs'!K32 -> 0 | I131: ='Monthly Inputs'!L32 -> 0 | J131: ='Monthly Inputs'!M32 -> 0 | K131: ='Monthly Inputs'!N32 -> 0 | L131: ='Monthly Inputs'!O32 -> 0 | M131: ='Monthly Inputs'!P32 -> 257250 | N131: ='Monthly Inputs'!Q32 -> 44875.19836 | O131: ='Monthly Inputs'!R32 -> 0 | P131: =SUM(D131:O131) -> 302125.1984 | Q131: 127
B132: Coalville | D132: ='Monthly Inputs'!G34 -> 0 | E132: ='Monthly Inputs'!H34 -> 0 | F132: ='Monthly Inputs'!I34 -> 0 | G132: ='Monthly Inputs'!J34 -> 0 | H132: ='Monthly Inputs'!K34 -> 0 | I132: ='Monthly Inputs'!L34 -> 0 | J132: ='Monthly Inputs'!M34 -> 0 | K132: ='Monthly Inputs'!N34 -> 0 | L132: ='Monthly Inputs'!O34 -> 0 | M132: ='Monthly Inputs'!P34 -> 310000 | N132: ='Monthly Inputs'!Q34 -> 0 | O132: ='Monthly Inputs'!R34 -> 0 | P132: =SUM(D132:O132) -> 310000 | Q132: 128
B133: Leroy | D133: ='Monthly Inputs'!G35 -> 0 | E133: ='Monthly Inputs'!H35 -> 0 | F133: ='Monthly Inputs'!I35 -> 0 | G133: ='Monthly Inputs'!J35 -> 0 | H133: ='Monthly Inputs'!K35 -> 0 | I133: ='Monthly Inputs'!L35 -> 0 | J133: ='Monthly Inputs'!M35 -> 0 | K133: ='Monthly Inputs'!N35 -> 0 | L133: ='Monthly Inputs'!O35 -> 0 | M133: ='Monthly Inputs'!P35 -> 310000 | N133: ='Monthly Inputs'!Q35 -> 0 | O133: ='Monthly Inputs'!R35 -> 0 | P133: =SUM(D133:O133) -> 310000 | Q133: 129
B134: Ryckman | D134: ='Monthly Inputs'!G36 -> 0 | E134: ='Monthly Inputs'!H36 -> 0 | F134: ='Monthly Inputs'!I36 -> 0 | G134: ='Monthly Inputs'!J36 -> 0 | H134: ='Monthly Inputs'!K36 -> 342368.988 | I134: ='Monthly Inputs'!L36 -> 498000 | J134: ='Monthly Inputs'!M36 -> 514599.9756 | K134: ='Monthly Inputs'!N36 -> 514599.9756 | L134: ='Monthly Inputs'!O36 -> 121924.8962 | M134: ='Monthly Inputs'!P36 -> 0 | N134: ='Monthly Inputs'!Q36 -> 42094.24973 | O134: ='Monthly Inputs'!R36 -> 0 | P134: =SUM(D134:O134) -> 2033588.085 | Q134: 130
B135: Total Peaking Storage | D135: =SUM(D131:D134) -> 0 | E135: =SUM(E131:E134) -> 0 | F135: 0 | G135: 0 | H135: 342368.988 | I135: 498000 | J135: 514599.9756 | K135: 514599.9756 | L135: 121924.8962 | M135: 877250 | N135: 86969.44809 | O135: 0 | P135: 2955713.284 | Q135: 131
B136: Clay Basin | D136: ='Monthly Inputs'!G33 -> 0 | E136: ='Monthly Inputs'!H33 -> 0 | F136: ='Monthly Inputs'!I33 -> 0 | G136: ='Monthly Inputs'!J33 -> 0 | H136: ='Monthly Inputs'!K33 -> 0 | I136: ='Monthly Inputs'!L33 -> 3712118.042 | J136: ='Monthly Inputs'!M33 -> 3610000 | K136: ='Monthly Inputs'!N33 -> 3536000 | L136: ='Monthly Inputs'!O33 -> 2100375.671 | M136: ='Monthly Inputs'!P33 -> 0 | N136: ='Monthly Inputs'!Q33 -> 59110.69489 | O136: ='Monthly Inputs'!R33 -> 0 | P136: =SUM(D136:O136) -> 13017604.41 | Q136: 132
B137: Total Storage Withdrawls | D137: =SUM(D135:D136) -> 0 | E137: 0 | F137: 0 | G137: 0 | H137: 342368.988 | I137: 4210118.042 | J137: 4124599.976 | K137: 4050599.976 | L137: 2222300.568 | M137: 877250 | N137: 146080.143 | O137: 0 | P137: 15973317.69 | Q137: 133
Q138: 134
Q139: 135
A140: Gas Supply and Demand | D140: =D4 -> Forecast | E140: Forecast | F140: Forecast | G140: Forecast | H140: Forecast | I140: Forecast | J140: Forecast | K140: Forecast | L140: Forecast | M140: Forecast | N140: Forecast | O140: Forecast | P140: 12-Month | Q140: 136
A141: Demand | D141: =D5 -> Jun18 | E141: Jul18 | F141: Aug18 | G141: Sep18 | H141: Oct18 | I141: Nov18 | J141: Dec18 | K141: Jan19 | L141: Feb19 | M141: Mar19 | N141: Apr19 | O141: May19 | P141: Total | Q141: 137
Q142: 138
A143: Utah Sales | D143: =+D20 -> 3226449 | E143: =+E20 -> 2697828 | F143: 2559869 | G143: 2821070 | H143: 7039740 | I143: 12035217 | J143: 18819474 | K143: 19764985 | L143: 16003223 | M143: 12567681 | N143: 8389472 | O143: 5211120 | P143: =SUM(D143:O143) -> 111136128 | Q143: 139
A144: Wyoming Sales | D144: =+D39 -> 135924 | E144: 87473 | F144: 85571 | G144: 122654 | H144: 250530 | I144: 445450 | J144: 655888 | K144: 682354 | L144: 618338 | M144: 523057 | N144: 371433 | O144: 245487 | P144: =SUM(D144:O144) -> 4224159 | Q144: 140
A145: Total Sales | D145: =+D143+D144 -> 3362373 | E145: 2785301 | F145: 2645440 | G145: 2943724 | H145: 7290270 | I145: 12480667 | J145: 19475362 | K145: 20447339 | L145: 16621561 | M145: 13090738 | N145: 8760905 | O145: 5456607 | P145: 115360287 | Q145: 141
Q146: 142
A147: Distribution Use (Offices) | D147: =+D83 -> 0 | E147: =+E83 -> 0 | F147: 0 | G147: 0 | H147: 0 | I147: 0 | J147: 0 | K147: 0 | L147: 0 | M147: 0 | N147: 0 | O147: 0 | P147: 0 | Q147: 143
A148: Distribution Lost and Unaccounted for | D148: =+D150-D145-D147 -> 15538 | E148: =+E150-E145-E147 -> 12872 | F148: 12225 | G148: 13604 | H148: 33690 | I148: 57676 | J148: 90001 | K148: 94492 | L148: 76813 | M148: 60496 | N148: 40486 | O148: =+O150-O145-O147 -> 25216 | P148: =SUM(D148:O148) -> 533109 | Q148: 144
Q149: 145
A150: Total City Gate | D150: =ROUND((D145+D147)/(1-'Other Inputs'!$E$313),0) -> 3377911 | E150: =ROUND((E145+E147)/(1-'Other Inputs'!$E$313),0) -> 2798173 | F150: =ROUND((F145+F147)/(1-'Other Inputs'!$E$313),0) -> 2657665 | G150: =ROUND((G145+G147)/(1-'Other Inputs'!$E$313),0) -> 2957328 | H150: =ROUND((H145+H147)/(1-'Other Inputs'!$E$313),0) -> 7323960 | I150: =ROUND((I145+I147)/(1-'Other Inputs'!$E$313),0) -> 12538343 | J150: =ROUND((J145+J147)/(1-'Other Inputs'!$E$313),0) -> 19565363 | K150: =ROUND((K145+K147)/(1-'Other Inputs'!$E$313),0) -> 20541831 | L150: =ROUND((L145+L147)/(1-'Other Inputs'!$E$313),0) -> 16698374 | M150: =ROUND((M145+M147)/(1-'Other Inputs'!$E$313),0) -> 13151234 | N150: =ROUND((N145+N147)/(1-'Other Inputs'!$E$313),0) -> 8801391 | O150: =ROUND((O145+O147)/(1-'Other Inputs'!$E$313),0) -> 5481823 | P150: =SUM(D150:O150) -> 115893396 | Q150: 146
Q151: 147
A152: Peaking Injection | D152: =+D127 -> 350489.9902 | E152: 362173.0042 | F152: 362173.0042 | G152: 391872.0036 | H152: 770801.1627 | I152: 291056.4632 | J152: 53324.81766 | K152: 147645.5307 | L152: 0 | M152: 0 | N152: 350489.9902 | O152: 362173.0042 | P152: =SUM(D152:O152) -> 3442198.971 | Q152: 148
A153: Clay Basin Injection | D153: =+D128 -> 2402097.351 | E153: 2634037.964 | F153: 2754100.586 | G153: 2656265.625 | H153: 325101.7361 | I153: 0 | J153: 0 | K153: 0 | L153: 0 | M153: 17165.94696 | N153: 0 | O153: 2754100.586 | P153: =SUM(D153:O153) -> 13542869.79 | Q153: 149
A154: Storage Lost & Unaccounted For | D154: =-'Monthly Inputs'!G51 -> 12974.50477 | E154: =-'Monthly Inputs'!H51 -> 1113.745668 | F154: =-'Monthly Inputs'!I51 -> 333.1040016 | G154: =-'Monthly Inputs'!J51 -> 0 | H154: =-'Monthly Inputs'!K51 -> 0 | I154: =-'Monthly Inputs'!L51 -> 7320.284271 | J154: =-'Monthly Inputs'!M51 -> 16166.69496 | K154: =-'Monthly Inputs'!N51 -> 85581.32304 | L154: =-'Monthly Inputs'!O51 -> 93290.85919 | M154: =-'Monthly Inputs'!P51 -> 97130.46184 | N154: =-'Monthly Inputs'!Q51 -> 94491.63702 | O154: =-'Monthly Inputs'!R51 -> 97130.46184 | P154: =SUM(D154:O154) -> 505533.0766 | Q154: 150
A155: Total Demand | D155: =SUM(D150:D154) -> 6143472.846 | E155: =SUM(E150:E154) -> 5795497.714 | F155: 5774271.694 | G155: 6005465.629 | H155: =SUM(H150:H154) -> 8419862.899 | I155: 12836719.75 | J155: 19634854.51 | K155: 20775057.85 | L155: 16791664.86 | M155: 13265530.41 | N155: 9246372.627 | O155: =SUM(O150:O154) -> 8695227.052 | P155: =SUM(D155:O155) -> 133383997.8 | Q155: 151
Q156: 152
D157: Forecast | E157: Forecast | F157: Forecast | G157: Forecast | H157: Forecast | I157: Forecast | J157: Forecast | K157: Forecast | L157: Forecast | M157: Forecast | N157: Forecast | O157: Forecast | P157: 12-Month | Q157: 153
A158: Supply | D158: =D5 -> Jun18 | E158: Jul18 | F158: Aug18 | G158: Sep18 | H158: Oct18 | I158: Nov18 | J158: Dec18 | K158: Jan19 | L158: Feb19 | M158: Mar19 | N158: Apr19 | O158: May19 | P158: Total | Q158: 154
A159: Company Production | D159: =+D120 -> 5749718.789 | E159: =+E120 -> 5829421.543 | F159: 5915437.327 | G159: 6021300.096 | H159: 6274592.932 | I159: 5917909.396 | J159: 6194973.573 | K159: 6145050.781 | L159: 5402174.736 | M159: 5840147.306 | N159: 5586047.149 | O159: 5820032.826 | P159: =SUM(D159:O159) -> 70696806.45 | Q159: 155
A160: Co Prod Lost & Unaccounted For | D160: =ROUND(D159*(-'Other Inputs'!$E$315-'Other Inputs'!$E$316),0) -> -334018 | E160: =ROUND(E159*(-'Other Inputs'!$E$315-'Other Inputs'!$E$316),0) -> -338649 | F160: =ROUND(F159*(-'Other Inputs'!$E$315-'Other Inputs'!$E$316),0) -> -343646 | G160: =ROUND(G159*(-'Other Inputs'!$E$315-'Other Inputs'!$E$316),0) -> -349795 | H160: =ROUND(H159*(-'Other Inputs'!$E$315-'Other Inputs'!$E$316),0) -> -364510 | I160: =ROUND(I159*(-'Other Inputs'!$E$315-'Other Inputs'!$E$316),0) -> -343789 | J160: =ROUND(J159*(-'Other Inputs'!$E$315-'Other Inputs'!$E$316),0) -> -359885 | K160: =ROUND(K159*(-'Other Inputs'!$E$315-'Other Inputs'!$E$316),0) -> -356984 | L160: =ROUND(L159*(-'Other Inputs'!$E$315-'Other Inputs'!$E$316),0) -> -313829 | M160: =ROUND(M159*(-'Other Inputs'!$E$315-'Other Inputs'!$E$316),0) -> -339272 | N160: =ROUND(N159*(-'Other Inputs'!$E$315-'Other Inputs'!$E$316),0) -> -324510 | O160: =ROUND(O159*(-'Other Inputs'!$E$315-'Other Inputs'!$E$316),0) -> -338103 | P160: =SUM(D160:O160) -> -4106990 | Q160: 156
A161: Company Production @ City Gate | D161: =SUM(D159:D160) -> 5415700.789 | E161: =SUM(E159:E160) -> 5490772.543 | F161: 5571791.327 | G161: 5671505.096 | H161: 5910082.932 | I161: 5574120.396 | J161: 5835088.573 | K161: 5788066.781 | L161: 5088345.736 | M161: 5500875.306 | N161: 5261537.149 | O161: 5481929.826 | P161: =SUM(D161:O161) -> 66589816.45 | Q161: 157
Q162: 158
A163: Peaking Withdrawal | D163: =+D135 -> 0 | E163: 0 | F163: 0 | G163: 0 | H163: 342368.988 | I163: 498000 | J163: 514599.9756 | K163: 514599.9756 | L163: 121924.8962 | M163: 877250 | N163: 86969.44809 | O163: 0 | P163: =SUM(D163:O163) -> 2955713.284 | Q163: 159
A164: Clay Basin Withdrawal | D164: =+D136 -> 0 | E164: 0 | F164: 0 | G164: 0 | H164: 0 | I164: 3712118.042 | J164: 3610000 | K164: 3536000 | L164: 2100375.671 | M164: 0 | N164: 59110.69489 | O164: 0 | P164: =SUM(D164:O164) -> 13017604.41 | Q164: 160
A165: QPC Transportation Loss on Storage | D165: ='Monthly Inputs'!G67+'Monthly Inputs'!G59 -> -4396.28493 | E165: ='Monthly Inputs'!H67+'Monthly Inputs'!H59 -> -157668.9596 | F165: ='Monthly Inputs'!I67+'Monthly Inputs'!I59 -> -128552.3596 | G165: ='Monthly Inputs'!J67+'Monthly Inputs'!J59 -> -95782.67981 | H165: ='Monthly Inputs'!K67+'Monthly Inputs'!K59 -> -82704.76311 | I165: ='Monthly Inputs'!L67+'Monthly Inputs'!L59 -> -29457.53584 | J165: ='Monthly Inputs'!M67+'Monthly Inputs'!M59 -> 0 | K165: ='Monthly Inputs'!N67+'Monthly Inputs'!N59 -> 0 | L165: ='Monthly Inputs'!O67+'Monthly Inputs'!O59 -> 0 | M165: ='Monthly Inputs'!P67+'Monthly Inputs'!P59 -> 0 | N165: ='Monthly Inputs'!Q67+'Monthly Inputs'!Q59 -> 0 | O165: ='Monthly Inputs'!R67+'Monthly Inputs'!R59 -> 0 | P165: =SUM(D165:O165) -> -498562.5829 | Q165: 161
A166: Storage Lost & Unaccounted For | D166: ='Monthly Inputs'!G51 -> -12974.50477 | E166: ='Monthly Inputs'!H51 -> -1113.745668 | F166: ='Monthly Inputs'!I51 -> -333.1040016 | G166: ='Monthly Inputs'!J51 -> 0 | H166: ='Monthly Inputs'!K51 -> 0 | I166: ='Monthly Inputs'!L51 -> -7320.284271 | J166: ='Monthly Inputs'!M51 -> -16166.69496 | K166: ='Monthly Inputs'!N51 -> -85581.32304 | L166: ='Monthly Inputs'!O51 -> -93290.85919 | M166: ='Monthly Inputs'!P51 -> -97130.46184 | N166: ='Monthly Inputs'!Q51 -> -94491.63702 | O166: ='Monthly Inputs'!R51 -> -97130.46184 | P166: =SUM(D166:O166) -> -505533.0766 | Q166: 162
A167: Storage Supply @ City Gate | D167: =SUM(D163:D166) -> -17370.7897 | E167: =SUM(E163:E166) -> -158782.7053 | F167: -128885.4636 | G167: -95782.67981 | H167: 259664.2249 | I167: 4173340.222 | J167: 4108433.281 | K167: 3965018.653 | L167: 2129009.708 | M167: 780119.5382 | N167: 51588.50595 | O167: -97130.46184 | P167: 14969222.03 | Q167: 163
Q168: 164
A169: Gas Purchased @ City Gate | D169: =D155-D161-D167-D154 -> 732168.3421 | E169: =E155-E161-E167-E154 -> 462394.1302 | F169: =F155-F161-F167-F154 -> 331032.7271 | G169: 429743.2127 | H169: 2250115.742 | I169: 3081938.845 | J169: 9675165.964 | K169: 10936391.1 | L169: 9481018.555 | M169: 6887405.102 | N169: 3838755.335 | O169: 3213297.226 | P169: =SUM(D169:O169) -> 51319426.28 | Q169: 165
A170: Gas Reimbursement | D170: =+D171-D169 -> 11602.65792 | E170: =+E171-E169 -> 7327.86982 | F170: 5246.272898 | G170: 6809.787294 | H170: 35658.25779 | I170: 48840.15474 | J170: 153324.0355 | K170: 173310.9029 | L170: 150247.4446 | M170: 109145.8976 | N170: 60833.66485 | O170: 50921.77395 | P170: =SUM(D170:O170) -> 813268.7199 | Q170: 166
A171: Gas Purchased - Dth ( /.98) | D171: =ROUND(D169/(1-'Other Inputs'!$E$316),0) -> 743771 | E171: =ROUND(E169/(1-'Other Inputs'!$E$316),0) -> 469722 | F171: =ROUND(F169/(1-'Other Inputs'!$E$316),0) -> 336279 | G171: =ROUND(G169/(1-'Other Inputs'!$E$316),0) -> 436553 | H171: =ROUND(H169/(1-'Other Inputs'!$E$316),0) -> 2285774 | I171: =ROUND(I169/(1-'Other Inputs'!$E$316),0) -> 3130779 | J171: =ROUND(J169/(1-'Other Inputs'!$E$316),0) -> 9828490 | K171: =ROUND(K169/(1-'Other Inputs'!$E$316),0) -> 11109702 | L171: =ROUND(L169/(1-'Other Inputs'!$E$316),0) -> 9631266 | M171: =ROUND(M169/(1-'Other Inputs'!$E$316),0) -> 6996551 | N171: =ROUND(N169/(1-'Other Inputs'!$E$316),0) -> 3899589 | O171: =ROUND(O169/(1-'Other Inputs'!$E$316),0) -> 3264219 | P171: =SUM(D171:O171) -> 52132695 | Q171: 167
Q172: 168
A173: Transported Volumes - total | D173: =+D161+D169+D137+D165 -> 6143472.846 | E173: =+E161+E169+E137+E165 -> 5795497.714 | F173: =+F161+F169+F137+F165 -> 5774271.694 | G173: 6005465.629 | H173: =+H161+H169+H137+H165 -> 8419862.899 | I173: 12836719.75 | J173: 19634854.51 | K173: 20775057.85 | L173: 16791664.86 | M173: 13265530.41 | N173: 9246372.627 | O173: =+O161+O169+O137+O165 -> 8695227.052 | P173: =+P161+P169+P137+P165 -> 133383997.8 | Q173: 169
A174: Kern transported volumes | D174: =HLOOKUP(MONTH(D5),kernrivertrans,6,FALSE) -> 68164.68498 | E174: =HLOOKUP(MONTH(E5),kernrivertrans,6,FALSE) -> 65965.82418 | F174: 68164.68498 | G174: 68164.68498 | H174: =HLOOKUP(MONTH(H5),kernrivertrans,6,FALSE) -> 439673.1337 | I174: 1644952.69 | J174: =HLOOKUP(MONTH(J5),kernrivertrans,6,FALSE) -> 2279568.225 | K174: 2355553.832 | L174: 2279568.225 | M174: 1644952.69 | N174: 486780.9694 | O174: 471078.3575 | Q174: 170
A175: Storage Fuel % | C175: =(P154-P166)/(P163+P164+P152+P153) -> 0.03067705255 | Q175: 171
Q176: 172
A177: Company Production as % of Total Supply / Demand | D177: =D159/(D171+D159) -> 0.8854589713 | E177: 0.925430815 | F177: =F159/(F171+F159) -> 0.9462101314 | G177: 0.9323996701 | H177: =H159/(H171+H159) -> 0.7329817731 | I177: 0.6540074248 | J177: 0.386618882 | K177: 0.3561367038 | L177: 0.3593438675 | M177: 0.4549571211 | N177: 0.5888953636 | O177: =O159/(O171+O159) -> 0.640672775 | P177: =P159/(P171+P159) -> 0.5755686184 | Q177: 173
Q178: 174
A179: Peak Hour Service | D179: =IF(OR(D6=11,D6=12,D6=1,D6=2),'Other Inputs'!$D$20*16*'Other Inputs'!$F$21,0)+IF(OR(D6=11,D6=12,D6=1,D6=2),'Other Inputs'!$D$23*16*'Other Inputs'!$F$24,0) -> 0 | E179: =IF(OR(E6=11,E6=12,E6=1,E6=2),'Other Inputs'!$D$20*16*'Other Inputs'!$F$21,0)+IF(OR(E6=11,E6=12,E6=1,E6=2),'Other Inputs'!$D$23*16*'Other Inputs'!$F$24,0) -> 0 | F179: =IF(OR(F6=11,F6=12,F6=1,F6=2),'Other Inputs'!$D$20*16*'Other Inputs'!$F$21,0)+IF(OR(F6=11,F6=12,F6=1,F6=2),'Other Inputs'!$D$23*16*'Other Inputs'!$F$24,0) -> 0 | G179: =IF(OR(G6=11,G6=12,G6=1,G6=2),'Other Inputs'!$D$20*16*'Other Inputs'!$F$21,0)+IF(OR(G6=11,G6=12,G6=1,G6=2),'Other Inputs'!$D$23*16*'Other Inputs'!$F$24,0) -> 0 | H179: =IF(OR(H6=11,H6=12,H6=1,H6=2),'Other Inputs'!$D$20*16*'Other Inputs'!$F$21,0)+IF(OR(H6=11,H6=12,H6=1,H6=2),'Other Inputs'!$D$23*16*'Other Inputs'!$F$24,0) -> 0 | I179: =IF(OR(I6=11,I6=12,I6=1,I6=2),'Other Inputs'!$D$20*16*'Other Inputs'!$F$21,0)+IF(OR(I6=11,I6=12,I6=1,I6=2),'Other Inputs'!$D$23*16*'Other Inputs'!$F$24,0) -> 410750.4348 | J179: =IF(OR(J6=11,J6=12,J6=1,J6=2),'Other Inputs'!$D$20*31*'Other Inputs'!$F$21,0)+IF(OR(J6=11,J6=12,J6=1,J6=2),'Other Inputs'!$D$23*31*'Other Inputs'!$F$24,0) -> 795828.9674 | K179: =IF(OR(K6=11,K6=12,K6=1,K6=2),'Other Inputs'!$D$20*31*'Other Inputs'!$F$21,0)+IF(OR(K6=11,K6=12,K6=1,K6=2),'Other Inputs'!$D$23*31*'Other Inputs'!$F$24,0) -> 795828.9674 | L179: =IF(OR(L6=11,L6=12,L6=1,L6=2),'Other Inputs'!$D$20*14*'Other Inputs'!$F$21,0)+IF(OR(L6=11,L6=12,L6=1,L6=2),'Other Inputs'!$D$23*14*'Other Inputs'!$F$24,0) -> 359406.6304 | M179: =IF(OR(M6=11,M6=12,M6=1,M6=2),'Other Inputs'!$D$20*16*'Other Inputs'!$F$21,0)+IF(OR(M6=11,M6=12,M6=1,M6=2),'Other Inputs'!$D$23*16*'Other Inputs'!$F$24,0) -> 0 | N179: =IF(OR(N6=11,N6=12,N6=1,N6=2),'Other Inputs'!$D$20*16*'Other Inputs'!$F$21,0)+IF(OR(N6=11,N6=12,N6=1,N6=2),'Other Inputs'!$D$23*16*'Other Inputs'!$F$24,0) -> 0 | O179: =IF(OR(O6=11,O6=12,O6=1,O6=2),'Other Inputs'!$D$20*16*'Other Inputs'!$F$21,0)+IF(OR(O6=11,O6=12,O6=1,O6=2),'Other Inputs'!$D$23*16*'Other Inputs'!$F$24,0) -> 0 | P179: =SUM(D179:O179) -> 2361815 | Q179: 175
Q180: 176
A181: PURCHASES BREAKDOWN | Q181: 177
A182: Spot Market Purchases | D182: ='Monthly Inputs'!G83 -> 439650.0092 | E182: ='Monthly Inputs'!H83 -> 0 | F182: ='Monthly Inputs'!I83 -> 0 | G182: ='Monthly Inputs'!J83 -> 104876.7567 | H182: ='Monthly Inputs'!K83 -> 1355773.994 | I182: ='Monthly Inputs'!L83 -> 1230778.897 | J182: ='Monthly Inputs'!M83 -> 4743490.266 | K182: ='Monthly Inputs'!N83 -> 5024702.39 | L182: ='Monthly Inputs'!O83 -> 5651265.977 | M182: ='Monthly Inputs'!P83 -> 6066550.726 | N182: ='Monthly Inputs'!Q83 -> 2999589.136 | O182: ='Monthly Inputs'!R83 -> 2926807.434 | P182: =SUM(D182:O182) -> 30543485.59 | Q182: 178
A183: Spot Market Purchases Cost | D183: ='Monthly Inputs'!G84 -> 949644.0198 | E183: ='Monthly Inputs'!H84 -> 0 | F183: ='Monthly Inputs'!I84 -> 0 | G183: ='Monthly Inputs'!J84 -> 223387.4917 | H183: ='Monthly Inputs'!K84 -> 2928471.826 | I183: ='Monthly Inputs'!L84 -> 2953869.353 | J183: ='Monthly Inputs'!M84 -> 12475379.4 | K183: ='Monthly Inputs'!N84 -> 13013979.19 | L183: ='Monthly Inputs'!O84 -> 13676063.67 | M183: ='Monthly Inputs'!P84 -> 12921753.05 | N183: ='Monthly Inputs'!Q84 -> 5669223.467 | O183: ='Monthly Inputs'!R84 -> 5385325.679 | P183: =SUM(D183:O183) -> 70197097.14 | Q183: 179
Q184: 180
A185: Contract Purchases (Dth) | D185: ='Monthly Inputs'!G92 -> 0 | E185: ='Monthly Inputs'!H92 -> 0 | F185: ='Monthly Inputs'!I92 -> 0 | G185: ='Monthly Inputs'!J92 -> 0 | H185: ='Monthly Inputs'!K92 -> 930000 | I185: ='Monthly Inputs'!L92 -> 900000 | J185: ='Monthly Inputs'!M92 -> 1085000 | K185: ='Monthly Inputs'!N92 -> 1085000 | L185: ='Monthly Inputs'!O92 -> 980000 | M185: ='Monthly Inputs'!P92 -> 930000 | N185: ='Monthly Inputs'!Q92 -> 900000 | O185: ='Monthly Inputs'!R92 -> 0 | P185: =SUM(D185:O185) -> 6810000 | Q185: 181
A186: Contract Purchases Cost Including Stabalization Costs | D186: ='Monthly Inputs'!G93+'Monthly Inputs'!G94 -> 0 | E186: ='Monthly Inputs'!H93+'Monthly Inputs'!H94 -> 0 | F186: ='Monthly Inputs'!I93+'Monthly Inputs'!I94 -> 0 | G186: ='Monthly Inputs'!J93+'Monthly Inputs'!J94 -> 0 | H186: ='Monthly Inputs'!K93+'Monthly Inputs'!K94 -> 2241515.76 | I186: ='Monthly Inputs'!L93+'Monthly Inputs'!L94 -> 2388492 | J186: ='Monthly Inputs'!M93+'Monthly Inputs'!M94 -> 3101816.796 | K186: ='Monthly Inputs'!N93+'Monthly Inputs'!N94 -> 3057680.526 | L186: ='Monthly Inputs'!O93+'Monthly Inputs'!O94 -> 2592349.629 | M186: ='Monthly Inputs'!P93+'Monthly Inputs'!P94 -> 2213191.68 | N186: ='Monthly Inputs'!Q93+'Monthly Inputs'!Q94 -> 1922515.2 | O186: ='Monthly Inputs'!R93+'Monthly Inputs'!R94 -> 0 | P186: =SUM(D186:O186) -> 17517561.59 | Q186: 182
Q187: 183
A188: Peak Purchases (Dth) | D188: ='Monthly Inputs'!G89 -> 0 | E188: ='Monthly Inputs'!H89 -> 0 | F188: ='Monthly Inputs'!I89 -> 0 | G188: ='Monthly Inputs'!J89 -> 0 | H188: ='Monthly Inputs'!K89 -> 0 | I188: ='Monthly Inputs'!L89 -> 1000000 | J188: ='Monthly Inputs'!M89 -> 4000000 | K188: ='Monthly Inputs'!N89 -> 5000000 | L188: ='Monthly Inputs'!O89 -> 3000000 | M188: ='Monthly Inputs'!P89 -> 0 | N188: ='Monthly Inputs'!Q89 -> 0 | O188: ='Monthly Inputs'!R89 -> 0 | P188: =SUM(D188:O188) -> 13000000 | Q188: 184
A189: Peak Purchases Cost | D189: ='Monthly Inputs'!G90 -> 0 | E189: ='Monthly Inputs'!H90 -> 0 | F189: ='Monthly Inputs'!I90 -> 0 | G189: ='Monthly Inputs'!J90 -> 0 | H189: ='Monthly Inputs'!K90 -> 0 | I189: ='Monthly Inputs'!L90 -> 2465101.091 | J189: ='Monthly Inputs'!M90 -> 10804314.33 | K189: ='Monthly Inputs'!N90 -> 13300195.09 | L189: ='Monthly Inputs'!O90 -> 7456862.618 | M189: ='Monthly Inputs'!P90 -> 0 | N189: ='Monthly Inputs'!Q90 -> 0 | O189: ='Monthly Inputs'!R90 -> 0 | P189: =SUM(D189:O189) -> 34026473.13 | Q189: 185
Q190: 186
A191: Future Purchases | D191: =+D171-D182-D185-D188 -> 304120.9908 | E191: =+E171-E182-E185-E188 -> 469722 | F191: =+F171-F182-F185-F188 -> 336279 | G191: =+G171-G182-G185-G188 -> 331676.2433 | H191: =+H171-H182-H185-H188 -> 0.00628661993 | I191: =+I171-I182-I185-I188 -> 0.1029052697 | J191: =+J171-J182-J185-J188 -> -0.2658272004 | K191: =+K171-K182-K185-K188 -> -0.3901367001 | L191: 0.02270507999 | M191: =+M171-M182-M185-M188 -> 0.2739257803 | N191: -0.1361083994 | O191: 337411.5659 | P191: =SUM(D191:O191) -> 1779209.414 | Q191: 187
A192: Future Purchases Cost | D192: =ROUND(D191*D199,0) -> 662984 | E192: =ROUND(E191*E199,0) -> 1047480 | F192: =ROUND(F191*F199,0) -> 756628 | G192: =ROUND(G191*G199,0) -> 713104 | H192: =ROUND(H191*H199,0) -> 0 | I192: 0 | J192: -1 | K192: -1 | L192: 0 | M192: 1 | N192: 0 | O192: 627586 | P192: =SUM(D192:O192) -> 3807781 | Q192: 188
Q193: 189
A194: Total Purchases Cost | D194: =+D183+D186+D189+D192 -> 1612628.02 | E194: =+E183+E186+E189+E192 -> 1047480 | F194: =+F183+F186+F189+F192 -> 756628 | G194: =+G183+G186+G189+G192 -> 936491.4917 | H194: =+H183+H186+H189+H192 -> 5169987.586 | I194: 7807462.444 | J194: =+J183+J186+J189+J192 -> 26381509.52 | K194: 29371853.81 | L194: 23725275.91 | M194: 15134945.73 | N194: 7591738.667 | O194: =+O183+O186+O189+O192 -> 6012911.679 | P194: 125548912.9 | Q194: 190
Q195: 191
A196: Gas Cost | Q196: 192
A197: Gas Cost Purchases | D197: =IF(D171=0,0,ROUND(D194/D171,5)) -> 2.16818 | E197: =IF(E171=0,0,ROUND(E194/E171,5)) -> 2.23 | F197: 2.25 | G197: 2.1452 | H197: 2.26181 | I197: 2.49378 | J197: 2.68419 | K197: 2.6438 | L197: 2.46336 | M197: 2.1632 | N197: 1.9468 | O197: 1.84207 | Q197: 193
A198: Gas Cost Injection Rate | D198: ='Ut Storage'!K27 -> 3.885001711 | E198: =+D198 -> 3.885001711 | F198: 3.885001711 | G198: 3.885001711 | H198: 3.885001711 | I198: 3.885001711 | J198: 3.885001711 | K198: 3.885001711 | L198: 3.885001711 | M198: 3.885001711 | N198: 3.885001711 | O198: 3.885001711 | Q198: 194
A199: =CONCATENATE("'Future Contract Price (spot + $",'Other Inputs'!E199,")") -> 'Future Contract Price (spot + $0.02) | D199: =+D231+'Other Inputs'!$E$199 -> 2.18 | E199: =+E231+'Other Inputs'!$E$199 -> 2.23 | F199: =+F231+'Other Inputs'!$E$199 -> 2.25 | G199: =+G231+'Other Inputs'!$E$199 -> 2.15 | H199: =+H231+'Other Inputs'!$E$199 -> 2.18 | I199: =+I231+'Other Inputs'!$E$199 -> 2.42 | J199: =+J231+'Other Inputs'!$E$199 -> 2.65 | K199: =+K231+'Other Inputs'!$E$199 -> 2.61 | L199: =+L231+'Other Inputs'!$E$199 -> 2.44 | M199: =+M231+'Other Inputs'!$E$199 -> 2.15 | N199: =+N231+'Other Inputs'!$E$199 -> 1.91 | O199: =+O231+'Other Inputs'!$E$199 -> 1.86 | Q199: 195
Q200: 196
A201: System Production | D201: =+D161 -> 5415700.789 | E201: 5490772.543 | F201: 5571791.327 | G201: 5671505.096 | H201: 5910082.932 | I201: 5574120.396 | J201: 5835088.573 | K201: 5788066.781 | L201: 5088345.736 | M201: 5500875.306 | N201: 5261537.149 | O201: 5481929.826 | P201: =SUM(D201:O201) -> 66589816.45 | Q201: 197
... 38 more rows

Sheet CET & DSM (hidden)
A1: Rate Caclulation for the CET and DSM Amortizations
P3: Solver Cells
A4: CET Amortization % Calculation | P4: % Change | Q4: Difference
B5: Balance | C5: Date | D5: GS Dth | H5: Amortization per Dth | P5: =J20/D20 -> -0.01009266391 | Q5: =J20-B11 -> 0 | S5: -> Difference should be at 0 (Use Goal Seek to Get Difference to Equal 0.
A6: DSM Balance | B6: ='Other Inputs'!$E$280 -> 42000000 | C6: ='Other Inputs'!$F$280 -> 2011-03-31 | D6: =B20 -> 95293167 | H6: =ROUND(B6/D6,5) -> 0.44075
S8: Typical Bill Rates
A9: CET Amortization Calculation
B10: Balance | C10: Date | D10: DNG Rev | H10: New DNG | L10: % Change | S10: Current | T10: Proposed
A11: CET Balance | B11: ='Other Inputs'!$E$279 -> -1886289.514 | C11: ='Other Inputs'!$F$279 -> 2011-07-31 | D11: =D20 -> 186897089.9 | H11: =D11+B11 -> 185010800.4 | L11: =P5 -> -0.01009266391 | S11: Effective | V11: SNG & | W11: CET, DSM
S12: ='Other Inputs'!$J$116 -> 2018-06-01 | T12: CET Only | U12: DSM Only | V12: Commodity | W12: Commodity
S13: BSF | T13: BSF | U13: BSF | V13: BSF | W13: BSF
B14: Revenue Calculation | H14: CET Amortization | L14: Total DNG | P14: REVRUN Calculation | S14: ='Other Inputs'!$G$120 -> 6.75 | T14: ='Other Inputs'!$G$120 -> 6.75 | U14: ='Other Inputs'!$G$120 -> 6.75 | V14: ='Other Inputs'!$G$120 -> 6.75 | W14: ='Ut 1.8'!$C$12 -> 6.75
A15: Utah GS | B15: Dth | C15: Base DNG | D15: DNG Revenue | H15: CET Rate | J15: Revenue | L15: DNG Rate | N15: Revenue | P15: CET Rate | Q15: CET Amort
A16: Block 1 Summer | B16: ='Other Inputs'!E284 -> 23076373 | C16: ='Other Inputs'!E269 -> 1.7267 | D16: =B16*C16 -> 39845973.26 | H16: =ROUND((J16/B16),5) -> -0.01743 | J16: =D16*$P$5 -> -402152.0163 | L16: =C16+H16 -> 1.70927 | N16: =L16*B16 -> 39443752.08 | P16: =ROUND(H16,5) -> -0.01743 | Q16: =B16*P16 -> -402221.1814 | S16: ='Other Inputs'!$G$116 -> 6.82123 | T16: =N24 -> 7.11823 | U16: =N31 -> 7.07547 | V16: =N38 -> 6.22841 | W16: =N45 -> 6.83829
A17: Block 2 Summer | B17: ='Other Inputs'!E285 -> 4705902 | C17: ='Other Inputs'!E270 -> 0.7267 | D17: =B17*C17 -> 3419778.983 | H17: =ROUND((J17/B17),5) -> -0.00733 | J17: =D17*$P$5 -> -34514.67993 | L17: =C17+H17 -> 0.71937 | N17: =L17*B17 -> 3385284.722 | P17: =ROUND(H17,5) -> -0.00733 | Q17: =B17*P17 -> -34494.26166
A18: Block 1 Winter | B18: ='Other Inputs'!E282 -> 52526064 | C18: ='Other Inputs'!E271 -> 2.34949 | D18: =B18*C18 -> 123409462.1 | H18: =ROUND((J18/B18),5) -> -0.02371 | J18: =D18*$P$5 -> -1245530.224 | L18: =C18+H18 -> 2.32578 | N18: =L18*B18 -> 122164069.1 | P18: =ROUND(H18,5) -> -0.02371 | Q18: =B18*P18 -> -1245392.977 | S18: ='Other Inputs'!$G$118 -> 8.1529 | T18: =N26 -> 8.38376 | U18: =N33 -> 8.33606 | V18: =N40 -> 7.53257 | W18: =N47 -> 8.78882
A19: Block 2 Winter | B19: ='Other Inputs'!E283 -> 14984828 | C19: ='Other Inputs'!E272 -> 1.34949 | D19: =B19*C19 -> 20221875.54 | H19: =ROUND((J19/B19),5) -> -0.01362 | J19: =D19*$P$5 -> -204092.5934 | L19: =C19+H19 -> 1.33587 | N19: =L19*B19 -> 20017782.18 | P19: =ROUND(H19,5) -> -0.01362 | Q19: =B19*P19 -> -204093.3574
A20: GS-1 Block Rev | B20: =SUM(B16:B19) -> 95293167 | D20: =SUM(D16:D19) -> 186897089.9 | J20: =B11 -> -1886289.514 | N20: =SUM(N16:N19) -> 185010888.1 | Q20: =SUM(Q16:Q19) -> -1886201.778
A22: Total Rate Calculation With CET Amortization Only | N22: ='Control Panel'!E8 -> 2018-06-01 | P22: ='Other Inputs'!$J$116 -> 2018-06-01
A23: Utah GS | B23: Base DNG | C23: CET | D23: DSM | E23: Energy Assist | F23: Infrastructure | H23: Total DNG | I23: Base SNG | J23: SNG Amort | L23: Base Gas Cost | M23: 191 Amort | N23: Total Rate | P23: Total Rate
A24: Block 1 Summer | B24: =$C$16 -> 1.7267 | C24: =$H$16 -> -0.01743 | D24: 0.44104 | E24: 0.01519 | F24: 0.02908 | H24: =SUM(B24:F24) -> 2.19458 | I24: 0.55715 | J24: 0.01244 | L24: 4.21339 | M24: 0.14067 | N24: =SUM(H24:M24) -> 7.11823 | P24: ='Other Inputs'!$G$116 -> 6.82123 | Q24: =N24-P24 -> 0.297
A25: Block 2 Summer | B25: =$C$17 -> 0.7267 | C25: =$H$17 -> -0.00733 | D25: =$D$24 -> 0.44104 | E25: =$E$24 -> 0.01519 | F25: 0.0108 | H25: =SUM(B25:F25) -> 1.1864 | I25: =I24 -> 0.55715 | J25: =J24 -> 0.01244 | L25: =L24 -> 4.21339 | M25: =$M$24 -> 0.14067 | N25: =SUM(H25:M25) -> 6.11005 | P25: ='Other Inputs'!$G$117 -> 5.72474 | Q25: =N25-P25 -> 0.38531
A26: Block 1 Winter | B26: =$C$18 -> 2.34949 | C26: =$H$18 -> -0.02371 | D26: =$D$24 -> 0.44104 | E26: =$E$24 -> 0.01519 | F26: 0.03453 | H26: =SUM(B26:F26) -> 2.81654 | I26: 1.18665 | J26: 0.02651 | L26: =L24 -> 4.21339 | M26: =$M$24 -> 0.14067 | N26: =SUM(H26:M26) -> 8.38376 | P26: ='Other Inputs'!$G$118 -> 8.1529 | Q26: =N26-P26 -> 0.23086
A27: Block 2 Winter | B27: =$C$19 -> 1.34949 | C27: =$H$19 -> -0.01362 | D27: =$D$24 -> 0.44104 | E27: =$E$24 -> 0.01519 | F27: 0.01434 | H27: =SUM(B27:F27) -> 1.80644 | I27: =I26 -> 1.18665 | J27: =J26 -> 0.02651 | L27: =L24 -> 4.21339 | M27: =$M$24 -> 0.14067 | N27: =SUM(H27:M27) -> 7.37366 | P27: ='Other Inputs'!$G$119 -> 7.0564 | Q27: =N27-P27 -> 0.31726
A29: Total Rate Calculation With DSM Amortization Only | N29: =N22 -> 2018-06-01 | P29: ='Other Inputs'!$J$116 -> 2018-06-01
A30: Utah GS | B30: Base DNG | C30: CET | D30: DSM | E30: Energy Assist | F30: Infrastructure | H30: Total DNG | I30: Base SNG | J30: SNG Amort | L30: Commodity | M30: 191 Amort | N30: Total Rate | P30: Total Rate
A31: Block 1 Summer | B31: =$C$16 -> 1.7267 | C31: -0.0599 | D31: =$H$6 -> 0.44075 | E31: =$E$24 -> 0.01519 | F31: =F24 -> 0.02908 | H31: =SUM(B31:F31) -> 2.15182 | I31: =$I$24 -> 0.55715 | J31: =J24 -> 0.01244 | L31: =$L$24 -> 4.21339 | M31: =$M$24 -> 0.14067 | N31: =SUM(H31:M31) -> 7.07547 | P31: ='Other Inputs'!$G$116 -> 6.82123 | Q31: =N31-P31 -> 0.25424
A32: Block 2 Summer | B32: =$C$17 -> 0.7267 | C32: -0.02224 | D32: =$H$6 -> 0.44075 | E32: =$E$24 -> 0.01519 | F32: =F25 -> 0.0108 | H32: =SUM(B32:F32) -> 1.1712 | I32: =$I$24 -> 0.55715 | J32: =J25 -> 0.01244 | L32: =$L$24 -> 4.21339 | M32: =$M$24 -> 0.14067 | N32: =SUM(H32:M32) -> 6.09485 | P32: ='Other Inputs'!$G$117 -> 5.72474 | Q32: =N32-P32 -> 0.37011
A33: Block 1 Winter | B33: =$C$18 -> 2.34949 | C33: -0.07112 | D33: =$H$6 -> 0.44075 | E33: =$E$24 -> 0.01519 | F33: =F26 -> 0.03453 | H33: =SUM(B33:F33) -> 2.76884 | I33: =$I$26 -> 1.18665 | J33: =J26 -> 0.02651 | L33: =$L$24 -> 4.21339 | M33: =$M$24 -> 0.14067 | N33: =SUM(H33:M33) -> 8.33606 | P33: ='Other Inputs'!$G$118 -> 8.1529 | Q33: =N33-P33 -> 0.18316
A34: Block 2 Winter | B34: =$C$19 -> 1.34949 | C34: -0.02953 | D34: =$H$6 -> 0.44075 | E34: =$E$24 -> 0.01519 | F34: =F27 -> 0.01434 | H34: =SUM(B34:F34) -> 1.79024 | I34: =$I$26 -> 1.18665 | J34: =J27 -> 0.02651 | L34: =$L$24 -> 4.21339 | M34: =$M$24 -> 0.14067 | N34: =SUM(H34:M34) -> 7.35746 | P34: ='Other Inputs'!$G$119 -> 7.0564 | Q34: =N34-P34 -> 0.30106
A36: Total Rate Calculation With SNG and Commodity Changes Only | N36: =N22 -> 2018-06-01 | P36: ='Other Inputs'!$J$116 -> 2018-06-01
A37: Utah GS | B37: Base DNG | C37: CET | D37: DSM | E37: Energy Assist | F37: Infrastructure | H37: Total DNG | I37: Base SNG | J37: SNG | L37: Commodity | M37: 191 Amort | N37: Total Rate | P37: Total Rate
A38: Block 1 Summer | B38: =$C$16 -> 1.7267 | C38: =C31 -> -0.0599 | D38: =D24 -> 0.44104 | E38: =$E$24 -> 0.01519 | F38: =F24 -> 0.02908 | H38: =SUM(B38:F38) -> 2.15211 | I38: ='Ut 1.6 p3'!G17 -> 0.5677 | J38: ='Ut 1.6 p3'!$H$17 -> 0.04046 | L38: ='Ut 1.6 p1'!$F$31 -> 3.33262 | M38: ='Ut 1.6 p1'!$F$32 -> 0.13552 | N38: =SUM(H38:M38) -> 6.22841 | P38: ='Other Inputs'!$G$116 -> 6.82123 | Q38: =N38-P38 -> -0.59282
A39: Block 2 Summer | B39: =$C$17 -> 0.7267 | C39: =C32 -> -0.02224 | D39: =D25 -> 0.44104 | E39: =$E$24 -> 0.01519 | F39: =F25 -> 0.0108 | H39: =SUM(B39:F39) -> 1.17149 | I39: ='Ut 1.6 p3'!G17 -> 0.5677 | J39: ='Ut 1.6 p3'!$H$17 -> 0.04046 | L39: ='Ut 1.6 p1'!$F$31 -> 3.33262 | M39: ='Ut 1.6 p1'!$F$32 -> 0.13552 | N39: =SUM(H39:M39) -> 5.24779 | P39: ='Other Inputs'!$G$117 -> 5.72474 | Q39: =N39-P39 -> -0.47695
A40: Block 1 Winter | B40: =$C$18 -> 2.34949 | C40: =C33 -> -0.07112 | D40: =D26 -> 0.44104 | E40: =$E$24 -> 0.01519 | F40: =F26 -> 0.03453 | H40: =SUM(B40:F40) -> 2.76913 | I40: ='Ut 1.6 p3'!G16 -> 1.20913 | J40: ='Ut 1.6 p3'!$H$16 -> 0.08617 | L40: ='Ut 1.6 p1'!$F$31 -> 3.33262 | M40: ='Ut 1.6 p1'!$F$32 -> 0.13552 | N40: =SUM(H40:M40) -> 7.53257 | P40: ='Other Inputs'!$G$118 -> 8.1529 | Q40: =N40-P40 -> -0.62033
A41: Block 2 Winter | B41: =$C$19 -> 1.34949 | C41: =C34 -> -0.02953 | D41: =D27 -> 0.44104 | E41: =$E$24 -> 0.01519 | F41: =F27 -> 0.01434 | H41: =SUM(B41:F41) -> 1.79053 | I41: ='Ut 1.6 p3'!G16 -> 1.20913 | J41: ='Ut 1.6 p3'!$H$16 -> 0.08617 | L41: ='Ut 1.6 p1'!$F$31 -> 3.33262 | M41: ='Ut 1.6 p1'!$F$32 -> 0.13552 | N41: =SUM(H41:M41) -> 6.55397 | P41: ='Other Inputs'!$G$119 -> 7.0564 | Q41: =N41-P41 -> -0.50243
A43: Total Rate Calculation | N43: =N29 -> 2018-06-01 | P43: ='Other Inputs'!$J$116 -> 2018-06-01
A44: Utah GS | B44: Base DNG | C44: CET | D44: DSM | E44: Energy Assist | F44: Infrastructure | H44: Total DNG | I44: Base SNG | J44: SNG | L44: Commodity | N44: Total Rate | P44: Total Rate
A45: Block 1 Summer | B45: =$C$16 -> 1.7267 | C45: =$H$16 -> -0.01743 | D45: =$H$6 -> 0.44075 | E45: =$E$24 -> 0.01519 | F45: =F38 -> 0.02908 | H45: =SUM(B45:F45) -> 2.19429 | I45: =I38 -> 0.5677 | J45: ='Ut 1.6 p3'!$I$17 -> 0.60816 | L45: ='Ut 1.6 p1'!$F$33 -> 3.46814 | N45: =SUM(H45:L45) -> 6.83829 | P45: ='Other Inputs'!$G$116 -> 6.82123 | Q45: =N45-P45 -> 0.01706
A46: Block 2 Summer | B46: =$C$17 -> 0.7267 | C46: =$H$17 -> -0.00733 | D46: =$H$6 -> 0.44075 | E46: =$E$24 -> 0.01519 | F46: =F39 -> 0.0108 | H46: =SUM(B46:F46) -> 1.18611 | I46: =I39 -> 0.5677 | J46: ='Ut 1.6 p3'!$I$17 -> 0.60816 | L46: =$L$45 -> 3.46814 | N46: =SUM(H46:L46) -> 5.83011 | P46: ='Other Inputs'!$G$117 -> 5.72474 | Q46: =N46-P46 -> 0.10537
A47: Block 1 Winter | B47: =$C$18 -> 2.34949 | C47: =$H$18 -> -0.02371 | D47: =$H$6 -> 0.44075 | E47: =$E$24 -> 0.01519 | F47: =F40 -> 0.03453 | H47: =SUM(B47:F47) -> 2.81625 | I47: =I40 -> 1.20913 | J47: ='Ut 1.6 p3'!$I$16 -> 1.2953 | L47: =$L$45 -> 3.46814 | N47: =SUM(H47:L47) -> 8.78882 | P47: ='Other Inputs'!$G$118 -> 8.1529 | Q47: =N47-P47 -> 0.63592
A48: Block 2 Winter | B48: =$C$19 -> 1.34949 | C48: =$H$19 -> -0.01362 | D48: =$H$6 -> 0.44075 | E48: =$E$24 -> 0.01519 | F48: =F41 -> 0.01434 | H48: =SUM(B48:F48) -> 1.80615 | I48: =I41 -> 1.20913 | J48: ='Ut 1.6 p3'!$I$16 -> 1.2953 | L48: =$L$45 -> 3.46814 | N48: =SUM(H48:L48) -> 7.77872 | P48: ='Other Inputs'!$G$119 -> 7.0564 | Q48: =N48-P48 -> 0.72232
A50: Typical Customer Difference - CET Amortization Only
B51: Typical
A52: GS | B52: Dth | C52: =S12 -> 2018-06-01 | D52: =N43 -> 2018-06-01 | H52: Change | J52: % Change
A53: January | B53: 14.9 | C53: =ROUND($S$14+(B53*$S$18),2) -> 128.23 | D53: =ROUND($T$14+(B53*$T$18),2) -> 131.67 | H53: =D53-C53 -> 3.44
A54: February | B54: 12.5 | C54: =ROUND($S$14+(B54*$S$18),2) -> 108.66 | D54: =ROUND($T$14+(B54*$T$18),2) -> 111.55 | H54: 2.89
A55: March | B55: 10.1 | C55: =ROUND($S$14+(B55*$S$18),2) -> 89.09 | D55: =ROUND($T$14+(B55*$T$18),2) -> 91.43 | H55: 2.34
A56: April | B56: 8.3 | C56: =ROUND($S$14+(B56*$S$16),2) -> 63.37 | D56: =ROUND($T$14+(B56*$T$16),2) -> 65.83 | H56: 2.46
A57: May | B57: 4.4 | C57: 36.76 | D57: =ROUND($T$14+(B57*$T$16),2) -> 38.07 | H57: 1.31
A58: June | B58: 3.1 | C58: 27.9 | D58: 28.82 | H58: 0.92
A59: July | B59: 2 | C59: 20.39 | D59: 20.99 | H59: 0.6
A60: August | B60: 1.8 | C60: 19.03 | D60: 19.56 | H60: 0.53
A61: September | B61: 2 | C61: 20.39 | D61: 20.99 | H61: 0.6
A62: October | B62: 3.1 | C62: 27.9 | D62: 28.82 | H62: 0.92
A63: November | B63: 6.3 | C63: =ROUND($S$14+(B63*$S$18),2) -> 58.11 | D63: =ROUND($T$14+(B63*$T$18),2) -> 59.57 | H63: 1.46
A64: December | B64: 11.5 | C64: =ROUND($S$14+(B64*$S$18),2) -> 100.51 | D64: =ROUND($T$14+(B64*$T$18),2) -> 103.16 | H64: 2.65
B65: =SUM(B53:B64) -> 80 | C65: =SUM(C53:C64) -> 700.34 | D65: =SUM(D53:D64) -> 720.46 | H65: =SUM(H53:H64) -> 20.12 | J65: =H65/C65 -> 0.0287289031
A68: Typical Customer Difference - DSM Amortization Only
B69: Typical
A70: GS | B70: Dth | C70: =C52 -> 2018-06-01 | D70: =D52 -> 2018-06-01 | H70: Change | J70: % Change
A71: January | B71: 14.9 | C71: =ROUND($S$14+(B71*$S$18),2) -> 128.23 | D71: =ROUND($U$14+(B71*$U$18),2) -> 130.96 | H71: =D71-C71 -> 2.73
A72: February | B72: 12.5 | C72: =ROUND($S$14+(B72*$S$18),2) -> 108.66 | D72: =ROUND($U$14+(B72*$U$18),2) -> 110.95 | H72: 2.29
A73: March | B73: 10.1 | C73: =ROUND($S$14+(B73*$S$18),2) -> 89.09 | D73: =ROUND($U$14+(B73*$U$18),2) -> 90.94 | H73: 1.85
A74: April | B74: 8.3 | C74: =ROUND($S$14+(B74*$S$16),2) -> 63.37 | D74: =ROUND($U$14+(B74*$U$16),2) -> 65.48 | H74: 2.11
A75: May | B75: 4.4 | C75: 36.76 | D75: 37.88 | H75: 1.12
A76: June | B76: 3.1 | C76: 27.9 | D76: 28.68 | H76: 0.78
A77: July | B77: 2 | C77: 20.39 | D77: 20.9 | H77: 0.51
A78: August | B78: 1.8 | C78: 19.03 | D78: 19.49 | H78: 0.46
A79: September | B79: 2 | C79: 20.39 | D79: 20.9 | H79: 0.51
A80: October | B80: 3.1 | C80: 27.9 | D80: 28.68 | H80: 0.78
A81: November | B81: 6.3 | C81: =ROUND($S$14+(B81*$S$18),2) -> 58.11 | D81: =ROUND($U$14+(B81*$U$18),2) -> 59.27 | H81: 1.16
A82: December | B82: 11.5 | C82: =ROUND($S$14+(B82*$S$18),2) -> 100.51 | D82: =ROUND($U$14+(B82*$U$18),2) -> 102.61 | H82: 2.1
B83: =SUM(B71:B82) -> 80 | C83: =SUM(C71:C82) -> 700.34 | D83: =SUM(D71:D82) -> 716.74 | H83: =SUM(H71:H82) -> 16.4 | J83: =H83/C83 -> 0.02341719736
A86: Typical Customer Difference - SNG and Commodity Changes Only
B87: Typical
A88: GS-1 | B88: Dth | C88: =C70 -> 2018-06-01 | D88: =D70 -> 2018-06-01 | H88: Change | J88: % Change
A89: January | B89: 14.9 | C89: =ROUND($S$14+(B89*$S$18),2) -> 128.23 | D89: =ROUND($V$14+(B89*$V$18),2) -> 118.99 | H89: =D89-C89 -> -9.24
A90: February | B90: 12.5 | C90: =ROUND($S$14+(B90*$S$18),2) -> 108.66 | D90: =ROUND($V$14+(B90*$V$18),2) -> 100.91 | H90: -7.75
A91: March | B91: 10.1 | C91: =ROUND($S$14+(B91*$S$18),2) -> 89.09 | D91: =ROUND($V$14+(B91*$V$18),2) -> 82.83 | H91: -6.26
A92: April | B92: 8.3 | C92: =ROUND($S$14+(B92*$S$16),2) -> 63.37 | D92: =ROUND($V$14+(B92*$V$16),2) -> 58.45 | H92: -4.92
A93: May | B93: 4.4 | C93: 36.76 | D93: 34.16 | H93: -2.6
A94: June | B94: 3.1 | C94: 27.9 | D94: 26.06 | H94: -1.84
A95: July | B95: 2 | C95: 20.39 | D95: 19.21 | H95: -1.18
A96: August | B96: 1.8 | C96: 19.03 | D96: 17.96 | H96: -1.07
A97: September | B97: 2 | C97: 20.39 | D97: 19.21 | H97: -1.18
A98: October | B98: 3.1 | C98: 27.9 | D98: 26.06 | H98: -1.84
A99: November | B99: 6.3 | C99: =ROUND($S$14+(B99*$S$18),2) -> 58.11 | D99: =ROUND($V$14+(B99*$V$18),2) -> 54.21 | H99: -3.9
A100: December | B100: 11.5 | C100: =ROUND($S$14+(B100*$S$18),2) -> 100.51 | D100: =ROUND($V$14+(B100*$V$18),2) -> 93.37 | H100: -7.14
B101: =SUM(B89:B100) -> 80 | C101: =SUM(C89:C100) -> 700.34 | D101: =SUM(D89:D100) -> 651.42 | H101: =SUM(H89:H100) -> -48.92 | J101: =H101/C101 -> -0.06985178628
A104: Typical Customer Difference - CET & DSM Amort, SNG and Commodity Changes
B105: Typical
A106: GS-1 | B106: Dth | C106: =C52 -> 2018-06-01 | D106: =D52 -> 2018-06-01 | H106: Change | J106: % Change
A107: January | B107: 14.9 | C107: =ROUND($S$14+(B107*$S$18),2) -> 128.23 | D107: =ROUND($W$14+(B107*$W$18),2) -> 137.7 | H107: =D107-C107 -> 9.47
A108: February | B108: 12.5 | C108: =ROUND($S$14+(B108*$S$18),2) -> 108.66 | D108: =ROUND($W$14+(B108*$W$18),2) -> 116.61 | H108: 7.95
A109: March | B109: 10.1 | C109: =ROUND($S$14+(B109*$S$18),2) -> 89.09 | D109: =ROUND($W$14+(B109*$W$18),2) -> 95.52 | H109: 6.43
A110: April | B110: 8.3 | C110: =ROUND($S$14+(B110*$S$16),2) -> 63.37 | D110: =ROUND($W$14+(B110*$W$16),2) -> 63.51 | H110: 0.14
A111: May | B111: 4.4 | C111: 36.76 | D111: 36.84 | H111: 0.08
A112: June | B112: 3.1 | C112: 27.9 | D112: 27.95 | H112: 0.05
A113: July | B113: 2 | C113: 20.39 | D113: 20.43 | H113: 0.04
A114: August | B114: 1.8 | C114: 19.03 | D114: 19.06 | H114: 0.03
A115: September | B115: 2 | C115: 20.39 | D115: 20.43 | H115: 0.04
A116: October | B116: 3.1 | C116: 27.9 | D116: 27.95 | H116: 0.05
A117: November | B117: 6.3 | C117: =ROUND($S$14+(B117*$S$18),2) -> 58.11 | D117: =ROUND($W$14+(B117*$W$18),2) -> 62.12 | H117: 4.01
A118: December | B118: 11.5 | C118: =ROUND($S$14+(B118*$S$18),2) -> 100.51 | D118: =ROUND($W$14+(B118*$W$18),2) -> 107.82 | H118: 7.31
B119: =SUM(B107:B118) -> 80 | C119: =SUM(C107:C118) -> 700.34 | D119: =SUM(D107:D118) -> 735.94 | H119: =SUM(H107:H118) -> 35.6 | J119: =H119/C119 -> 0.05083245281

Sheet UT Tariff Sheets PT (hidden)
B2: 2.02 GS Rate Schedule | J2: 2.03 FS Rate Schedule | AB2: 4.03 ES Rate Schedule | AI2: 2.05 NGV Rate Schedule
C3: Rates Per Dth Used Each Month | M3: Rates Per Dth Used Each Month | T3: 4.02 IS Rate Schedule | AB3: ES Volumetric Rates | AI3: NGV Volumetric Rate
C4: Summer Rates: Apr. 1 - Oct. 31 | E4: Winter Rates: Nov. 1 - Mar. 31 | M4: Dth = decatherm = 10 therms = 1,000,000 BTU | T4: IS Volumetric Rates
C5: First 45 Dth | D5: All Over 45 Dth | E5: First 45 Dth | F5: All Over 45 Dth | K5: Summer Rates: Apr. 1 - Oct. 31 | N5: Winter Rates: Nov. 1 - Mar. 31 | U5: Rates Per Dth Used Each Month | AE5: Rates Per Dth Used Each Month | AM5: Rates Per Dth Used Each Month
B6: Base DNG | C6: ='CET & DSM'!B38 -> 1.7267 | D6: ='CET & DSM'!B39 -> 0.7267 | E6: ='CET & DSM'!B40 -> 2.34949 | F6: ='CET & DSM'!B41 -> 1.34949 | K6: First | L6: Next | M6: All Over | N6: First | O6: Next | P6: All Over | U6: Dth = decatherm = 10 therms = 1,000,000 BTU | AE6: Dth = decatherm = 10 therms = 1,000,000 BTU | AM6: Dth = decatherm = 10 therms = 1,000,000 BTU
B7: CET Amortization | C7: ='CET & DSM'!C38 -> -0.0599 | D7: ='CET & DSM'!C39 -> -0.02224 | E7: ='CET & DSM'!C40 -> -0.07112 | F7: ='CET & DSM'!C41 -> -0.02953 | K7: 200 | L7: 1800 | M7: 2000 | N7: 200 | O7: 1800 | P7: 2000 | U7: First | V7: Next | W7: All Over | AB7: Distribution Non-Gas Rate | AC7: ='Ut 1.8'!#REF! ->  | AI7: Base DNG | AK7: ='Ut 1.8'!C52 -> 6.12994
B8: DSM Amortization | C8: =ROUND('CET & DSM'!D38,5) -> 0.44104 | D8: =ROUND('CET & DSM'!D39,5) -> 0.44104 | E8: =ROUND('CET & DSM'!D40,5) -> 0.44104 | F8: =ROUND('CET & DSM'!D41,5) -> 0.44104 | J8: Base DNG | K8: ='Ut 1.8'!C19 -> 0.88231 | L8: ='Ut 1.8'!D19 -> 0.46533 | M8: ='Ut 1.8'!E19 -> 0.0264 | N8: ='Ut 1.8'!F19 -> 1.33272 | O8: ='Ut 1.8'!G19 -> 0.91574 | P8: ='Ut 1.8'!H19 -> 0.47681 | U8: 2000 | V8: 18000 | W8: 20000 | AI8: Energy Assistance | AK8: ='Other Inputs'!$E$277 -> 0.2679
B9: Energy Assistance | C9: ='Other Inputs'!$E$274 -> 0.01419 | D9: ='Other Inputs'!$E$274 -> 0.01419 | E9: ='Other Inputs'!$E$274 -> 0.01419 | F9: ='Other Inputs'!$E$274 -> 0.01419 | J9: Energy Assistance | K9: ='Other Inputs'!$E$275 -> 0.01174 | L9: ='Other Inputs'!$E$275 -> 0.01174 | M9: ='Other Inputs'!$E$275 -> 0.01174 | N9: ='Other Inputs'!$E$275 -> 0.01174 | O9: ='Other Inputs'!$E$275 -> 0.01174 | P9: ='Other Inputs'!$E$275 -> 0.01174 | T9: Base DNG | U9: ='Ut 1.8'!C60 -> 0.59594 | V9: ='Ut 1.8'!D60 -> 0.09929 | W9: ='Ut 1.8'!E60 -> 0.06295 | AB9: Base SNG | AC9: =ROUND('Ut 1.6 p3'!#REF!,5) ->  | AI9: Distribution Non-Gas Rate | AK9: =SUM(AK7:AM8) -> 6.39784
B10: Distribution Non-Gas Rate | C10: =SUM(C6:C9) -> 2.12203 | D10: =SUM(D6:D9) -> 1.15969 | E10: =SUM(E6:E9) -> 2.7336 | F10: =SUM(F6:F9) -> 1.77519 | J10: Distribution Non-Gas Rate | K10: =SUM(K8:K9) -> 0.89405 | L10: 0.47707 | M10: 0.03814 | N10: 1.34446 | O10: 0.92748 | P10: 0.48855 | T10: Energy Assistance | U10: ='Other Inputs'!$E$276 -> 0.00657 | V10: ='Other Inputs'!$E$276 -> 0.00657 | W10: ='Other Inputs'!$E$276 -> 0.00657 | AB10: SNG Amortization | AC10: =ROUND('Ut 1.6 p3'!#REF!,5) -> 
T11: Distribution Non-Gas Rate | U11: =SUM(U9:U10) -> 0.60251 | V11: =SUM(V9:V10) -> 0.10586 | W11: =SUM(W9:W10) -> 0.06952 | AB11: Supplier Non-Gas Rate | AC11: =SUM(AC9:AF10) ->  | AI11: Base SNG | AK11: =ROUND('Ut 1.6 p3'!G$22,5) -> 0.87253
B12: Base SNG | C12: ='CET & DSM'!I38 -> 0.5677 | D12: ='CET & DSM'!I39 -> 0.5677 | E12: ='CET & DSM'!I40 -> 1.20913 | F12: ='CET & DSM'!I41 -> 1.20913 | J12: Base SNG | K12: =ROUND('Ut 1.6 p3'!G$20,5) -> 0.5677 | L12: =ROUND('Ut 1.6 p3'!G$20,5) -> 0.5677 | M12: =ROUND('Ut 1.6 p3'!G$20,5) -> 0.5677 | N12: =ROUND('Ut 1.6 p3'!G$19,5) -> 1.17764 | O12: =ROUND('Ut 1.6 p3'!G$19,5) -> 1.17764 | P12: =ROUND('Ut 1.6 p3'!G$19,5) -> 1.17764 | T12: Supplier Non-Gas Rate | U12: =ROUND('Ut 1.6 p3'!$G$24/(1-'Other Inputs'!$E$324),5) -> 0.17909 | V12: =ROUND('Ut 1.6 p3'!$G$24/(1-'Other Inputs'!$E$324),5) -> 0.17909 | W12: =ROUND('Ut 1.6 p3'!$G$24/(1-'Other Inputs'!$E$324),5) -> 0.17909 | AI12: SNG Amortization | AK12: =ROUND('Ut 1.6 p3'!H$22,5) -> 0.06218
B13: SNG Amortization | C13: ='CET & DSM'!J38 -> 0.04046 | D13: ='CET & DSM'!J39 -> 0.04046 | E13: ='CET & DSM'!J40 -> 0.08617 | F13: ='CET & DSM'!J41 -> 0.08617 | J13: SNG Amortization | K13: =ROUND('Ut 1.6 p3'!H$20,5) -> 0.04046 | L13: =ROUND('Ut 1.6 p3'!H$20,5) -> 0.04046 | M13: =ROUND('Ut 1.6 p3'!H$20,5) -> 0.04046 | N13: =ROUND('Ut 1.6 p3'!H$19,5) -> 0.08393 | O13: =ROUND('Ut 1.6 p3'!H$19,5) -> 0.08393 | P13: =ROUND('Ut 1.6 p3'!H$19,5) -> 0.08393 | AB13: Commodity Rate | AC13: Highest Gas Cost | AI13: Supplier Non-Gas Rate | AK13: =SUM(AK11:AM12) -> 0.93471
B14: Supplier Non-Gas Rate | C14: =SUM(C12:C13) -> 0.60816 | D14: =SUM(D12:D13) -> 0.60816 | E14: =SUM(E12:E13) -> 1.2953 | F14: =SUM(F12:F13) -> 1.2953 | J14: Supplier Non-Gas Rate | K14: =SUM(K12:K13) -> 0.60816 | L14: 0.60816 | M14: 0.60816 | N14: 1.26157 | O14: 1.26157 | P14: 1.26157 | AB14: Total Rate | AC14: $
AI15: Base Gas Cost | AK15: =ROUND('Ut 1.6 p1'!$F$31,5) -> 3.33262
B16: Base Gas Cost | C16: ='Ut 1.6 p1'!$F$31 -> 3.33262 | D16: ='Ut 1.6 p1'!$F$31 -> 3.33262 | E16: ='Ut 1.6 p1'!$F$31 -> 3.33262 | F16: ='Ut 1.6 p1'!$F$31 -> 3.33262 | J16: Base Gas Cost | K16: =ROUND('Ut 1.6 p1'!$F$31,5) -> 3.33262 | L16: =ROUND('Ut 1.6 p1'!$F$31,5) -> 3.33262 | M16: =ROUND('Ut 1.6 p1'!$F$31,5) -> 3.33262 | N16: =ROUND('Ut 1.6 p1'!$F$31,5) -> 3.33262 | O16: =ROUND('Ut 1.6 p1'!$F$31,5) -> 3.33262 | P16: =ROUND('Ut 1.6 p1'!$F$31,5) -> 3.33262 | AB16: Penalty for failure to interrupt or limit usage when requested by the Company. See See § 3.02 | AI16: Commodity Amortization | AK16: =ROUND('Ut 1.6 p1'!$F$32,5) -> 0.13552
B17: 191 Amortization | C17: ='Ut 1.6 p1'!$F$32 -> 0.13552 | D17: ='Ut 1.6 p1'!$F$32 -> 0.13552 | E17: ='Ut 1.6 p1'!$F$32 -> 0.13552 | F17: ='Ut 1.6 p1'!$F$32 -> 0.13552 | J17: 191 Amortization | K17: =ROUND('Ut 1.6 p1'!$F$32,5) -> 0.13552 | L17: =ROUND('Ut 1.6 p1'!$F$32,5) -> 0.13552 | M17: =ROUND('Ut 1.6 p1'!$F$32,5) -> 0.13552 | N17: =ROUND('Ut 1.6 p1'!$F$32,5) -> 0.13552 | O17: =ROUND('Ut 1.6 p1'!$F$32,5) -> 0.13552 | P17: =ROUND('Ut 1.6 p1'!$F$32,5) -> 0.13552 | AI17: Commodity Rate | AK17: =SUM(AK15:AM16) -> 3.46814
B18: Commodity Rate | C18: =SUM(C16:C17) -> 3.46814 | D18: =SUM(D16:D17) -> 3.46814 | E18: =SUM(E16:E17) -> 3.46814 | F18: =SUM(F16:F17) -> 3.46814 | J18: Commodity Rate | K18: =SUM(K16:K17) -> 3.46814 | L18: 3.46814 | M18: 3.46814 | N18: 3.46814 | O18: 3.46814 | P18: 3.46814 | T18: Total Rate | U18: $ | V18: $ | W18: $
AI19: Total Rate | AK19: =SUM(AK9,AK13,AK17) -> 10.80069
B20: Total Rate | C20: =SUM(C18,C14,C10) -> 6.19833 | D20: =SUM(D18,D14,D10) -> 5.23599 | E20: =SUM(E18,E14,E10) -> 7.49704 | F20: =SUM(F18,F14,F10) -> 6.53863 | J20: Total Rate | K20: =SUM(K18,K14,K10) -> 4.97035 | L20: 4.55337 | M20: 4.11444 | N20: 6.07417 | O20: 5.65719 | P20: 5.21826 | T20: Minimum Monthly Distribution Non-Gas Charge
AI21: Penalty for failure to interrupt or limit usage when requested by the Company. See See § 3.02
E22: BSF Category 1 | F22: ='Ut 1.8'!C12 -> 6.75 | J22: Minimum Monthly Distribution Non-Gas Charge | O22: Summer | P22: =ROUND(K8*175,0) -> 154
E23: BSF Category 2 | F23: ='Ut 1.8'!C13 -> 18.25 | O23: Winter | P23: =ROUND(N8*175,0) -> 233
E24: BSF Category 3 | F24: ='Ut 1.8'!C14 -> 63.5 | V24: BSF Category 1 | W24: 5
E25: BSF Category 4 | F25: ='Ut 1.8'!C15 -> 420.25 | V25: BSF Category 2 | W25: 29
N26: BSF Category 1 | P26: 5 | V26: BSF Category 3 | W26: 67
N27: BSF Category 2 | P27: 21 | V27: BSF Category 4 | W27: 274
N28: BSF Category 3 | P28: 55
N29: BSF Category 4 | P29: 244
AI30: =B44 -> Issued by R. W. Jibson, President | AL30: Advice No | AM30: Section Revision No.
AB39: =B44 -> Issued by R. W. Jibson, President | AE39: Advice No | AF39: Section Revision No.
AB42: New Pass Through Values
B44: Issued by R. W. Jibson, President | D44: Advice No | E44: Section Revision No. | F44: Effective Date
T47: =B44 -> Issued by R. W. Jibson, President | W47: Advice No
B48: Pass Through Changes | J48: =B44 -> Issued by R. W. Jibson, President | M48: Advice No | N48: Section Revision No. | P48: Effective Date
T50: New Pass Through Values
J51: New Pass Through Values

Sheet UT Tariff Sheets (hidden)
B2: 2.02 GS Rate Schedule | I2: 2.02 GS Rate Schedule
C3: Rates Per Dth Used Each Month | J3: Rates Per Dth Used Each Month
C4: Summer Rates: Apr. 1 - Oct. 31 | E4: Winter Rates: Nov. 1 - Mar. 31 | J4: Summer Rates: Apr. 1 - Oct. 31 | L4: Winter Rates: Nov. 1 - Mar. 31
C5: First 45 Dth | D5: All Over 45 Dth | E5: First 45 Dth | F5: All Over 45 Dth | J5: First 45 Dth | K5: All Over 45 Dth | L5: First 45 Dth | M5: All Over 45 Dth
B6: Base DNG | C6: ='CET & DSM'!B24 -> 1.7267 | D6: ='CET & DSM'!B25 -> 0.7267 | E6: ='CET & DSM'!B26 -> 2.34949 | F6: ='CET & DSM'!B27 -> 1.34949 | I6: Base DNG | J6: ='CET & DSM'!B31 -> 1.7267 | K6: ='CET & DSM'!B32 -> 0.7267 | L6: ='CET & DSM'!B33 -> 2.34949 | M6: ='CET & DSM'!B34 -> 1.34949
B7: CET Amortization | C7: ='CET & DSM'!H16 -> -0.01743 | D7: ='CET & DSM'!H17 -> -0.00733 | E7: ='CET & DSM'!H18 -> -0.02371 | F7: ='CET & DSM'!H19 -> -0.01362 | I7: CET Amortization | J7: ='CET & DSM'!C31 -> -0.0599 | K7: ='CET & DSM'!C32 -> -0.02224 | L7: ='CET & DSM'!C33 -> -0.07112 | M7: ='CET & DSM'!C34 -> -0.02953
B8: DSM Amortization | C8: ='CET & DSM'!D24 -> 0.44104 | D8: ='CET & DSM'!D25 -> 0.44104 | E8: ='CET & DSM'!D26 -> 0.44104 | F8: ='CET & DSM'!D27 -> 0.44104 | I8: DSM Amortization | J8: =ROUND('CET & DSM'!D31,5) -> 0.44075 | K8: =ROUND('CET & DSM'!D32,5) -> 0.44075 | L8: =ROUND('CET & DSM'!D33,5) -> 0.44075 | M8: =ROUND('CET & DSM'!D34,5) -> 0.44075
B9: Energy Assistance | C9: ='Other Inputs'!$E$274 -> 0.01419 | D9: ='Other Inputs'!$E$274 -> 0.01419 | E9: ='Other Inputs'!$E$274 -> 0.01419 | F9: ='Other Inputs'!$E$274 -> 0.01419 | I9: Energy Assistance | J9: ='Other Inputs'!$E$274 -> 0.01419 | K9: ='Other Inputs'!$E$274 -> 0.01419 | L9: ='Other Inputs'!$E$274 -> 0.01419 | M9: ='Other Inputs'!$E$274 -> 0.01419
B10: Distribution Non-Gas Rate | C10: =SUM(C6:C9) -> 2.1645 | D10: =SUM(D6:D9) -> 1.1746 | E10: =SUM(E6:E9) -> 2.78101 | F10: =SUM(F6:F9) -> 1.7911 | I10: Distribution Non-Gas Rate | J10: =SUM(J6:J9) -> 2.12174 | K10: =SUM(K6:K9) -> 1.1594 | L10: =SUM(L6:L9) -> 2.73331 | M10: =SUM(M6:M9) -> 1.7749
B12: Base SNG | C12: ='CET & DSM'!I24 -> 0.55715 | D12: ='CET & DSM'!I25 -> 0.55715 | E12: ='CET & DSM'!I26 -> 1.18665 | F12: ='CET & DSM'!I27 -> 1.18665 | I12: Base SNG | J12: ='CET & DSM'!I31 -> 0.55715 | K12: ='CET & DSM'!I32 -> 0.55715 | L12: ='CET & DSM'!I33 -> 1.18665 | M12: ='CET & DSM'!I34 -> 1.18665
B13: SNG Amortization | C13: ='CET & DSM'!J24 -> 0.01244 | D13: ='CET & DSM'!J25 -> 0.01244 | E13: ='CET & DSM'!J26 -> 0.02651 | F13: ='CET & DSM'!J27 -> 0.02651 | I13: SNG Amortization | J13: ='CET & DSM'!J31 -> 0.01244 | K13: ='CET & DSM'!J32 -> 0.01244 | L13: ='CET & DSM'!J33 -> 0.02651 | M13: ='CET & DSM'!J34 -> 0.02651
B14: Supplier Non-Gas Rate | C14: =SUM(C12:C13) -> 0.56959 | D14: =SUM(D12:D13) -> 0.56959 | E14: =SUM(E12:E13) -> 1.21316 | F14: =SUM(F12:F13) -> 1.21316 | I14: Supplier Non-Gas Rate | J14: =SUM(J12:J13) -> 0.56959 | K14: =SUM(K12:K13) -> 0.56959 | L14: =SUM(L12:L13) -> 1.21316 | M14: =SUM(M12:M13) -> 1.21316
B16: Base Gas Cost | C16: ='CET & DSM'!L24 -> 4.21339 | D16: ='CET & DSM'!L25 -> 4.21339 | E16: ='CET & DSM'!L26 -> 4.21339 | F16: ='CET & DSM'!L27 -> 4.21339 | I16: Base Gas Cost | J16: ='CET & DSM'!L31 -> 4.21339 | K16: ='CET & DSM'!L32 -> 4.21339 | L16: ='CET & DSM'!L33 -> 4.21339 | M16: ='CET & DSM'!L34 -> 4.21339
B17: 191 Amortization | C17: ='CET & DSM'!M24 -> 0.14067 | D17: ='CET & DSM'!M25 -> 0.14067 | E17: ='CET & DSM'!M26 -> 0.14067 | F17: ='CET & DSM'!M27 -> 0.14067 | I17: 191 Amortization | J17: ='CET & DSM'!M31 -> 0.14067 | K17: ='CET & DSM'!M32 -> 0.14067 | L17: ='CET & DSM'!M33 -> 0.14067 | M17: ='CET & DSM'!M34 -> 0.14067
B18: Commodity Rate | C18: =SUM(C16:C17) -> 4.35406 | D18: =SUM(D16:D17) -> 4.35406 | E18: =SUM(E16:E17) -> 4.35406 | F18: =SUM(F16:F17) -> 4.35406 | I18: Commodity Rate | J18: =SUM(J16:J17) -> 4.35406 | K18: =SUM(K16:K17) -> 4.35406 | L18: =SUM(L16:L17) -> 4.35406 | M18: =SUM(M16:M17) -> 4.35406
B20: Total Rate | C20: =SUM(C18,C14,C10) -> 7.08815 | D20: =SUM(D18,D14,D10) -> 6.09825 | E20: =SUM(E18,E14,E10) -> 8.34823 | F20: =SUM(F18,F14,F10) -> 7.35832 | I20: Total Rate | J20: =SUM(J18,J14,J10) -> 7.04539 | K20: =SUM(K18,K14,K10) -> 6.08305 | L20: =SUM(L18,L14,L10) -> 8.30053 | M20: =SUM(M18,M14,M10) -> 7.34212
E23: BSF Category 1 | F23: ='Ut 1.8'!C12 -> 6.75 | L23: BSF Category 1 | M23: ='Ut 1.8'!C12 -> 6.75
E24: BSF Category 2 | F24: ='Ut 1.8'!C13 -> 18.25 | L24: BSF Category 2 | M24: ='Ut 1.8'!C13 -> 18.25
E25: BSF Category 3 | F25: ='Ut 1.8'!C14 -> 63.5 | L25: BSF Category 3 | M25: ='Ut 1.8'!C14 -> 63.5
E26: BSF Category 4 | F26: ='Ut 1.8'!C15 -> 420.25 | L26: BSF Category 4 | M26: ='Ut 1.8'!C15 -> 420.25
B45: Issued by R. W. Jibson, President | D45: Advice No | E45: Section Revision No. | F45: Effective Date | I45: Issued by R. W. Jibson, President | K45: Advice No | L45: Section Revision No. | M45: Effective Date
B49: New CET Only | I49: NEW DSM ONLY

Sheet Utah Summary-by class
A1: UTAH SUMMARY
B2: NOT AN EXHIBIT !!!
A3: NEEDS TO BE UPDATED FOR GSR AND GSC RATES | Q3: Sub Total
C4: COMMODITY | J4: SNG | Q4: TOTAL
C5: Current | D5: Proposed | E5: Current | F5: Proposed | G5: Revenue | H5: % | J5: Current | K5: Proposed | L5: Current | M5: Proposed | N5: Revenue | O5: % | Q5: Revenue | R5: %
A6: RATE | B6: Dth Sales | C6: Rates | D6: Rates | E6: Revenue | F6: Revenue | G6: Difference | H6: Change | J6: Rates | K6: Rates | L6: Revenue | M6: Revenue | N6: Difference | O6: Change | Q6: Difference | R6: Change
A8: GS (W) | B8: =Calculations!P52 -> 76964934 | C8: ='Ut 1.6 p1'!$H$33 -> 4.22228 | D8: =ROUND('Ut 1.6 p1'!$F$33,5) -> 3.46814 | E8: =ROUND(B8*C8,0) -> 324967502 | F8: =ROUND(B8*D8,0) -> 266925166 | G8: =(F8-E8) -> -58042336 | J8: ='Ut 1.6 p3'!E16 -> 1.28418 | K8: ='Ut 1.6 p3'!I16 -> 1.2953 | L8: =ROUND(B8*J8,0) -> 98836829 | M8: =B8*K8 -> 99692679.01 | N8: =(M8-L8) -> 855850.0102 | Q8: =G8+N8 -> -57186485.99
A9: GS (S) | B9: =Calculations!P53 -> 29564295 | C9: ='Ut 1.6 p1'!$H$33 -> 4.22228 | D9: =D8 -> 3.46814 | E9: =ROUND(B9*C9,0) -> 124828731 | F9: =ROUND(B9*D9,0) -> 102533114 | G9: =(F9-E9) -> -22295617 | J9: ='Ut 1.6 p3'!E17 -> 0.60294 | K9: ='Ut 1.6 p3'!I17 -> 0.60816 | L9: =ROUND(B9*J9,0) -> 17825496 | M9: =B9*K9 -> 17979821.65 | N9: =(M9-L9) -> 154325.6472 | Q9: =G9+N9 -> -22141291.35
A10: Total | B10: =SUM(B8:B9) -> 106529229 | E10: =SUM(E8:E9) -> 449796233 | F10: =SUM(F8:F9) -> 369458280 | G10: =SUM(G8:G9) -> -80337953 | H10: =IF(G10=0,0,G10/E10) -> -0.1786096617 | L10: =SUM(L8:L9) -> 116662325 | M10: =SUM(M8:M9) -> 117672500.7 | N10: =SUM(N8:N9) -> 1010175.657 | O10: =IF(N10=0,0,N10/L10) -> 0.008658970729 | Q10: =SUM(Q8:Q9) -> -79327777.34 | R10: =IF(Q10=0,0,Q10/(E10+L10)) -> -0.1400416257
A13: FS (W) | B13: =Calculations!P58 -> 1875393 | C13: ='Ut 1.6 p1'!$H$33 -> 4.22228 | D13: =D8 -> 3.46814 | E13: =ROUND(B13*C13,0) -> 7918434 | F13: =ROUND(B13*D13,0) -> 6504125 | G13: =(F13-E13) -> -1414309 | J13: ='Ut 1.6 p3'!E19 -> 1.25074 | K13: ='Ut 1.6 p3'!I19 -> 1.26157 | L13: =ROUND(B13*J13,0) -> 2345629 | M13: =B13*K13 -> 2365939.547 | N13: =(M13-L13) -> 20310.54701 | Q13: =G13+N13 -> -1393998.453
A14: FS (S) | B14: =Calculations!P59 -> 1881749 | C14: ='Ut 1.6 p1'!$H$33 -> 4.22228 | D14: =D9 -> 3.46814 | E14: =ROUND(B14*C14,0) -> 7945271 | F14: =ROUND(B14*D14,0) -> 6526169 | G14: =(F14-E14) -> -1419102 | J14: ='Ut 1.6 p3'!E20 -> 0.60294 | K14: ='Ut 1.6 p3'!I20 -> 0.60816 | L14: =ROUND(B14*J14,0) -> 1134582 | M14: =B14*K14 -> 1144404.472 | N14: =(M14-L14) -> 9822.47184 | Q14: =G14+N14 -> -1409279.528
A15: Total | B15: =SUM(B13:B14) -> 3757142 | E15: =SUM(E13:E14) -> 15863705 | F15: =SUM(F13:F14) -> 13030294 | G15: =SUM(G13:G14) -> -2833411 | H15: =IF(G15=0,0,G15/E15) -> -0.1786096627 | L15: =SUM(L13:L14) -> 3480211 | M15: =SUM(M13:M14) -> 3510344.019 | N15: =SUM(N13:N14) -> 30133.01885 | O15: =IF(N15=0,0,N15/L15) -> 0.008658388486 | Q15: =SUM(Q13:Q14) -> -2803277.981 | R15: =IF(Q15=0,0,Q15/(E15+L15)) -> -0.1449178119
A18: NGV | B18: =Calculations!P12 -> 281652 | C18: ='Ut 1.6 p1'!$H$33 -> 4.22228 | D18: =D8 -> 3.46814 | E18: =ROUND(B18*C18,0) -> 1189214 | F18: =ROUND(B18*D18,0) -> 976809 | G18: =(F18-E18) -> -212405 | H18: =IF(G18=0,0,G18/E18) -> -0.178609569 | J18: ='Ut 1.6 p3'!E22 -> 0.92669 | K18: ='Ut 1.6 p3'!I22 -> 0.93471 | L18: =ROUND(B18*J18,0) -> 261004 | M18: =ROUND(B18*K18,0) -> 263263 | N18: =(M18-L18) -> 2259 | O18: =IF(N18=0,0,N18/L18) -> 0.00865503977 | Q18: =G18+N18 -> -210146 | R18: =IF(Q18=0,0,Q18/(E18+L18)) -> -0.1449064899
A21: IS | B21: =Calculations!P17 -> 568105 | C21: ='Ut 1.6 p1'!$H$33 -> 4.22228 | D21: =D8 -> 3.46814 | E21: =ROUND(B21*C21,0) -> 2398698 | F21: =ROUND(B21*D21,0) -> 1970268 | G21: =(F21-E21) -> -428430 | H21: =IF(G21=0,0,G21/E21) -> -0.1786093956 | J21: ='Ut 1.6 p3'!E24 -> 0.17864 | K21: ='Ut 1.6 p3'!I24 -> 0.17864 | L21: =ROUND(B21*J21,0) -> 101486 | M21: =ROUND(B21*K21,0) -> 101486 | N21: =(M21-L21) -> 0 | O21: =IF(N21=0,0,N21/L21) -> 0 | Q21: =G21+N21 -> -428430 | R21: =IF(Q21=0,0,Q21/(E21+L21)) -> -0.1713593879
B23: - | E23: - | F23: - | G23: - | L23: ------------------- | M23: ------------------- | N23: ------------------- | Q23: -------------------
B24: =B10+B15+B18+B21 -> 111136128 | E24: =E10+E15+E18+E21 -> 469247850 | F24: =F10+F15+F18+F21 -> 385435651 | G24: =G10+G15+G18+G21 -> -83812199 | H24: =IF(G24=0,0,G24/E24) -> -0.1786096601 | L24: =L10+L15+L18+L21 -> 120505026 | M24: =M10+M15+M18+M21 -> 121547593.7 | N24: =N10+N15+N18+N21 -> 1042567.676 | O24: =IF(N24=0,0,N24/L24) -> 0.008651653054 | Q24: =Q10+Q15+Q18+Q21 -> -82769631.32 | R24: =IF(Q24=0,0,Q24/(E24+L24)) -> -0.1403462954
G25: =IF(G24>0,"Commodity Increase","Commodity Decrease") -> Commodity Decrease | N25: =IF(N24>0,"Increase to SNG","Decrease to SNG") -> Increase to SNG
B26: NOT AN EXHIBIT !!!
G27: =ROUND(G24,-3) -> -83812000 | N27: =ROUND(N24,-3) -> 1043000 | Q27: =ROUND(Q24,-3) -> -82770000
G28: Rounded | N28: Rounded | Q28: Rounded

Sheet UT Summary - by cost (hidden)

Sheet WY Summary - by cost (hidden)

Sheet Model Checks
B2: Model Checks
B3: If the total of all checks is not zero, or very close to zero, find the checks below that are out of balance and follow the calculations
B4: back through the model and correct any errors.
D6: Total of all Checks
D7: =ABS(SUM(D10:D1993)) -> 1.982083812
B9: Forecasted Demand
C10: Utah | D10: =Calculations!P25-'RevRun Fcst'!T205 -> 0
C11: Wyoming | D11: =Calculations!P44-'RevRun Fcst'!T329 -> 0
C12: Total System | D12: =Calculations!P47-'RevRun Fcst'!T370 -> 0
B13: Forecasted Utah Demand Check by Month
C14: 1 | D14: =Calculations!D25-'RevRun Fcst'!H205 -> 0
C15: 2 | D15: =Calculations!E25-'RevRun Fcst'!I205 -> 0
C16: 3 | D16: =Calculations!F25-'RevRun Fcst'!J205 -> 0
C17: 4 | D17: =Calculations!G25-'RevRun Fcst'!K205 -> 0
C18: 5 | D18: =Calculations!H25-'RevRun Fcst'!L205 -> 0
C19: 6 | D19: =Calculations!I25-'RevRun Fcst'!M205 -> 0
C20: 7 | D20: =Calculations!J25-'RevRun Fcst'!N205 -> 0
C21: 8 | D21: =Calculations!K25-'RevRun Fcst'!O205 -> 0
C22: 9 | D22: =Calculations!L25-'RevRun Fcst'!P205 -> 0
C23: 10 | D23: =Calculations!M25-'RevRun Fcst'!Q205 -> 0
C24: 11 | D24: =Calculations!N25-'RevRun Fcst'!R205 -> 0
C25: 12 | D25: =Calculations!O25-'RevRun Fcst'!S205 -> 0
C26: Wyoming I-2 and I-4 Revenues | D26: =('RevRun Fcst'!T273+'RevRun Fcst'!T282)-Calculations!P65 -> 0
C27: System Sales Volumes | D27: =Calculations!H76-'RevRun Fcst'!T368 -> 0
C28: Utah Sales Volumes | D28: =Calculations!P20-'Utah Summary-by class'!B24 -> 0
B29: Company Production | D29: =Calculations!P120-'Monthly Inputs'!S7-'Monthly Inputs'!S13 -> 0
B30: Injections | D30: ='Monthly Inputs'!S29-SUM('Monthly Inputs'!S23:S28) -> 0
B31: Withdrawls | D31: ='Monthly Inputs'!S37-SUM('Monthly Inputs'!S32:S36) -> 0
B32: Injections & Withdrawls | D32: =SUM('Ut 1.3 p2'!D23:D28)-'Monthly Inputs'!S29-'Monthly Inputs'!S37 -> 0
B33: Injections | D33: =Calculations!P129-'Monthly Inputs'!S29 -> 0
B34: Withdrawls | D34: =Calculations!P137-'Monthly Inputs'!S37 -> 0
B35: Sales for Resale | D35: =Expenses!S445-Calculations!P86 -> 0
B36: Incidental Plant Prod Sales | D36: =Expenses!S446-Calculations!P87 -> 0
B37: Incidental Gas & Oil Sales | D37: =Expenses!S447-Calculations!P89 -> 0
B38: Gasoline and Oil Costs | D38: =Expenses!S450+Calculations!P90 -> 0
B39: Wexpro Revenue Sharing | D39: =Expenses!S449-Calculations!P94 -> 0
B40: Storage Gas | D40: ='Rate Base'!U206-Calculations!P99 -> 0
B41: 101 Production | D41: ='Rate Base'!U148-Calculations!P100 -> 0
B42: 108 Production | D42: ='Rate Base'!U166-Calculations!P101 -> 0
B43: 111 Production | D43: ='Rate Base'!U173-Calculations!P102 -> 0
B44: 255 Production | D44: ='Rate Base'!U241-Calculations!P103 -> 0
B45: 282 Production | D45: ='Rate Base'!U248-Calculations!P104 -> 0
B46: 282.1 Production | D46: ='Rate Base'!U255-Calculations!P105 -> 0
B47: Production Rate Base | D47: =SUM(Calculations!P99:P105)-'Rate Base'!U275 -> 0
B48: Purchased Gas Cost | D48: ='Ut 1.2'!G24-Calculations!P194 -> 0.1433400512
B49: Working Gas Rate Base | D49: =Calculations!P99-'Ut 1.3 p2'!D53 -> 0
B50: Allocations | D50: ='Ut 1.5'!E43-'Ut 1.5'!F43-'Ut 1.5'!G43+'Ut 1.5'!G41 -> 5.960464478e-08
B52: System Sales | D52: ='SDR#1'!C10-'RevRun Fcst'!T368 -> 0
B53: Lost & Unaccounted For | D53: ='SDR#1'!C15-(('SDR#1'!C10+'SDR#1'!C11)/(1-'Other Inputs'!E313)) -> -0.6244725734
B54: Supply / Demand | D54: ='SDR#1'!C36-'SDR#1'!C15 -> -1.899414867
B55: System Sales | D55: ='SDR#3'!H36-'SDR#1'!C10 -> 0
B56: SNG Revenue | D56: ='SDR#4'!G23-'Utah Summary-by class'!L24 -> 0.1233800054
B57: Utah Sales | D57: ='SDR#3'!D36-'SDR#4'!E23 -> 0
B58: Utah Sales | D58: ='SDR#2'!G75+'Ut 1.6 p1'!J22 -> 0.2750835121
B59: Seasonal Volumes | D59: =Calculations!P52+Calculations!P53-Calculations!P7-Calculations!P8 -> 0
B60: Seasonal Volumes | D60: =Calculations!P55+Calculations!P56-Calculations!P9 -> 0
B61: Seasonal Volumes | D61: =Calculations!P58+Calculations!P59-Calculations!P10 -> 0

Sheet SDR#1
E1: ='Control Panel'!E32 -> Dominion Energy Utah
E2: ='Control Panel'!E33 -> Docket No. 18-057-04
B4: Standard Data Request #1
B5: Summary of Sources of Supply and Demand
A8: 1 | B8: DEMAND | C8: Total | D8: Utah | E8: Wyoming
A10: =A8+1 -> 2 | B10: SALES IN DTHS | C10: =D10+E10 -> 115360287 | D10: =Calculations!P20 -> 111136128 | E10: =Calculations!P39 -> 4224159
A11: =A10+1 -> 3 | B11: DIST. CO. USE & | C11: 0
A12: =A11+1 -> 4 | B12: DIST. LOST & UNACCT. (0.49%) | C12: =Calculations!P148 -> 533109
A15: =A12+1 -> 5 | B15: TOTAL | C15: =SUM(C10:C12) -> 115893396
A19: =A15+1 -> 6 | B19: SUPPLY | C19: Total | D19: Utah | E19: Wyoming
A21: =A19+1 -> 7 | B21: COMPANY PRODUCTION | C21: ='Ut 1.1'!F1443+'Ut 1.1'!F1686 -> 70696806.45 | D21: =$D$10/$C$10*C21 -> 68108094.52 | E21: =$E$10/$C$10*C21 -> 2588711.93
A22: =A21+1 -> 8 | B22: GAS REIMBURSEMENT | C22: =C21*-'Other Inputs'!$E$317 -> -4106989.577 | D22: =D21*-'Other Inputs'!$E$317 -> -3956603.535 | E22: =E21*-'Other Inputs'!$E$317 -> -150386.0422
A25: =A22+1 -> 9 | B25: CONTRACT GAS | C25: ='Ut 1.2'!E24 -> 52132695 | D25: =$D$10/$C$10*C25 -> 50223746.97 | E25: =$E$10/$C$10*C25 -> 1908948.031
A26: =A25+1 -> 10 | B26: GAS REIMBURSEMENT | C26: =C25*-'Other Inputs'!$E$316 -> -813270.042 | D26: =D25*-'Other Inputs'!$E$316 -> -783490.4527 | E26: =E25*-'Other Inputs'!$E$316 -> -29779.58929
A28: =A26+1 -> 11 | B28: STORAGE
A29: =A28+1 -> 12 | B29: INJECTIONS | C29: ='Ut 1.4 p2'!E22 -> -16985068.77 | D29: =$D$10/$C$10*C29 -> -16363124.83 | E29: =$E$10/$C$10*C29 -> -621943.9372
A30: =A29+1 -> 13 | B30: WITHDRAWALS | C30: ='Ut 1.4 p2'!E21 -> 15973317.69 | D30: =$D$10/$C$10*C30 -> 15388421.14 | E30: =$E$10/$C$10*C30 -> 584896.5484
A31: =A30+1 -> 14 | B31: NET (INJECTIONS) WITHDRAWALS | C31: =C29+C30 -> -1011751.074 | D31: =D29+D30 -> -974703.685 | E31: =E29+E30 -> -37047.3888
A33: =A31+1 -> 15 | B33: Storage Fuel | C33: =Calculations!P165+Calculations!P166-1 -> -1004096.66 | D33: =D10/C10*C33 -> -967329.5532 | E33: =E10/C10*C33 -> -36767.10635
A36: =A33+1 -> 16 | B36: TOTAL SUPPLY | C36: =C21+C22+C25+C26+C29+C30+C33 -> 115893394.1 | D36: =SUM(D21:D30)+D33 -> 111649714.3 | E36: =SUM(E21:E30)+E33 -> 4243679.835
A38: =A36+1 -> 17 | B38: Company Use & Loss % | C38: =(+C36-C10)/C36 -> 0.004599978323 | D38: =(+D36-D10)/D36 -> 0.004599978323 | E38: =(+E36-E10)/E36 -> 0.004599978323
B41: Difference | C41: =C15-C36 -> 1.899414867

Sheet SDR#2
H1: ='Control Panel'!E32 -> Dominion Energy Utah
H2: ='Control Panel'!E33 -> Docket No. 18-057-04
A5: Standard Data Request #2
A6: Supplier Non-Gas Costs
B8: (A) | C8: (B) | D8: (C) | E8: (D) | F8: (E) | G8: (F) | T8: withdraw
A9: I. Transportation (QPC T-1) | C9: Volume (Dth) | G9: Utah Total | J9: Utah gas | K9: Utah Co. | L9: Utah gas | M9: Wyo gas | N9: Wyo Co. | O9: Wyo gas | Q9: @city gate | R9: @city gate | T9: loss | U9: Kern River
B10: Month | C10: Utah | D10: Wyoming | E10: $/dth | F10: Demand | G10: b*d+e*(Ut %) | J10: purchased | K10: production | L10: withdrawn | M10: purchased | N10: production | O10: withdrawn | P10: Total | Q10: purchased | R10: co production | S10: withdrawls | T10: =-Calculations!P165/Calculations!P137 -> 0.0312122123 | U10: Transportation
B12: =#REF! ->  | C12: =J12+K12+L12-(T12+$B$50*U12)*$J$39 -> 4389152.683 | D12: =M12+N12+O12-(T12+$B$50*U12)*$K$39 -> 166826.7479 | E12: ='Other Inputs'!$F$44 -> 0.00267 | F12: =('Other Inputs'!$D$28)*('Other Inputs'!$F$28)-('Other Inputs'!$E$321/12)+('Other Inputs'!$D$36*'Other Inputs'!$F$36) -> 4401204.523 | G12: =(+C12)*E12+F12*$J$33/$L$33 -> 4290888.772 | J12: =Q12*$J$39 -> 705358.4617 | K12: =R12*$J$39 -> 5217393.539 | L12: =S12*$J$39 -> 0 | M12: =Q12-J12 -> 26809.88035 | N12: =R12-K12 -> 198307.2496 | O12: =S12-L12 -> 0 | P12: =SUM(J12:O12)-U12 -> 2611319.131 | Q12: =Calculations!D169 -> 732168.3421 | R12: =Calculations!D161 -> 5415700.789 | S12: =Calculations!D163+Calculations!D164 -> 0 | T12: =S12*$T$10 -> 0 | U12: =V17*W17 -> 3536550 | V12: 4885 | W12: 30 | X12: =B12 -> 
B13: =#REF! ->  | C13: 3465878.697 | D13: 131734.144 | E13: ='Other Inputs'!$F$44 -> 0.00267 | F13: =('Other Inputs'!$D$28)*('Other Inputs'!$F$28)-('Other Inputs'!$E$321/12)+('Other Inputs'!$D$36*'Other Inputs'!$F$36) -> 4401204.523 | G13: =(+C13)*E13+F13*$J$33/$L$33 -> 4288423.63 | J13: =Q13*$J$39 -> 445462.5987 | K13: 5289716.384 | L13: 0 | M13: 16931.53144 | N13: 201056.1594 | O13: 0 | P13: =SUM(J13:O13)-U13 -> 720056.6733 | Q13: =Calculations!E169 -> 462394.1302 | R13: =Calculations!E161 -> 5490772.543 | S13: =Calculations!E163+Calculations!E164 -> 0 | T13: =S13*$T$10 -> 0 | U13: =V18*W18 -> 5233110 | V13: 4885 | W13: 31 | X13: =B13 -> 
B14: =#REF! ->  | C14: 3417379.478 | D14: 129890.7433 | E14: ='Other Inputs'!$F$44 -> 0.00267 | F14: =('Other Inputs'!$D$28)*('Other Inputs'!$F$28)-('Other Inputs'!$E$321/12)+('Other Inputs'!$D$36*'Other Inputs'!$F$36) -> 4401204.523 | G14: 4288294.138 | J14: =Q14*$J$39 -> 318911.2691 | K14: 5367768.494 | L14: 0 | M14: 12121.458 | N14: 204022.8322 | O14: 0 | P14: 669714.0537 | Q14: =Calculations!F169 -> 331032.7271 | R14: =Calculations!F161 -> 5571791.327 | S14: =Calculations!F163+Calculations!F164 -> 0 | T14: 0 | U14: =V19*W19 -> 5233110 | V14: 4885 | W14: 31
B15: =#REF! ->  | C15: 3828147.717 | D15: 145503.5813 | E15: ='Other Inputs'!$F$44 -> 0.00267 | F15: =('Other Inputs'!$D$28)*('Other Inputs'!$F$28)-('Other Inputs'!$E$321/12)+('Other Inputs'!$D$36*'Other Inputs'!$F$36) -> 4401204.523 | G15: 4289390.889 | J15: =Q15*$J$39 -> 414007.2631 | K15: 5463831.035 | L15: 0 | M15: 15735.94958 | N15: 207674.0611 | O15: 0 | P15: 1374568.308 | Q15: =Calculations!G169 -> 429743.2127 | R15: =Calculations!G161 -> 5671505.096 | S15: =Calculations!G163+Calculations!G164 -> 0 | T15: 0 | U15: 4726680 | V15: 4885 | W15: 30
B16: =#REF! ->  | C16: 6596214.209 | D16: 250714.6696 | E16: ='Other Inputs'!$F$44 -> 0.00267 | F16: =('Other Inputs'!$D$28)*('Other Inputs'!$F$28)-('Other Inputs'!$E$321/12)+('Other Inputs'!$D$36*'Other Inputs'!$F$36) -> 4401204.523 | G16: 4296781.626 | J16: 2167723.032 | K16: 5693672.842 | L16: 329832.4291 | M16: 82392.70992 | N16: 216410.0893 | O16: 12536.55898 | P16: 4848132.662 | Q16: =Calculations!H169 -> 2250115.742 | R16: =Calculations!H161 -> 5910082.932 | S16: =Calculations!H163+Calculations!H164 -> 342368.988 | T16: 10686.09354 | U16: 3654435 | V16: 34885 | W16: 31
B17: =#REF! ->  | C17: 11814631.02 | D17: 449060.8125 | E17: ='Other Inputs'!$F$44 -> 0.00267 | F17: =('Other Inputs'!$D$28)*('Other Inputs'!$F$28)-('Other Inputs'!$E$321/12)+('Other Inputs'!$D$36*'Other Inputs'!$F$36) -> 4401204.523 | G17: 4310714.799 | J17: 2969087.187 | K17: 5370012.28 | L17: 4055955.735 | M17: 112851.6585 | N17: 204108.116 | O17: 154162.3073 | P17: 11819627.28 | Q17: =Calculations!I169 -> 3081938.845 | R17: =Calculations!I161 -> 5574120.396 | S17: =Calculations!I163+Calculations!I164 -> 4210118.042 | T17: 131407.0981 | U17: 1046550 | V17: 117885 | W17: 30
B18: =#REF! ->  | C18: 18322902.76 | D18: 696432.8883 | E18: ='Other Inputs'!$F$44 -> 0.00267 | F18: =('Other Inputs'!$D$28)*('Other Inputs'!$F$28)-('Other Inputs'!$E$321/12)+('Other Inputs'!$D$36*'Other Inputs'!$F$36) -> 4401204.523 | G18: =(+C18)*E18+F18*$J$33/$L$33 -> 4328091.885 | J18: 9320889.459 | K18: 5621424.559 | L18: 3973569.092 | M18: 354276.5058 | N18: 213664.0134 | O18: 151030.8839 | P18: 18553419.51 | Q18: =Calculations!J169 -> 9675165.964 | R18: =Calculations!J161 -> 5835088.573 | S18: =Calculations!J163+Calculations!J164 -> 4124599.976 | T18: 128737.8901 | U18: 1081435 | V18: 168810 | W18: 31
B19: =#REF! ->  | C19: 19828986.41 | D19: 753677.4308 | E19: ='Other Inputs'!$F$44 -> 0.00267 | F19: =('Other Inputs'!$D$28)*('Other Inputs'!$F$28)-('Other Inputs'!$E$321/12)+('Other Inputs'!$D$36*'Other Inputs'!$F$36) -> 4401204.523 | G19: 4332113.128 | J19: 10535932.19 | K19: 5576124.569 | L19: 3902278.757 | M19: 400458.9108 | N19: 211942.2118 | O19: 148321.2186 | P19: 20628507.85 | Q19: =Calculations!K169 -> 10936391.1 | R19: =Calculations!K161 -> 5788066.781 | S19: =Calculations!K163+Calculations!K164 -> 4050599.976 | T19: 126428.1864 | U19: =V12*W12 -> 146550 | V19: 168810 | W19: 31
B20: =#REF! ->  | C20: 16044311.07 | D20: 609826.1855 | E20: ='Other Inputs'!$F$44 -> 0.00267 | F20: =('Other Inputs'!$D$28)*('Other Inputs'!$F$28)-('Other Inputs'!$E$321/12)+('Other Inputs'!$D$36*'Other Inputs'!$F$36) -> 4401204.523 | G20: =(+C20)*E20+F20*$J$33/$L$33 -> 4322008.045 | J20: 9133851.164 | K20: 4902025.279 | L20: 2140926.369 | M20: 347167.391 | N20: 186320.4574 | O20: 81374.19893 | P20: 16640229.86 | Q20: =Calculations!L169 -> 9481018.555 | R20: =Calculations!L161 -> 5088345.736 | S20: =Calculations!L163+Calculations!L164 -> 2222300.568 | T20: 69362.91711 | U20: =V13*W13 -> 151435 | V20: 168810 | W20: 28
B21: =#REF! ->  | C21: 12687738.18 | D21: 482246.632 | E21: ='Other Inputs'!$F$44 -> 0.00267 | F21: =('Other Inputs'!$D$28)*('Other Inputs'!$F$28)-('Other Inputs'!$E$321/12)+('Other Inputs'!$D$36*'Other Inputs'!$F$36) -> 4401204.523 | G21: =(+C21)*E21+F21*$J$33/$L$33 -> 4313045.995 | J21: 6635208.311 | K21: 5299449.213 | L21: 845127.6503 | M21: 252196.7915 | N21: 201426.0933 | O21: 32122.34972 | P21: 13114095.41 | Q21: =Calculations!M169 -> 6887405.102 | R21: =Calculations!M161 -> 5500875.306 | S21: =Calculations!M163+Calculations!M164 -> 877250 | T21: 27380.91324 | U21: =V14*W14 -> 151435 | V21: 117885 | W21: 31
B22: =#REF! ->  | C22: 8839854.413 | D22: 335992.9057 | E22: ='Other Inputs'!$F$44 -> 0.00267 | F22: =('Other Inputs'!$D$28)*('Other Inputs'!$F$28)-('Other Inputs'!$E$321/12)+('Other Inputs'!$D$36*'Other Inputs'!$F$36) -> 4401204.523 | G22: =(+C22)*E22+F22*$J$33/$L$33 -> 4302772.146 | J22: 3698191.253 | K22: 5068874.925 | L22: 140731.112 | M22: 140564.0825 | N22: 192662.2244 | O22: 5349.030994 | P22: 9099822.627 | Q22: =Calculations!N169 -> 3838755.335 | R22: =Calculations!N161 -> 5261537.149 | S22: =Calculations!N163+Calculations!N164 -> 146080.143 | T22: 4559.484435 | U22: =V15*W15 -> 146550 | V22: 34885 | W22: 30
B23: =#REF! ->  | C23: 7907876.603 | D23: 300569.4793 | E23: ='Other Inputs'!$F$44 -> 0.00267 | F23: =('Other Inputs'!$D$28)*('Other Inputs'!$F$28)-('Other Inputs'!$E$321/12)+('Other Inputs'!$D$36*'Other Inputs'!$F$36) -> 4401204.523 | G23: =(+C23)*E23+F23*$J$33/$L$33 -> 4300283.765 | J23: 3095635.605 | K23: 5281197.461 | L23: 0 | M23: 117661.6213 | N23: 200732.3648 | O23: 0 | P23: 7613792.052 | Q23: =Calculations!O169 -> 3213297.226 | R23: =Calculations!O161 -> 5481929.826 | S23: =Calculations!O163+Calculations!O164 -> 0 | T23: 0 | U23: =V16*W16 -> 1081435 | V23: 34885 | W23: 31
C26: =SUM(C12:C23) -> 117143073.2 | D26: =SUM(D12:D23) -> 4452476.22 | G26: =SUM(G12:G23) -> 51662808.82 | J26: =SUM(J12:J25) -> 49440257.79 | K26: 64151490.58 | L26: 15388421.14 | M26: 1879168.491 | N26: 2438325.873 | O26: 584896.5484 | P26: =SUM(P12:P23) -> 107693285.4 | Q26: 51319426.28 | R26: 66589816.45 | S26: 15973317.69 | T26: 498562.5829 | U26: 26189275
C29: Months | F29: System | G29: Utah | J29: Allocation Factors
C30: or Days | D30: Dth | E30: Rate | F30: Total | G30: Total
J31: Peak Demand Allocation Base
A32: II. Transportation (ML 104 demand) | C32: ='Other Inputs'!E29 -> 12 | D32: ='Other Inputs'!D29 -> 30000 | E32: ='Other Inputs'!F29 -> 5.28804 | F32: =C32*D32*E32 -> 1903694.4 | G32: =F32*J34 -> 1850909.545 | J32: Utah | K32: Wyo | L32: Total
J33: ='Other Inputs'!E159 -> 1305877.549 | K33: ='Other Inputs'!E160 -> 37241.45128 | L33: =J33+K33 -> 1343119
J34: =J33/L33 -> 0.9722724112 | K34: =K33/L33 -> 0.02772758875
A36: III. Transportation (TL 112 demand) | C36: ='Other Inputs'!E30 -> 12 | D36: ='Other Inputs'!D30 -> 12000 | E36: ='Other Inputs'!F30 -> 5.28804 | F36: =C36*D36*E36 -> 761477.76 | G36: =F36*J34 -> 740363.8178 | J36: Dth Sales Allocation Base
C37: ='Other Inputs'!E31 -> 5 | D37: ='Other Inputs'!D31 -> 75000 | E37: ='Other Inputs'!F31 -> 6.80887 | F37: =C37*D37*E37 -> 2553326.25 | G37: =F37*J34 -> 2482528.67 | J37: Utah | K37: Wyo | L37: Total
J38: =Calculations!P20 -> 111136128 | K38: =Calculations!P39 -> 4224159 | L38: =J38+K38 -> 115360287
A39: IV. Transportation (KR 2003 Expansion) | C39: ='Other Inputs'!E60 -> 12 | D39: ='Other Inputs'!D60 -> 3000 | E39: ='Other Inputs'!F60 -> 3.565133333 | F39: =C39*D39*E39 -> 128344.8 | J39: =J38/L38 -> 0.9633829014 | K39: =K38/L38 -> 0.03661709857
C40: ='Other Inputs'!E61 -> 5 | D40: ='Other Inputs'!D61 -> 50000 | E40: ='Other Inputs'!F61 -> 3.565133333 | F40: =C40*D40*E40 -> 891283.3333 | G40: =(F39+F40+F41)*J34 -> 1381553.512
C41: ='Other Inputs'!E62 -> 12 | D41: ='Other Inputs'!D62 -> 1885 | E41: ='Other Inputs'!F62 -> 17.74204167 | F41: =C41*D41*E41 -> 401324.9825
A43: V. Transportation (KR #20024) | C43: =+'Other Inputs'!E71 -> 5 | D43: =+'Other Inputs'!D71 -> 27000 | E43: =+'Other Inputs'!F71 -> 8.758 | F43: =C43*D43*E43 -> 1182330 | G43: =F43*J34 -> 1149546.84
A45: VI. Transportation (KR #20017) | C45: =+'Other Inputs'!E67 -> 3 | D45: =+'Other Inputs'!D67 -> 56925 | E45: =+'Other Inputs'!F67 -> 8.7 | F45: 1485742.5 | G45: =F45*J34 -> 1444546.443
C46: =+'Other Inputs'!E69 -> 2 | D46: =+'Other Inputs'!D69 -> 6000 | E46: =+'Other Inputs'!F69 -> 8.845 | F46: 106140 | G46: =F46*J34 -> 103196.9937
A48: VII. Transportation (Sequent) | C48: =+'Other Inputs'!E74 -> 8 | D48: =+'Other Inputs'!D74 -> 30000 | E48: =+'Other Inputs'!F74 -> 6.129675 | F48: =C48*D48*E48 -> 1471122 | G48: =F48*J34 -> 1430331.334
A50: VIII. Trans (KR 2003 Expansion) | B50: ='Other Inputs'!C81 -> 0.450125037 | C50: ='Other Inputs'!E80 -> 365 | D50: ='Other Inputs'!D80 -> 4885 | E50: ='Other Inputs'!F80 -> 0.0044 | F50: =B50*C50*D50*E50 -> 3531.370454
B51: ='Other Inputs'!C80 -> 0.450125037 | C51: ='Other Inputs'!E81 -> 151 | D51: ='Other Inputs'!D81 -> 50000 | E51: ='Other Inputs'!F81 -> 0.0044 | F51: =B51*C51*D51*E51 -> 14953.15373 | G51: =(F50+F51)*J39 -> 17807.67454
A53: IX. Transportation (KR #20024) | B53: =+'Other Inputs'!C87 -> 0.450125037 | C53: =+'Other Inputs'!E87 -> 151 | D53: =+'Other Inputs'!D87 -> 27000 | E53: =+'Other Inputs'!F87 -> 0.0044 | F53: =B53*C53*D53*E53 -> 8074.703014 | G53: =+F53*J39 -> 7779.030818
A55: X. Trans (KR #20017) | B55: =+'Other Inputs'!C84 -> 0.450125037 | C55: =+'Other Inputs'!E84 -> 90 | D55: =+'Other Inputs'!D84 -> 56925 | E55: =+'Other Inputs'!F84 -> 0.0044 | F55: =B55*C55*D55*E55 -> 10146.85362
B56: =+'Other Inputs'!C85 -> 0.450125037 | C56: =+'Other Inputs'!E85 -> 61 | D56: =+'Other Inputs'!D85 -> 6000 | E56: =+'Other Inputs'!F85 -> 0.0044 | F56: =B56*C56*D56*E56 -> 724.8813596 | G56: =(F55+F56)*J39 -> 10473.64359
A58: XI. Transportation (Sequent) | B58: =+'Other Inputs'!C90 -> 0.450125037 | C58: =+'Other Inputs'!E90 -> 243 | D58: =+'Other Inputs'!D90 -> 30000 | E58: =+'Other Inputs'!F90 -> 0.0044 | F58: =B58*C58*D58*E58 -> 14438.21069 | G58: =+F58*J39 -> 13909.5253
A60: XII. Other Trans, Gathering & Processing | F60: ='Other Inputs'!$D$195+'Other Inputs'!$D$197 -> 5883705.618 | G60: =F60*$J$39 -> 5668261.39
A62: XIII. Gathering Wexpro I | B62: Demand | F62: =+'Other Inputs'!E203 -> 11774616
A63: Wexpro I | B63: Commodity | F63: =+'Other Inputs'!D203 -> 6839686.458 | G63: =(F62)*'Ut 1.5'!G53+(F63)*'Ut 1.5'!G56 -> 18037371.27
A64: Wexpro II | B64: Commodity | F64: =+'Other Inputs'!D206 -> 9247770.711 | G64: =(F64)*'Ut 1.5'!G56 -> 8909144.179
A66: XIV. Storage Demand | C66: 12 | D66: ='Other Inputs'!E181 -> 184625 | E66: ='Other Inputs'!E14 -> 2.87375 | F66: =C66*D66*E66 -> 6366793.125
C67: 12 | D67: =+'Other Inputs'!E182 -> 2500000 | E67: =+'Other Inputs'!E15 -> 0.09 | F67: =C67*D67*E67 -> 2700000
C68: 12 | D68: ='Other Inputs'!E183 -> 111827 | E68: ='Other Inputs'!E16 -> 2.85338 | F68: =C68*D68*E68 -> 3829019.103
C69: 12 | D69: ='Other Inputs'!E184 -> 13419000 | E69: ='Other Inputs'!E17 -> 0.02378 | F69: =C69*D69*E69 -> 3829245.84 | G69: =SUM(F66:F69)*J34 -> 16261312.54
A71: XV. Peak Hour Service | C71: =+'Other Inputs'!E20 -> 3 | D71: =+'Other Inputs'!D20 -> 25000 | E71: =+'Other Inputs'!F20 -> 11.65333333 | F71: =C71*D71*E71 -> 874000 | G71: =F71*J34 -> 849766.0874
C72: =+'Other Inputs'!E23 -> 3 | D72: =+'Other Inputs'!D23 -> 83333.33333 | E72: =+'Other Inputs'!F23 -> 5.95126 | F72: =C72*D72*E72 -> 1487815 | G72: =F72*J34 -> 1446561.478
A75: Total Supplier Non-Gas Costs | G75: =G26+G32+G36+G37+G40+G51+G60+G64+G69+G63+G43+G45+G46+G53+G56+G58+G48+G71+G72 -> 113468172.8

Sheet SDR#3
I1: ='Control Panel'!E32 -> Dominion Energy Utah
I2: ='Control Panel'!E33 -> Docket No. 18-057-04
C5: Standard Data Request #3
C6: Monthly Forecasted Sales
D8: Utah Sales | F8: Wyoming Sales | H8: System Total
C9: Month | D9: Dth | F9: Dth | H9: Dth
B11: 1 | C11: =Calculations!D141 -> Jun18 | D11: =Calculations!D20 -> 3226449 | F11: =Calculations!D39 -> 135924 | H11: =SUM(D11:F11) -> 3362373
B13: =B11+1 -> 2 | C13: =Calculations!E141 -> Jul18 | D13: =Calculations!E20 -> 2697828 | F13: =Calculations!E39 -> 87473 | H13: =SUM(D13:F13) -> 2785301
B15: =B13+1 -> 3 | C15: =Calculations!F141 -> Aug18 | D15: =Calculations!F20 -> 2559869 | F15: =Calculations!F39 -> 85571 | H15: 2645440
B17: =B15+1 -> 4 | C17: =Calculations!G141 -> Sep18 | D17: =Calculations!G20 -> 2821070 | F17: =Calculations!G39 -> 122654 | H17: 2943724
B19: =B17+1 -> 5 | C19: =Calculations!H141 -> Oct18 | D19: =Calculations!H20 -> 7039740 | F19: =Calculations!H39 -> 250530 | H19: 7290270
B21: =B19+1 -> 6 | C21: =Calculations!I141 -> Nov18 | D21: =Calculations!I20 -> 12035217 | F21: =Calculations!I39 -> 445450 | H21: 12480667
B23: =B21+1 -> 7 | C23: =Calculations!J141 -> Dec18 | D23: =Calculations!J20 -> 18819474 | F23: =Calculations!J39 -> 655888 | H23: 19475362
B25: =B23+1 -> 8 | C25: =Calculations!K141 -> Jan19 | D25: =Calculations!K20 -> 19764985 | F25: =Calculations!K39 -> 682354 | H25: 20447339
B27: =B25+1 -> 9 | C27: =Calculations!L141 -> Feb19 | D27: =Calculations!L20 -> 16003223 | F27: =Calculations!L39 -> 618338 | H27: 16621561
B29: =B27+1 -> 10 | C29: =Calculations!M141 -> Mar19 | D29: =Calculations!M20 -> 12567681 | F29: =Calculations!M39 -> 523057 | H29: 13090738
B31: =B29+1 -> 11 | C31: =Calculations!N141 -> Apr19 | D31: =Calculations!N20 -> 8389472 | F31: =Calculations!N39 -> 371433 | H31: 8760905
B33: =B31+1 -> 12 | C33: =Calculations!O141 -> May19 | D33: =Calculations!O20 -> 5211120 | F33: =Calculations!O39 -> 245487 | H33: 5456607
B36: =B33+1 -> 13 | C36: Total Sales (Dth) | D36: =SUM(D11:D33) -> 111136128 | F36: =SUM(F11:F33) -> 4224159 | H36: =SUM(H11:H33) -> 115360287

Sheet SDR#4
H1: ='Control Panel'!E32 -> Dominion Energy Utah
H2: ='Control Panel'!E33 -> Docket No. 18-057-04
C5: Standard Data Request #4
C6: Supplier Non-Gas Costs Recovered at Current Rates
C9: (A) | D9: (B) | E9: (C) | F9: (D) | G9: (E)
B10: 1 | C10: Rate Schedule | D10: Season | E10: Sales Dth | F10: SNG Rate | G10: SNG Revenue
B12: =B10+1 -> 2 | C12: GS | D12: winter | E12: ='Utah Summary-by class'!B8 -> 76964934 | F12: ='Utah Summary-by class'!J8 -> 1.28418 | G12: =E12*F12 -> 98836828.94
B13: =B12+1 -> 3 | D13: summer | E13: ='Utah Summary-by class'!B9 -> 29564295 | F13: ='Utah Summary-by class'!J9 -> 0.60294 | G13: =E13*F13 -> 17825496.03
B15: =B13+1 -> 4 | C15: FS | D15: winter | E15: ='Utah Summary-by class'!B13 -> 1875393 | F15: ='Utah Summary-by class'!J13 -> 1.25074 | G15: =E15*F15 -> 2345629.041
B16: =B15+1 -> 5 | D16: summer | E16: ='Utah Summary-by class'!B14 -> 1881749 | F16: ='Utah Summary-by class'!J14 -> 0.60294 | G16: =E16*F16 -> 1134581.742
B18: =B16+1 -> 6 | C18: NGV | D18: annual | E18: ='Utah Summary-by class'!B18 -> 281652 | F18: ='Utah Summary-by class'!J18 -> 0.92669 | G18: =E18*F18 -> 261004.0919
B20: =B18+1 -> 7 | C20: IS | D20: annual | E20: ='Utah Summary-by class'!B21 -> 568105 | F20: ='Utah Summary-by class'!J21 -> 0.17864 | G20: =E20*F20 -> 101486.2772
B23: =B20+1 -> 8 | C23: Total Supplier Non-Gas Costs | E23: =SUM(E12:E20) -> 111136128 | G23: =SUM(G12:G20) -> 120505026.1

Sheet Wy SDR#1 (hidden)
A1: Wyoming Standard Data Request #1
A2: Global Insights Forecast

Sheet Ut 1.1
D4: Test Year Cost of Dominion Energy's Production
D5: June 2018 through May 2019
B7: WEXPRO I
B8: (A) | C8: (B) | D8: (C) | E8: (D) | F8: (E) | G8: (F) | H8: (G) | I8: (H)
F9: Base Year | G9: Market | H9: Royalty | I9: Test Year
B10: Field Name | C10: Well Name | D10: Formation | E10: Price $ | F10: Dth | G10: Value $ | H10: Rate % | I10: Royalty $
A12: 1 | B12: ACE UNIT (CO) | C12: ACE UNIT 10 FT UN | D12: MESAVERDE | E12: 2.133816891 | F12: 42407.392 | G12: 90489.60935 | H12: 0.1268519763 | I12: 11478.78578
A13: =A12+1 -> 2 | C13: ACE UNIT 11 FT UN | D13: FORT UNION | E13: 2.133816891 | F13: 42934.06 | G13: 91613.42243 | H13: 0.1268519763 | I13: 11621.34369
A14: =A13+1 -> 3 | C14: ACE UNIT 12 FT UN | D14: FORT UNION | E14: 2.133816891 | F14: 78080.182 | G14: 166608.8112 | H14: 0.1268519763 | I14: 21134.65697
A15: =A14+1 -> 4 | C15: ACE UNIT 13 FT UN | D15: FORT UNION | E15: 2.133816891 | F15: 37263.726 | G15: 79513.96796 | H15: 0.1268519763 | I15: 10086.50398
A16: 5 | C16: ACE UNIT 2 FT UN | D16: FORT UNION | E16: 2.133816891 | F16: 53080.354 | G16: 113263.7559 | H16: 0.1268519763 | I16: 14367.73129
A17: 6 | B17: BIRCH CR (WY) | C17: BIRCH CREEK UNIT 1 BR | D17: BEAR RIVER | E17: 2.133816891 | F17: 7205.904 | G17: 15376.07967 | H17: 0.1331519628 | I17: 2047.355188
A18: 7 | C18: BIRCH CREEK UNIT 1 BR - D24 | D18: BEAR RIVER | E18: 2.133816891 | F18: 2151.935 | G18: 4591.835251 | H18: 0.1331519628 | I18: 611.4118764
A19: 8 | C19: BIRCH CREEK UNIT 1 FR | D19: FRONTIER | E19: 2.133816891 | F19: 7196.511 | G19: 15356.03673 | H19: 0.1331519628 | I19: 2044.686431
A20: 9 | C20: BIRCH CREEK UNIT 1 FR - D24 | D20: FRONTIER | E20: 2.133816891 | F20: 2148.737 | G20: 4585.011305 | H20: 0.1331519628 | I20: 610.5032546
A21: 10 | C21: BIRCH CREEK UNIT 100 FR | D21: FRONTIER | E21: 2.133816891 | F21: 7747.244 | G21: 16531.20011 | H21: 0.1331519628 | I21: 2201.161741
A22: 11 | C22: BIRCH CREEK UNIT 101 BR | D22: BEAR RIVER | E22: 2.133816891 | F22: 599.98 | G22: 1280.247458 | H22: 0.1331519628 | I22: 170.4674619
A23: 12 | C23: BIRCH CREEK UNIT 101 FR | D23: FRONTIER | E23: 2.133816891 | F23: 11408.99 | G23: 24344.69557 | H23: 0.1331519628 | I23: 3241.543998
A24: 13 | C24: BIRCH CREEK UNIT 103 BR | D24: BEAR RIVER | E24: 2.133816891 | F24: 1064.097 | G24: 2270.588152 | H24: 0.1331519628 | I24: 302.3332691
A25: 14 | C25: BIRCH CREEK UNIT 103 FR | D25: FRONTIER | E25: 2.133816891 | F25: 9581.378 | G25: 20444.90622 | H25: 0.1331519628 | I25: 2722.279391
A26: 15 | C26: BIRCH CREEK UNIT 104 BR | D26: BEAR RIVER | E26: 2.133816891 | F26: 2757.95 | G26: 5884.960295 | H26: 0.1331519628 | I26: 783.594014
A27: 16 | C27: BIRCH CREEK UNIT 104 FR | D27: FRONTIER | E27: 2.133816891 | F27: 11757.086 | G27: 25087.4687 | H27: 0.1331519628 | I27: 3340.445698
A28: 17 | C28: BIRCH CREEK UNIT 105 BR | D28: BEAR RIVER | E28: 2.133816891 | F28: 8011.155 | G28: 17094.33786 | H28: 0.1331519628 | I28: 2276.144638
A29: 18 | C29: BIRCH CREEK UNIT 105 FR | D29: FRONTIER | E29: 2.133816891 | F29: 9031.531 | G29: 19271.6334 | H29: 0.1331519628 | I29: 2566.055813
A30: 19 | C30: BIRCH CREEK UNIT 106 BR | D30: BEAR RIVER | E30: 2.133816891 | F30: 5655.072 | G30: 12066.88815 | H30: 0.1331519628 | I30: 1606.729842
A31: 20 | C31: BIRCH CREEK UNIT 106 FR | D31: FRONTIER | E31: 2.133816891 | F31: 20060.772 | G31: 42806.01414 | H31: 0.1331519628 | I31: 5699.704801
A32: 21 | C32: BIRCH CREEK UNIT 107 BR | D32: BEAR RIVER | E32: 2.133816891 | F32: 2970.611 | G32: 6338.739928 | H32: 0.1331519628 | I32: 844.0156629
A33: 22 | C33: BIRCH CREEK UNIT 107 FR | D33: FRONTIER | E33: 2.133816891 | F33: 2849.265 | G33: 6079.809784 | H33: 0.1331519628 | I33: 809.538606
A34: 23 | C34: BIRCH CREEK UNIT 108 BR | D34: BEAR RIVER | E34: 2.133816891 | F34: 1694.056 | G34: 3614.805307 | H34: 0.1331519628 | I34: 481.3184217
A35: 24 | C35: BIRCH CREEK UNIT 108 FR | D35: FRONTIER | E35: 2.133816891 | F35: 8278.142 | G35: 17664.03923 | H35: 0.1331519628 | I35: 2352.001493
A36: 25 | C36: BIRCH CREEK UNIT 109 BAX | D36: BAXTER | E36: 2.133816891 | F36: 3890.092 | G36: 8300.744017 | H36: 0.13375 | I36: 1110.224512
A37: 26 | C37: BIRCH CREEK UNIT 109 BR | D37: BEAR RIVER | E37: 2.133816891 | F37: 9357.121 | G37: 19966.38284 | H37: 0.1331519628 | I37: 2658.563065
A38: 27 | C38: BIRCH CREEK UNIT 109 FR | D38: FRONTIER | E38: 2.133816891 | F38: 8507.787 | G38: 18154.05961 | H38: 0.1331519628 | I38: 2417.248669
A39: 28 | C39: BIRCH CREEK UNIT 110 BR | D39: BEAR RIVER | E39: 2.133816891 | F39: 10797.837 | G39: 23040.60698 | H39: 0.1331519628 | I39: 3067.902042
A40: 29 | C40: BIRCH CREEK UNIT 110 FR | D40: FRONTIER | E40: 2.133816891 | F40: 9968.056 | G40: 21270.00626 | H40: 0.1331519628 | I40: 2832.143082
A41: 30 | C41: BIRCH CREEK UNIT 111 BR | D41: BEAR RIVER | E41: 2.133816891 | F41: 10633.71 | G41: 22690.39001 | H41: 0.1331519628 | I41: 3021.269966
A42: 31 | C42: BIRCH CREEK UNIT 111 FR | D42: FRONTIER | E42: 2.133816891 | F42: 3931.844 | G42: 8389.83514 | H42: 0.1331519628 | I42: 1117.123016
A43: 32 | C43: BIRCH CREEK UNIT 112 BR | D43: BEAR RIVER | E43: 2.133816891 | F43: 4739.133 | G43: 10112.44204 | H43: 0.1331519628 | I43: 1346.491507
A44: 33 | C44: BIRCH CREEK UNIT 112 FR | D44: FRONTIER | E44: 2.133816891 | F44: 12806.911 | G44: 27327.60301 | H44: 0.1331519628 | I44: 3638.723979
A45: 34 | C45: BIRCH CREEK UNIT 113 BR | D45: BEAR RIVER | E45: 2.133816891 | F45: 12221.759 | G45: 26078.99579 | H45: 0.1331519628 | I45: 3472.469477
A46: 35 | C46: BIRCH CREEK UNIT 113 FR | D46: FRONTIER | E46: 2.133816891 | F46: 3652.036 | G46: 7792.776103 | H46: 0.1331519628 | I46: 1037.623434
A47: 36 | C47: BIRCH CREEK UNIT 114 BR | D47: BEAR RIVER | E47: 2.133816891 | F47: 16505.779 | G47: 35220.31003 | H47: 0.1331519628 | I47: 4689.65341
A48: 37 | C48: BIRCH CREEK UNIT 114 FR | D48: FRONTIER | E48: 2.133816891 | F48: 3865.8 | G48: 8248.909337 | H48: 0.1331519628 | I48: 1098.358469
A49: 38 | C49: BIRCH CREEK UNIT 115 BR | D49: BEAR RIVER | E49: 2.133816891 | F49: 4034.977 | G49: 8609.902077 | H49: 0.1331519628 | I49: 1146.425361
A50: 39 | C50: BIRCH CREEK UNIT 115 FR | D50: FRONTIER | E50: 2.133816891 | F50: 13516.647 | G50: 28842.04968 | H50: 0.1331519628 | I50: 3840.375525
A51: 40 | C51: BIRCH CREEK UNIT 116 BR | D51: BEAR RIVER | E51: 2.133816891 | F51: 7540.481 | G51: 16090.00572 | H51: 0.1331519628 | I51: 2142.415843
A52: 41 | C52: BIRCH CREEK UNIT 116 FR | D52: FRONTIER | E52: 2.133816891 | F52: 2648.259 | G52: 5650.899786 | H52: 0.1331519628 | I52: 752.4283979
A53: 42 | C53: BIRCH CREEK UNIT 117 BAX | D53: BAXTER | E53: 2.133816891 | F53: 909.917 | G53: 1941.596264 | H53: 0.13375 | I53: 259.6885003
A54: 43 | C54: BIRCH CREEK UNIT 117 BR | D54: BEAR RIVER | E54: 2.133816891 | F54: 605.05 | G54: 1291.06591 | H54: 0.1331519628 | I54: 171.90796
A55: 44 | C55: BIRCH CREEK UNIT 117 FR | D55: FRONTIER | E55: 2.133816891 | F55: 6068.231 | G55: 12948.49381 | H55: 0.1331519628 | I55: 1724.117365
A56: 45 | C56: BIRCH CREEK UNIT 118 BR | D56: BEAR RIVER | E56: 2.133816891 | F56: 1001.012 | G56: 2135.976314 | H56: 0.1331519628 | I56: 284.4094386
A57: 46 | C57: BIRCH CREEK UNIT 118 FR | D57: FRONTIER | E57: 2.133816891 | F57: 8985.598 | G57: 19173.62079 | H57: 0.1331519628 | I57: 2553.005241
A58: 47 | C58: BIRCH CREEK UNIT 119 BR | D58: BEAR RIVER | E58: 2.133816891 | F58: 4079.969 | G58: 8705.906767 | H58: 0.1331519628 | I58: 1159.208574
A59: 48 | C59: BIRCH CREEK UNIT 119 FR | D59: FRONTIER | E59: 2.133816891 | F59: 16331.545 | G59: 34848.52658 | H59: 0.1331519628 | I59: 4640.149713
A60: 49 | C60: BIRCH CREEK UNIT 121 BR | D60: BEAR RIVER | E60: 2.133816891 | F60: 17676.703 | G60: 37718.84744 | H60: 0.1331519628 | I60: 5022.33857
A61: 50 | C61: BIRCH CREEK UNIT 121 FR | D61: FRONTIER | E61: 2.133816891 | F61: 3619.994 | G61: 7724.404343 | H61: 0.1331519628 | I61: 1028.519599
A62: 51 | C62: BIRCH CREEK UNIT 122 BR | D62: BEAR RIVER | E62: 2.133816891 | F62: 3140.287 | G62: 6700.797443 | H62: 0.1331519628 | I62: 892.2243317
A63: 52 | C63: BIRCH CREEK UNIT 122 FR | D63: FRONTIER | E63: 2.133816891 | F63: 10806.068 | G63: 23058.17042 | H63: 0.1331519628 | I63: 3070.24065
A64: 53 | C64: BIRCH CREEK UNIT 123 BR | D64: BEAR RIVER | E64: 2.133816891 | F64: 4397.302 | G64: 9383.037283 | H64: 0.1331519628 | I64: 1249.369831
A65: 54 | C65: BIRCH CREEK UNIT 123 FR | D65: FRONTIER | E65: 2.133816891 | F65: 13183.77 | G65: 28131.75111 | H65: 0.1331519628 | I65: 3745.797877
A66: 55 | C66: BIRCH CREEK UNIT 124 BR | D66: BEAR RIVER | E66: 2.133816891 | F66: 3787.041 | G66: 8080.852053 | H66: 0.1331519628 | I66: 1075.981312
A67: 56 | C67: BIRCH CREEK UNIT 124 FR | D67: FRONTIER | E67: 2.133816891 | F67: 15128.131 | G67: 32280.66146 | H67: 0.1331519628 | I67: 4298.233432
A68: 57 | C68: BIRCH CREEK UNIT 126 BR | D68: BEAR RIVER | E68: 2.133816891 | F68: 8008.793 | G68: 17089.29778 | H68: 0.1331519628 | I68: 2275.473542
A69: 58 | C69: BIRCH CREEK UNIT 126 FR | D69: FRONTIER | E69: 2.133816891 | F69: 12018.457 | G69: 25645.18655 | H69: 0.1331519628 | I69: 3414.706925
A70: 59 | C70: BIRCH CREEK UNIT 127 BR | D70: DAKOTA | E70: 2.133816891 | F70: 6387.287 | G70: 13629.30089 | H70: 0.1331519628 | I70: 1814.768164
A71: 60 | C71: BIRCH CREEK UNIT 127 FR | D71: FRONTIER | E71: 2.133816891 | F71: 1593.908 | G71: 3401.107813 | H71: 0.1331519628 | I71: 452.8641809
A72: 61 | C72: BIRCH CREEK UNIT 128 FR | D72: FRONTIER | E72: 2.133816891 | F72: 24115.703 | G72: 51458.4944 | H72: 0.1331519628 | I72: 6851.79953
A73: 62 | C73: BIRCH CREEK UNIT 129 BR | D73: BEAR RIVER | E73: 2.133816891 | F73: 595.931 | G73: 1271.607634 | H73: 0.1331519628 | I73: 169.3170523
A74: 63 | C74: BIRCH CREEK UNIT 129 FR | D74: FRONTIER | E74: 2.133816891 | F74: 11279.537 | G74: 24068.46657 | H74: 0.1331519628 | I74: 3204.763565
A75: 64 | C75: BIRCH CREEK UNIT 130 BR | D75: BEAR RIVER | E75: 2.133816891 | F75: 9359.954 | G75: 19972.42794 | H75: 0.1331519628 | I75: 2659.367982
A76: 65 | C76: BIRCH CREEK UNIT 130 FR | D76: FRONTIER | E76: 2.133816891 | F76: 11443.204 | G76: 24417.70198 | H76: 0.1331519628 | I76: 3251.264945
A77: 66 | C77: BIRCH CREEK UNIT 131 FR | D77: FRONTIER | E77: 2.133816891 | F77: 16075.082 | G77: 34301.2815 | H77: 0.1331519628 | I77: 4567.282957
A78: 67 | C78: BIRCH CREEK UNIT 132 BR | D78: BEAR RIVER | E78: 2.133816891 | F78: 2986.178 | G78: 6371.957056 | H78: 0.1331519628 | I78: 848.4385887
A79: =A78+1 -> 68 | C79: BIRCH CREEK UNIT 132 FR | D79: FRONTIER | E79: 2.133816891 | F79: 16888.172 | G79: 36036.26667 | H79: 0.1331519628 | I79: 4798.299638
A80: 69 | C80: BIRCH CREEK UNIT 133 BR | D80: BEAR RIVER | E80: 2.133816891 | F80: 5605.715 | G80: 11961.56935 | H80: 0.1331519628 | I80: 1592.706437
A81: 70 | C81: BIRCH CREEK UNIT 133 FR | D81: FRONTIER | E81: 2.133816891 | F81: 22425.995 | G81: 47852.96693 | H81: 0.1331519628 | I81: 6371.716471
A82: 71 | C82: BIRCH CREEK UNIT 134 BR | D82: BEAR RIVER | E82: 2.133816891 | F82: 14366.159 | G82: 30654.75273 | H82: 0.1331519628 | I82: 4081.740495
A83: 72 | C83: BIRCH CREEK UNIT 134 FR | D83: FRONTIER | E83: 2.133816891 | F83: 19839.69 | G83: 42334.26563 | H83: 0.1331519628 | I83: 5636.890562
A84: 73 | C84: BIRCH CREEK UNIT 135 BR | D84: BEAR RIVER | E84: 2.133816891 | F84: 2424.119 | G84: 5172.626068 | H84: 0.1331519628 | I84: 688.7453136
A85: 74 | C85: BIRCH CREEK UNIT 135 FR | D85: FRONTIER | E85: 2.133816891 | F85: 3629.816 | G85: 7745.362692 | H85: 0.1331519628 | I85: 1031.310245
A86: 75 | C86: BIRCH CREEK UNIT 137 BR | D86: BEAR RIVER | E86: 2.133816891 | F86: 4563.124 | G86: 9736.871067 | H86: 0.1331519628 | I86: 1296.483494
A87: 76 | C87: BIRCH CREEK UNIT 137 FR | D87: FRONTIER | E87: 2.133816891 | F87: 7450.686 | G87: 15898.39964 | H87: 0.1331519628 | I87: 2116.903116
A88: 77 | C88: BIRCH CREEK UNIT 138 BR | D88: BEAR RIVER | E88: 2.133816891 | F88: 761.032 | G88: 1623.902936 | H88: 0.1331519628 | I88: 216.2258633
A89: 78 | C89: BIRCH CREEK UNIT 138 FR | D89: FRONTIER | E89: 2.133816891 | F89: 18281.983 | G89: 39010.40413 | H89: 0.1331519628 | I89: 5194.311878
A90: 79 | C90: BIRCH CREEK UNIT 139 BR | D90: BEAR RIVER | E90: 2.133816891 | F90: 6263.744 | G90: 13365.68275 | H90: 0.1331519628 | I90: 1779.666892
A91: 80 | C91: BIRCH CREEK UNIT 139 FR | D91: FRONTIER | E91: 2.133816891 | F91: 4495.77 | G91: 9593.149964 | H91: 0.1331519628 | I91: 1277.346747
A92: 81 | C92: BIRCH CREEK UNIT 13A BR | D92: BEAR RIVER | E92: 2.133816891 | F92: 8462.063 | G92: 18056.49296 | H92: 0.1331519628 | I92: 2404.257479
A93: 82 | C93: BIRCH CREEK UNIT 13A FR | D93: FRONTIER | E93: 2.133816891 | F93: 8453.557 | G93: 18038.34272 | H93: 0.1331519628 | I93: 2401.840738
A94: 83 | C94: BIRCH CREEK UNIT 140 BR | D94: BEAR RIVER | E94: 2.133816891 | F94: 3368.422 | G94: 7187.59576 | H94: 0.1331519628 | I94: 957.042483
A95: 84 | C95: BIRCH CREEK UNIT 140 FR | D95: FRONTIER | E95: 2.133816891 | F95: 19064.321 | G95: 40679.77017 | H95: 0.1331519628 | I95: 5416.591243
A96: 85 | C96: BIRCH CREEK UNIT 141 BR | D96: BEAR RIVER | E96: 2.133816891 | F96: 14228.458 | G96: 30360.92401 | H96: 0.1331519628 | I96: 4042.616624
A97: 86 | C97: BIRCH CREEK UNIT 141 FR | D97: FRONTIER | E97: 2.133816891 | F97: 4742.466 | G97: 10119.55406 | H97: 0.1331519628 | I97: 1347.438485
A98: 87 | C98: BIRCH CREEK UNIT 142 BR | D98: BEAR RIVER | E98: 2.133816891 | F98: 2873.331 | G98: 6131.162221 | H98: 0.1331519628 | I98: 816.3762838
A99: 88 | C99: BIRCH CREEK UNIT 142 FR | D99: FRONTIER | E99: 2.133816891 | F99: 6706.736 | G99: 14310.94656 | H99: 0.1331519628 | I99: 1905.530624
A100: 89 | C100: BIRCH CREEK UNIT 144 BR | D100: BEAR RIVER | E100: 2.133816891 | F100: 664.03 | G100: 1416.91843 | H100: 0.1331519628 | I100: 188.6654701
A101: 90 | C101: BIRCH CREEK UNIT 144 FR | D101: FRONTIER | E101: 2.133816891 | F101: 10335.541 | G101: 22054.15196 | H101: 0.1331519628 | I101: 2936.553621
A102: 91 | C102: BIRCH CREEK UNIT 145 BR | D102: BEAR RIVER | E102: 2.133816891 | F102: 1094.094 | G102: 2334.596258 | H102: 0.1331519628 | I102: 310.856074
A103: 92 | C103: BIRCH CREEK UNIT 145 FR | D103: FRONTIER | E103: 2.133816891 | F103: 7999.168 | G103: 17068.75979 | H103: 0.1331519628 | I103: 2272.738868
A104: 93 | C104: BIRCH CREEK UNIT 146 BR | D104: BEAR RIVER | E104: 2.133816891 | F104: 13055.608 | G104: 27858.27687 | H104: 0.1331519628 | I104: 3709.384245
A105: 94 | C105: BIRCH CREEK UNIT 146 FR | D105: FRONTIER | E105: 2.133816891 | F105: 4353.031 | G105: 9288.571075 | H105: 0.1331519628 | I105: 1236.79147
A106: 95 | C106: BIRCH CREEK UNIT 148 BR | D106: BEAR RIVER | E106: 2.133816891 | F106: 242.98 | G106: 518.4748282 | H106: 0.1331519628 | I106: 69.03594102
A107: 96 | C107: BIRCH CREEK UNIT 148 FR | D107: FRONTIER | E107: 2.133816891 | F107: 23775.82 | G107: 50733.24631 | H107: 0.1331519628 | I107: 6755.231324
A108: 97 | C108: BIRCH CREEK UNIT 149 BR | D108: BEAR RIVER | E108: 2.133816891 | F108: 4183.056 | G108: 8925.875549 | H108: 0.1331519628 | I108: 1188.497849
A109: 98 | C109: BIRCH CREEK UNIT 149 FR | D109: FRONTIER | E109: 2.133816891 | F109: 14833.401 | G109: 31651.76161 | H109: 0.1331519628 | I109: 4214.494183
A110: 99 | C110: BIRCH CREEK UNIT 151 BR | D110: BEAR RIVER | E110: 2.133816891 | F110: 4850.026 | G110: 10349.0674 | H110: 0.1331519628 | I110: 1377.998637
A111: 100 | C111: BIRCH CREEK UNIT 151 FR | D111: FRONTIER | E111: 2.133816891 | F111: 6694.767 | G111: 14285.40691 | H111: 0.1331519628 | I111: 1902.129968
A112: 101 | C112: BIRCH CREEK UNIT 153 ALMY | D112: ALMY | E112: 2.133816891 | F112: 1709.096 | G112: 3646.897913 | H112: 0.13375 | I112: 487.7725959
A113: 102 | C113: BIRCH CREEK UNIT 157 MESA | D113: MESAVERDE | E113: 2.133816891 | F113: 3895.576 | G113: 8312.445869 | H113: 0.13375 | I113: 1111.789635
A114: 103 | C114: BIRCH CREEK UNIT 159 MESA | D114: MESAVERDE | E114: 2.133816891 | F114: 8183.3 | G114: 17461.66376 | H114: 0.13375 | I114: 2335.497528
A115: 104 | C115: BIRCH CREEK UNIT 164 FR | D115: FRONTIER | E115: 2.133816891 | F115: 19666.437 | G115: 41964.57546 | H115: 0.1331519628 | I115: 5587.665589
A116: 105 | C116: BIRCH CREEK UNIT 166 BR | D116: BEAR RIVER | E116: 2.133816891 | F116: 5636.662 | G116: 12027.60458 | H116: 0.1331519628 | I116: 1601.499158
A117: 106 | C117: BIRCH CREEK UNIT 166 FR | D117: FRONTIER | E117: 2.133816891 | F117: 1408.001 | G117: 3004.416316 | H117: 0.1331519628 | I117: 400.0439295
A118: 107 | C118: BIRCH CREEK UNIT 167 BR | D118: BEAR RIVER | E118: 2.133816891 | F118: 1844.229 | G118: 3935.246991 | H118: 0.1331519628 | I118: 523.9858608
A119: 108 | C119: BIRCH CREEK UNIT 167 FR | D119: FRONTIER | E119: 2.133816891 | F119: 7376.354 | G119: 15739.78876 | H119: 0.1331519628 | I119: 2095.783767
A120: 109 | C120: BIRCH CREEK UNIT 168 BR | D120: BEAR RIVER | E120: 2.133816891 | F120: 1106.21 | G120: 2360.449583 | H120: 0.1331519628 | I120: 314.298495
A121: 110 | C121: BIRCH CREEK UNIT 168 RECOM BAX | D121: BAXTER | E121: 2.133816891 | F121: 3032.912 | G121: 6471.678855 | H121: 0.13375 | I121: 865.5870468
A122: 111 | C122: BIRCH CREEK UNIT 168 RECOM FR | D122: FRONTIER | E122: 2.133816891 | F122: 4509.95 | G122: 9623.407488 | H122: 0.1331519628 | I122: 1281.375595
A123: 112 | C123: BIRCH CREEK UNIT 169 BR | D123: BEAR RIVER | E123: 2.133816891 | F123: 3378.949 | G123: 7210.05845 | H123: 0.1331519628 | I123: 960.0334343
A124: 113 | C124: BIRCH CREEK UNIT 169 FR | D124: FRONTIER | E124: 2.133816891 | F124: 13508.014 | G124: 28823.62844 | H124: 0.1331519628 | I124: 3837.922701
A125: 114 | C125: BIRCH CREEK UNIT 173 BR | D125: BEAR RIVER | E125: 2.133816891 | F125: 7274.395 | G125: 15522.22692 | H125: 0.1331519628 | I125: 2066.814981
A126: 115 | C126: BIRCH CREEK UNIT 173 FR | D126: FRONTIER | E126: 2.133816891 | F126: 20700.267 | G126: 44170.57937 | H126: 0.1331519628 | I126: 5881.39934
A127: 116 | C127: BIRCH CREEK UNIT 174 BR | D127: BEAR RIVER | E127: 2.133816891 | F127: 11092.928 | G127: 23670.27714 | H127: 0.1331519628 | I127: 3151.74386
A128: 117 | C128: BIRCH CREEK UNIT 174 FR | D128: FRONTIER | E128: 2.133816891 | F128: 10969.571 | G128: 23407.05589 | H128: 0.1331519628 | I128: 3116.695434
A129: 118 | C129: BIRCH CREEK UNIT 177 BR | D129: BEAR RIVER | E129: 2.133816891 | F129: 3594.936 | G129: 7670.935159 | H129: 0.1331519628 | I129: 1021.400073
A130: 119 | C130: BIRCH CREEK UNIT 177 FR | D130: FRONTIER | E130: 2.133816891 | F130: 14392.78 | G130: 30711.55707 | H130: 0.1331519628 | I130: 4089.304104
A131: 120 | C131: BIRCH CREEK UNIT 178 BR | D131: BEAR RIVER | E131: 2.133816891 | F131: 5061.445 | G131: 10800.19683 | H131: 0.1331519628 | I131: 1438.067407
A132: 121 | C132: BIRCH CREEK UNIT 178 FR | D132: FRONTIER | E132: 2.133816891 | F132: 20245.69 | G132: 43200.59529 | H132: 0.1331519628 | I132: 5752.244056
A133: 122 | C133: BIRCH CREEK UNIT 179 BR | D133: BEAR RIVER | E133: 2.133816891 | F133: 5325.543 | G133: 11363.73361 | H133: 0.1331519628 | I133: 1513.103434
A134: 123 | C134: BIRCH CREEK UNIT 179 FR | D134: FRONTIER | E134: 2.133816891 | F134: 3547.769 | G134: 7570.289418 | H134: 0.1331519628 | I134: 1007.998895
A135: 124 | C135: BIRCH CREEK UNIT 180 FR | D135: FRONTIER | E135: 2.133816891 | F135: 13888.14 | G135: 29634.74772 | H135: 0.1331519628 | I135: 3945.924825
A136: 125 | C136: BIRCH CREEK UNIT 181 BR | D136: BEAR RIVER | E136: 2.133816891 | F136: 3079.994 | G136: 6572.143221 | H136: 0.1331519628 | I136: 875.0937695
A137: 126 | C137: BIRCH CREEK UNIT 181 FR | D137: FRONTIER | E137: 2.133816891 | F137: 12306.969 | G137: 26260.81833 | H137: 0.1331519628 | I137: 3496.679504
A138: 127 | C138: BIRCH CREEK UNIT 182 BR | D138: BEAR RIVER | E138: 2.133816891 | F138: 3657.773 | G138: 7805.017811 | H138: 0.1331519628 | I138: 1039.253441
A139: 128 | C139: BIRCH CREEK UNIT 182 FR | D139: FRONTIER | E139: 2.133816891 | F139: 5488.406 | G139: 11711.25343 | H139: 0.1331519628 | I139: 1559.37638
A140: 129 | C140: BIRCH CREEK UNIT 183 BR | D140: BEAR RIVER | E140: 2.133816891 | F140: 7416.952 | G140: 15826.41746 | H140: 0.1331519628 | I140: 2107.318548
A141: 130 | C141: BIRCH CREEK UNIT 183 FR | D141: FRONTIER | E141: 2.133816891 | F141: 11122.31 | G141: 23732.97295 | H141: 0.1331519628 | I141: 3160.09193
A142: 131 | C142: BIRCH CREEK UNIT 184 BR | D142: BEAR RIVER | E142: 2.133816891 | F142: 1944.942 | G142: 4150.150092 | H142: 0.1331519628 | I142: 552.6006305
A143: =A142+1 -> 132 | C143: BIRCH CREEK UNIT 184 FR | D143: FRONTIER | E143: 2.133816891 | F143: 17569.18 | G143: 37489.41305 | H143: 0.1331519628 | I143: 4991.78893
A144: 133 | C144: BIRCH CREEK UNIT 185 BR | D144: BEAR RIVER | E144: 2.133816891 | F144: 5493.878 | G144: 11722.92967 | H144: 0.1331519628 | I144: 1560.931095
A145: 134 | C145: BIRCH CREEK UNIT 185 FR | D145: FRONTIER | E145: 2.133816891 | F145: 12810.897 | G145: 27336.10841 | H145: 0.1331519628 | I145: 3639.856489
A146: 135 | C146: BIRCH CREEK UNIT 187 BR | D146: BEAR RIVER | E146: 2.133816891 | F146: 7537.411 | G146: 16083.45491 | H146: 0.1331519628 | I146: 2141.543589
A147: 136 | C147: BIRCH CREEK UNIT 187 FR | D147: FRONTIER | E147: 2.133816891 | F147: 13401.114 | G147: 28595.52341 | H147: 0.1331519628 | I147: 3807.550069
A148: 137 | C148: BIRCH CREEK UNIT 188 FR | D148: FRONTIER | E148: 2.133816891 | F148: 19595.029 | G148: 41812.20386 | H148: 0.1331519628 | I148: 5567.377012
A149: 138 | C149: BIRCH CREEK UNIT 189 BR | D149: BEAR RIVER | E149: 2.133816891 | F149: 7090.525 | G149: 15129.88201 | H149: 0.1331519628 | I149: 2014.573486
A150: 139 | C150: BIRCH CREEK UNIT 189 FR | D150: FRONTIER | E150: 2.133816891 | F150: 10205.077 | G150: 21775.76568 | H150: 0.1331519628 | I150: 2899.485941
A151: 140 | C151: BIRCH CREEK UNIT 190 BR | D151: BEAR RIVER | E151: 2.133816891 | F151: 2460.592 | G151: 5250.452772 | H151: 0.1331519628 | I151: 699.1080919
A152: 141 | C152: BIRCH CREEK UNIT 190 FR | D152: FRONTIER | E152: 2.133816891 | F152: 22114.817 | G152: 47188.97006 | H152: 0.1331519628 | I152: 6283.303984
A153: 142 | C153: BIRCH CREEK UNIT 191 BR | D153: BEAR RIVER | E153: 2.133816891 | F153: 3374.256 | G153: 7200.044447 | H153: 0.1331519628 | I153: 958.7000502
A154: 143 | C154: BIRCH CREEK UNIT 191 FR | D154: FRONTIER | E154: 2.133816891 | F154: 14397.247 | G154: 30721.08883 | H154: 0.1331519628 | I154: 4090.573276
A155: 144 | C155: BIRCH CREEK UNIT 192 BR | D155: BEAR RIVER | E155: 2.133816891 | F155: 1642.886 | G155: 3505.617897 | H155: 0.1331519628 | I155: 466.7799037
A156: 145 | C156: BIRCH CREEK UNIT 192 FR | D156: FRONTIER | E156: 2.133816891 | F156: 25769.158 | G156: 54986.66461 | H156: 0.1331519628 | I156: 7321.582319
A157: 146 | C157: BIRCH CREEK UNIT 193 BR | D157: BEAR RIVER | E157: 2.133816891 | F157: 885.927 | G157: 1890.405997 | H157: 0.1331519628 | I157: 251.7112689
A158: 147 | C158: BIRCH CREEK UNIT 193 FR | D158: FRONTIER | E158: 2.133816891 | F158: 16802.564 | G158: 35853.59488 | H158: 0.1331519628 | I158: 4773.97653
A159: 148 | C159: BIRCH CREEK UNIT 194 BR | D159: BEAR RIVER | E159: 2.133816891 | F159: 1640.105 | G159: 3499.683752 | H159: 0.1331519628 | I159: 465.9897607
A160: 149 | C160: BIRCH CREEK UNIT 194 FR | D160: FRONTIER | E160: 2.133816891 | F160: 25748.029 | G160: 54941.57919 | H160: 0.1331519628 | I160: 7315.579107
A161: 150 | C161: BIRCH CREEK UNIT 195 BR | D161: BEAR RIVER | E161: 2.133816891 | F161: 3817.62 | G161: 8146.102039 | H161: 0.1331519628 | I161: 1084.669475
A162: 151 | C162: BIRCH CREEK UNIT 195 FR | D162: FRONTIER | E162: 2.133816891 | F162: 27991.401 | G162: 59728.52426 | H162: 0.1331519628 | I162: 7952.970238
A163: 152 | C163: BIRCH CREEK UNIT 196 BR | D163: BEAR RIVER | E163: 2.133816891 | F163: 430.99 | G163: 919.6537419 | H163: 0.1331519628 | I163: 122.4537008
A164: 153 | C164: BIRCH CREEK UNIT 196 FR | D164: FRONTIER | E164: 2.133816891 | F164: 20945.53 | G164: 44693.92571 | H164: 0.1331519628 | I164: 5951.083931
A165: 154 | C165: BIRCH CREEK UNIT 198 BR | D165: BEAR RIVER | E165: 2.133816891 | F165: 3748.034 | G165: 7997.618257 | H165: 0.1331519628 | I165: 1064.898568
A166: 155 | C166: BIRCH CREEK UNIT 198 FR | D166: FRONTIER | E166: 2.133816891 | F166: 2205.139 | G166: 4705.362845 | H166: 0.1331519628 | I166: 626.5282984
A167: 156 | C167: BIRCH CREEK UNIT 199 BR | D167: BEAR RIVER | E167: 2.133816891 | F167: 1079.965 | G167: 2304.447559 | H167: 0.1331519628 | I167: 306.8417155
A168: 157 | C168: BIRCH CREEK UNIT 199 FR | D168: FRONTIER | E168: 2.133816891 | F168: 10912.341 | G168: 23284.93755 | H168: 0.1331519628 | I168: 3100.435137
A169: 158 | C169: BIRCH CREEK UNIT 2 BR | D169: BEAR RIVER | E169: 2.133816891 | F169: 4323.288 | G169: 9225.104959 | H169: 0.1331519628 | I169: 1228.340832
A170: 159 | C170: BIRCH CREEK UNIT 2 FR | D170: FRONTIER | E170: 2.133816891 | F170: 7062.711 | G170: 15070.53203 | H170: 0.1331519628 | I170: 2006.67092
A171: 160 | C171: BIRCH CREEK UNIT 200 BR | D171: BEAR RIVER | E171: 2.133816891 | F171: 2804.043 | G171: 5983.314317 | H171: 0.1331519628 | I171: 796.6900451
A172: 161 | C172: BIRCH CREEK UNIT 200 FR | D172: FRONTIER | E172: 2.133816891 | F172: 8420.727 | G172: 17968.28951 | H172: 0.1331519628 | I172: 2392.513015
A173: 162 | C173: BIRCH CREEK UNIT 201-25 BR | D173: BEAR RIVER | E173: 2.133816891 | F173: 2858.049 | G173: 6098.553232 | H173: 0.1331519628 | I173: 812.0343328
A174: 163 | C174: BIRCH CREEK UNIT 201-25 FR | D174: FRONTIER | E174: 2.133816891 | F174: 6672.25 | G174: 14237.35975 | H174: 0.1331519628 | I174: 1895.732395
A175: 164 | C175: BIRCH CREEK UNIT 202-25 BR | D175: BEAR RIVER | E175: 2.133816891 | F175: 4964.083 | G175: 10592.44415 | H175: 0.1331519628 | I175: 1410.40473
A176: 165 | C176: BIRCH CREEK UNIT 202-25 FR | D176: FRONTIER | E176: 2.133816891 | F176: 11585.278 | G176: 24720.86188 | H176: 0.1331519628 | I176: 3291.631281
A177: 166 | C177: BIRCH CREEK UNIT 203-25 BR | D177: BEAR RIVER | E177: 2.133816891 | F177: 7269.25 | G177: 15511.24844 | H177: 0.1331519628 | I177: 2065.353174
A178: 167 | C178: BIRCH CREEK UNIT 203-25 FR | D178: FRONTIER | E178: 2.133816891 | F178: 16949.455 | G178: 36167.03337 | H178: 0.1331519628 | I178: 4815.711481
A179: 168 | C179: BIRCH CREEK UNIT 26 FR | D179: FRONTIER | E179: 2.133816891 | F179: 9771.781 | G179: 20851.19135 | H179: 0.1331519628 | I179: 2776.377055
A180: 169 | C180: BIRCH CREEK UNIT 28 ALMY | D180: ALMY | E180: 2.133816891 | F180: 7082.361 | G180: 15112.46153 | H180: 0.13375 | I180: 2021.29173
A181: 170 | C181: BIRCH CREEK UNIT 3 FFR | D181: 1ST FRONTIER | E181: 2.133816891 | F181: 16504.014 | G181: 35216.54384 | H181: 0.1331519628 | I181: 4689.151935
A182: 171 | C182: BIRCH CREEK UNIT 33 ALMY | D182: ALMY | E182: 2.133816891 | F182: 13268.851 | G182: 28313.29839 | H182: 0.13375 | I182: 3786.903659
A183: 172 | C183: BIRCH CREEK UNIT 34 ALMY | D183: ALMY | E183: 2.133816891 | F183: 393.968 | G183: 840.6555729 | H183: 0.13375 | I183: 112.4376829
A184: 173 | C184: BIRCH CREEK UNIT 36 ALMY | D184: ALMY | E184: 2.133816891 | F184: 1585.083 | G184: 3382.276879 | H184: 0.13375 | I184: 452.3795326
A185: 174 | C185: BIRCH CREEK UNIT 38 ALMY | D185: ALMY | E185: 2.133816891 | F185: 5575.38 | G185: 11896.84002 | H185: 0.13375 | I185: 1591.202352
A186: 175 | C186: BIRCH CREEK UNIT 40 ALMY | D186: ALMY | E186: 2.133816891 | F186: 4916.404 | G186: 10490.7059 | H186: 0.13375 | I186: 1403.131914
A187: 176 | C187: BIRCH CREEK UNIT 43A BR | D187: BEAR RIVER | E187: 2.133816891 | F187: 1222.077 | G187: 2607.688545 | H187: 0.1331519628 | I187: 347.218848
A188: 177 | C188: BIRCH CREEK UNIT 43A FR | D188: FRONTIER | E188: 2.133816891 | F188: 11003.939 | G188: 23480.39091 | H188: 0.1331519628 | I188: 3126.460136
A189: 178 | C189: BIRCH CREEK UNIT 48 ALMY | D189: ALMY | E189: 2.133816891 | F189: 154.002 | G189: 328.6120689 | H189: 0.13375 | I189: 43.95186421
A190: 179 | C190: BIRCH CREEK UNIT 5 2ND FR | D190: FRONTIER | E190: 2.133816891 | F190: 2343.978 | G190: 5001.619849 | H190: 0.1331519628 | I190: 665.9754999
A191: 180 | C191: BIRCH CREEK UNIT 5 FR | D191: FORT UNION | E191: 2.133816891 | F191: 2539.902 | G191: 5419.685789 | H191: 0.1331519628 | I191: 721.6418004
A192: 181 | C192: BIRCH CREEK UNIT 52 ALMY | D192: ALMY | E192: 2.133816891 | F192: 199.98 | G192: 426.7207019 | H192: 0.13375 | I192: 57.07389387
A193: 182 | C193: BIRCH CREEK UNIT 56 2ND FR | D193: FRONTIER | E193: 2.133816891 | F193: 4756.262 | G193: 10148.99219 | H193: 0.1331519628 | I193: 1351.358231
A194: 183 | C194: BIRCH CREEK UNIT 58 MESA | D194: MESAVERDE | E194: 2.133816891 | F194: 729.082 | G194: 1555.727487 | H194: 0.1337500665 | I194: 208.0786548
A195: 184 | C195: BIRCH CREEK UNIT 6 FR | D195: FRONTIER | E195: 2.133816891 | F195: 11408.899 | G195: 24344.50139 | H195: 0.1331519628 | I195: 3241.518143
A196: 185 | C196: BIRCH CREEK UNIT 61 BR | D196: BEAR RIVER | E196: 2.133816891 | F196: 2673.798 | G196: 5705.395336 | H196: 0.1331519628 | I196: 759.6845873
A197: 186 | C197: BIRCH CREEK UNIT 61 FR | D197: FRONTIER | E197: 2.133816891 | F197: 10648.433 | G197: 22721.8062 | H197: 0.1331519628 | I197: 3025.453093
A198: 187 | C198: BIRCH CREEK UNIT 62 MESA | D198: MESAVERDE | E198: 2.133816891 | F198: 406.025 | G198: 866.3830032 | H198: 0.1337500665 | I198: 115.8787843
A199: 188 | C199: BIRCH CREEK UNIT 66 MESA | D199: ALMY | E199: 2.133816891 | F199: 2477.125 | G199: 5285.731166 | H199: 0.13375 | I199: 706.9665435
A200: 189 | C200: BIRCH CREEK UNIT 67 MESA | D200: MESAVERDE | E200: 2.133816891 | F200: 1075.066 | G200: 2293.99399 | H200: 0.13375 | I200: 306.8216961
A201: 190 | C201: BIRCH CREEK UNIT 69 MESA | D201: MESAVERDE | E201: 2.133816891 | F201: 1202.182 | G201: 2565.236258 | H201: 0.1337500665 | I201: 343.1005201
A202: 191 | C202: BIRCH CREEK UNIT 7 FR | D202: FRONTIER | E202: 2.133816891 | F202: 5611.953 | G202: 11974.8801 | H202: 0.1331519628 | I202: 1594.47879
A203: 192 | C203: BIRCH CREEK UNIT 74 ALMY | D203: ALMY | E203: 2.133816891 | F203: 1931.081 | G203: 4120.573256 | H203: 0.1337500665 | I203: 551.126947
A204: 193 | C204: BIRCH CREEK UNIT 8 FR | D204: FRONTIER | E204: 2.133816891 | F204: 16873.926 | G204: 36005.86832 | H204: 0.1331519628 | I204: 4794.252038
A205: 194 | C205: BIRCH CREEK UNIT 87 2ND FR | D205: FRONTIER | E205: 2.133816891 | F205: 8957.711 | G205: 19114.11504 | H205: 0.1331519628 | I205: 2545.081934
... 1468 more rows

Sheet Ut 1.2
H1: ='Control Panel'!$E$32 -> Dominion Energy Utah
H2: ='Control Panel'!$E$33 -> Docket No. 18-057-04
H3: DEU Exhibit 1.2
B8: TEST YEAR PURCHASED GAS COSTS
D11: (A) | E11: (B) | F11: (C) | G11: (D)
F12: Cost
C13: Component | E13: Dth | F13: per Dth | G13: Total Cost
B15: 1 | C15: Current Contracts | G15: =ROUND(Calculations!$P$186+Calculations!$P$189-G16,0) -> 51544035
B16: =B15+1 -> 2 | C16: Stabilization Costs | G16: ='Monthly Inputs'!S94 -> 0
B17: =B16+1 -> 3 | D17: Total Current Contracts | E17: =Calculations!$P$185+Calculations!$P$188 -> 19810000 | F17: =G17/E17 -> 2.60191999 | G17: =G15+G16 -> 51544035
B19: =B17+1 -> 4 | C19: Forecast Spot | E19: =Calculations!$P$182 -> 30543485.59 | F19: =G19/E19 -> 2.298267393 | G19: =ROUND(Calculations!P183,0) -> 70197097
B21: =B19+1 -> 5 | C21: Future Contracts | E21: =Calculations!P191 -> 1779209.414 | F21: =G21/E21 -> 2.140153357 | G21: =ROUND(Calculations!P192,0) -> 3807781
B24: =B21+1 -> 6 | C24: Total Gas Purchased | E24: =E17+E19+E21 -> 52132695 | F24: =G24/E24 -> 2.408256719 | G24: =G17+G19+G21 -> 125548913

Sheet Ut 1.3 p1
N1: ='Control Panel'!$E$32 -> Dominion Energy Utah
N2: ='Control Panel'!$E$33 -> Docket No. 18-057-04
N3: DEU Exhibit 1.3
N4: Page 1 of 2
B8: TEST YEAR TRANSPORTATION, GATHERING & PROCESSING CHARGES
B11: (A) | D11: (B) | F11: (C) | H11: (D) | J11: (E) | L11: (F) | M11: (G)
D12: Fctr | F12: Dth | H12: Months/Days | J12: Rate | M12: Total Costs
B14: TRANSPORTATION DEMAND
B16: QPC Demand
A17: 1 | B17: T-1 Transportation - Yearly | F17: ='Other Inputs'!D28+'Other Inputs'!D29+'Other Inputs'!D30 -> 840902 | G17: x | H17: ='Other Inputs'!E28 -> 12 | I17: x | J17: ='Other Inputs'!F28 -> 5.28804 | K17: = | L17: =ROUND(F17*H17*J17,0) -> 53360681
A18: =A17+1 -> 2 | B18: T-1 Transportation Nov-Mar | F18: ='Other Inputs'!D31 -> 75000 | G18: x | H18: ='Other Inputs'!E31 -> 5 | I18: x | J18: ='Other Inputs'!F31 -> 6.80887 | K18: = | L18: =ROUND(F18*H18*J18,0) -> 2553326
A19: =A18+1 -> 3 | B19: No-Notice Transportation | F19: ='Other Inputs'!D36 -> 203542 | G19: x | H19: ='Other Inputs'!E36 -> 12 | I19: x | J19: ='Other Inputs'!F36 -> 0.86753 | K19: = | L19: =ROUND(F19*H19*J19,0) -> 2118945
A20: =A19+1 -> 4 | B20: Capacity Release Credits | L20: =-ROUND('Other Inputs'!E321,0) -> 0
A21: =A20+1 -> 5 | C21: Total | L21: =SUM(L17:L20) -> 58032952
B23: Kern River Demand
A24: =A21+1 -> 6 | B24: January - December | F24: ='Other Inputs'!D62 -> 1885 | G24: x | H24: ='Other Inputs'!E62 -> 12 | I24: x | J24: ='Other Inputs'!F62 -> 17.74204167 | K24: = | L24: =ROUND(F24*H24*J24,0) -> 401325
A25: =A24+1 -> 7 | B25: October - April | F25: ='Other Inputs'!D60 -> 3000 | G25: x | H25: ='Other Inputs'!E60 -> 12 | I25: x | J25: ='Other Inputs'!F60 -> 3.565133333 | K25: = | L25: =ROUND(F25*H25*J25,0) -> 128345
A26: =A25+1 -> 8 | B26: November - March | F26: ='Other Inputs'!D61 -> 50000 | G26: x | H26: ='Other Inputs'!E61 -> 5 | I26: x | J26: =J25 -> 3.565133333 | K26: = | L26: =ROUND(F26*H26*J26,0) -> 891283
A27: =A26+1 -> 9 | B27: December - February | F27: ='Other Inputs'!D67 -> 56925 | G27: x | H27: ='Other Inputs'!E67 -> 3 | I27: x | J27: ='Other Inputs'!F67 -> 8.7 | K27: = | L27: =ROUND(F27*H27*J27,0) -> 1485743
A28: 10 | B28: November & March | F28: ='Other Inputs'!D69 -> 6000 | G28: x | H28: ='Other Inputs'!E69 -> 2 | I28: x | J28: ='Other Inputs'!F69 -> 8.845 | K28: = | L28: 106140
A29: 11 | B29: November - March | F29: ='Other Inputs'!D71 -> 27000 | G29: x | H29: ='Other Inputs'!E71 -> 5 | I29: x | J29: ='Other Inputs'!F71 -> 8.758 | K29: = | L29: 1182330
A30: 12 | B30: October - May | F30: ='Other Inputs'!D74 -> 30000 | G30: x | H30: ='Other Inputs'!E74 -> 8 | I30: x | J30: ='Other Inputs'!F74 -> 6.129675 | K30: = | L30: 1471122
A31: 13 | C31: Total | L31: =SUM(L24:L30) -> 5666288
A33: =A31+1 -> 14 | B33: Total Transportation Demand (SNG) | M33: =L21+L31 -> 63699240
B36: TRANSPORTATION COMMODITY
A38: =A33+1 -> 15 | B38: QPC Commodity (SNG) | F38: =F40-(D43*F43*H43)-(D44*F44*H44)-(D45*F45*H45)-(D46*F46*H46)-(D47*F47*H47)-(D48*F48*H48) -> 121595549.5 | I38: x | J38: ='Other Inputs'!F44 -> 0.00267 | K38: = | L38: =ROUND(F38*J38,0) -> 324660
A40: =A38+1 -> 16 | B40: Total ACA | F40: =Calculations!$P$173 -> 133383997.8 | I40: x | J40: ='Other Inputs'!F45 -> 0.0013 | K40: = | L40: =ROUND(F40*J40,0) -> 173399
B42: Kern River Commodity
A43: =A40+1 -> 17 | B43: January - December | D43: ='Other Inputs'!C80 -> 0.450125037 | E43: x | F43: ='Other Inputs'!D80 -> 4885 | G43: x | H43: ='Other Inputs'!E80 -> 365 | I43: x | J43: ='Other Inputs'!F80 -> 0.0044 | K43: = | L43: =ROUND(D43*F43*H43*J43,0) -> 3531
A44: =A43+1 -> 18 | B44: November - March | D44: ='Other Inputs'!C81 -> 0.450125037 | E44: x | F44: ='Other Inputs'!D81 -> 50000 | G44: x | H44: ='Other Inputs'!E81 -> 151 | I44: x | J44: ='Other Inputs'!F81 -> 0.0044 | K44: = | L44: =ROUND(D44*F44*H44*J44,0) -> 14953
A45: =A44+1 -> 19 | B45: November & March | D45: ='Other Inputs'!C85 -> 0.450125037 | E45: x | F45: ='Other Inputs'!D85 -> 6000 | G45: x | H45: ='Other Inputs'!E85 -> 61 | I45: x | J45: ='Other Inputs'!F85 -> 0.0044 | K45: = | L45: =ROUND(D45*F45*H45*J45,0) -> 725
A46: =A45+1 -> 20 | B46: December - February | D46: ='Other Inputs'!C84 -> 0.450125037 | E46: x | F46: ='Other Inputs'!D84 -> 56925 | G46: x | H46: ='Other Inputs'!E84 -> 90 | I46: x | J46: ='Other Inputs'!F84 -> 0.0044 | K46: = | L46: 10147
A47: 21 | B47: November - March | D47: ='Other Inputs'!C85 -> 0.450125037 | E47: x | F47: ='Other Inputs'!D87 -> 27000 | G47: x | H47: ='Other Inputs'!E87 -> 151 | I47: x | J47: ='Other Inputs'!F87 -> 0.0044 | K47: = | L47: 8075
A48: 22 | B48: December - February | D48: ='Other Inputs'!C90 -> 0.450125037 | E48: x | F48: ='Other Inputs'!D90 -> 30000 | G48: x | H48: ='Other Inputs'!E90 -> 243 | I48: x | J48: ='Other Inputs'!F90 -> 0.0044 | K48: = | L48: 14438
A49: =A48+1 -> 23 | C49: Total (SNG) | L49: =SUM(L43:L48) -> 51869
A51: =A49+1 -> 24 | B51: Total Transportation Commodity | M51: =L40+L49+L38 -> 549928
B54: OTHER CHARGES
A56: =A51+1 -> 25 | B56: Wexpro I Gathering Demand | L56: ='Other Inputs'!E203 -> 11774616
A57: =A56+1 -> 26 | B57: Wexpro I Gathering Commodity | L57: ='Other Inputs'!D203 -> 6839686.458
A58: =A57+1 -> 27 | C58: Total Wexpro I Gathering (SNG) | M58: =L56+L57 -> 18614302.46 | N58: 1/
A60: =A58+1 -> 28 | B60: Wexpro II Gathering | J60: ='Other Inputs'!D206 -> 9247770.711 | L60: ='Other Inputs'!D206 -> 9247770.711
A61: =A60+1 -> 29 | B61: Other Wexpro I Gathering Charges | L61: =ROUND('Other Inputs'!D195,0) -> 2040976
A62: =A61+1 -> 30 | B62: Other Transportation Charges | L62: =ROUND('Other Inputs'!$D$197,0) -> 3842730
A63: =A62+1 -> 31 | C63: Total Wexpro II Gathering, Other Gathering & Transportation | M63: =SUM(L60:L62) -> 15131476.71
B67: PEAK HOUR SERVICE
A68: =A63+1 -> 32 | B68: Mid November - Mid February | F68: ='Other Inputs'!D20 -> 25000 | G68: x | H68: ='Other Inputs'!E20 -> 3 | I68: x | J68: ='Other Inputs'!F20 -> 11.65333333 | K68: = | L68: =ROUND(F68*H68*J68,0) -> 874000
A69: =A68+1 -> 33 | B69: Mid November - Mid February | F69: ='Other Inputs'!D23 -> 83333.33333 | G69: x | H69: ='Other Inputs'!E23 -> 3 | I69: x | J69: ='Other Inputs'!F23 -> 5.95126 | K69: = | L69: =ROUND(F69*H69*J69,0) -> 1487815
A70: =A69+1 -> 34 | C70: Total Peak Hour Service | M70: =SUM(L68:L69) -> 2361815
A73: =A70+1 -> 35 | B73: TOTAL TRANSPORTATION AND OTHER CHARGES | M73: =SUM(M13:M71) -> 100356762.2
A78: 1/ | B78: See paragraph 7c in application.

Sheet Ut 1.3 p2
L1: ='Control Panel'!$E$32 -> Dominion Energy Utah
L2: ='Control Panel'!$E$33 -> Docket No. 18-057-04
L3: DEU Exhibit 1.3
L4: Page 2 of 2
B7: TEST YEAR STORAGE AND WORKING GAS CHARGES
B10: (A) | D10: (B) | F10: (C) | H10: (D) | J10: (E) | K10: (F)
B12: STORAGE CHARGES 1/
B14: Component | D14: Dth | F14: Months | H14: Rate | K14: Total Costs
B15: Storage Demand
A16: 1 | B16: Aquifer Peaking Demand | D16: ='Other Inputs'!E181 -> 184625 | E16: x | F16: 12 | G16: x | H16: ='Other Inputs'!E14 -> 2.87375 | I16: = | J16: =ROUND(D16*F16*H16,0) -> 6366793
A17: =A16+1 -> 2 | B17: Ryckman Demand | D17: ='Other Inputs'!E182 -> 2500000 | E17: x | F17: 12 | G17: x | H17: ='Other Inputs'!E15 -> 0.09 | I17: = | J17: =ROUND(D17*F17*H17,0) -> 2700000
A18: =A17+1 -> 3 | B18: Clay Basin Demand | D18: ='Other Inputs'!E183 -> 111827 | E18: x | F18: 12 | G18: x | H18: ='Other Inputs'!E16 -> 2.85338 | I18: = | J18: =ROUND(D18*F18*H18,0) -> 3829019
A19: 4 | B19: Clay Basin Capacity | D19: ='Other Inputs'!E184 -> 13419000 | E19: x | F19: 12 | G19: x | H19: ='Other Inputs'!E17 -> 0.02378 | I19: = | J19: =ROUND(D19*F19*H19,0) -> 3829246
A20: 5 | C20: Total Demand Charges (SNG) | J20: =SUM(J16:J19) -> 16725058
B22: Storage Commodity 2/
A23: =A20+1 -> 6 | B23: Aquifer Peaking Injections | D23: =(+'Monthly Inputs'!S24+'Monthly Inputs'!S26+'Monthly Inputs'!S27) -> 942036.9835 | F23: x | H23: ='Other Inputs'!E6 -> 0.03872 | I23: = | J23: =ROUND(D23*H23,0) -> 36476
A24: =A23+1 -> 7 | B24: Aquifer Peaking Withdrawals | D24: =(+'Monthly Inputs'!S32+'Monthly Inputs'!S34+'Monthly Inputs'!S35) -> 922125.1984 | F24: x | H24: ='Other Inputs'!E7 -> 0.03872 | I24: = | J24: =ROUND(D24*H24,0) -> 35705
A25: =A24+1 -> 8 | B25: Ryckman Injections | D25: ='Monthly Inputs'!S28 -> 2500161.987 | F25: x | H25: ='Other Inputs'!E8 -> 0.015 | I25: = | J25: =ROUND(D25*H25,0) -> 37502
A26: =A25+1 -> 9 | B26: Ryckman Withdrawals | D26: ='Monthly Inputs'!S36 -> 2033588.085 | F26: x | H26: ='Other Inputs'!E9 -> 0.01 | I26: = | J26: 20336
A27: 10 | B27: Clay Basin Injections | D27: ='Monthly Inputs'!S25 -> 13542869.79 | F27: x | H27: ='Other Inputs'!E10 -> 0.01049 | I27: = | J27: =ROUND(D27*H27,0) -> 142065
A28: =A27+1 -> 11 | B28: Clay Basin Withdrawals | D28: ='Monthly Inputs'!S33 -> 13017604.41 | F28: x | H28: ='Other Inputs'!E11 -> 0.01781 | I28: = | J28: =ROUND(D28*H28,0) -> 231844
A29: =A28+1 -> 12 | C29: Total Commodity Charges | J29: =SUM(J23:J28) -> 503928
A31: =A29+1 -> 13 | B31: Total Storage Charges | K31: =J20+J29 -> 17228986
B34: WORKING GAS CHARGES - QGC Account 164
C36: Month | D36: Amount | H36: Pre-Tax Return %
A38: =A31+1 -> 14 | C38: =+'Rate Base'!H8 -> 2017-03-19 | D38: =+'Rate Base'!H206 -> 8937825.64
A39: =A38+1 -> 15 | C39: =+'Rate Base'!I8 -> 2017-04-18 | D39: =+'Rate Base'!I206 -> 5265628.42
A40: 16 | C40: =+'Rate Base'!J8 -> 2017-05-18 | D40: =+'Rate Base'!J206 -> 9895288.84
A41: 17 | C41: =+'Rate Base'!K8 -> 2017-06-17 | D41: =+'Rate Base'!K206 -> 21769885.13
A42: 18 | C42: =+'Rate Base'!L8 -> 2017-07-17 | D42: =+'Rate Base'!L206 -> 34448175.63
A43: 19 | C43: =+'Rate Base'!M8 -> 2017-08-16 | D43: =+'Rate Base'!M206 -> 48018857.41
A44: 20 | C44: =+'Rate Base'!N8 -> 2017-09-17 | D44: =+'Rate Base'!N206 -> 58860691.74
A45: 21 | C45: =+'Rate Base'!O8 -> 2017-10-19 | D45: =+'Rate Base'!O206 -> 59031895.8
A46: 22 | C46: =+'Rate Base'!P8 -> 2017-11-18 | D46: =+'Rate Base'!P206 -> 59289969.15
A47: 23 | C47: =+'Rate Base'!Q8 -> 2017-12-18 | D47: =+'Rate Base'!Q206 -> 52891066.75
A48: 24 | C48: =+'Rate Base'!R8 -> 2018-01-18 | D48: =+'Rate Base'!R206 -> 36606333
A49: 25 | C49: =+'Rate Base'!S8 -> 2018-02-17 | D49: =+'Rate Base'!S206 -> 23198516
A50: 26 | C50: =+'Rate Base'!T8 -> 2018-03-19 | D50: =+'Rate Base'!T206 -> 9114305
A53: =A50+1 -> 27 | B53: 12-Month Average 3/ | D53: =(SUM(D39:D49)+D38/2+D50/2)/12 -> 34858531.1 | F53: x | H53: ='Other Inputs'!E311 -> 0.0933 | J53: = | K53: =D53*H53 -> 3252300.952
A56: =A53+1 -> 28 | B56: TOTAL FIRM STORAGE AND WORKING GAS CHARGES | K56: =K53+K31 -> 20481286.95
A60: 1/ | B60: Dominion Energy Questar Pipeline, LLC Tariff included in DEU Exhibit 1.9.
A61: 2/ | B61: Dominion Energy planned volumes.
A62: 3/ | B62: (½ of Line 14 + sum of Lines 15 through 25 + ½ of Line 26) / 12

Sheet Ut 1.4 p1
G1: ='Control Panel'!$E$32 -> Dominion Energy Utah
G2: ='Control Panel'!$E$33 -> Docket No. 18-057-04
G3: DEU Exhibit 1.4
G4: Page 1 of 3
B8: SUMMARY OF TEST-YEAR GAS RELATED COSTS AND REVENUES CREDITS
B11: (A) | E11: (B) | F11: (C) | G11: (D)
B12: Component | E12: Costs | F12: Dth 1/ | G12: $ per Dth
B14: WEXPRO I
A15: 1 | C15: Dominion Energy Production 2/ | E15: ='Other Inputs'!D214 -> 220993340.5
A16: =A15+1 -> 2 | C16: Wexpro I Revenue Sharing Credits 3/ | E16: =-'Ut 1.4 p3'!H28 -> -14088956.59
A17: =A16+1 -> 3 | D17: Net Dominion Energy Production Costs | E17: =E15+E16 -> 206904383.9 | F17: =F22 -> 46952524.06 | G17: =E17/F22 -> 4.406672229
A19: =A17+1 -> 4 | D19: Gathering 4/ | E19: ='Ut 1.3 p1'!L61+'Ut 1.3 p1'!M58 -> 20655278.46
A22: =A19+1 -> 5 | B22: Total Wexpro I Cost of Production | E22: =SUM(E17:E19) -> 227559662.3 | F22: ='Monthly Inputs'!S7*(1-'Other Inputs'!E315) -> 46952524.06 | G22: =E22/F22 -> 4.846590612
B24: WEXPRO II
A25: =A22+1 -> 6 | C25: Wexpro II Production 5/ | E25: ='Other Inputs'!D235 -> 50843439.31
A26: =A25+1 -> 7 | C26: Wexpro II Revenue Sharing Credits 6/ | E26: =-'Ut 1.4 p3'!H44 -> -1439101.552
A27: =A26+1 -> 8 | D27: Net Cost of Wexpro II Production | E27: =E25+E26 -> 49404337.76 | F27: =F32 -> 20740163 | G27: =E27/F32 -> 2.38206121
A29: =A27+1 -> 9 | D29: Gathering 7/ | E29: ='Ut 1.3 p1'!L60 -> 9247770.711
A32: =A29+1 -> 10 | B32: Total Wexpro II Cost of Production | E32: =SUM(E27:E29) -> 58652108.47 | F32: ='Monthly Inputs'!S13*(1-'Other Inputs'!E315) -> 20740163 | G32: =E32/F32 -> 2.827948289
A34: =A32+1 -> 11 | B34: Sales of Cost-of-Service Gas 8/ | E34: =-'Other Inputs'!E253 -> 0 | F34: ='Other Inputs'!F253 -> 0 | G34: ='Other Inputs'!G253 -> 0
A37: =A34+1 -> 12 | B37: Total Cost-of-Service Production | E37: =E22+E32+E34 -> 286211770.8 | F37: =F22+F32 -> 67692687.06 | G37: =E37/F37 -> 4.228104737
A39: =A37+1 -> 13 | B39: Dominion Energy Contract Gas 9/ | E39: ='Ut 1.2'!G24 -> 125548913 | F39: ='Ut 1.2'!E24 -> 52132695 | G39: =E39/F39 -> 2.408256719
A41: =A39+1 -> 14 | B41: Injection / Withdrawal Adjustment 10/ | E41: ='Ut 1.4 p2'!H23 -> -1335832.737
A43: =A41+1 -> 15 | B43: Transportation, Other Costs & Peak Hour Service 11/ | E43: ='Ut 1.3 p1'!M33+'Ut 1.3 p1'!M51+'Ut 1.3 p1'!L62+'Ut 1.3 p1'!M70 -> 70453713 | F43: ='Ut 1.3 p1'!F40 -> 133383997.8 | G43: =E43/F43 -> 0.5282021392
A45: =A43+1 -> 16 | B45: Storage and Working Gas 12/ | E45: ='Ut 1.3 p2'!K56 -> 20481286.95
B47: Gas Management Costs | E47: ='Ut 1.3 p1'!M65 -> 0
A50: =A45+1 -> 17 | B50: Dominion Energy - Related Gas Costs for Rate Purposes 13/ | E50: =E37+E39+E41+E43+E45+E47 -> 501359851 | F50: ='Ut 1.6 p1'!H20 -> 115360287 | G50: =E50/F50 -> 4.346035053
A53: 1/ | B53: Estimated into-pipe volumes used for Wexpro dths.
A54: 2/ | B54: DEU Exhibit 1.1, Page 18, Line 1425, Column H.
A55: 3/ | B55: DEU Exhibit 1.4, Page 3, Line 8.
A56: 4/ | B56: DEU Exhibit 1.3, Page 1, Lines 27 + 29.
A57: 5/ | B57: DEU Exhibit 1.1, Page 21, Line 1654, Column H.
A58: 6/ | B58: DEU Exhibit 1.4, Page 3, Line 16.
A59: 7/ | B59: DEU Exhibit 1.3, Page 1, Line 28.
A60: 8/ | B60: DEU Exhibit 1.4, Page 3, Line 17.
A61: 9/ | B61: DEU Exhibit 1.2, Line 6.
A62: 10/ | B62: DEU Exhibit 1.4, Page 2, Line 6.
A63: 11/ | B63: DEU Exhibit 1.3, Page 1, Lines 14 + 24 + 30 +34.
A64: 12/ | B64: DEU Exhibit 1.3, Page 2, Line 28.
A65: 13/ | B65: DEU Exhibit 1.6, Page 1, Line 4.

Sheet Ut 1.4 p2
J1: ='Control Panel'!$E$32 -> Dominion Energy Utah
J2: ='Control Panel'!$E$33 -> Docket No. 18-057-04
J3: DEU Exhibit 1.4
J4: Page 2 of 3
B8: ANNUALIZED UNIT COST OF STORAGE GAS
C11: (A) | E11: (B) | F11: (C) | H11: (D)
F12: Average
E13: Dth | F13: Rate | H13: Total Costs
B15: 1 | C15: Company Production 1/ | E15: ='Ut 1.4 p1'!F37 -> 67692687.06 | F15: =H15/E15 -> 4.228104737 | H15: ='Ut 1.4 p1'!E37 -> 286211770.8
B16: =B15+1 -> 2 | C16: Purchased Gas 2/ | E16: ='Ut 1.2'!E24 -> 52132695 | F16: =H16/E16 -> 2.408256719 | H16: ='Ut 1.2'!G24 -> 125548913
B17: =B16+1 -> 3 | C17: Average Price | E17: =SUM(E15:E16) -> 119825382.1 | F17: =(+H15+H16)/(+E15+E16) -> 3.436339419 | H17: =SUM(H15:H16) -> 411760683.8
C20: Storage 3/
B21: =B17+1 -> 4 | C21: Withdrawals | E21: ='Monthly Inputs'!S37 -> 15973317.69 | F21: ='Ut Storage'!L27 -> 4.047448985 | H21: =E21*F21 -> 64651188.47
B22: =B21+1 -> 5 | C22: Injections | E22: =-'Monthly Inputs'!S29 -> -16985068.77 | F22: ='Ut Storage'!K27 -> 3.885001711 | H22: =E22*F22 -> -65987021.21
B23: =B22+1 -> 6 | C23: Storage Adjustment | H23: =H21+H22 -> -1335832.737
B29: 1/ | C29: DEU Exhibit 1.4, Page 1, Line 12.
B30: 2/ | C30: DEU Exhibit 1.2, Line 6.
B31: 3/ | C31: Dominion Energy planned volumes.

Sheet Ut 1.4 p3
K1: ='Control Panel'!$E$32 -> Dominion Energy Utah
K2: ='Control Panel'!$E$33 -> Docket No. 18-057-04
K3: DEU Exhibit 1.4
K4: Page 3 of 3
D8: OTHER REVENUES 1/
C11: (A) | E11: (B) | F11: (C) | G11: (D)
C12: Account | G12: =Expenses!S8 -> 12 Months Ending
C13: Number | E13: Account Name | G13: ='Control Panel'!E7 -> 2019-05-31
C14: WEXPRO I
B15: 1 | D15: 483 | E15: Sales for Resale | H15: ='Other Inputs'!F221 -> 2451393
B17: =B15+1 -> 2 | D17: 490 | E17: Plant By-Product | H17: ='Other Inputs'!F222 -> 3053673
B19: =B17+1 -> 3 | D19: 492 | E19: Gasoline and Oil Sales | F19: ='Other Inputs'!F223 -> 557154.4443
B20: =B19+1 -> 4 | D20: 758-1 | E20: Gasoline and Oil Cost | F20: ='Other Inputs'!F226 -> -91874.76786
B21: =B20+1 -> 5 | E21: Net Gasoline and Oil Sales | H21: =F19+F20 -> 465279.6764
B23: =B21+1 -> 6 | D23: 495-1 | E23: Overriding Royalty Revenue | H23: ='Other Inputs'!F224 -> 8118610.917
B25: =B23+1 -> 7 | D25: 495-2 | E25: Oil Revenue Received from Wexpro | H25: ='Other Inputs'!F225 -> 0
B28: =B25+1 -> 8 | E28: Total Wexpro I | H28: =SUM(H15:H25) -> 14088956.59
C30: WEXPRO II
B31: =B28+1 -> 9 | D31: 483 | E31: Sales for Resale | H31: ='Other Inputs'!E242 -> 0
B33: =B31+1 -> 10 | D33: 490 | E33: Plant By-Product | H33: ='Other Inputs'!E243 -> 480000
B35: =B33+1 -> 11 | D35: 492 | E35: Gasoline and Oil Sales | F35: ='Other Inputs'!E244 -> 1676934.199
B36: =B35+1 -> 12 | D36: 758-1 | E36: Gasoline and Oil Cost | F36: ='Other Inputs'!E247 -> -281844.0078
B37: =B36+1 -> 13 | E37: Net Gasoline and Oil Sales | H37: =F35+F36 -> 1395090.191
B39: =B37+1 -> 14 | D39: 495-1 | E39: Overriding Royalty Revenue | H39: ='Other Inputs'!E245 -> 0
B41: =B39+1 -> 15 | D41: 495-2 | E41: Oil Revenue Received from Wexpro | H41: ='Other Inputs'!E246 -> -435988.6389
B44: =B41+1 -> 16 | E44: Total Wexpro II | H44: =SUM(H31:H41) -> 1439101.552
B46: 17 | E46: Sales of Cost-of-Service Gas | H46: ='Other Inputs'!E253 -> 0
B49: 18 | E49: Grand Total (Line 8 + Line 16 + Line 17) | H49: =H28+H44+H46 -> 15528058.15
B53: 1/ | D53: Forecasted 12-month test year.

Sheet Ut 1.5
H1: ='Control Panel'!$E$32 -> Dominion Energy Utah
H2: ='Control Panel'!$E$33 -> Docket No. 18-057-04
H3: DEU Exhibit 1.5
B8: TEST-YEAR GAS COST ALLOCATION
B11: (A) | D11: (B) | E11: (C) | F11: (D) | G11: (E)
D12: Allocation
D13: Factor 1/ | E13: System | F13: Wyoming | G13: Utah
A15: 1 | B15: Dominion Energy Production (DEU Exhibit 1.1) | D15: 2 | E15: ='Ut 1.4 p1'!E15+'Ut 1.4 p1'!E25 -> 271836779.8 | F15: =CHOOSE($D15,F$53,F$56)*$E15 -> 9953874.159 | G15: 261882905.6
A16: =A15+1 -> 2 | B16: Other Revenue's Credit (DEU Exhibit 1.4, p 3) | D16: 2 | E16: ='Ut 1.4 p1'!E16+'Ut 1.4 p1'!E26+'Ut 1.4 p1'!E34 -> -15528058.15 | F16: -568592.4357 | G16: -14959465.71
A17: =A16+1 -> 3 | B17: Gathering (DEU Exhibit 1.3, p 1) | C17: - Demand | D17: 1 | E17: ='Ut 1.3 p1'!L56 -> 11774616 | F17: 326481.7102 | G17: 11448134.29
A18: =A17+1 -> 4 | B18: Gathering | C18: - Commodity | D18: 2 | E18: ='Ut 1.3 p1'!L61+'Ut 1.3 p1'!L57+'Ut 1.3 p1'!L60 -> 18128433.17 | F18: 663810.6242 | G18: 17464622.54
A19: =A18+1 -> 5 | B19: Net Cost of Dominion Energy Production | E19: =SUM(E15:E18) -> 286211770.8 | F19: =SUM(F15:F18) -> 10375574.06 | G19: =SUM(G15:G18) -> 275836196.7
A21: =A19+1 -> 6 | B21: Dominion Energy Contract Gas (DEU Exhibit 1.2) | D21: 2 | E21: ='Ut 1.4 p1'!E39 -> 125548913 | F21: =CHOOSE($D21,F$53,F$56)*$E21 -> 4597236.923 | G21: =CHOOSE($D21,G$53,G$56)*$E21 -> 120951676.1
A24: =A21+1 -> 7 | B24: Injection / Withdrawal Adjustment (DEU Exhibit 1.4, p 1) | D24: 2 | E24: ='Ut 1.4 p1'!E41 -> -1335832.737 | F24: =CHOOSE($D24,F$53,F$56)*$E24 -> -48914.319 | G24: =CHOOSE($D24,G$53,G$56)*$E24 -> -1286918.418
A27: =A24+1 -> 8 | B27: Transportation (DEU Exhibit 1.3, p 1) | C27: - Demand | D27: 1 | E27: ='Ut 1.3 p1'!M33 -> 63699240 | F27: =CHOOSE($D27,F$53,F$56)*$E27 -> 1766226.331 | G27: =CHOOSE($D27,G$53,G$56)*$E27 -> 61933013.67
A28: =A27+1 -> 9 | B28: Transportation | C28: - Commodity | D28: 2 | E28: ='Ut 1.3 p1'!M51 -> 549928 | F28: =CHOOSE($D28,F$53,F$56)*$E28 -> 20136.76778 | G28: =CHOOSE($D28,G$53,G$56)*$E28 -> 529791.2322
A31: =A28+1 -> 10 | B31: Storage (DEU Exhibit 1.3, p 2) | C31: - Demand | D31: 1 | E31: ='Ut 1.3 p2'!J20 -> 16725058 | F31: =CHOOSE($D31,F$53,F$56)*$E31 -> 463745.5301 | G31: =CHOOSE($D31,G$53,G$56)*$E31 -> 16261312.47
A32: =A31+1 -> 11 | B32: Storage | C32: - Commodity | D32: 2 | E32: ='Ut 1.3 p2'!J29 -> 503928 | F32: =CHOOSE($D32,F$53,F$56)*$E32 -> 18452.38125 | G32: =CHOOSE($D32,G$53,G$56)*$E32 -> 485475.6188
A35: =A32+1 -> 12 | B35: Other Transportation - Commodity (DEU Exhibit 1.3, p 1) | D35: 2 | E35: ='Ut 1.3 p1'!L62 -> 3842730 | F35: =CHOOSE($D35,F$53,F$56)*$E35 -> 140709.6232 | G35: =CHOOSE($D35,G$53,G$56)*$E35 -> 3702020.377
A38: =A35+1 -> 13 | B38: Working Gas Costs (DEU Exhibit 1.3, p 2) | D38: 2 | E38: ='Ut 1.3 p2'!K53 -> 3252300.952 | F38: =CHOOSE($D38,F$53,F$56)*$E38 -> 119089.8245 | G38: =CHOOSE($D38,G$53,G$56)*$E38 -> 3133211.127
A40: =A38+1 -> 14 | B40: Peak Hour Service (DEU Exhibit 1.3, p 1) | D40: 1 | E40: ='Ut 1.3 p1'!M70 -> 2361815 | F40: =CHOOSE($D40,F$53,F$56)*$E40 -> 65487.43503 | G40: =CHOOSE($D40,G$53,G$56)*$E40 -> 2296327.565
A43: =A40+1 -> 15 | B43: Totals | E43: =SUM(E19:E40) -> 501359851 | F43: =SUM(F19:F40) -> 17517744.55 | G43: 483842106.4
A50: 1/ | B50: Allocation Factors | E50: Total | F50: Wyoming | G50: Utah
B52: #1 Peak Day Demand | D52: Dth- | E52: =SUM(F52:G52) -> 1343119 | F52: ='Other Inputs'!$E$160 -> 37241.45128 | G52: ='Other Inputs'!$E$159 -> 1305877.549
D53: Percent- | E53: =F53+G53 -> 1 | F53: =F52/E52 -> 0.02772758875 | G53: =G52/E52 -> 0.9722724112
B55: #2 Commodity Sales - All | D55: Dth- | E55: =F55+G55 -> 115360287 | F55: ='Ut 1.6 p1'!H19 -> 4224159 | G55: ='Ut 1.6 p1'!H18 -> 111136128
D56: Percent- | E56: =F56+G56 -> 1 | F56: =F55/E55 -> 0.03661709857 | G56: =G55/E55 -> 0.9633829014

Sheet Ut 1.6 p1
J1: ='Control Panel'!$E$32 -> Dominion Energy Utah
J2: ='Control Panel'!$E$33 -> Docket No. 18-057-04
J3: DEU Exhibit 1.6
J4: Page 1 of 3
B8: TEST-YEAR GAS COST CHANGE
B11: (A) | C11: (B) | D11: (C) | F11: (D) | H11: (E) | J11: (F)
F12: Average Rate | H12: x Dth | I12: = | J12: Total
A13: 1 | B13: Utah Allocation of Dominion Energy - Related Gas Costs (DEU Exhibit 1.5) 1/ | J13: ='Ut 1.5'!G43 -> 483842106.4
H15: Total
B16: Test-Year Sales: | D16: Firm | F16: + Interruptible | H16: = Sales Dth
A18: =A13+1 -> 2 | B18: Utah | D18: =Calculations!P13 -> 110568023 | F18: =Calculations!P17 -> 568105 | H18: =D18+F18 -> 111136128
A19: =A18+1 -> 3 | B19: Wyoming | D19: =Calculations!P32 -> 4079915 | F19: =Calculations!P36 -> 144244 | H19: =D19+F19 -> 4224159
A20: =A19+1 -> 4 | B20: Total Dth | H20: =SUM(H18:H19) -> 115360287
A22: =A20+1 -> 5 | B22: Supplier Non-Gas Costs 2/ | J22: =(-'Ut 1.6 p2'!F14) -> -113468172.5
A25: =A22+1 -> 6 | B25: Commodity Portion of Test-Year Gas Cost (Lines 1 + 5) | J25: =J13+J22 -> 370373933.9
F28: Current Case | H28: Prior Case
B29: FIRM CUSTOMER RATES | F29: ='Control Panel'!E5 -> 18-057-04 | H29: ='Control Panel'!E9 -> 17-057-20 | J29: Difference
A31: =A25+1 -> 7 | B31: Gas Cost (line 6/Total Sales Dth, line 4) | F31: =ROUND((J25)/H18,5) -> 3.33262 | H31: ='Other Inputs'!F135 -> 4.08676 | J31: =F31-H31 -> -0.75414
A32: =A31+1 -> 8 | B32: 191 Account Amortization (Commodity Portion) 3/ | F32: ='Other Inputs'!F136 -> 0.13552 | H32: ='Other Inputs'!F136 -> 0.13552 | J32: =F32-H32 -> 0
A33: =A32+1 -> 9 | B33: Total Sales Unit Commodity Cost (Lines 7 + 8) | F33: =F31+F32 -> 3.46814 | H33: =H31+H32 -> 4.22228 | J33: =J31+J32 -> -0.75414
A43: 1/ | B43: DEU Exhibit 1.5, Line 15, Column E.
A45: 2/ | B45: Test Year Estimate of Transportation, Gathering, and Storage billings.
A47: 3/ | B47: Amortization from Docket No. 17-057-20. | G47: =15003719/110713192 -> 0.1355188007
B48: Commodity amortization will be adjusted in the 2018 fall pass-through.

Sheet Ut 1.6 p2
G1: ='Control Panel'!$E$32 -> Dominion Energy Utah
G2: ='Control Panel'!$E$33 -> Docket No. 18-057-04
G3: DEU Exhibit 1.6
G4: Page 2 of 3
C8: TEST-YEAR SUPPLIER NON-GAS COST CHANGE
C11: (A) | D11: (B) | E11: (C) | F11: (D)
D12: Dth | E12: Average Rate | F12: Total
B14: 1 | C14: Supplier Non-Gas (SNG) Costs 1/ | F14: ='Ut 1.5'!G27+'Ut 1.5'!G31+'Ut 1.5'!G17+'Ut 1.5'!G40+(+'Ut 1.3 p1'!L38+'Ut 1.3 p1'!L49+'Ut 1.3 p1'!L61+'Ut 1.3 p1'!L62+'Ut 1.3 p1'!L57+'Ut 1.3 p1'!L60)*'Ut 1.5'!G56 -> 113468172.5
B15: =B14+1 -> 2 | C15: 191 Account Balance for SNG Costs 2/ | F15: =E46 -> 8079403
B16: =1+B15 -> 3 | C16: Total | F16: =SUM(F14:F15) -> 121547575.5
B19: =B16+1 -> 4 | C19: SNG Costs Recovered at Current Rates 3/ | F19: ='Other Inputs'!E259-(D29*('Other Inputs'!G111-'Other Inputs'!F260)) -> 120505026.1
B22: =1+B19 -> 5 | C22: SNG Costs Adjustment to Current Rates (Line 3 - Line 4) | F22: =F16-F19 -> 1042549.433
B28: 6a | C28: Adjustment for SNG contributions from:
B29: 6b | C29: IS SNG current rate | D29: ='RevRun Fcst'!T102+'RevRun Fcst'!T93 -> 568105 | E29: ='Ut 1.6 p3'!E24 -> 0.17864 | F29: =D29*E29 -> 101486.2772
B30: 6c | C30: IS SNG new rate | D30: ='RevRun Fcst'!T102+'RevRun Fcst'!T93 -> 568105 | E30: ='Ut 1.6 p3'!I24 -> 0.17864 | F30: =D30*E30 -> 101486.2772
B35: =2+B22 -> 7 | C35: Percent Change to Current Rates | F35: =(((+F16-F30)-(F19-F29))/(F19-F29))*100 -> 0.8658793878 | G35: %
C36: ((ln 3-ln 6c)-(ln 4-ln 6b))/(ln 4-ln 6b)
B42: 1/ | C42: DEU Exhibit 1.6, Page 1, Line 5.
B44: 2/ | C44: March 2018 SNG Balance | E44: ='Other Inputs'!E154 -> -11920597
C45: Expected March 2018 SNG Balance | E45: -20000000
C46: SNG Amortization | E46: =E44-E45 -> 8079403
B48: 3/ | C48: ="Output of Revrun.Exe computer program dated "&'RevRun Fcst'!D4 -> Output of Revrun.Exe computer program dated 04/05/18

Sheet Ut 1.6 p3
I1: ='Control Panel'!$E$32 -> Dominion Energy Utah
I2: ='Control Panel'!$E$33 -> Docket No. 18-057-04
I3: DEU Exhibit 1.6
I4: Page 3 of 3
F8: TEST YEAR CHANGE IN SUPPLIER NON-GAS COSTS
F9: BY RATE CLASS
C12: (A) | D12: (B) | E12: (C) | F12: (D) | G12: (E) | H12: (F) | I12: (G)
G13: Rate per Dth
C14: Rate Class | D14: Season | E14: Current total 1/ | F14: Curr. Base 1/ | G14: Calc. Base 2/ | H14: Amortization 3/ | I14: Total 4/ | K14: CHECK !!
B16: 1 | C16: GS | D16: Winter | E16: ='Other Inputs'!G103 -> 1.28418 | F16: ='Other Inputs'!E103 -> 1.23368 | G16: =ROUND(E16*('Ut 1.6 p2'!$F$14-'Ut 1.6 p2'!$F$30)/('Ut 1.6 p2'!$F$19-'Ut 1.6 p2'!$F$29),5) -> 1.20913 | H16: =I16-G16 -> 0.08617 | I16: =ROUND(E16*ROUND(1+'Ut 1.6 p2'!$F$35/100,7),5)+M16 -> 1.2953 | K16: =ROUND(G16*('Ut 1.6 p2'!$F$15)/('Ut 1.6 p2'!$F$14-'Ut 1.6 p2'!$F$30),5)-H16 -> 1.387778781e-16
B17: =B16+1 -> 2 | D17: Summer | E17: ='Other Inputs'!G104 -> 0.60294 | F17: ='Other Inputs'!E104 -> 0.57923 | G17: =ROUND(E17*('Ut 1.6 p2'!$F$14-'Ut 1.6 p2'!$F$30)/('Ut 1.6 p2'!$F$19-'Ut 1.6 p2'!$F$29),5) -> 0.5677 | H17: =I17-G17 -> 0.04046 | I17: =ROUND(E17*ROUND(1+'Ut 1.6 p2'!$F$35/100,7),5)+M17 -> 0.60816 | K17: =ROUND(G17*('Ut 1.6 p2'!$F$15)/('Ut 1.6 p2'!$F$14-'Ut 1.6 p2'!$F$30),5)-H17 -> 0
B19: =B17+1 -> 3 | C19: FS | D19: Winter | E19: ='Other Inputs'!G106 -> 1.25074 | F19: ='Other Inputs'!E106 -> 1.20155 | G19: =ROUND(E19*('Ut 1.6 p2'!$F$14-'Ut 1.6 p2'!$F$30)/('Ut 1.6 p2'!$F$19-'Ut 1.6 p2'!$F$29),5) -> 1.17764 | H19: =I19-G19 -> 0.08393 | I19: =ROUND(E19*ROUND(1+'Ut 1.6 p2'!$F$35/100,7),5)+M19 -> 1.26157 | K19: =ROUND(G19*('Ut 1.6 p2'!$F$15)/('Ut 1.6 p2'!$F$14-'Ut 1.6 p2'!$F$30),5)-H19 -> 0
B20: =B19+1 -> 4 | D20: Summer | E20: ='Other Inputs'!G107 -> 0.60294 | F20: ='Other Inputs'!E107 -> 0.57923 | G20: =ROUND(E20*('Ut 1.6 p2'!$F$14-'Ut 1.6 p2'!$F$30)/('Ut 1.6 p2'!$F$19-'Ut 1.6 p2'!$F$29),5) -> 0.5677 | H20: =I20-G20 -> 0.04046 | I20: =ROUND(E20*ROUND(1+'Ut 1.6 p2'!$F$35/100,7),5)+M20 -> 0.60816 | K20: =ROUND(G20*('Ut 1.6 p2'!$F$15)/('Ut 1.6 p2'!$F$14-'Ut 1.6 p2'!$F$30),5)-H20 -> 0
B22: =B20+1 -> 5 | C22: NGV | E22: ='Other Inputs'!G109 -> 0.92669 | F22: ='Other Inputs'!E109 -> 0.89024 | G22: =ROUND(E22*('Ut 1.6 p2'!$F$14-'Ut 1.6 p2'!$F$30)/('Ut 1.6 p2'!$F$19-'Ut 1.6 p2'!$F$29),5) -> 0.87253 | H22: =I22-G22 -> 0.06218 | I22: =ROUND(E22*ROUND(1+'Ut 1.6 p2'!$F$35/100,7),5)+M22 -> 0.93471 | K22: =ROUND(G22*('Ut 1.6 p2'!$F$15)/('Ut 1.6 p2'!$F$14-'Ut 1.6 p2'!$F$30),5)-H22 -> 0
B24: =B22+1 -> 6 | C24: IS 5/ | E24: ='Other Inputs'!F260 -> 0.17864 | F24: ='Other Inputs'!F260 -> 0.17864 | G24: ='Other Inputs'!$F$54 -> 0.17864 | H24: =I24-G24 -> 0 | I24: ='Other Inputs'!$F$54 -> 0.17864
B31: 1/ | C31: Current Dominon Energy Utah Tariff (excluding bad debt surcharge).
B33: 2/ | C33: DEU Exhibit 1.6 page 2 (line 1 - line 6c)/(line 4 - line 6b)*Exhibit 1.6 page 3 column C.
B35: 3/ | C35: Column G - Column E
B37: 4/ | C37: (Current Dominion Energy Utah rates) x (1+DEU Exhibit 1.6, Page 2, Line 7, % change).
C38: ="(except ln. 6, which is calculated by adding QPC T-2 and ACA rates, then adjusting for distr. loss of "&TEXT('Other Inputs'!E313,"0.000%") -> (except ln. 6, which is calculated by adding QPC T-2 and ACA rates, then adjusting for distr. loss of 0.460%
C39: ="= ("&TEXT('Other Inputs'!$F$48,"$0.00000")&" + "&TEXT('Other Inputs'!$F$50,"$0.00000")&") / ( 1 - "&TEXT('Other Inputs'!$E$313,"0.00000")&" ) = "&TEXT(('Other Inputs'!F48+'Other Inputs'!F50)/(1-('Other Inputs'!$E$313)),("$0.00000")) -> = ($0.17652 + $0.00130) / ( 1 - 0.00460 ) = $0.17864
B41: 5/ | C41: ="IS Tariff rate has an adjustment for bad debt of "&TEXT('Other Inputs'!$E$324,"0.00%")&" "&TEXT($I$24,"$0.00000")&" / ( 1 - "&TEXT('Other Inputs'!$E$324,"0.00000")&" ) = "&TEXT($I$24/(1-('Other Inputs'!$E$324)),("$0.00000")) -> IS Tariff rate has an adjustment for bad debt of 0.25% $0.17864 / ( 1 - 0.00250 ) = $0.17909

Sheet Ut 1.7
L1: ='Control Panel'!$E$32 -> Dominion Energy Utah
L2: ='Control Panel'!$E$33 -> Docket No. 18-057-04
L3: DEU Exhibit 1.7
C7: EFFECT ON GS TYPICAL CUSTOMER
C8: 80 DTHS - ANNUAL CONSUMPTION
C11: (A) | D11: (B) | E11: (C) | F11: (D) | H11: (E) | J11: (F)
F12: Billed at Tax Adjusted | H12: Billed at
C13: Rate | E13: Usage | F13: Rates Effective | H13: Proposed Rates
C14: Schedule | D14: Month | E14: In Dth | F14: ='Other Inputs'!J116 -> 2018-06-01 | H14: ='Control Panel'!E5 -> 18-057-04 | J14: Change
B16: 1 | C16: GS | D16: Jan | E16: ='Monthly Inputs'!G116 -> 14.9 | F16: =ROUND((+E16*'Other Inputs'!$G$118)+'Other Inputs'!$G$120,2) -> 128.23 | H16: =ROUND((+E16*'Ut 1.8'!$F$10)+'Ut 1.8'!$C$12,2) -> 117.16 | J16: =H16-F16 -> -11.07
B17: =B16+1 -> 2 | D17: Feb | E17: ='Monthly Inputs'!G117 -> 12.5 | F17: =ROUND((+E17*'Other Inputs'!$G$118)+'Other Inputs'!$G$120,2) -> 108.66 | H17: =ROUND((+E17*'Ut 1.8'!$F$10)+'Ut 1.8'!$C$12,2) -> 99.37 | J17: -9.29
B18: =B17+1 -> 3 | D18: Mar | E18: ='Monthly Inputs'!G118 -> 10.1 | F18: =ROUND((+E18*'Other Inputs'!$G$118)+'Other Inputs'!$G$120,2) -> 89.09 | H18: =ROUND((+E18*'Ut 1.8'!$F$10)+'Ut 1.8'!$C$12,2) -> 81.59 | J18: -7.5
B19: 4 | D19: Apr | E19: ='Monthly Inputs'!G119 -> 8.3 | F19: =ROUND((+E19*'Other Inputs'!$G$116)+'Other Inputs'!$G$120,2) -> 63.37 | H19: =ROUND((+E19*'Ut 1.8'!$C$10)+'Ut 1.8'!$C$12,2) -> 57.15 | J19: -6.22
B20: 5 | D20: May | E20: ='Monthly Inputs'!G120 -> 4.4 | F20: =ROUND((+E20*'Other Inputs'!$G$116)+'Other Inputs'!$G$120,2) -> 36.76 | H20: =ROUND((+E20*'Ut 1.8'!$C$10)+'Ut 1.8'!$C$12,2) -> 33.47 | J20: -3.29
B21: 6 | D21: Jun | E21: ='Monthly Inputs'!G121 -> 3.1 | F21: =ROUND((+E21*'Other Inputs'!$G$116)+'Other Inputs'!$G$120,2) -> 27.9 | H21: =ROUND((+E21*'Ut 1.8'!$C$10)+'Ut 1.8'!$C$12,2) -> 25.57 | J21: -2.33
B22: 7 | D22: Jul | E22: ='Monthly Inputs'!G122 -> 2 | F22: =ROUND((+E22*'Other Inputs'!$G$116)+'Other Inputs'!$G$120,2) -> 20.39 | H22: =ROUND((+E22*'Ut 1.8'!$C$10)+'Ut 1.8'!$C$12,2) -> 18.89 | J22: -1.5
B23: 8 | D23: Aug | E23: ='Monthly Inputs'!G123 -> 1.8 | F23: =ROUND((+E23*'Other Inputs'!$G$116)+'Other Inputs'!$G$120,2) -> 19.03 | H23: =ROUND((+E23*'Ut 1.8'!$C$10)+'Ut 1.8'!$C$12,2) -> 17.68 | J23: -1.35
B24: 9 | D24: Sep | E24: ='Monthly Inputs'!G124 -> 2 | F24: =ROUND((+E24*'Other Inputs'!$G$116)+'Other Inputs'!$G$120,2) -> 20.39 | H24: =ROUND((+E24*'Ut 1.8'!$C$10)+'Ut 1.8'!$C$12,2) -> 18.89 | J24: -1.5
B25: 10 | D25: Oct | E25: ='Monthly Inputs'!G125 -> 3.1 | F25: =ROUND((+E25*'Other Inputs'!$G$116)+'Other Inputs'!$G$120,2) -> 27.9 | H25: =ROUND((+E25*'Ut 1.8'!$C$10)+'Ut 1.8'!$C$12,2) -> 25.57 | J25: -2.33
B26: 11 | D26: Nov | E26: ='Monthly Inputs'!G126 -> 6.3 | F26: =ROUND((+E26*'Other Inputs'!$G$118)+'Other Inputs'!$G$120,2) -> 58.11 | H26: =ROUND((+E26*'Ut 1.8'!$F$10)+'Ut 1.8'!$C$12,2) -> 53.43 | J26: -4.68
B27: 12 | D27: Dec | E27: ='Monthly Inputs'!G127 -> 11.5 | F27: =ROUND((+E27*'Other Inputs'!$G$118)+'Other Inputs'!$G$120,2) -> 100.51 | H27: =ROUND((+E27*'Ut 1.8'!$F$10)+'Ut 1.8'!$C$12,2) -> 91.96 | J27: -8.55
B30: =B27+1 -> 13 | D30: Total | E30: =SUM(E16:E27) -> 80 | F30: =SUM(F16:F27) -> 700.34 | H30: =SUM(H16:H27) -> 640.73 | J30: =H30-F30 -> -59.61
B32: =B30+1 -> 14 | H32: Percent Change: | J32: =ROUND(J30/F30,4)*100 -> -8.51 | K32: %

Sheet Ut 1.7 Tot (hidden)
L1: ='Control Panel'!$E$32 -> Dominion Energy Utah
L2: Docket Nos. 08-057-15, 08-057-16 & 08-057-17
L3: Hearing Exhibit 2
A5: NOT USED
C7: EFFECT ON GS-1 TYPICAL CUSTOMER
B8: OF PROPOSED COMMODITY AND SNG RATES AND CET AND DSM AMORTIZATIONS
C9: 80 DTHS - ANNUAL CONSUMPTION
C12: (A) | D12: (B) | E12: (C) | F12: (D) | H12: (E) | J12: (F)
F13: Billed at Current | H13: Billed at
C14: Rate | E14: Usage | F14: Rates Effective | H14: Proposed
C15: Schedule | D15: Month | E15: In Dth | F15: ='Other Inputs'!J116 -> 2018-06-01 | H15: Rates | J15: Change
B17: 1 | C17: GS | D17: Jan | E17: ='Monthly Inputs'!G116 -> 14.9 | F17: =ROUND((+E17*'Other Inputs'!$G$118)+'Other Inputs'!$G$120,2) -> 128.23 | H17: ='CET & DSM'!D107 -> 137.7 | J17: =H17-F17 -> 9.47
B18: =B17+1 -> 2 | D18: Feb | E18: ='Monthly Inputs'!G117 -> 12.5 | F18: =ROUND((+E18*'Other Inputs'!$G$118)+'Other Inputs'!$G$120,2) -> 108.66 | H18: ='CET & DSM'!D108 -> 116.61 | J18: 7.95
B19: 3 | D19: Mar | E19: ='Monthly Inputs'!G118 -> 10.1 | F19: =ROUND((+E19*'Other Inputs'!$G$118)+'Other Inputs'!$G$120,2) -> 89.09 | H19: ='CET & DSM'!D109 -> 95.52 | J19: 6.43
B20: 4 | D20: Apr | E20: ='Monthly Inputs'!G119 -> 8.3 | F20: =ROUND((+E20*'Other Inputs'!$G$116)+'Other Inputs'!$G$120,2) -> 63.37 | H20: ='CET & DSM'!D110 -> 63.51 | J20: 0.14
B21: 5 | D21: May | E21: ='Monthly Inputs'!G120 -> 4.4 | F21: =ROUND((+E21*'Other Inputs'!$G$116)+'Other Inputs'!$G$120,2) -> 36.76 | H21: ='CET & DSM'!D111 -> 36.84 | J21: 0.08
B22: 6 | D22: Jun | E22: ='Monthly Inputs'!G121 -> 3.1 | F22: =ROUND((+E22*'Other Inputs'!$G$116)+'Other Inputs'!$G$120,2) -> 27.9 | H22: ='CET & DSM'!D112 -> 27.95 | J22: 0.05
B23: 7 | D23: Jul | E23: ='Monthly Inputs'!G122 -> 2 | F23: =ROUND((+E23*'Other Inputs'!$G$116)+'Other Inputs'!$G$120,2) -> 20.39 | H23: ='CET & DSM'!D113 -> 20.43 | J23: 0.04
B24: 8 | D24: Aug | E24: ='Monthly Inputs'!G123 -> 1.8 | F24: =ROUND((+E24*'Other Inputs'!$G$116)+'Other Inputs'!$G$120,2) -> 19.03 | H24: ='CET & DSM'!D114 -> 19.06 | J24: 0.03
B25: 9 | D25: Sep | E25: ='Monthly Inputs'!G124 -> 2 | F25: =ROUND((+E25*'Other Inputs'!$G$116)+'Other Inputs'!$G$120,2) -> 20.39 | H25: ='CET & DSM'!D115 -> 20.43 | J25: 0.04
B26: 10 | D26: Oct | E26: ='Monthly Inputs'!G125 -> 3.1 | F26: =ROUND((+E26*'Other Inputs'!$G$116)+'Other Inputs'!$G$120,2) -> 27.9 | H26: ='CET & DSM'!D116 -> 27.95 | J26: 0.05
B27: 11 | D27: Nov | E27: ='Monthly Inputs'!G126 -> 6.3 | F27: =ROUND((+E27*'Other Inputs'!$G$118)+'Other Inputs'!$G$120,2) -> 58.11 | H27: ='CET & DSM'!D117 -> 62.12 | J27: 4.01
B28: 12 | D28: Dec | E28: ='Monthly Inputs'!G127 -> 11.5 | F28: =ROUND((+E28*'Other Inputs'!$G$118)+'Other Inputs'!$G$120,2) -> 100.51 | H28: ='CET & DSM'!D118 -> 107.82 | J28: 7.31
B31: =B28+1 -> 13 | D31: Total | E31: =SUM(E17:E28) -> 80 | F31: =SUM(F17:F28) -> 700.34 | H31: =SUM(H17:H28) -> 735.94 | J31: =H31-F31 -> 35.6
H33: Percent Change: | J33: =ROUND(J31/F31,4)*100 -> 5.08 | K33: %

Sheet Ut 1.8 p1
F1: ='Control Panel'!E32 -> Dominion Energy Utah
F2: ='Control Panel'!E33 -> Docket No. 18-057-04
F3: DEU Exhibit 1.8
F4: Page 1 of 17
A15: DOMINION ENERGY UTAH
A16: 333 South State Street
A17: P.O. Box 45433
A18: Salt Lake City, Utah 84145-0433
A29: LEGISLATIVE/PROPOSED RATE SCHEDULES
A31: P.S.C. Utah No. 500
A32: Affecting All Firm Sales Rate Schedules
A33: and Classes of Service In
A34: Dominion Energy
A35: Utah Service Area
A39: Date Issued: May 1, 2018
A40: To Become Effective June 1, 2018

Sheet LEG - PR
A2: LEGISLATIVE TARIFF
A3: SHEETS
A6: PROPOSED TARIFF
A7: SHEETS

Sheet Ut 1.8
A1: SUMMARY OF PROPOSED RATES
A3: UTAH RATE CLASSES | C3: Rates per Dth Used Each Month
C4: All Season Rates or Summer Rates: Apr. 1 - Oct. 31 | F4: Winter Rates: Nov. 1 - Mar. 31
A5: UT GS | C5: First 45 Dth | D5: All Over 45 Dth | F5: First 45 Dth | G5: All Over 45 Dth
B6: Distribution Non-Gas Cost | C6: =2.11011-0.1141 -> 1.99601 | D6: =1.01362-0.1141 -> 0.89952 | F6: =2.793-0.14656 -> 2.64644 | G6: =1.6965-0.14656 -> 1.54994
B7: Supplier Non-Gas Cost | C7: ='Ut 1.6 p3'!I17 -> 0.60816 | D7: =C7 -> 0.60816 | F7: ='Ut 1.6 p3'!I16 -> 1.2953 | G7: =F7 -> 1.2953
B8: Commodity Cost | C8: =('Ut 1.6 p1'!$F$33) -> 3.46814 | D8: =C8 -> 3.46814 | F8: =D8 -> 3.46814 | G8: =F8 -> 3.46814
B10: Total Rate | C10: =SUM(C6:C9) -> 6.07231 | D10: =SUM(D6:D9) -> 4.97582 | F10: =SUM(F6:F9) -> 7.40988 | G10: =SUM(G6:G9) -> 6.31338
B12: BSF Category 1 | C12: 6.75
B13: BSF Category 2 | C13: 18.25
B14: BSF Category 3 | C14: 63.5
B15: BSF Category 4 | C15: 420.25
A18: UT FS | C18: First 200 Dth | D18: Next 1,800 Dth | E18: All Over 2,000 Dth | F18: First 200 Dth | G18: Next 1,800 Dth | H18: All Over 2,000 Dth
B19: Distribution Non-Gas Cost | C19: =0.90927-0.02696 -> 0.88231 | D19: =0.49229-0.02696 -> 0.46533 | E19: =0.05336-0.02696 -> 0.0264 | F19: =1.37712-0.0444 -> 1.33272 | G19: =0.96014-0.0444 -> 0.91574 | H19: =0.52121-0.0444 -> 0.47681
B20: Supplier Non-Gas Cost | C20: ='Ut 1.6 p3'!$I$20 -> 0.60816 | D20: =C20 -> 0.60816 | E20: =D20 -> 0.60816 | F20: ='Ut 1.6 p3'!$I$19 -> 1.26157 | G20: =F20 -> 1.26157 | H20: =G20 -> 1.26157
B21: Commodity Cost | C21: =('Ut 1.6 p1'!$F$33) -> 3.46814 | D21: =C21 -> 3.46814 | E21: =D21 -> 3.46814 | F21: =E21 -> 3.46814 | G21: =F21 -> 3.46814 | H21: =G21 -> 3.46814
B23: Total Rate | C23: =SUM(C19:C22) -> 4.95861 | D23: =SUM(D19:D22) -> 4.54163 | E23: 4.1027 | F23: 6.06243 | G23: 5.64545 | H23: 5.20652
B25: Minimum Monthly DNG Charge: | C25: 143 | F25: 218
B27: BSF Category 1 | C27: =C12 -> 6.75
B28: BSF Category 2 | C28: =C13 -> 18.25
B29: BSF Category 3 | C29: =C14 -> 63.5
B30: BSF Category 4 | C30: =C15 -> 420.25
A33: UT Future Rate Class
C34: First 10,000 Dth | D34: All Over 10,000 Dth
B35: Distribution Non-Gas Cost
B36: Supplier Non-Gas Cost
B37: Commodity Cost
B39: Total Rate | C39: =SUM(C35:C38) -> 0 | D39: =SUM(D35:D38) -> 0
B41: Minimum Yearly Distribution Non-Gas Charge | D41: =ROUND(((10000*C35))*12,-2) -> 0
B44: BSF Category 1 | C44: =C12 -> 6.75
B45: BSF Category 2 | C45: =C13 -> 18.25
B46: BSF Category 3 | C46: =C14 -> 63.5
B47: BSF Category 4 | C47: =C15 -> 420.25
A51: UT NGV
B52: Distribution Non-Gas Cost | C52: =6.40791-0.27797 -> 6.12994
B53: Supplier Non-Gas Cost | C53: ='Ut 1.6 p3'!I22 -> 0.93471
B54: Commodity Cost | C54: ='Ut 1.6 p1'!F33 -> 3.46814
B56: Total Rate | C56: =SUM(C52:C55) -> 10.53279
A59: UT IS | C59: First 2,000 Dth | D59: Next 18,000 Dth | E59: All Over 20,000
B60: Distribution Non-Gas Cost | C60: =0.62044-0.0245 -> 0.59594 | D60: =0.10299-0.0037 -> 0.09929 | E60: =0.06513-0.00218 -> 0.06295
B61: Supplier Non-Gas Cost | C61: ='Ut 1.6 p3'!$I$24/(1-'Other Inputs'!$E$324) -> 0.1790877193 | D61: =C61 -> 0.1790877193 | E61: =D61 -> 0.1790877193
B62: Commodity Cost | C62: =('Ut 1.6 p1'!$F$33) -> 3.46814 | D62: =('Ut 1.6 p1'!$F$33) -> 3.46814 | E62: =('Ut 1.6 p1'!$F$33) -> 3.46814
B64: Total Rate | C64: =SUM(C60:C62) -> 4.243167719 | D64: =SUM(D60:D62) -> 3.746517719 | E64: 3.710177719
B66: BSF Category 1 | C66: =C12 -> 6.75
B67: BSF Category 2 | C67: =C13 -> 18.25
B68: BSF Category 3 | C68: 63.5
B69: BSF Category 4 | C69: 420.25

Sheet Ut 1.9
D1: ='Control Panel'!$E$32 -> Dominion Energy Utah
D2: ='Control Panel'!$E$33 -> Docket No. 18-057-04
D3: DEU Exhibit 1.9
D4: Page 1 of 2
D51: ='Control Panel'!$E$32 -> Dominion Energy Utah
D52: ='Control Panel'!$E$33 -> Docket No. 18-057-04
D53: DEU Exhibit 1.9
D54: Page 2 of 2

Sheet Ut 1.11 (hidden)
F1: ='Control Panel'!E32 -> Dominion Energy Utah
F2: ='Control Panel'!E33 -> Docket No. 18-057-04
F3: Exhibit 1.11
F4: Page 1 of 7
A17: DOMINION ENERGY UTAH
A18: 333 South State Street
A19: P.O. Box 45433
A20: Salt Lake City, Utah 84145-0433
A31: LEGISLATIVE/PROPOSED RATE SCHEDULES
A32: P.S.C. Utah Tariff

Sheet Ut Storage
A1: Storage Injection / Withdrawal adjustment
C3: (A) | D3: (B) | E3: (C) | F3: (D) | G3: (E) | H3: (F) | I3: (G) | K3: (H) | L3: (I) | M3: (J)
G4: Injections | I4: (J) / (C)
E5: Storage | G5: ------------------------------------------------------------- | I5: Storage | M5: Storage
C6: Injection Dth | D6: Withdrawal Dth | E6: Inventory Dth | F6: % that is | G6: Co. Prod. | H6: Purchased | I6: Inventory | M6: Inventory
A7: Line | B7: Month | C7: Per IRPs | D7: Per IRPs | E7: Balance | F7: Co. Prod. (1) | G7: $/Dth (2) | H7: $/Dth (3) | I7: Average $/Dth | K7: Injection (4) | L7: Withdrawal (5) | M7: Balance
B8: =+Expenses!S9 -> 2018-03-01 | E8: =-1*'Other Inputs'!D264 -> 2083235 | I8: =M8/E8 -> 4.375072903 | M8: ='Other Inputs'!E264 -> 9114305
B9: ='Monthly Inputs'!E3 -> Apr18 | C9: ='Monthly Inputs'!E29 -> 0 | D9: =-'Monthly Inputs'!E37 -> -588368.1488 | E9: =E8+C9+D9 -> 1494866.851 | F9: =F21 -> 0.5888953636 | G9: ='Other Inputs'!F132 -> 4.53171 | H9: ='Monthly Inputs'!E79 -> 2.1369 | I9: =M9/E9 -> 4.375072903 | K9: =(+F9*C9*G9)+((1-F9)*C9*H9) -> 0 | L9: =D9*I8 -> -2574153.545 | M9: =M8+L9+K9 -> 6540151.455
B10: ='Monthly Inputs'!F3 -> May18 | C10: ='Monthly Inputs'!F29 -> 222400.5585 | D10: =-'Monthly Inputs'!F37 -> 0 | E10: =E9+C10+D10 -> 1717267.41 | F10: =F22 -> 0.640672775 | G10: =G9 -> 4.53171 | H10: ='Monthly Inputs'!F79 -> 2.07232341 | I10: =M10/E10 -> 4.280908968 | K10: =(+F10*C10*G10)+((1-F10)*C10*H10) -> 811313.9994 | L10: =D10*I9 -> 0 | M10: =M9+L10+K10 -> 7351465.454
A11: 1. | B11: ='Monthly Inputs'!G3 -> Jun18 | C11: ='Monthly Inputs'!G29 -> 2752587.341 | D11: =-'Monthly Inputs'!G37 -> 0 | E11: =E10+C11+D11 -> 4469854.751 | F11: =Calculations!D177 -> 0.8854589713 | G11: ='Ut 1.4 p2'!$F$15 -> 4.228104737 | H11: =Calculations!D197 -> 2.16818 | I11: =M11/E11 -> 4.103093357 | K11: 10988765.88 | L11: =D11*I10 -> 0 | M11: =M10+L11+K11 -> 18340231.34
A12: 2. | B12: ='Monthly Inputs'!H3 -> Jul18 | C12: ='Monthly Inputs'!H29 -> 2996210.968 | D12: =-'Monthly Inputs'!H37 -> 0 | E12: 7466065.719 | F12: =Calculations!E177 -> 0.925430815 | G12: ='Ut 1.4 p2'!$F$15 -> 4.228104737 | H12: =Calculations!E197 -> 2.23 | I12: =M12/E12 -> 4.093467658 | K12: 12221867.22 | L12: =D12*I11 -> 0 | M12: =M11+L12+K12 -> 30562098.55
A13: 3. | B13: ='Monthly Inputs'!I3 -> Aug18 | C13: ='Monthly Inputs'!I29 -> 3116273.59 | D13: =-'Monthly Inputs'!I37 -> 0 | E13: =E12+C13+D13 -> 10582339.31 | F13: =Calculations!F177 -> 0.9462101314 | G13: ='Ut 1.4 p2'!$F$15 -> 4.228104737 | H13: =Calculations!F197 -> 2.25 | I13: =M13/E13 -> 4.101782289 | K13: 12844353.4 | L13: =D13*I12 -> 0 | M13: 43406451.96
A14: 4. | B14: ='Monthly Inputs'!J3 -> Sep18 | C14: ='Monthly Inputs'!J29 -> 3048137.629 | D14: =-'Monthly Inputs'!J37 -> 0 | E14: 13630476.94 | F14: =Calculations!G177 -> 0.9323996701 | G14: ='Ut 1.4 p2'!$F$15 -> 4.228104737 | H14: =Calculations!G197 -> 2.1452 | I14: =M14/E14 -> 4.098543594 | K14: 12458651.98 | L14: =D14*I13 -> 0 | M14: 55865103.94
A15: 5. | B15: ='Monthly Inputs'!K3 -> Oct18 | C15: ='Monthly Inputs'!K29 -> 1095902.899 | D15: =-'Monthly Inputs'!K37 -> -342368.988 | E15: 14384010.85 | F15: =Calculations!H177 -> 0.7329817731 | G15: ='Ut 1.4 p2'!$F$15 -> 4.228104737 | H15: =Calculations!H197 -> 2.26181 | I15: =M15/E15 -> 4.068412733 | K15: 4058203.177 | L15: -1403214.223 | M15: 58520092.89
A16: 6. | B16: ='Monthly Inputs'!L3 -> Nov18 | C16: ='Monthly Inputs'!L29 -> 291056.4632 | D16: =-'Monthly Inputs'!L37 -> -4210118.042 | E16: =E15+C16+D16 -> 10464949.27 | F16: =Calculations!I177 -> 0.6540074248 | G16: ='Ut 1.4 p2'!$F$15 -> 4.228104737 | H16: =Calculations!I197 -> 2.49378 | I16: 4.056164899 | K16: 1055964.856 | L16: -17128497.85 | M16: 42447559.9
A17: 7. | B17: ='Monthly Inputs'!M3 -> Dec18 | C17: ='Monthly Inputs'!M29 -> 53324.81766 | D17: =-'Monthly Inputs'!M37 -> -4124599.976 | E17: 6393674.112 | F17: =Calculations!J177 -> 0.386618882 | G17: ='Ut 1.4 p2'!$F$15 -> 4.228104737 | H17: =Calculations!J197 -> 2.68419 | I17: =M17/E17 -> 4.049700638 | K17: 174963.8773 | L17: -16730057.64 | M17: 25892466.13
A18: 8. | B18: ='Monthly Inputs'!N3 -> Jan19 | C18: ='Monthly Inputs'!N29 -> 147645.5307 | D18: =-'Monthly Inputs'!N37 -> -4050599.976 | E18: 2490719.667 | F18: =Calculations!K177 -> 0.3561367038 | G18: ='Ut 1.4 p2'!$F$15 -> 4.228104737 | H18: =Calculations!K197 -> 2.6438 | I18: 3.999807811 | K18: 473651.1541 | L18: =D18*I17 -> -16403717.31 | M18: 9962399.979
A19: 9. | B19: ='Monthly Inputs'!O3 -> Feb19 | C19: ='Monthly Inputs'!O29 -> 0 | D19: =-'Monthly Inputs'!O37 -> -2222300.568 | E19: 268419.0992 | F19: =Calculations!L177 -> 0.3593438675 | G19: ='Ut 1.4 p2'!$F$15 -> 4.228104737 | H19: =Calculations!L197 -> 2.46336 | I19: 3.999807811 | K19: 0 | L19: -8888775.169 | M19: =M18+L19+K19 -> 1073624.81
A20: 10. | B20: ='Monthly Inputs'!P3 -> Mar19 | C20: ='Monthly Inputs'!P29 -> 17165.94696 | D20: =-'Monthly Inputs'!P37 -> -877250 | E20: -591664.9538 | F20: =Calculations!M177 -> 0.4549571211 | G20: ='Ut 1.4 p2'!$F$15 -> 4.228104737 | H20: =Calculations!M197 -> 2.1632 | I20: 4.025837208 | K20: 53259.80714 | L20: -3508831.402 | M20: =M19+L20+K20 -> -2381946.786
A21: 11. | B21: ='Monthly Inputs'!Q3 -> Apr19 | C21: ='Monthly Inputs'!Q29 -> 350489.9902 | D21: =-'Monthly Inputs'!Q37 -> -146080.143 | E21: -387255.1066 | F21: =Calculations!N177 -> 0.5888953636 | G21: ='Ut 1.4 p2'!$F$15 -> 4.228104737 | H21: =Calculations!N197 -> 1.9468 | I21: 4.691589641 | K21: 1153199.614 | L21: -588094.8749 | M21: =M20+L21+K21 -> -1816842.046
A22: 12. | B22: ='Monthly Inputs'!R3 -> May19 | C22: ='Monthly Inputs'!R29 -> 3116273.59 | D22: =-'Monthly Inputs'!R37 -> 0 | E22: 2729018.484 | F22: =Calculations!O177 -> 0.640672775 | G22: ='Ut 1.4 p2'!$F$15 -> 4.228104737 | H22: =Calculations!O197 -> 1.84207 | I22: 3.183305003 | K22: 10504140.24 | L22: 0 | M22: =M21+L22+K22 -> 8687298.191
M25: Inj./With. Adj.
A26: 14. | B26: Total | C26: =SUM(C11:C22) -> 16985068.77 | D26: =SUM(D11:D22) -> -15973317.69 | K26: =SUM(K11:K22) -> 65987021.21 | L26: =SUM(L11:L22) -> -64651188.47 | M26: =L26+K26 -> 1335832.737
A27: 15. | B27: Average $ /Dth | K27: =K26/C26 -> 3.885001711 | L27: =L26/D26 -> 4.047448985
A31: ___________________________________________________________________

Sheet Ex 1.1 Data
A1: QEPFS gathered | B1: 41133706.12 | C1: Adjusted test year-> | D1: -0.1662687367 | E1: 34294456.77 | H1: Samson Gathered | I1: 12013082.93 | J1: Adjusted test year-> | K1: 0.8030830561 | L1: 21660586.29
A2: Birch Creek | B2: 1341579.875 | C2: Adjusted test year-> | D2: -0.1662687367 | E2: 1118517.084
A3: Other | B3: 16340092.92
C4: WEXPRO I | J4: WEXPRO II
A5: Input Operator Service Fee > | C5: ='Monthly Inputs'!S107 -> 203215609.8 | H5: Input Operator Service Fee > | J5: ='Monthly Inputs'!S109 -> 42664282.67
A7: do not change the order of the months below!!!!! | H7: do not change the order of the months below!!!!!
A8: \/ | C8: 2017-03-31 | H8: \/ | J8: 2017-03-31
A9: \/ | B9: Company | C9: Average Index | D9: Church Buttes | H9: \/ | I9: Company | J9: Average Index | K9: Church Buttes
A10: \/ | B10: Production | C10: Spot Prices | D10: & Canyon Cr | H10: \/ | I10: Production | J10: Spot Prices | K10: & Canyon Cr
A11: January | B11: 4063137.303 | C11: 2.59 | D11: =C11+0.1 -> 2.69 | E11: =B11*D11 -> 10929839.35 | H11: January | I11: 2081913.478 | J11: 2.59 | K11: =J11+0.1 -> 2.69 | L11: =I11*K11 -> 5600347.256
A12: February | B12: 3621884.329 | C12: 2.42 | D12: =C12+0.1 -> 2.52 | E12: =B12*D12 -> 9127148.509 | H12: February | I12: 1780290.407 | J12: 2.42 | K12: =J12+0.1 -> 2.52 | L12: =I12*K12 -> 4486331.826
A13: March | B13: 3960111.981 | C13: 2.13 | D13: =C13+0.1 -> 2.23 | E13: 8831049.718 | H13: March | I13: 1880035.325 | J13: 2.13 | K13: 2.23 | L13: 4192478.775
A14: April | B14: 3785165.141 | C14: 1.89 | D14: 1.99 | E14: 7532478.631 | H14: April | I14: 1800882.008 | J14: 1.89 | K14: 1.99 | L14: 3583755.196
A15: May | B15: 3864376.126 | C15: 1.84 | D15: =C15+0.1 -> 1.94 | E15: 7496889.684 | H15: May | I15: 1955656.7 | J15: 1.84 | K15: 1.94 | L15: 3793973.998
A16: June | B16: 4374893.773 | C16: 2.16 | D16: 2.26 | E16: 9887259.927 | H16: June | I16: 1374825.016 | J16: 2.16 | K16: 2.26 | L16: 3107104.536
A17: July | B17: 4443120.131 | C17: 2.21 | D17: 2.31 | E17: 10263607.5 | H17: July | I17: 1386301.412 | J17: 2.21 | K17: 2.31 | L17: 3202356.261
A18: August | B18: 4368341.956 | C18: 2.23 | D18: 2.33 | E18: 10178236.76 | H18: August | I18: 1547095.371 | J18: 2.23 | K18: 2.33 | L18: 3604732.214
A19: September | B19: 4162301.653 | C19: 2.13 | D19: 2.23 | E19: 9281932.686 | H19: September | I19: 1858998.443 | J19: 2.13 | K19: 2.23 | L19: 4145566.527
A20: October | B20: 4234535.633 | C20: 2.16 | D20: 2.26 | E20: 9570050.531 | H20: October | I20: 2040057.299 | J20: 2.16 | K20: 2.26 | L20: 4610529.495
A21: November | B21: 4040155.375 | C21: 2.4 | D21: 2.5 | E21: 10100388.44 | H21: November | I21: 1877754.021 | J21: 2.4 | K21: 2.5 | L21: 4694385.052
A22: December | B22: 4118196.761 | C22: 2.63 | D22: 2.73 | E22: 11242677.16 | H22: December | I22: 2076776.812 | J22: 2.63 | K22: 2.73 | L22: 5669600.696
B24: =SUM(B11:B22) -> 49036220.16 | C24: CANYON CREEK | D24: =E24/B24 -> 2.333816891 | E24: =SUM(E11:E22) -> 114441558.9 | I24: =SUM(I11:I22) -> 21660586.29 | J24: CANYON CREEK | K24: =L24/I24 -> 2.340248835 | L24: =SUM(L11:L22) -> 50691161.83
C25: CHURCH BUTTES | J25: CHURCH BUTTES
C26: All Others -> | D26: =D24-0.2 -> 2.133816891 | J26: All Others -> | K26: =K24-0.2 -> 2.140248835
A29: Make sure all spot pricing is only 2 decimals | H29: Make sure all spot pricing is only 2 decimals

Sheet Expenses
A1: %,LACTUALS
S7: Historical
S8: 12 Months Ending
C9: FERC Acct | E9: Description | G9: 2017-04-01 | H9: 2017-05-01 | I9: 2017-06-01 | J9: 2017-07-01 | K9: 2017-08-01 | L9: 2017-09-01 | M9: 2017-10-01 | N9: 2017-11-01 | O9: 2017-12-01 | P9: 2018-01-01 | Q9: 2018-02-01 | R9: 2018-03-01 | S9: 2018-03-01
B11: 497 | C11: UTILITY OPERATING EXPENSES
B12: 498 | C12: GAS PURCHASE EXPENSES
B13: 499
B14: 500 | D14: Utah % of Sales Dth from 191 Acct ===> | G14: 0.95935 | H14: 0.95456 | I14: 0.97494 | J14: 0.96862 | K14: 0.97204 | L14: 0.97015 | M14: 0.95624 | N14: 0.95879 | O14: 0.97128 | P14: 0.96627 | Q14: 0.96634 | R14: 0.96287
B15: 501
A16: %,FACCOUNT,TQGCACCTS,V758000 | B16: 502 | C16: 758 | D16: Gas Well Royalties
B17: 503 | E17: Utah | G17: 1841781.082 | H17: 1970901.806 | I17: 1944763.885 | J17: 2222731.659 | K17: 2389591.613 | L17: 2156492.63 | M17: 2431437.052 | N17: 2372133.566 | O17: 2545587.007 | P17: 2310634.967 | Q17: -4774974.508 | R17: 3159482.547 | S17: 20570563.31
B18: 504 | E18: Wyoming | G18: 78040.7578 | H18: 93821.00449 | I18: 49988.49464 | J18: 72008.96066 | K18: 68734.8067 | L18: 66351.90952 | M18: 111268.8084 | N18: 101957.2839 | O18: 75271.0432 | P18: 80658.32267 | Q18: -166324.1115 | R18: 121835.3329 | S18: 753612.6134
B19: 505 | E19: Total | G19: 1919821.84 | H19: 2064722.81 | I19: 1994752.38 | J19: 2294740.62 | K19: 2458326.42 | L19: 2222844.54 | M19: 2542705.86 | N19: 2474090.85 | O19: 2620858.05 | P19: 2391293.29 | Q19: -4941298.62 | R19: 3281317.88 | S19: 21324175.92
B20: 506
A21: %,FACCOUNT,TQGCACCTS,V758001,V758002,V758003,V758004 | B21: 507 | C21: 758.1 | D21: Gas Well Royalties - Other
B22: 508 | E22: Utah | G22: 20721.22 | H22: 32355.49 | I22: 26778.16 | J22: 33343.26 | K22: 20897.51 | L22: 16225.85 | M22: 22368 | N22: 18400.87 | O22: 25753.29 | P22: 31545.49 | Q22: 31249.96 | R22: 31630.55 | S22: 311269.65
B23: 509 | E23: Wyoming | G23: 0 | H23: 0 | I23: 0 | J23: 0 | K23: 0 | L23: 0 | M23: 0 | N23: 0 | O23: 0 | P23: 0 | Q23: 0 | R23: 0 | S23: 0
B24: 510 | E24: Total | G24: 20721.22 | H24: 32355.49 | I24: 26778.16 | J24: 33343.26 | K24: 20897.51 | L24: 16225.85 | M24: 22368 | N24: 18400.87 | O24: 25753.29 | P24: 31545.49 | Q24: 31249.96 | R24: 31630.55 | S24: 311269.65
B25: 511
A26: %,FACCOUNT,TQGCACCTS,V759000,V759001,V759002,V759003,V759004 | B26: 512 | C26: 759 | D26: Gathering by Others, GRI & ACA - Gas Cost
B27: 513 | E27: Utah | G27: 2038774.28 | H27: 2087577.14 | I27: 2205794.59 | J27: 1843923.98 | K27: 1880747.4 | L27: 2247287.13 | M27: 2170310.79 | N27: 2236680.5 | O27: 2246740.93 | P27: 2056137.76 | Q27: 1941090.61 | R27: 1962342.05 | S27: 24917407.16
B28: 514 | E28: Wyoming | G28: 0 | H28: 0 | I28: 0 | J28: 0 | K28: 0 | L28: 0 | M28: 0 | N28: 0 | O28: 0 | P28: 0 | Q28: 0 | R28: 0 | S28: 0
B29: 515 | E29: Total | G29: 2038774.28 | H29: 2087577.14 | I29: 2205794.59 | J29: 1843923.98 | K29: 1880747.4 | L29: 2247287.13 | M29: 2170310.79 | N29: 2236680.5 | O29: 2246740.93 | P29: 2056137.76 | Q29: 1941090.61 | R29: 1962342.05 | S29: 24917407.16
B30: 516
A31: %,FACCOUNT,TQGCACCTS,V759005 | B31: 517 | C31: 759 | D31: Gathering by Others - SNG Cost
B32: 518 | E32: Utah | G32: 0 | H32: 0 | I32: 0 | J32: 0 | K32: 0 | L32: 0 | M32: 0 | N32: 0 | O32: 0 | P32: 0 | Q32: 0 | R32: 0 | S32: 0
B33: 519 | E33: Wyoming | G33: 0 | H33: 0 | I33: 0 | J33: 0 | K33: 0 | L33: 0 | M33: 0 | N33: 0 | O33: 0 | P33: 0 | Q33: 0 | R33: 0 | S33: 0
B34: 520 | E34: Total | G34: 0 | H34: 0 | I34: 0 | J34: 0 | K34: 0 | L34: 0 | M34: 0 | N34: 0 | O34: 0 | P34: 0 | Q34: 0 | R34: 0 | S34: 0
B35: 521
A36: %,FACCOUNT,TQGCACCTS,V800000,V800005,V800002 | B36: 522 | C36: 800 | D36: Natural Gas Well Head Purchases
B37: 523 | E37: Utah | G37: 226.483348 | H37: 0 | I37: 274.8453354 | J37: 0 | K37: 0 | L37: 0 | M37: 0 | N37: 0 | O37: 0 | P37: 0 | Q37: 0 | R37: 0 | S37: 501.3286834
B38: 524 | E38: Wyoming | G38: 9.596652 | H38: 0 | I38: 7.0646646 | J38: 0 | K38: 0 | L38: 0 | M38: 0 | N38: 0 | O38: 0 | P38: 0 | Q38: 0 | R38: 0 | S38: 16.6613166
B39: 525 | E39: Total | G39: 236.08 | H39: 0 | I39: 281.91 | J39: 0 | K39: 0 | L39: 0 | M39: 0 | N39: 0 | O39: 0 | P39: 0 | Q39: 0 | R39: 0 | S39: 517.99
B40: 526
A41: %,FACCOUNT,TQGCACCTS,V801000 | B41: 527 | C41: 801 | D41: Natural Gas Field Line Purchases
B42: 528 | E42: Utah | G42: 0 | H42: 0 | I42: 0 | J42: 0 | K42: 0 | L42: 0 | M42: 0 | N42: 0 | O42: 0 | P42: 0 | Q42: 0 | R42: 0 | S42: 0
B43: 529 | E43: Wyoming | G43: 0 | H43: 0 | I43: 0 | J43: 0 | K43: 0 | L43: 0 | M43: 0 | N43: 0 | O43: 0 | P43: 0 | Q43: 0 | R43: 0 | S43: 0
B44: 530 | E44: Total | G44: 0 | H44: 0 | I44: 0 | J44: 0 | K44: 0 | L44: 0 | M44: 0 | N44: 0 | O44: 0 | P44: 0 | Q44: 0 | R44: 0 | S44: 0
B45: 531
A46: %,FACCOUNT,TQGCACCTS,V802000 | B46: 532 | C46: 802 | D46: Natural Gas Gasoline Plant Outlet Purchase
B47: 533 | E47: Utah | G47: 0 | H47: 0 | I47: 0 | J47: 0 | K47: 0 | L47: 0 | M47: 0 | N47: 0 | O47: 0 | P47: 0 | Q47: 0 | R47: 0 | S47: 0
B48: 534 | E48: Wyoming | G48: 0 | H48: 0 | I48: 0 | J48: 0 | K48: 0 | L48: 0 | M48: 0 | N48: 0 | O48: 0 | P48: 0 | Q48: 0 | R48: 0 | S48: 0
B49: 535 | E49: Total | G49: 0 | H49: 0 | I49: 0 | J49: 0 | K49: 0 | L49: 0 | M49: 0 | N49: 0 | O49: 0 | P49: 0 | Q49: 0 | R49: 0 | S49: 0
B50: 536
A51: %,FACCOUNT,TQGCACCTS,V803000,V803002 | B51: 537 | C51: 803 | D51: Natural Gas Transmission Line - Purchases
B52: 538 | E52: Utah | G52: 6328601.706 | H52: 1338902.607 | I52: 0 | J52: 0 | K52: 0 | L52: 1544478.8 | M52: 5595493.344 | N52: 11601359 | O52: 26559334.5 | P52: 44581747.92 | Q52: 17537565.28 | R52: 4813329.733 | S52: 119900812.9
B53: 539 | E53: Wyoming | G53: 268158.294 | H53: 63735.89344 | I53: 0 | J53: 0 | K53: 0 | L53: 47521.2 | M53: 256064.1562 | N53: 498641 | O53: 785339.0235 | P53: 1556234.135 | Q53: 610876.552 | R53: 185610.6567 | S53: 4272180.91
B54: 540 | E54: Total | G54: 6596760 | H54: 1402638.5 | I54: 0 | J54: 0 | K54: 0 | L54: 1592000 | M54: 5851557.5 | N54: 12100000 | O54: 27344673.52 | P54: 46137982.05 | Q54: 18148441.83 | R54: 4998940.39 | S54: 124172993.8
B55: 541
A56: %,FACCOUNT,V804000,FAFFILIATE,V09 | B56: 542 | C56: 804 | D56: Natural Gas City Gate Purchases - Resources
B57: 543 | E57: Utah | G57: 0 | H57: 0 | I57: 0 | J57: 0 | K57: 0 | L57: 0 | M57: 0 | N57: 0 | O57: 0 | P57: 0 | Q57: 0 | R57: 0 | S57: 0
B58: 544 | E58: Wyoming | G58: 0 | H58: 0 | I58: 0 | J58: 0 | K58: 0 | L58: 0 | M58: 0 | N58: 0 | O58: 0 | P58: 0 | Q58: 0 | R58: 0 | S58: 0
B59: 545 | E59: Total | G59: 0 | H59: 0 | I59: 0 | J59: 0 | K59: 0 | L59: 0 | M59: 0 | N59: 0 | O59: 0 | P59: 0 | Q59: 0 | R59: 0 | S59: 0
B60: 546
A61: %,FACCOUNT,V804000,FAFFILIATE,V | B61: 547 | C61: 804.1 | D61: Natural Gas City Gate Purchases - Other
B62: 548 | E62: Utah | G62: 0 | H62: 70240.34304 | I62: 0 | J62: 0 | K62: 0 | L62: 0 | M62: 0 | N62: 0 | O62: 0 | P62: -373.076847 | Q62: 1086312.561 | R62: 125662.238 | S62: 1281842.065
B63: 549 | E63: Wyoming | G63: 0 | H63: 3343.65696 | I63: 0 | J63: 0 | K63: 0 | L63: 0 | M63: 0 | N63: 0 | O63: 0 | P63: -13.023153 | Q63: 37838.93949 | R63: 4845.76204 | S63: 46015.33534
B64: 550 | E64: Total | G64: 0 | H64: 73584 | I64: 0 | J64: 0 | K64: 0 | L64: 0 | M64: 0 | N64: 0 | O64: 0 | P64: -386.1 | Q64: 1124151.5 | R64: 130508 | S64: 1327857.4
B65: 551
B66: 552 | C66: 805 | D66: Purchased Gas Cost Adjustments - Other
B67: 553 | E67: Utah | G67: 0 | H67: 0 | I67: 0 | J67: 0 | K67: 0 | L67: 0 | M67: 0 | N67: 0 | O67: 0 | P67: 0 | Q67: 0 | R67: 0 | S67: 0
B68: 554 | E68: Wyoming | G68: 0 | H68: 0 | I68: 0 | J68: 0 | K68: 0 | L68: 0 | M68: 0 | N68: 0 | O68: 0 | P68: 0 | Q68: 0 | R68: 0 | S68: 0
B69: 555 | E69: Total | G69: 0 | H69: 0 | I69: 0 | J69: 0 | K69: 0 | L69: 0 | M69: 0 | N69: 0 | O69: 0 | P69: 0 | Q69: 0 | R69: 0 | S69: 0
B70: 556
A71: %,FACCOUNT,TQGCACCTS,V805100 | B71: 557 | C71: 805.1 | D71: Purchased Gas Cost Adjustments - Utah
B72: 558 | E72: Utah | G72: -6947856.375 | H72: -10552461.3 | I72: -12471449.05 | J72: -10242545.3 | K72: -7819161.691 | L72: -10664669.77 | M72: -2729298.296 | N72: 5573849.949 | O72: 26329385.39 | P72: 9219574.376 | Q72: 16399305.83 | R72: -3081656.769 | S72: -6986983.008
B73: 559 | E73: Wyoming | G73: -294397.6251 | H73: -502329.703 | I73: -320567.946 | J73: -331823.6992 | K73: -224912.309 | L73: -328135.2293 | M73: -124899.7045 | N73: 239571.0806 | O73: 778539.606 | P73: 321831.6244 | Q73: 571228.1744 | R73: -118834.2308 | S73: -334729.9615
B74: 560 | E74: Total | G74: -7242254 | H74: -11054791 | I74: -12792017 | J74: -10574369 | K74: -8044074 | L74: -10992805 | M74: -2854198 | N74: 5813421.03 | O74: 27107925 | P74: 9541406 | Q74: 16970534 | R74: -3200491 | S74: -7321712.97
B75: 561
A76: %,FACCOUNT,TQGCACCTS,V806000 | B76: 562 | C76: 806 | D76: Exchange Gas
B77: 563 | E77: Utah | G77: 0 | H77: 0 | I77: 0 | J77: 0 | K77: 0 | L77: 0 | M77: 0 | N77: 0 | O77: 0 | P77: 0 | Q77: 0 | R77: 0 | S77: 0
B78: 564 | E78: Wyoming | G78: 0 | H78: 0 | I78: 0 | J78: 0 | K78: 0 | L78: 0 | M78: 0 | N78: 0 | O78: 0 | P78: 0 | Q78: 0 | R78: 0 | S78: 0
B79: 565 | E79: Total | G79: 0 | H79: 0 | I79: 0 | J79: 0 | K79: 0 | L79: 0 | M79: 0 | N79: 0 | O79: 0 | P79: 0 | Q79: 0 | R79: 0 | S79: 0
B80: 566
A81: %,FACCOUNT,TQGCACCTS,V808100 | B81: 567 | C81: 808.1 | D81: Gas Withdrawn from Underground Storage
B82: 568 | E82: Utah | G82: 5558115.727 | H82: 912107.4045 | I82: -46897.9288 | J82: 4754580.579 | K82: 792.8055444 | L82: 4989879.726 | M82: 2003950.304 | N82: 3453887.674 | O82: 6908083.57 | P82: 16931485.3 | Q82: 11889723.79 | R82: 13567388.27 | S82: 70923097.23
B83: 569 | E83: Wyoming | G83: 235510.9233 | H83: 43419.12552 | I83: -1205.471204 | J83: 154032.2712 | K83: 22.8044556 | L83: 153530.8043 | M83: 91705.91619 | N83: 148452.4359 | O83: 204266.6998 | P83: 591034.5962 | Q83: 414148.3359 | R83: 523182.9079 | S83: 2558101.35
B84: 570 | E84: Total | G84: 5793626.65 | H84: 955526.53 | I84: -48103.4 | J84: 4908612.85 | K84: 815.61 | L84: 5143410.53 | M84: 2095656.22 | N84: 3602340.11 | O84: 7112350.27 | P84: 17522519.9 | Q84: 12303872.13 | R84: 14090571.18 | S84: 73481198.58
B85: 571
A86: %,FACCOUNT,TQGCACCTS,V808200 | B86: 572 | C86: 808.2 | D86: Gas Delivered to Underground Storage
B87: 573 | E87: Utah | G87: -2035193.324 | H87: -5331396.055 | I87: -11530120.98 | J87: -17035026.32 | K87: -13192038.32 | L87: -15508085.3 | M87: -2167662.474 | N87: -3701325.821 | O87: -692957.6472 | P87: -1224268.912 | Q87: -937785.3004 | R87: -1235701.756 | S87: -74591562.21
B88: 574 | E88: Wyoming | G88: -86236.10633 | H88: -253790.895 | I88: -296371.9118 | J88: -551877.0271 | K88: -379459.067 | L88: -477159.5591 | M88: -99197.80585 | N88: -159087.6387 | O88: -20490.22283 | P88: -42736.07831 | Q88: -32665.36955 | R88: -47650.88352 | S88: -2446722.565
B89: 575 | E89: Total | G89: -2121429.43 | H89: -5585186.95 | I89: -11826492.89 | J89: -17586903.35 | K89: -13571497.39 | L89: -15985244.86 | M89: -2266860.28 | N89: -3860413.46 | O89: -713447.87 | P89: -1267004.99 | Q89: -970450.67 | R89: -1283352.64 | S89: -77038284.78
B90: 576
A91: %,FACCOUNT,TQGCACCTS,V808300 | B91: 577 | C91: 808.3 | D91: Exchange Gas
B92: 578 | E92: Utah | G92: 325672.4632 | H92: 324216.304 | I92: 330341.845 | J92: 325999.7158 | K92: 323828.3217 | L92: 318513.8271 | M92: 306910.9654 | N92: 298935.3814 | O92: 299290.2192 | P92: 325163.3828 | Q92: 325938.7513 | R92: 325587.7504 | S92: 3830398.927
B93: 579 | E93: Wyoming | G93: 13799.5368 | H93: 15433.696 | I93: 8491.15498 | J93: 10561.28418 | K93: 9314.67828 | L93: 9800.1729 | M93: 14045.03456 | N93: 12848.61864 | O93: 8849.7808 | P93: 11350.61722 | Q93: 11353.24872 | R93: 12555.24959 | S93: 138403.0727
B94: 580 | E94: Total | G94: 339472 | H94: 339650 | I94: 338833 | J94: 336561 | K94: 333143 | L94: 328314 | M94: 320956 | N94: 311784 | O94: 308140 | P94: 336514 | Q94: 337292 | R94: 338143 | S94: 3968802
B95: 581
A96: %,FACCOUNT,TQGCACCTS,V813000,V813001,V813002,V813003,V813004 | B96: 582 | C96: 813 | D96: Other Gas Supply Expenses - Gas Cost
B97: 583 | E97: Utah | G97: 25647248.83 | H97: 25491583.51 | I97: 30062203.39 | J97: 26611087.18 | K97: 24771566.35 | L97: 25367480.46 | M97: 23778972.06 | N97: 25687947.55 | O97: 25967804.35 | P97: 25979177.11 | Q97: 24561362.92 | R97: 26351986.96 | S97: 310278420.7
B98: 584 | E98: Wyoming | G98: 1086736.504 | H98: 1213477.995 | I98: 772723.2618 | J98: 862108.8927 | K98: 712535.4874 | L98: 780517.7466 | M98: 1088186.875 | N98: 1104100.291 | O98: 767847.9335 | P98: 906866.2422 | Q98: 855532.7069 | R98: 1016180.041 | S98: 11166813.98
B99: 585 | E99: Total | G99: 26733985.33 | H99: 26705061.5 | I99: 30834926.65 | J99: 27473196.07 | K99: 25484101.84 | L99: 26147998.21 | M99: 24867158.94 | N99: 26792047.84 | O99: 26735652.28 | P99: 26886043.35 | Q99: 25416895.63 | R99: 27368167 | S99: 321445234.6
B100: 586
B101: 587 | C101: 813 | D101: Other Gas Supply Expenses - SNG Cost
B102: 588 | E102: Utah | S102: 0
B103: 589 | E103: Wyoming | S103: 0
B104: 590 | E104: Total | G104: 0 | H104: 0 | I104: 0 | J104: 0 | K104: 0 | L104: 0 | M104: 0 | N104: 0 | O104: 0 | P104: 0 | Q104: 0 | R104: 0 | S104: 0
B105: 591
B106: 592 | C106: 813.5 | D106: CO2 Processing Expenses
A107: %,FACCOUNT,TQGCACCTS,V813005,V813007,V813008 | B107: 593 | E107: Utah | G107: 0 | H107: 0 | I107: 0 | J107: 0 | K107: 0 | L107: 0 | M107: 0 | N107: 0 | O107: 0 | P107: 0 | Q107: 0 | R107: 0 | S107: 0
A108: %,FACCOUNT,TQGCACCTS,V813006 | B108: 594 | E108: Wyoming | G108: 0 | H108: 0 | I108: 0 | J108: 0 | K108: 0 | L108: 0 | M108: 0 | N108: 0 | O108: 0 | P108: 0 | Q108: 0 | R108: 0 | S108: 0
B109: 595 | E109: Total | G109: 0 | H109: 0 | I109: 0 | J109: 0 | K109: 0 | L109: 0 | M109: 0 | N109: 0 | O109: 0 | P109: 0 | Q109: 0 | R109: 0 | S109: 0
B110: 596
A111: %,FACCOUNT,TQGCACCTS,V858000 | B111: 597 | C111: 858 | D111: Transportation GRI & ACA - Gas Cost
B112: 598 | E112: Utah | G112: 4647481.021 | H112: 4612196.483 | I112: 4651881.899 | J112: 4631232.314 | K112: 4634523.923 | L112: 4643814.143 | M112: 4578153.242 | N112: 7298240.974 | O112: 7817914.929 | P112: 6581440.706 | Q112: 6318445.486 | R112: 5998035.468 | S112: 66413360.59
B113: 599 | E113: Wyoming | G113: 196925.1092 | H113: 219554.7773 | I113: 119572.651 | J113: 150036.2062 | K113: 133308.5973 | L113: 142882.9069 | M113: 209508.0585 | N113: 313687.5755 | O113: 231169.7109 | P113: 229741.1645 | Q113: 220087.0036 | R113: 231295.0418 | S113: 2397768.803
B114: 600 | E114: Total | G114: 4844406.13 | H114: 4831751.26 | I114: 4771454.55 | J114: 4781268.52 | K114: 4767832.52 | L114: 4786697.05 | M114: 4787661.3 | N114: 7611928.55 | O114: 8049084.64 | P114: 6811181.87 | Q114: 6538532.49 | R114: 6229330.51 | S114: 68811129.39
B115: 601
A116: %,FACCOUNT,TQGCACCTS,V858001 | B116: 602 | C116: 858 | D116: Trans & Comp of Gas by Others - SNG Cost
B117: 603 | E117: Utah | G117: 0 | H117: 0 | I117: 0 | J117: 0 | K117: 0 | L117: 0 | M117: 0 | N117: 0 | O117: 0 | P117: 0 | Q117: 0 | R117: 0 | S117: 0
B118: 604 | E118: Wyoming | G118: 0 | H118: 0 | I118: 0 | J118: 0 | K118: 0 | L118: 0 | M118: 0 | N118: 0 | O118: 0 | P118: 0 | Q118: 0 | R118: 0 | S118: 0
B119: 605 | E119: Total | G119: 0 | H119: 0 | I119: 0 | J119: 0 | K119: 0 | L119: 0 | M119: 0 | N119: 0 | O119: 0 | P119: 0 | Q119: 0 | R119: 0 | S119: 0
B120: 606
B121: 607 | C121: System Total Gas Purchase Expenses
B122: 608 | D122: Utah Gas Purchase Expenses | G122: 37425573.11 | H122: 20956223.73 | I122: 15173570.65 | J122: 13145327.06 | K122: 13010747.91 | L122: 15111417.5 | M122: 35990634.99 | N122: 54840109.64 | O122: 98006936.54 | P122: 106792265 | Q122: 74378235.38 | R122: 52018087.04 | S122: 536849128.6
B123: 609 | D123: Wyoming Gas Purchase Expenses | G123: 1498546.99 | H123: 896665.5502 | I123: 332637.2981 | J123: 365046.8886 | K123: 319544.9981 | L123: 395309.9519 | M123: 1546681.339 | N123: 2260170.647 | O123: 2830793.575 | P123: 3654967.6 | Q123: 2522075.48 | R123: 1929019.877 | S123: 18551460.2
B124: 610
B125: 611
B126: 612 | D126: System Total Gas Purchase Expenses | G126: 38924120.1 | H126: 21852889.28 | I126: 15506207.95 | J126: 13510373.95 | K126: 13330292.91 | L126: 15506727.45 | M126: 37537316.33 | N126: 57100280.29 | O126: 100837730.1 | P126: 110447232.6 | Q126: 76900310.86 | R126: 53947106.92 | S126: 555400588.8
B127: 613
B128: 614
B129: 615 | C129: OPERATION AND MAINTENANCE EXPENSES
B130: 616
B131: 617 | C131: Production Expenses
B132: 618
A133: %,FACCOUNT,TQGCACCTS,V810000,V810001 | B133: 619 | C133: 810 | D133: Gas Used for Compressor Station Fuel | G133: -666 | H133: -2201 | I133: -517 | J133: -2920 | K133: -344 | L133: -441 | M133: -708 | N133: -1073 | O133: -658 | P133: -3059 | Q133: -620 | R133: -1026 | S133: -14233
A134: %,FACCOUNT,TQGCACCTS,V812000,V812001 | B134: 620 | C134: 812 | D134: Gas Used for Other Utility Operations | G134: -76634.57 | H134: -65162.96 | I134: -63495.32 | J134: -55982.46 | K134: -57654.82 | L134: -56779.49 | M134: -58980.97 | N134: -69808.03 | O134: -92311.83 | P134: -119129.07 | Q134: -85342.02 | R134: -91810.39 | S134: -893091.93
B135: 621
B136: 622 | D136: Total Production Expenses | G136: -77300.57 | H136: -67363.96 | I136: -64012.32 | J136: -58902.46 | K136: -57998.82 | L136: -57220.49 | M136: -59688.97 | N136: -70881.03 | O136: -92969.83 | P136: -122188.07 | Q136: -85962.02 | R136: -92836.39 | S136: -907324.93
B137: 623 | G137: -3142.26817 | H137: -3061.018342 | I137: -1604.148739 | J137: -1848.359195 | K137: -1621.647007 | L137: -1708.031627 | M137: -2611.989327 | N137: -2921.007246 | O137: -2670.093518 | P137: -4121.403601 | Q137: -2893.481593 | R137: -3447.015161 | S137: -31650.46353
B138: 624 | C138: Distribution Operations & Maintenance Expenses
B139: 625
B140: 626 | C140: 870 | D140: Operation Supervision & Engineering
B141: 627 | E141: Utah | G141: 658383.09 | H141: 633813.13 | I141: 957297.87 | J141: 818280.21 | K141: 935578.86 | L141: 741599.35 | M141: 594986.94 | N141: 451680.1 | O141: 1213285.99 | P141: 2750487.5 | Q141: 413356.81 | R141: 961605.27 | S141: 11130355.12
B142: 628 | E142: Wyoming | G142: 49464.83 | H142: 42184.75 | I142: 53793.18 | J142: 40972.77 | K142: 53331.78 | L142: 47202.42 | M142: 37317.14 | N142: 39439.11 | O142: 85881.05 | P142: 104798.89 | Q142: 31269.78 | R142: 57621.86 | S142: 643277.56
A143: %,FACCOUNT,TQGCACCTS,N870 | B143: 629 | E143: Total | G143: 707847.92 | H143: 675997.88 | I143: 1011091.05 | J143: 859252.98 | K143: 988910.64 | L143: 788801.77 | M143: 632304.08 | N143: 491119.21 | O143: 1299167.04 | P143: 2855286.39 | Q143: 444626.59 | R143: 1019227.13 | S143: 11773632.68
B144: 630
B145: 631 | C145: 871 | D145: Distribution Load Dispatching
B146: 632 | E146: Utah | G146: 131648.77 | H146: 156206.44 | I146: 160492.58 | J146: 144422.67 | K146: 163885.92 | L146: 163573.32 | M146: 128317.45 | N146: 147765.44 | O146: 178870.65 | P146: 177916.23 | Q146: 152345.06 | R146: 174551.69 | S146: 1879996.22
B147: 633 | E147: Wyoming | G147: 2406.37 | H147: 3003.53 | I147: 2900.08 | J147: 2214.49 | K147: 2981.02 | L147: 2632.52 | M147: 1815.93 | N147: 2797.88 | O147: 2871.62 | P147: 2086.41 | Q147: 2372.39 | R147: 2724.17 | S147: 30806.41
A148: %,FACCOUNT,TQGCACCTS,N871 | B148: 634 | E148: Total | G148: 134055.14 | H148: 159209.97 | I148: 163392.66 | J148: 146637.16 | K148: 166866.94 | L148: 166205.84 | M148: 130133.38 | N148: 150563.32 | O148: 181742.27 | P148: 180002.64 | Q148: 154717.45 | R148: 177275.86 | S148: 1910802.63
B149: 635
B150: 636 | C150: 872 | D150: Compressor Station Labor & Expenses
B151: 637 | E151: Utah | G151: 0 | H151: 0 | I151: 0 | J151: 0 | K151: 0 | L151: 0 | M151: 0 | N151: 0 | O151: 0 | P151: 0 | Q151: 0 | R151: 0 | S151: 0
B152: 638 | E152: Wyoming | G152: 0 | H152: 0 | I152: 0 | J152: 0 | K152: 0 | L152: 0 | M152: 0 | N152: 0 | O152: 0 | P152: 0 | Q152: 0 | R152: 0 | S152: 0
A153: %,FACCOUNT,TQGCACCTS,N872 | B153: 639 | E153: Total | G153: 0 | H153: 0 | I153: 0 | J153: 0 | K153: 0 | L153: 0 | M153: 0 | N153: 0 | O153: 0 | P153: 0 | Q153: 0 | R153: 0 | S153: 0
B154: 640
B155: 641 | C155: 873 | D155: Compressor Station Fuel & Power
B156: 642 | E156: Utah | G156: 666 | H156: 2201 | I156: 517 | J156: 2920 | K156: 344 | L156: 441 | M156: 708 | N156: 1073 | O156: 658 | P156: 3059 | Q156: 620 | R156: 1026 | S156: 14233
B157: 643 | E157: Wyoming | G157: 0 | H157: 0 | I157: 0 | J157: 0 | K157: 0 | L157: 0 | M157: 0 | N157: 0 | O157: 0 | P157: 0 | Q157: 0 | R157: 0 | S157: 0
A158: %,FACCOUNT,TQGCACCTS,N873 | B158: 644 | E158: Total | G158: 666 | H158: 2201 | I158: 517 | J158: 2920 | K158: 344 | L158: 441 | M158: 708 | N158: 1073 | O158: 658 | P158: 3059 | Q158: 620 | R158: 1026 | S158: 14233
B159: 645
B160: 646 | C160: 874 | D160: Mains & Service Expenses
B161: 647 | E161: Utah | G161: 1090244.17 | H161: 1165098.93 | I161: 1294194.98 | J161: 850340.36 | K161: 1115787.83 | L161: 1087200.82 | M161: 1267024.48 | N161: 1103558.92 | O161: 951386.38 | P161: 680600.99 | Q161: 715701.25 | R161: 957067.53 | S161: 12278206.64
B162: 648 | E162: Wyoming | G162: 31605.65 | H162: 45910.86 | I162: 47290.45 | J162: 42581.41 | K162: 42671.03 | L162: 43784.87 | M162: 41963.08 | N162: 42421.23 | O162: 43459.01 | P162: 29022.1 | Q162: 16317.15 | R162: 24715.3 | S162: 451742.14
A163: %,FACCOUNT,TQGCACCTS,N874 | B163: 649 | E163: Total | G163: 1121849.82 | H163: 1211009.79 | I163: 1341485.43 | J163: 892921.77 | K163: 1158458.86 | L163: 1130985.69 | M163: 1308987.56 | N163: 1145980.15 | O163: 994845.39 | P163: 709623.09 | Q163: 732018.4 | R163: 981782.83 | S163: 12729948.78
B164: 650
B165: 651 | C165: 875 | D165: Measuring & Regulating Station Expenses
B166: 652 | E166: Utah | G166: 252562.53 | H166: 154728.83 | I166: 130631.61 | J166: 167896.18 | K166: 146718.04 | L166: 237123.98 | M166: 114311.62 | N166: 265047.42 | O166: 219122.45 | P166: 175821.3 | Q166: 170807.42 | R166: 170216.5 | S166: 2204987.88
B167: 653 | E167: Wyoming | G167: 12420.64 | H167: 6840.52 | I167: 11924.86 | J167: 9725.85 | K167: 8223.62 | L167: 18488.67 | M167: 7342.33 | N167: 18719.68 | O167: 11176.45 | P167: 11604.56 | Q167: 10149.23 | R167: 12453.46 | S167: 139069.87
A168: %,FACCOUNT,TQGCACCTS,N875 | B168: 654 | E168: Total | G168: 264983.17 | H168: 161569.35 | I168: 142556.47 | J168: 177622.03 | K168: 154941.66 | L168: 255612.65 | M168: 121653.95 | N168: 283767.1 | O168: 230298.9 | P168: 187425.86 | Q168: 180956.65 | R168: 182669.96 | S168: 2344057.75
B169: 655
B170: 656 | C170: 878 | D170: Meter & House Regulator Expenses
B171: 657 | E171: Utah | G171: 193153.77 | H171: 215599.54 | I171: 209860.4 | J171: 193053.77 | K171: 227680.95 | L171: 214083.06 | M171: 259035.51 | N171: 281073.82 | O171: 290755.3 | P171: 220914.59 | Q171: 206673.35 | R171: 213380.29 | S171: 2725264.35
B172: 658 | E172: Wyoming | G172: 22679.29 | H172: 14885.46 | I172: 13067.68 | J172: 22499.22 | K172: 18396.34 | L172: 13797.97 | M172: 17778.06 | N172: 20879.56 | O172: 29154.97 | P172: 9296.21 | Q172: 13372.47 | R172: 18614.54 | S172: 214421.77
A173: %,FACCOUNT,TQGCACCTS,N878 | B173: 659 | E173: Total | G173: 215833.06 | H173: 230485 | I173: 222928.08 | J173: 215552.99 | K173: 246077.29 | L173: 227881.03 | M173: 276813.57 | N173: 301953.38 | O173: 319910.27 | P173: 230210.8 | Q173: 220045.82 | R173: 231994.83 | S173: 2939686.12
B174: 660
B175: 661 | C175: 879 | D175: Customer Installations Expenses
B176: 662 | E176: Utah | G176: 222558.62 | H176: 223818.91 | I176: 198600.32 | J176: 222723.23 | K176: 207922.47 | L176: 208957.77 | M176: 248359.85 | N176: 297208.64 | O176: 335517.2 | P176: 310376.46 | Q176: 258580.47 | R176: 225455.46 | S176: 2960079.4
B177: 663 | E177: Wyoming | G177: 8427.58 | H177: 6097.85 | I177: 5055.71 | J177: 5574.3 | K177: 6657.49 | L177: 6408.15 | M177: 12580.03 | N177: 13773.34 | O177: 14273.12 | P177: 14868.18 | Q177: 11885.34 | R177: 13245.99 | S177: 118847.08
A178: %,FACCOUNT,TQGCACCTS,N879 | B178: 664 | E178: Total | G178: 230986.2 | H178: 229916.76 | I178: 203656.03 | J178: 228297.53 | K178: 214579.96 | L178: 215365.92 | M178: 260939.88 | N178: 310981.98 | O178: 349790.32 | P178: 325244.64 | Q178: 270465.81 | R178: 238701.45 | S178: 3078926.48
B179: 665
B180: 666 | C180: 880 | D180: Other Expenses
B181: 667 | E181: Utah | G181: 667466.77 | H181: 698510.72 | I181: 556582.19 | J181: 529540.93 | K181: 613819.55 | L181: 627619.46 | M181: 795467.68 | N181: 530774.48 | O181: 658626.43 | P181: 839009.65 | Q181: 617360.21 | R181: 778968.74 | S181: 7913746.81
B182: 668 | E182: Wyoming | G182: 68472.31 | H182: 69541.65 | I182: 45667.83 | J182: 33841.11 | K182: 41708.17 | L182: 35492.98 | M182: 54126.3 | N182: 56989.19 | O182: 68820.92 | P182: 51691.14 | Q182: 62229.46 | R182: 64319.66 | S182: 652900.72
A183: %,FACCOUNT,TQGCACCTS,N880 | B183: 669 | E183: Total | G183: 735939.08 | H183: 768052.37 | I183: 602250.02 | J183: 563382.04 | K183: 655527.72 | L183: 663112.44 | M183: 849593.98 | N183: 587763.67 | O183: 727447.35 | P183: 890700.79 | Q183: 679589.67 | R183: 843288.4 | S183: 8566647.53
B184: 670
B185: 671 | C185: 881 | D185: Rents
B186: 672 | E186: Utah | G186: 3507.7 | H186: 3907.53 | I186: 3733.54 | J186: 3275.5 | K186: 3399.89 | L186: -547.81 | M186: 3012.82 | N186: 3325.41 | O186: 3070.88 | P186: 3553.83 | Q186: 8868.35 | R186: 3613.41 | S186: 42721.05
B187: 673 | E187: Wyoming | G187: 117.08 | H187: 129.59 | I187: 123.82 | J187: 108.28 | K187: 111.31 | L187: -17.99 | M187: 98.96 | N187: 109.93 | O187: 101.19 | P187: 114.07 | Q187: 286.55 | R187: 121 | S187: 1403.79
A188: %,FACCOUNT,TQGCACCTS,N881 | B188: 674 | E188: Total | G188: 3624.78 | H188: 4037.12 | I188: 3857.36 | J188: 3383.78 | K188: 3511.2 | L188: -565.8 | M188: 3111.78 | N188: 3435.34 | O188: 3172.07 | P188: 3667.9 | Q188: 9154.9 | R188: 3734.41 | S188: 44124.84
B189: 675
B190: 676 | C190: 885 | D190: Maintenance Supervision & Engineering
B191: 677 | E191: Utah | G191: 49130.71 | H191: 42078.01 | I191: 40285.67 | J191: 37656.51 | K191: 40846.8 | L191: 38173.43 | M191: 46597.7 | N191: 53213.86 | O191: 41586.46 | P191: 45283.62 | Q191: 77746.06 | R191: 29485.1 | S191: 542083.93
B192: 678 | E192: Wyoming | G192: 1515.49 | H192: 1291.16 | I192: 1189.04 | J192: 1131.13 | K192: 1224.61 | L192: 1149.15 | M192: 1384.79 | N192: 1644.94 | O192: 1244.62 | P192: 1327.91 | Q192: 2355 | R192: 887.64 | S192: 16345.48
A193: %,FACCOUNT,TQGCACCTS,N885 | B193: 679 | E193: Total | G193: 50646.2 | H193: 43369.17 | I193: 41474.71 | J193: 38787.64 | K193: 42071.41 | L193: 39322.58 | M193: 47982.49 | N193: 54858.8 | O193: 42831.08 | P193: 46611.53 | Q193: 80101.06 | R193: 30372.74 | S193: 558429.41
B194: 680
B195: 681 | C195: 886 | D195: Maintenance of Structures & Improvements
B196: 682 | E196: Utah | G196: 7075.21 | H196: 6941.82 | I196: 6732.58 | J196: 6739.88 | K196: 6902.93 | L196: 7663.42 | M196: 7172.97 | N196: 7559.01 | O196: 10880.62 | P196: 6724.75 | Q196: 7103.33 | R196: 6825.66 | S196: 88322.18
B197: 683 | E197: Wyoming | G197: 211.37 | H197: 216.77 | I197: 216.18 | J197: 216.36 | K197: 388.39 | L197: 222.18 | M197: 283.72 | N197: 233.77 | O197: 330.14 | P197: 205.09 | Q197: 211.39 | R197: 218.73 | S197: 2954.09
A198: %,FACCOUNT,TQGCACCTS,N886 | B198: 684 | E198: Total | G198: 7286.58 | H198: 7158.59 | I198: 6948.76 | J198: 6956.24 | K198: 7291.32 | L198: 7885.6 | M198: 7456.69 | N198: 7792.78 | O198: 11210.76 | P198: 6929.84 | Q198: 7314.72 | R198: 7044.39 | S198: 91276.27
B199: 685
B200: 686 | C200: 887 | D200: Maintenance of Mains
B201: 687 | E201: Utah | G201: 784718.4 | H201: 685739.81 | I201: 696087.04 | J201: 666493.45 | K201: 681255.97 | L201: 633315.16 | M201: 654158.66 | N201: 684689.4 | O201: 699562.79 | P201: 751104.42 | Q201: 756653.34 | R201: 707952.4 | S201: 8401730.84
B202: 688 | E202: Wyoming | G202: 15876.86 | H202: 12511.52 | I202: 9690.03 | J202: 10985.28 | K202: 15552.44 | L202: 8286.54 | M202: 4834.47 | N202: 1955.9 | O202: 16467.9 | P202: 17807.16 | Q202: 10332.39 | R202: 9372.33 | S202: 133672.82
A203: %,FACCOUNT,TQGCACCTS,N887 | B203: 689 | E203: Total | G203: 800595.26 | H203: 698251.33 | I203: 705777.07 | J203: 677478.73 | K203: 696808.41 | L203: 641601.7 | M203: 658993.13 | N203: 686645.3 | O203: 716030.69 | P203: 768911.58 | Q203: 766985.73 | R203: 717324.73 | S203: 8535403.66
B204: 690
B205: 691 | C205: 888 | D205: Maint of Compressor Station Equipment
B206: 692 | E206: Utah | G206: 107011.17 | H206: 73327.15 | I206: 86888.33 | J206: 93700.1 | K206: 75567.16 | L206: 78071.39 | M206: 82844.83 | N206: 119059.49 | O206: 33495.21 | P206: 68492.69 | Q206: 74082.98 | R206: 80516.22 | S206: 973056.72
... 843 more rows

Sheet Rate Base
A1: %,LACTUALS
C2: Company: | F2: Company:
C3: Period Ended: | F3: Period Ended:
C4: Date,Time, Stamp: | F4: Date,Time, Stamp:
U5: Historical
U6: 13-Month Avg
U7: Period Ended
G8: =+H8-30 -> 2017-02-17 | H8: 2017-03-19 | I8: 2017-04-18 | J8: 2017-05-18 | K8: 2017-06-17 | L8: 2017-07-17 | M8: 2017-08-16 | N8: 2017-09-17 | O8: 2017-10-19 | P8: 2017-11-18 | Q8: 2017-12-18 | R8: 2018-01-18 | S8: 2018-02-17 | T8: 2018-03-19 | U8: 2018-03-31
C10: UTILITY RATE BASE
D11: NET UTILITY PLANT
D13: Intangible Plant
C14: 101 | D14: Gas Plant In Service
E15: Intangible Plant
B16: 1 | D16: 302 | E16: Franchises & Consents
B17: =+B16+1 -> 2 | E17: Distribution - Wyoming | H17: 10883.08 | I17: 10883.08 | J17: 10883.08 | K17: 10883.08 | L17: 10883.08 | M17: 10883.08 | N17: 10883.08 | O17: 10883.08 | P17: 10883.08 | Q17: 10883.08 | R17: 10883.08 | S17: 10883.08 | T17: 10883.08 | U17: =((H17/2)+SUM(I17:S17)+(T17/2))/12 -> 10883.08
B18: 3 | E18: Distribution - Utah | H18: 58742.88 | I18: 58742.88 | J18: 58742.88 | K18: 58742.88 | L18: 58742.88 | M18: 58742.88 | N18: 58742.88 | O18: 58742.88 | P18: 58742.88 | Q18: 58742.88 | R18: 58742.88 | S18: 58742.88 | T18: 58742.88 | U18: =((H18/2)+SUM(I18:S18)+(T18/2))/12 -> 58742.88
B19: 4
A20: ="%,FACCOUNT,TQGCACCTS,N"&(D16) -> %,FACCOUNT,TQGCACCTS,N302 | B20: 5 | E20: Total Intangible Plant | H20: 69625.96 | I20: 69625.96 | J20: 69625.96 | K20: 69625.96 | L20: 69625.96 | M20: 69625.96 | N20: 69625.96 | O20: 69625.96 | P20: 69625.96 | Q20: 69625.96 | R20: 69625.96 | S20: 69625.96 | T20: 69625.96 | U20: =SUM(U17:U18) -> 69625.96
B21: 6
B22: 7 | E22: Production & Gathering Plant
A23: ="%,FACCOUNT,TQGCACCTS,N"&(D23) -> %,FACCOUNT,TQGCACCTS,N325 | B23: 8 | D23: 325 | E23: Land & Land Rights | H23: 6266900.69 | I23: 6266900.69 | J23: 6266900.69 | K23: 6266900.69 | L23: 6266900.69 | M23: 6266900.69 | N23: 6266900.69 | O23: 6266900.69 | P23: 6266900.69 | Q23: 6266900.69 | R23: 6266900.69 | S23: 6266900.69 | T23: 6266900.69 | U23: =((H23/2)+SUM(I23:S23)+(T23/2))/12 -> 6266900.69
A24: %,FACCOUNT,TQGCACCTS,N326,N327,N328,N329 | B24: 9 | D24: 326...9 | E24: Structures | H24: 1437567.99 | I24: 1437567.99 | J24: 1437567.99 | K24: 1437567.99 | L24: 1437567.99 | M24: 1437567.99 | N24: 1437567.99 | O24: 1437567.99 | P24: 1437567.99 | Q24: 1437567.99 | R24: 1437567.99 | S24: 1437567.99 | T24: 1437567.99 | U24: 1437567.99
A25: ="%,FACCOUNT,TQGCACCTS,N"&(D25) -> %,FACCOUNT,TQGCACCTS,N330 | B25: 10 | D25: 330 | E25: Gas Wells - Construction | H25: 52175293.81 | I25: 52175293.81 | J25: 52175293.81 | K25: 52175293.81 | L25: 52175293.81 | M25: 52175293.81 | N25: 52175293.81 | O25: 52175293.81 | P25: 52175293.81 | Q25: 52175293.81 | R25: 52175293.81 | S25: 52175293.81 | T25: 52175293.81 | U25: 52175293.81
A26: ="%,FACCOUNT,TQGCACCTS,N"&(D26) -> %,FACCOUNT,TQGCACCTS,N331 | B26: 11 | D26: 331 | E26: Gas Wells - Equipment | H26: 17216356.05 | I26: 17216356.05 | J26: 17216356.05 | K26: 17216356.05 | L26: 17216356.05 | M26: 17216356.05 | N26: 17216356.05 | O26: 17216356.05 | P26: 17216356.05 | Q26: 17216356.05 | R26: 17216356.05 | S26: 17216356.05 | T26: 17216356.05 | U26: 17216356.05
A27: %,FACCOUNT,TQGCACCTS,N332,N333,N334 | B27: 12 | D27: 332...4 | E27: Field Lines & Comp, Meas & Reg St Eqpt | H27: 2693816.12 | I27: 2693816.12 | J27: 2693816.12 | K27: 2693816.12 | L27: 2693816.12 | M27: 2693816.12 | N27: 2693816.12 | O27: 2693816.12 | P27: 2693816.12 | Q27: 2693816.12 | R27: 2693816.12 | S27: 2693816.12 | T27: 2693816.12 | U27: 2693816.12
A28: ="%,FACCOUNT,TQGCACCTS,N"&(D28) -> %,FACCOUNT,TQGCACCTS,N336 | B28: 13 | D28: 336 | E28: Purification Equipment | H28: 57014.71 | I28: 57014.71 | J28: 57014.71 | K28: 57014.71 | L28: 57014.71 | M28: 57014.71 | N28: 57014.71 | O28: 57014.71 | P28: 57014.71 | Q28: 57014.71 | R28: 57014.71 | S28: 57014.71 | T28: 57014.71 | U28: 57014.71
A29: ="%,FACCOUNT,TQGCACCTS,N"&(D29) -> %,FACCOUNT,TQGCACCTS,N337 | B29: 14 | D29: 337 | E29: Other Equipment | H29: 121186.63 | I29: 121186.63 | J29: 121186.63 | K29: 121186.63 | L29: 121186.63 | M29: 121186.63 | N29: 121186.63 | O29: 121186.63 | P29: 121186.63 | Q29: 121186.63 | R29: 121186.63 | S29: 121186.63 | T29: 121186.63 | U29: 121186.63
B30: 15
B31: 16 | E31: Total Production & Gathering Plant | H31: 79968136 | I31: 79968136 | J31: 79968136 | K31: 79968136 | L31: 79968136 | M31: 79968136 | N31: 79968136 | O31: 79968136 | P31: 79968136 | Q31: 79968136 | R31: 79968136 | S31: 79968136 | T31: 79968136 | U31: =SUM(U23:U29) -> 79968136
B32: 17
B33: 18 | E33: Distribution Plant
B34: 19 | D34: 374 | E34: Land & Land Rights
B35: 20 | F35: Wyoming | H35: 400188.28 | I35: 434507.8 | J35: 434507.8 | K35: 434507.8 | L35: 434507.8 | M35: 434507.8 | N35: 434507.8 | O35: 434507.8 | P35: 434507.8 | Q35: 434011.18 | R35: 400188.28 | S35: 400188.28 | T35: 400188.28 | U35: =((H35/2)+SUM(I35:S35)+(T35/2))/12 -> 425886.535
A36: ="%,FACCOUNT,TQGCACCTS,N"&(D34) -> %,FACCOUNT,TQGCACCTS,N374 | B36: 21 | F36: Utah | H36: 19326879.5 | I36: 20027866.07 | J36: 20028667.97 | K36: 20028996.87 | L36: 20028996.87 | M36: 20034792.79 | N36: 20034792.79 | O36: 20034792.79 | P36: 20036829.95 | Q36: 20037679.3 | R36: 18477460.7 | S36: 18477460.7 | T36: 19326879.5 | U36: 19714601.36
B37: 22 | F37: Total | H37: 19727067.78 | I37: 20462373.87 | J37: 20463175.77 | K37: 20463504.67 | L37: 20463504.67 | M37: 20469300.59 | N37: 20469300.59 | O37: 20469300.59 | P37: 20471337.75 | Q37: 20471690.48 | R37: 18877648.98 | S37: 18877648.98 | T37: 19727067.78 | U37: =SUM(U35:U36) -> 20140487.89
B38: 23
B39: 24 | D39: 375 | E39: Structures & Improvements
B40: 25 | F40: Wyoming | H40: 1006934.23 | I40: 1006934.23 | J40: 1006934.23 | K40: 1006934.23 | L40: 1006934.23 | M40: 1006934.23 | N40: 1006934.23 | O40: 1006934.23 | P40: 1006934.23 | Q40: 1004474.53 | R40: 982959.23 | S40: 1006934.23 | T40: 1006934.23 | U40: =((H40/2)+SUM(I40:S40)+(T40/2))/12 -> 1004731.338
A41: ="%,FACCOUNT,TQGCACCTS,N"&(D39) -> %,FACCOUNT,TQGCACCTS,N375 | B41: 26 | F41: Utah | H41: 15376216.3 | I41: 15404847.8 | J41: 15421744.87 | K41: 15421744.87 | L41: 15421744.87 | M41: 15420355.25 | N41: 15420355.25 | O41: 15410995.89 | P41: 15512582.9 | Q41: 15501057.69 | R41: 15717299.49 | S41: 15963930.39 | T41: 15376216.3 | U41: 15499406.3
B42: 27 | F42: Total | H42: 16383150.53 | I42: 16411782.03 | J42: 16428679.1 | K42: 16428679.1 | L42: 16428679.1 | M42: 16427289.48 | N42: 16427289.48 | O42: 16417930.12 | P42: 16519517.13 | Q42: 16505532.22 | R42: 16700258.72 | S42: 16970864.62 | T42: 16383150.53 | U42: =SUM(U40:U41) -> 16504137.64
B43: 28
B44: 29 | D44: 376 | E44: Mains
B45: 30 | F45: Dist - Wy - Mains - SD
B46: 31 | F46: Dist - Wy - Mains - LD
B47: 32 | F47: Dist - Wy - Mains - Feeders
B48: 33 | F48: Wyoming | H48: 39192146.39 | I48: 39229270.78 | J48: 39231919.19 | K48: 39235900.38 | L48: 39238064.98 | M48: 39357142.27 | N48: 39357142.27 | O48: 40238540.55 | P48: 40419135.76 | Q48: 41533025.01 | R48: 39090198.48 | S48: 39250212.11 | T48: 39192146.39 | U48: =((H48/2)+SUM(I48:S48)+(T48/2))/12 -> 39614391.51
B49: 34 | F49: Dist - Ut - Mains - SD
B50: 35 | F50: Dist - Ut - Mains - LD
B51: 36 | F51: Dist - Ut - Mains - Feeders
A52: ="%,FACCOUNT,TQGCACCTS,N"&(D44) -> %,FACCOUNT,TQGCACCTS,N376 | B52: 37 | F52: Utah | H52: 1461271902 | I52: 1475408775 | J52: 1476524364 | K52: 1480318382 | L52: 1480556611 | M52: 1522276861 | N52: 1523217908 | O52: 1544971824 | P52: 1549562103 | Q52: 1555365511 | R52: 1449459877 | S52: 1450999383 | T52: 1461271902 | U52: =((H52/2)+SUM(I52:S52)+(T52/2))/12 -> 1497494458
B53: 38 | F53: Total | H53: 1500464048 | I53: 1514638045 | J53: 1515756283 | K53: 1519554282 | L53: 1519794676 | M53: 1561634004 | N53: 1562575050 | O53: 1585210365 | P53: 1589981238 | Q53: 1596898536 | R53: 1488550075 | S53: 1490249595 | T53: 1500464048 | U53: =SUM(U48:U52) -> 1537108850
B54: 39
B55: 40 | D55: 377 | E55: Compressor Station Equipment
B56: 41 | F56: Wyoming | H56: 0 | I56: 0 | J56: 0 | K56: 0 | L56: 0 | M56: 0 | N56: 0 | O56: 0 | P56: 0 | Q56: 0 | R56: 0 | S56: 0 | T56: 0 | U56: =((H56/2)+SUM(I56:S56)+(T56/2))/12 -> 0
A57: ="%,FACCOUNT,TQGCACCTS,N"&(D55) -> %,FACCOUNT,TQGCACCTS,N377 | B57: 42 | F57: Utah | H57: 14286566.04 | I57: 14286566.04 | J57: 14286566.04 | K57: 14286566.04 | L57: 14286566.04 | M57: 14286566.04 | N57: 14286566.04 | O57: 14286566.04 | P57: 14286566.04 | Q57: 14286566.04 | R57: 18299037.55 | S57: 18299037.55 | T57: 14286566.04 | U57: 14955311.29
B58: 43 | F58: Total | H58: 14286566.04 | I58: 14286566.04 | J58: 14286566.04 | K58: 14286566.04 | L58: 14286566.04 | M58: 14286566.04 | N58: 14286566.04 | O58: 14286566.04 | P58: 14286566.04 | Q58: 14286566.04 | R58: 18299037.55 | S58: 18299037.55 | T58: 14286566.04 | U58: =SUM(U56:U57) -> 14955311.29
B59: 44
B60: 45 | D60: 378 | E60: Measuring & Regulation Station Equip
B61: 46 | F61: Wyoming | H61: 7652724.22 | I61: 7657526.37 | J61: 7657526.37 | K61: 7657526.37 | L61: 7657526.37 | M61: 7657082.81 | N61: 7657082.81 | O61: 7657082.81 | P61: 7657082.81 | Q61: 7646803.66 | R61: 7415821.61 | S61: 7610196.48 | T61: 7652724.22 | U61: =((H61/2)+SUM(I61:S61)+(T61/2))/12 -> 7631998.558
A62: ="%,FACCOUNT,TQGCACCTS,N"&(D60) -> %,FACCOUNT,TQGCACCTS,N378 | B62: 47 | F62: Utah | H62: 96119085.32 | I62: 96486034.22 | J62: 96749881.66 | K62: 96905219.44 | L62: 96905219.44 | M62: 97518669.98 | N62: 97518669.98 | O62: 98129123.53 | P62: 100532052.3 | Q62: 101237991.5 | R62: 94192625.21 | S62: 95777520.84 | T62: 96119085.32 | U62: 97339341.12
B63: 48 | F63: Total | H63: 103771809.5 | I63: 104143560.6 | J63: 104407408 | K63: 104562745.8 | L63: 104562745.8 | M63: 105175752.8 | N63: 105175752.8 | O63: 105786206.3 | P63: 108189135.1 | Q63: 108884795.2 | R63: 101608446.8 | S63: 103387717.3 | T63: 103771809.5 | U63: =SUM(U61:U62) -> 104971339.7
B64: 49
B65: 50 | D65: 380 | E65: Services
B66: 51 | F66: Wyoming | H66: 18704577.07 | I66: 18761099.13 | J66: 18761510.43 | K66: 18814962.66 | L66: 18975847.97 | M66: 19365906.03 | N66: 19365906.03 | O66: 20048852.03 | P66: 20063771.11 | Q66: 20117572.07 | R66: 18615215.96 | S66: 18615281.23 | T66: 18704577.07 | U66: =((H66/2)+SUM(I66:S66)+(T66/2))/12 -> 19184208.48
A67: ="%,FACCOUNT,TQGCACCTS,N"&(D65) -> %,FACCOUNT,TQGCACCTS,N380 | B67: 52 | F67: Utah | H67: 381276386.1 | I67: 382741454.2 | J67: 383336380.8 | K67: 384402788.8 | L67: 385396869.4 | M67: 386742438.7 | N67: 386742438.7 | O67: 388790955.4 | P67: 390273497.4 | Q67: 393312976.4 | R67: 375791949.8 | S67: 375812269.9 | T67: 381276386.1 | U67: 384551700.5
B68: 53 | F68: Total | H68: 399980963.2 | I68: 401502553.4 | J68: 402097891.3 | K68: 403217751.4 | L68: 404372717.4 | M68: 406108344.7 | N68: 406108344.7 | O68: 408839807.4 | P68: 410337268.5 | Q68: 413430548.4 | R68: 394407165.8 | S68: 394427551.1 | T68: 399980963.2 | U68: =SUM(U66:U67) -> 403735908.9
B69: 54
B70: 55 | D70: 381...2 | E70: Meters & Meter Installation
B71: 56 | F71: Wyoming | H71: 9790277.074 | I71: 9815017.614 | J71: 9826048.454 | K71: 9804010.214 | L71: 9190454.194 | M71: 10744765.4 | N71: 10737602.81 | O71: 10421673.04 | P71: 10438278.6 | Q71: 10480480.65 | R71: 9728463.67 | S71: 9742610.554 | T71: 9790277.074 | U71: =((H71/2)+SUM(I71:S71)+(T71/2))/12 -> 10059973.52
A72: %,FACCOUNT,TQGCACCTS,N381,N382 | B72: 57 | F72: Utah | H72: 309189993.4 | I72: 310696462.9 | J72: 314409978.9 | K72: 315385351.4 | L72: 319532399.6 | M72: 320756390.4 | N72: 320596593.1 | O72: 323928831.5 | P72: 326833946.1 | Q72: 331969358.3 | R72: 305777058.4 | S72: 307526144.4 | T72: 309189993.4 | U72: 317216875.7
B73: 58 | F73: Total | H73: 318980270.5 | I73: 320511480.5 | J73: 324236027.4 | K73: 325189361.6 | L73: 328722853.8 | M73: 331501155.8 | N73: 331334196 | O73: 334350504.5 | P73: 337272224.7 | Q73: 342449839 | R73: 315505522.1 | S73: 317268755 | T73: 318980270.5 | U73: =SUM(U71:U72) -> 327276849.2
B74: 59
B75: 60 | D75: 383...4 | E75: House Regulators & Reg Installations
B76: 61 | F76: Wyoming | H76: 772616.83 | I76: 768390.89 | J76: 765194.35 | K76: 764869.28 | L76: 763894.06 | M76: 762593.77 | N76: 761293.48 | O76: 760372.44 | P76: 759234.69 | Q76: 759017.98 | R76: 776409.34 | S76: 776300.98 | T76: 772616.83 | U76: =((H76/2)+SUM(I76:S76)+(T76/2))/12 -> 765849.0075
A77: %,FACCOUNT,TQGCACCTS,N383,N384 | B77: 62 | F77: Utah | H77: 13931237.05 | I77: 13926092.82 | J77: 13918862.92 | K77: 13913305.38 | L77: 13908129.36 | M77: 13904015.25 | N77: 13896899.81 | O77: 13896899.81 | P77: 13890048.42 | Q77: 13889337.84 | R77: 13937991.46 | S77: 13935872.58 | T77: 13931237.05 | U77: 13912391.06
B78: 63 | F78: Total | H78: 14703853.88 | I78: 14694483.71 | J78: 14684057.27 | K78: 14678174.66 | L78: 14672023.42 | M78: 14666609.02 | N78: 14658193.29 | O78: 14657272.25 | P78: 14649283.11 | Q78: 14648355.82 | R78: 14714400.8 | S78: 14712173.56 | T78: 14703853.88 | U78: =SUM(U76:U77) -> 14678240.07
B79: 64
B80: 65 | D80: 387 | E80: Other Equipment
B81: =+B80+1 -> 66 | F81: Wyoming | H81: 68977.44 | I81: 68977.44 | J81: 68977.44 | K81: 68977.44 | L81: 68977.44 | M81: 68977.44 | N81: 68977.44 | O81: 68977.44 | P81: 68977.44 | Q81: 68977.44 | R81: 68977.44 | S81: 68977.44 | T81: 68977.44 | U81: =((H81/2)+SUM(I81:S81)+(T81/2))/12 -> 68977.44
A82: ="%,FACCOUNT,TQGCACCTS,N"&(D80) -> %,FACCOUNT,TQGCACCTS,N387 | B82: 67 | F82: Utah | H82: 2237018.35 | I82: 2237018.35 | J82: 2237018.35 | K82: 2237018.35 | L82: 2237018.35 | M82: 2237018.35 | N82: 2237018.35 | O82: 2237018.35 | P82: 2237018.35 | Q82: 2237018.35 | R82: 2231447.98 | S82: 2236827.67 | T82: 2237018.35 | U82: 2236538.263
B83: 68 | F83: Total | H83: 2305995.79 | I83: 2305995.79 | J83: 2305995.79 | K83: 2305995.79 | L83: 2305995.79 | M83: 2305995.79 | N83: 2305995.79 | O83: 2305995.79 | P83: 2305995.79 | Q83: 2305995.79 | R83: 2300425.42 | S83: 2305805.11 | T83: 2305995.79 | U83: =SUM(U81:U82) -> 2305515.703
B84: 69
B85: 70 | E85: Total Distribution Plant | H85: 2390603725 | I85: 2408956841 | J85: 2414666084 | K85: 2420687061 | L85: 2425609761 | M85: 2472575018 | N85: 2473340689 | O85: 2502323948 | P85: 2514012566 | Q85: 2529881859 | R85: 2370962981 | S85: 2376499148 | T85: 2390603725 | U85: =U37+U42+U53+U58+U63+U68+U73+U78+U83 -> 2441676640
B86: 71
B87: 72 | C87: General Plant
B88: 73 | D88: 389 | E88: Land & Land Rights
B89: 74 | F89: Distribution - Wyoming | H89: 11584.02 | I89: 11584.02 | J89: 11584.02 | K89: 11584.02 | L89: 11584.02 | M89: 11584.02 | N89: 11584.02 | O89: 11584.02 | P89: 11584.02 | Q89: 11584.02 | R89: 11584.02 | S89: 11584.02 | T89: 11584.02 | U89: =((H89/2)+SUM(I89:S89)+(T89/2))/12 -> 11584.02
A90: ="%,FACCOUNT,TQGCACCTS,N"&(D88) -> %,FACCOUNT,TQGCACCTS,N389 | B90: 75 | F90: Distribution - Utah | H90: 3775953.85 | I90: 3775953.85 | J90: 3775953.85 | K90: 3775953.85 | L90: 3775953.85 | M90: 3775953.85 | N90: 3775953.85 | O90: 3775953.85 | P90: 3775953.85 | Q90: 3775953.85 | R90: 3775953.85 | S90: 3775953.85 | T90: 3775953.85 | U90: 3775953.85
B91: 76 | F91: Total | H91: 3787537.87 | I91: 3787537.87 | J91: 3787537.87 | K91: 3787537.87 | L91: 3787537.87 | M91: 3787537.87 | N91: 3787537.87 | O91: 3787537.87 | P91: 3787537.87 | Q91: 3787537.87 | R91: 3787537.87 | S91: 3787537.87 | T91: 3787537.87 | U91: =SUM(U89:U90) -> 3787537.87
B92: 77
B93: 78 | D93: 390 | E93: Structures & Improvements
B94: 79 | F94: Distribution - Wyoming | H94: 1607117.2 | I94: 1607117.2 | J94: 1610054.2 | K94: 1610054.2 | L94: 1610054.2 | M94: 1610054.2 | N94: 1610054.2 | O94: 1610054.2 | P94: 1614630.2 | Q94: 1617860.54 | R94: 1607117.2 | S94: 1607117.2 | T94: 1607117.2 | U94: =((H94/2)+SUM(I94:S94)+(T94/2))/12 -> 1610107.062
A95: ="%,FACCOUNT,TQGCACCTS,N"&(D93) -> %,FACCOUNT,TQGCACCTS,N390 | B95: 80 | F95: Distribution - Utah | H95: 42696717.99 | I95: 43235000.58 | J95: 43485867.86 | K95: 43277352.83 | L95: 43268310.27 | M95: 43449156.89 | N95: 43449156.89 | O95: 43497520.37 | P95: 44011187.29 | Q95: 44053641.37 | R95: 42582632.79 | S95: 42648696.69 | T95: 42696717.99 | U95: 43304603.49
B96: 81 | F96: General | H96: 51041952.8 | I96: 51041952.8 | J96: 51041952.8 | K96: 51079235.47 | L96: 51013931.4 | M96: 51014683.17 | N96: 51014683.17 | O96: 51014683.17 | P96: 51071164.45 | Q96: 51076999.94 | R96: 50944607.55 | S96: 50965884.49 | T96: 51041952.8 | U96: 51026810.93
B97: 82 | F97: Total | H97: 95345787.99 | I97: 95884070.58 | J97: 96137874.86 | K97: 95966642.5 | L97: 95892295.87 | M97: 96073894.26 | N97: 96073894.26 | O97: 96122257.74 | P97: 96696981.94 | Q97: 96748501.85 | R97: 95134357.54 | S97: 95221698.38 | T97: 95345787.99 | U97: =SUM(U94:U96) -> 95941521.48
B98: 83
B99: 84 | D99: 391 | E99: Office Furniture & Equipment
B100: 85 | F100: Distribution - Wyoming | H100: 178421.98 | I100: 178421.98 | J100: 178421.98 | K100: 168421.98 | L100: 168421.98 | M100: 168421.98 | N100: 168421.98 | O100: 168421.98 | P100: 168421.98 | Q100: 147841.16 | R100: 180960.98 | S100: 180960.98 | T100: 178421.98 | U100: =((H100/2)+SUM(I100:S100)+(T100/2))/12 -> 171296.745
A101: ="%,FACCOUNT,TQGCACCTS,N"&(D99) -> %,FACCOUNT,TQGCACCTS,N391 | B101: 86 | F101: Distribution - Utah | H101: 14177800.73 | I101: 14243010.2 | J101: 14372516.78 | K101: 12787006.36 | L101: 12948692.49 | M101: 13047737.01 | N101: 13047737.01 | O101: 13423552.33 | P101: 13581840.19 | Q101: 12701483.74 | R101: 14453973.2 | S101: 14601103.8 | T101: 14177800.73 | U101: 13615537.82
B102: 87 | F102: General | H102: 42082261.39 | I102: 42080453.48 | J102: 42082261.39 | K102: 39391714.5 | L102: 39391644.74 | M102: 39582500.49 | N102: 39582500.49 | O102: 39582500.49 | P102: 39780195.62 | Q102: 39749385.78 | R102: 44505532.54 | S102: 44635858.59 | T102: 42082261.39 | U102: 41037234.12
B103: 88 | F103: Total | H103: 56438484.1 | I103: 56501885.66 | J103: 56633200.15 | K103: 52347142.84 | L103: 52508759.21 | M103: 52798659.48 | N103: 52798659.48 | O103: 53174474.8 | P103: 53530457.79 | Q103: 52598710.68 | R103: 59140466.72 | S103: 59417923.37 | T103: 56438484.1 | U103: =SUM(U100:U102) -> 54824068.69
B104: 89
B105: 90 | D105: 392 | E105: Transportation Equipment
B106: 91 | F106: Distribution - Wyoming | H106: 2806503.92 | I106: 2806503.92 | J106: 2806503.92 | K106: 2806503.92 | L106: 2806503.92 | M106: 3015429.18 | N106: 3008166.81 | O106: 2898242.9 | P106: 2956370.43 | Q106: 2941469.68 | R106: 2845508.48 | S106: 2806503.92 | T106: 2806503.92 | U106: =((H106/2)+SUM(I106:S106)+(T106/2))/12 -> 2875350.917
A107: ="%,FACCOUNT,TQGCACCTS,N"&(D105) -> %,FACCOUNT,TQGCACCTS,N392 | B107: 92 | F107: Distribution - Utah | H107: 49443229.28 | I107: 49443229.28 | J107: 49607393.32 | K107: 49793846 | L107: 49828945.35 | M107: 49437046.87 | N107: 49508529.1 | O107: 49744941.45 | P107: 50397564.71 | Q107: 49990448.51 | R107: 50349790.3 | S107: 49393619.89 | T107: 49443229.28 | U107: 49744882
B108: 93 | F108: General | H108: 0 | I108: 0 | J108: 0 | K108: 0 | L108: 0 | M108: 0 | N108: 0 | O108: 0 | P108: 0 | Q108: 0 | R108: 0 | S108: 0 | T108: 0 | U108: 0
B109: 94 | F109: Total | H109: 52249733.2 | I109: 52249733.2 | J109: 52413897.24 | K109: 52600349.92 | L109: 52635449.27 | M109: 52452476.05 | N109: 52516695.91 | O109: 52643184.35 | P109: 53353935.14 | Q109: 52931918.19 | R109: 53195298.78 | S109: 52200123.81 | T109: 52249733.2 | U109: =SUM(U106:U108) -> 52620232.92
B110: 95
B111: 96 | D111: 393 | E111: Stores Equipment
B112: 97 | F112: Distribution - Wyoming | H112: 12371.89 | I112: 12371.89 | J112: 12371.89 | K112: 12371.89 | L112: 12371.89 | M112: 12371.89 | N112: 12371.89 | O112: 12371.89 | P112: 12371.89 | Q112: 12371.89 | R112: 12371.89 | S112: 12371.89 | T112: 12371.89 | U112: =((H112/2)+SUM(I112:S112)+(T112/2))/12 -> 12371.89
A113: ="%,FACCOUNT,TQGCACCTS,N"&(D111) -> %,FACCOUNT,TQGCACCTS,N393 | B113: 98 | F113: Distribution - Utah | H113: 45026.02 | I113: 45026.02 | J113: 45026.02 | K113: 45026.02 | L113: 45026.02 | M113: 45026.02 | N113: 45026.02 | O113: 45026.02 | P113: 45026.02 | Q113: 45026.02 | R113: 45026.02 | S113: 45026.02 | T113: 45026.02 | U113: 45026.02
B114: 99 | F114: Total | H114: 57397.91 | I114: 57397.91 | J114: 57397.91 | K114: 57397.91 | L114: 57397.91 | M114: 57397.91 | N114: 57397.91 | O114: 57397.91 | P114: 57397.91 | Q114: 57397.91 | R114: 57397.91 | S114: 57397.91 | T114: 57397.91 | U114: =SUM(U112:U113) -> 57397.91
B115: 100
B116: 101 | D116: 394 | E116: Tools, Shop & Garage Equipment
B117: 102 | F117: Distribution - Wyoming | H117: 2622572.71 | I117: 2622572.71 | J117: 2625915.97 | K117: 2308319.52 | L117: 2320084.88 | M117: 2344115.19 | N117: 2349815.19 | O117: 2371963.23 | P117: 2391686.4 | Q117: 2395252.13 | R117: 2632043.1 | S117: 2632683.18 | T117: 2622572.71 | U117: =((H117/2)+SUM(I117:S117)+(T117/2))/12 -> 2468085.351
A118: ="%,FACCOUNT,TQGCACCTS,N"&(D116) -> %,FACCOUNT,TQGCACCTS,N394 | B118: 103 | F118: Distribution - Utah | H118: 28724943.31 | I118: 28932884.26 | J118: 29099120.42 | K118: 29452612.12 | L118: 29635233.78 | M118: 29872090.71 | N118: 29900590.71 | O118: 30145652.96 | P118: 29040069.32 | Q118: 29287123.41 | R118: 29024551.94 | S118: 29043445.52 | T118: 28724943.31 | U118: 29346526.54
B119: 104 | F119: General | H119: 0 | I119: 0 | J119: 0 | K119: 0 | L119: 0 | M119: 0 | N119: 0 | O119: 0 | P119: 0 | Q119: 0 | R119: 0 | S119: 0 | T119: 0 | U119: 0
B120: 105 | F120: Total | H120: 31347516.02 | I120: 31555456.97 | J120: 31725036.39 | K120: 31760931.64 | L120: 31955318.66 | M120: 32216205.9 | N120: 32250405.9 | O120: 32517616.19 | P120: 31431755.72 | Q120: 31682375.54 | R120: 31656595.04 | S120: 31676128.7 | T120: 31347516.02 | U120: =SUM(U117:U119) -> 31814611.89
B121: 106
B122: 107 | D122: 395 | E122: Laboratory Equipment
B123: 108 | F123: Distribution - Wyoming | H123: 0 | I123: 0 | J123: 0 | K123: 0 | L123: 0 | M123: 0 | N123: 0 | O123: 0 | P123: 0 | Q123: 0 | R123: 0 | S123: 0 | T123: 0 | U123: =((H123/2)+SUM(I123:S123)+(T123/2))/12 -> 0
A124: ="%,FACCOUNT,TQGCACCTS,N"&(D122) -> %,FACCOUNT,TQGCACCTS,N395 | B124: 109 | F124: Distribution - Utah | H124: 61117.83 | I124: 61117.83 | J124: 61117.83 | K124: 61117.83 | L124: 61117.83 | M124: 61117.83 | N124: 61117.83 | O124: 61117.83 | P124: 61117.83 | Q124: 61117.83 | R124: 61117.83 | S124: 61117.83 | T124: 61117.83 | U124: 61117.83
B125: 110 | F125: General | H125: 0 | I125: 0 | J125: 0 | K125: 0 | L125: 0 | M125: 0 | N125: 0 | O125: 0 | P125: 0 | Q125: 0 | R125: 0 | S125: 0 | T125: 0 | U125: 0
B126: 111 | F126: Total | H126: 61117.83 | I126: 61117.83 | J126: 61117.83 | K126: 61117.83 | L126: 61117.83 | M126: 61117.83 | N126: 61117.83 | O126: 61117.83 | P126: 61117.83 | Q126: 61117.83 | R126: 61117.83 | S126: 61117.83 | T126: 61117.83 | U126: =SUM(U123:U125) -> 61117.83
B127: 112
B128: 113 | D128: 396 | E128: Power Operated Equipment
B129: 114 | F129: Distribution - Wyoming | H129: 971291.14 | I129: 971291.14 | J129: 971291.14 | K129: 963408.26 | L129: 965413.26 | M129: 965413.26 | N129: 962910.49 | O129: 1074376.01 | P129: 1042804.69 | Q129: 1042453.89 | R129: 971291.14 | S129: 971291.14 | T129: 971291.14 | U129: =((H129/2)+SUM(I129:S129)+(T129/2))/12 -> 989436.2967
A130: ="%,FACCOUNT,TQGCACCTS,N"&(D128) -> %,FACCOUNT,TQGCACCTS,N396 | B130: 115 | F130: Distribution - Utah | H130: 11193609.78 | I130: 11189596.86 | J130: 11189596.86 | K130: 11180863.27 | L130: 11180863.27 | M130: 11036358.32 | N130: 11036358.32 | O130: 11036358.32 | P130: 11036358.32 | Q130: 11060442.79 | R130: 11282614.43 | S130: 11198223.01 | T130: 11193609.78 | U130: 11135103.63
B131: 116 | F131: General | H131: 0 | I131: 0 | J131: 0 | K131: 0 | L131: 0 | M131: 0 | N131: 0 | O131: 0 | P131: 0 | Q131: 0 | R131: 0 | S131: 0 | T131: 0 | U131: 0
B132: 117 | F132: Total | H132: 12164900.92 | I132: 12160888 | J132: 12160888 | K132: 12144271.53 | L132: 12146276.53 | M132: 12001771.58 | N132: 11999268.81 | O132: 12110734.33 | P132: 12079163.01 | Q132: 12102896.68 | R132: 12253905.57 | S132: 12169514.15 | T132: 12164900.92 | U132: =SUM(U129:U131) -> 12124539.93
B133: 118
B134: 119 | D134: 397 | E134: Communication Equipment
B135: 120 | F135: Distribution - Wyoming | H135: 49809.31 | I135: 91573.83 | J135: 98853 | K135: 98857.01 | L135: 100365.69 | M135: 100365.69 | N135: 100365.69 | O135: 100471.28 | P135: 100471.28 | Q135: 100471.28 | R135: 49809.31 | S135: 49809.31 | T135: 49809.31 | U135: =((H135/2)+SUM(I135:S135)+(T135/2))/12 -> 86768.55667
A136: ="%,FACCOUNT,TQGCACCTS,N"&(D134) -> %,FACCOUNT,TQGCACCTS,N397 | B136: 121 | F136: Distribution - Utah | H136: 15652531.8 | I136: 15705182.18 | J136: 15715937.99 | K136: 14315009.34 | L136: 14334407.17 | M136: 14370288.33 | N136: 14370288.33 | O136: 14839806.49 | P136: 15146610.45 | Q136: 15148750.27 | R136: 15675305.12 | S136: 15763113.45 | T136: 15652531.8 | U136: 15086435.91
B137: 122 | F137: Total | H137: 15702341.11 | I137: 15796756.01 | J137: 15814790.99 | K137: 14413866.35 | L137: 14434772.86 | M137: 14470654.02 | N137: 14470654.02 | O137: 14940277.77 | P137: 15247081.73 | Q137: 15249221.55 | R137: 15725114.43 | S137: 15812922.76 | T137: 15702341.11 | U137: =SUM(U135:U136) -> 15173204.47
B138: 123
B139: 124 | D139: 398 | E139: Miscellaneous Equipment
B140: 125 | F140: Distribution - Wyoming | H140: 3863.92 | I140: 3863.92 | J140: 3863.92 | K140: 3863.92 | L140: 3863.92 | M140: 3863.92 | N140: 3863.92 | O140: 3863.92 | P140: 3863.92 | Q140: 3863.92 | R140: 3863.92 | S140: 3863.92 | T140: 3863.92 | U140: =((H140/2)+SUM(I140:S140)+(T140/2))/12 -> 3863.92
A141: ="%,FACCOUNT,TQGCACCTS,N"&(D139) -> %,FACCOUNT,TQGCACCTS,N398 | B141: 126 | F141: Distribution - Utah | H141: 328910.55 | I141: 328910.55 | J141: 328910.55 | K141: 325277.08 | L141: 325277.08 | M141: 325277.08 | N141: 325277.08 | O141: 322484.51 | P141: 322484.51 | Q141: 322484.51 | R141: 325391.74 | S141: 325391.74 | T141: 328910.55 | U141: 325506.415
B142: 127 | F142: General | H142: 0 | I142: 0 | J142: 0 | K142: 0 | L142: 0 | M142: 0 | N142: 0 | O142: 0 | P142: 0 | Q142: 0 | R142: 0 | S142: 0 | T142: 0 | U142: 0
B143: 128 | F143: Total | H143: 332774.47 | I143: 332774.47 | J143: 332774.47 | K143: 329141 | L143: 329141 | M143: 329141 | N143: 329141 | O143: 326348.43 | P143: 326348.43 | Q143: 326348.43 | R143: 329255.66 | S143: 329255.66 | T143: 332774.47 | U143: =SUM(U140:U142) -> 329370.335
B144: 129
B145: 130 | E145: Total General Plant | H145: 267487591.4 | I145: 268387618.5 | J145: 269124515.7 | K145: 263468399.4 | L145: 263808067 | M145: 264248855.9 | N145: 264344773 | O145: 265740947.2 | P145: 266571777.4 | Q145: 265546026.5 | R145: 271341047.4 | S145: 270733620.4 | T145: 267487591.4 | U145: =U91+U97+U103+U109+U114+U120+U126+U132+U137+U143 -> 266733603.3
B146: =+B145+1 -> 131
B147: 132 | C147: 101 | D147: Gas Plant in Service
B148: 133 | E148: Production | H148: 79968136 | I148: 79968136 | J148: 79968136 | K148: 79968136 | L148: 79968136 | M148: 79968136 | N148: 79968136 | O148: 79968136 | P148: 79968136 | Q148: 79968136 | R148: 79968136 | S148: 79968136 | T148: 79968136 | U148: =((H148/2)+SUM(I148:S148)+(T148/2))/12 -> 79968136
B149: 134 | E149: Distribution - Wyoming | H149: 77599324.61 | I149: 77752607.33 | J149: 77763501.34 | K149: 77798571.45 | L149: 77347090.12 | M149: 79408792.83 | N149: 79400329.95 | O149: 80647823.42 | P149: 80858805.52 | Q149: 82055245.6 | R149: 77089117.09 | S149: 77481584.38 | T149: 77599324.61 | U149: 78766899.47
B150: 135 | E150: Distribution - Utah | H150: 2313074027 | I150: 2331273860 | J150: 2336972208 | K150: 2342958116 | L150: 2348332297 | M150: 2393235851 | N150: 2394009985 | O150: 2421745750 | P150: 2433223387 | Q150: 2447896240 | R150: 2293943490 | S150: 2299087190 | T150: 2313074027 | U150: 2362979367
B151: 136 | E151: General | H151: 267487591.4 | I151: 268387618.5 | J151: 269124515.7 | K151: 263468399.4 | L151: 263808067 | M151: 264248855.9 | N151: 264344773 | O151: 265740947.2 | P151: 266571777.4 | Q151: 265546026.5 | R151: 271341047.4 | S151: 270733620.4 | T151: 267487591.4 | U151: 266733603.3
B152: 137 | E152: Total | H152: 2738129079 | I152: 2757382222 | J152: 2763828361 | K152: 2764193223 | L152: 2769455590 | M152: 2816861636 | N152: 2817723224 | O152: 2848102657 | P152: 2860622106 | Q152: 2875465648 | R152: 2722341790 | S152: 2727270530 | T152: 2738129079 | U152: =SUM(U148:U151) -> 2788448005
B153: 138
B154: 139 | C154: 105 | D154: Gas Plant Held for Future Use
B155: 140 | E155: Distribution - Utah | H155: 5036.83 | I155: 5036.83 | J155: 5036.83 | K155: 5036.83 | L155: 5036.83 | M155: 5036.83 | N155: 5036.83 | O155: 5036.83 | P155: 5036.83 | Q155: 5036.83 | R155: 5036.83 | S155: 5036.83 | T155: 5036.83 | U155: =((H155/2)+SUM(I155:S155)+(T155/2))/12 -> 5036.83
A156: %,FACCOUNT,TQGCACCTS,N105 | B156: 141 | E156: Total | H156: 5036.83 | I156: 5036.83 | J156: 5036.83 | K156: 5036.83 | L156: 5036.83 | M156: 5036.83 | N156: 5036.83 | O156: 5036.83 | P156: 5036.83 | Q156: 5036.83 | R156: 5036.83 | S156: 5036.83 | T156: 5036.83 | U156: =SUM(U155) -> 5036.83
B157: 142
B158: 143 | C158: 106 | D158: Completed Construction Not Classified - Gas
B159: 144 | E159: Production | H159: 0 | I159: 0 | J159: 0 | K159: 0 | L159: 0 | M159: 0 | N159: 0 | O159: 0 | P159: 0 | Q159: 0 | R159: 0 | S159: 0 | T159: 0 | U159: =((H159/2)+SUM(I159:S159)+(T159/2))/12 -> 0
B160: 145 | E160: Distribution - Wyoming | H160: 109182.78 | I160: 276963.56 | J160: 950180.8 | K160: 1588249.67 | L160: 1993330.38 | M160: 2239100.69 | N160: 2600183.68 | O160: 1576770.89 | P160: 1675193.15 | Q160: 710920.69 | R160: 118669.23 | S160: 41327.62 | T160: 109182.78 | U160: 1156672.762
B161: 146 | E161: Distribution - Utah | H161: 7179101.212 | I161: 6777010.31 | J161: 9121644.75 | K161: 9719600.222 | L161: 12826474.79 | M161: 9308466.12 | N161: 27287883.3 | O161: 13704256.67 | P161: 12449806.57 | Q161: 22418304.78 | R161: 11100303.43 | S161: 16627548.82 | T161: 7179101.212 | U161: 13210033.41
B162: 147 | E162: General | H162: 462115.65 | I162: 471060.27 | J162: 1131562.37 | K162: 1107897.09 | L162: 1200519.75 | M162: 1438369 | N162: 2628142.71 | O162: 1389351.33 | P162: 1062030.31 | Q162: 3618205.25 | R162: 1050953.39 | S162: 1490322.23 | T162: 462115.65 | U162: 1420877.446
